{"text_format":"1","workbook":"xlsx","n_sheets":7,"sheets":["Getting Started","Product Emissions Analysis","Summary Results","Summary Results - Figures","Product Data and EFs","EF Calcs","Smart Thermostat Calcs"],"not_rendered":{"charts":3,"images":2,"macros":1,"external_links":0,"defined_names":0,"comments":2,"pivot_tables":0},"unopened":[],"bounds":{"document_bytes":16777216,"sheet_cells":100000,"rows_first":2000,"rows_last":500,"rows_between":2000,"halvings":0,"cell_chars":16384,"cell_head_chars":4096},"cells_cut":0,"cells_raw":0,"read":"whole","date_system":"1900"}

{"sheet":"Getting Started","index":0,"n_rows":54,"n_cols":4,"rows_kept":54,"cut":false,"hidden":false,"merged":[[14,2,14,19],[45,2,45,19],[15,14,15,18],[8,2,8,18],[11,2,11,18],[12,2,12,18],[47,2,47,18],[46,2,46,18],[48,2,48,18],[52,2,52,18],[53,2,53,18],[50,2,50,18],[49,2,49,18]]}
[]
[null,"ENERGY STAR Scope 3 Use of Sold Products Analysis Tool"]
[null,"v1.2, February 8, 2023"]
[]
[null,null,"Getting Started"]
[]
[]
[null,null,"Purpose"]
[null,null,"\nThis tool is intended for retailers that sell products. There are two primary uses of the tool:\n\n(1) Benchmarking. Allows a retailer to (a) quantify the Scope 3 Use of Sold Product emissions associated with the current sale of ENERGY STAR products and with increased sale of ENERGY STAR products, and (b) quantify the GHG emissions savings achieved through the current or increased sale of ENERGY STAR products (compared to not selling any ENERGY STAR products).\n\n(2) Scenario Analysis. Allows a retailer to (a) quantify how Scope 3 Use of Sold Product emissions change with increased sale of ENERGY STAR products, and (b) quantify how emissions savings improve with increased sale of ENERGY STAR products.\n\nThe goal of the tool is to demonstrate to retailers that increased sales of ENERGY STAR products can potentially result in significant reductions in Scope 3 Use of Sold Products emissions (and therefore, total GHG inventory emissions). It is mainly intended to be used to analyze the impacts of increased ENERGY STAR sales, and not for Scope 3 reporting. If this tool is used to quantify Scope 3 Use of Sold Product emissions for GHG inventory reporting, results should be verified before reporting."]
[]
[null,null,"Instructions for Using Tool"]
[null,null,"\nThe tool consists of 5 worksheets:\n\n- Getting Started: Explains the purpose of the tool, provides instructions for using the tool, provides background on emission scopes, explains methodology for calculating Scope 3 Use of Sold Product emissions, and provides contact info for questions.\n- Product Emissions Analysis: Shows the Scope 3 Use of Sold Products emissions and emissions savings by ENERGY STAR product category associated with the sale of ENERGY STAR products. For each product category, both lifetime and annual emissions and emissions savings are presented. Lifetime emissions are those that are required to be reported for the Scope 3 Use of Sold Products category. Annual emissions are shown in case retailers are interested in seeing emissions on an annual basis. Emissions savings estimates show retailers the GHG savings associated with current or increased ENERGY STAR sales.\n- Summary Results: Summarizes the results of the product emissions analysis across all ENERGY STAR product categories. The first \"Results\" section (Scope 3 Use of Sold Products) summarizes the impacts of selling more ENERGY STAR products on the Scope 3 Use of Sold Products category only. The second \"Results\" section (GHG Inventory) is optional. If you have estimates of your Scope 1 and 2 emissions as well as other Scope 3 categories, entering them in this section will let you see the impact of selling more ENERGY STAR Products on your GHG inventory.\n- Summary Results - Figures: Illustrates the change in Scope 3 Use of Sold Products emissions when selling more ENERGY STAR products.\n- Product Data and EFs: Presents the Scope 3 Use of Sold Products emission factors used in the analysis as well as the data used to produce these factors (i.e., Scope 1 and 2 emissions factors and product energy use data)."]
[null,null,"\nFollow these steps to use the tool:\n\n(1) On the \"Product Emissions Analysis\" worksheet, enter 'Total Unit Sales,' 'Percent of Current Sales that are ENERGY STAR,' and a 'Higher % of Sales that are ENERGY STAR for Analysis' for each product category/product type that applies to your business. \n\nNote: yellow cells indicate that you should enter data. Green cells indicate that a value is calculated based on the data entered. \n\nFor each product category/type that you enter data, you will see the lifetime and annual Scope 3 Use of Sold Product emissions asscociated with current ENERGY STAR sales and increased ENERGY STAR sales. You will also see lifetime and annual emissions savings achieved through the current and increased sale of ENERGY STAR products (compared to a baseline of only selling standard products).\n\n(2) Once you are done entering data, you can see a summary of results across all product categories on the \"Summary Results\" worksheet. The first \"Results\" section (Scope 3 Use of Sold Products) summarizes the impacts of selling more ENERGY STAR products on the Scope 3 Use of Sold Products category only. The second \"Results\" section (GHG Inventory) is optional. If you have estimates of your Scope 1 and 2 emissions as well as other Scope 3 categories, entering them in this section will let you see the impact of selling more ENERGY STAR Products on your GHG inventory. You can also see the results depicted visually with several charts on the \"Summary Results - Figures\" worksheet.\n\n(3) For reference, the \"Product Data and EFs\" worksheet presents the emissions factors and product data used in the calculations."]
[null,null,"Overview of Scope 1, 2, and 3 Emissions"]
[null,null,"There are 2 types of GHG emissions, direct and indirect.\n\n- Direct GHG emissions are emissions from sources that are owned or controlled by the company, such as burning natural gas for heat, or gasoline used in vehicles. \n\n- Indirect GHG emissions are emissions that are a consequence of the activities of the company but occur at sources owned or controlled by another company (such as a utility). The emissions from the electricity purchased is the main source of indirect emissions.\n\nGHG emissions are broken down into three scopes, to avoid double counting between organizations:\n\n- Scope 1 emissions are direct emissions from operations that are owned or controlled by the reporting company. This is natural gas, gasoline from company owned vehicles, or diesel used in backup generators.\n\nIndirect GHG emissions are broken down into 2 scopes:\n- Scope 2 emissions from the generation of purchased or acquired electricity, steam, heating or cooling consumed by the reporting company. \n- Scope 3 emissions are all remaining indirect emissions from an organization’s value chain, such as emissions from purchased products and services, emissions from the use of the products the organization sells, employee commuting, business travel, and others."]
[]
[]
[]
[]
[]
[]
[]
[]
[]
[]
[]
[]
[]
[]
[]
[]
[]
[]
[]
[]
[]
[]
[]
[]
[]
[]
[]
[]
[null,null,null,"Source: Graphic originally developed by the GHG Protocol and adapted by EPA"]
[null,null,"Methodology for Calculating Emissions - Scope 3, Category 11: Use of Sold Products"]
[null,null,"\nThe methodology for calculating the emissions from Scope 3, Category 11: Use of Sold Products was developed by the GHG Protocol:"]
[null,null,"Technical Guidance for Calculating Scope 3 Emissions (version 1.0), https://ghgprotocol.org/sites/default/files/standards/Scope3_Calculation_Guidance_0.pdf"]
[null,null,"\nThe methodology calls for calculating the GHG emissions resulting from the use of a sold product over its lifetime. Sources of emissions include electricity use, fuel use, and refrigerant leakage. "]
[null,null,"Assumptions Used in This Tool:\n\n- This tool analyzes emissions from products contained in the ENERGY STAR Certified Products 2021 Data Book. All product data comes from the Databook. \n\n- Using lifecycle emission factors (scope 3) to calculate category 11 emissions is preferred but not common. Using scope 1 and 2 emissions to develop category 11 emissions is acceptable and more common at this time (scope 1 and 2 factors are more readily available and easier to use). As such, this tool only uses the scope 1 emission factors for fuel use (natural gas and heating oil) and the scope 2 factor for electricity use (eGRID U.S. Average). The emissions factors for fuel use only account for the emissions associated with combusting the fuel and not those that occur from the extraction, processing, and transmission/distribution of the fuel; the emission factor for electricity only accounts for the emissions associated with generating electricity at the plant, and not those that occur from the extraction, processing, and transmission/distribution of fuels used, or those associated with the transmission/distribution losses between the plant and the end user.\n\n- The tool does not account for refrigerant leakage. It is assumed that all modern appliances that use refrigerant are designed not to leak over their useful life.\n\n- eGRID's U.S. Average emission factor is used for electricity (ideally, if known, retailers should use the emission factor for the eGRID region in which the product will be used).\n\n- Emission factors for natural gas and heating oil are from U.S. EPA GHG Emission Factors Hub (https://www.epa.gov/climateleadership/center-corporate-climate-leadership-ghg-emission-factors-hub). \n\n New for Version 1.1:\n- Global warming potentials used can be selected from IPCC's Fourth Assessment Report, 2007 (AR4) which align with other EPA products and the U.S. GHG Inventory; IPCC's Fifth Assessment Report, 2014 (AR5); or IPCC's Sixth Assessment Report, 2021 (AR6). \n- Light Fixtures are now included in the lighting section of the tool.\n\n"]
[null,null,"New for Version 1.2:\n- Smart Thermostats are now included in the Heating and Cooling section of the tool. "]
[null,null,"- Emissions savings presented on the \"Product Emissions Analysis,\" Summary Results,\" and \"Summary Results-Figures\" worksheets were determined by calculating the emissions that would have occurred if you did not sell any ENERGY STAR products (and instead sold all standard products), and then subtracting from that the actual emissions associated with your product sales (i.e., those that include ENERGY STAR product sales). For all product categories except lightbulbs the lifetimes of ENERGY STAR products and their standard counterparts are the same. For lightbulbs, because halogens have a much shorter lifespan than LEDs or CFLs (0.9 years to 13.7 years and 9.1 years, respectively), lifetime emissions savings are determined by scaling up the number of halogens to match the lifetimes of LEDs and CFLs. For LEDs the scale up factor is 15.2 (13.7/0.9=15.2) and for CFLs the scale up factor is 10.1 (9.1/0.9=10.1). In other words, over the lifetime of a single LED bulb, 15.2 halogens would need to be purchased; and over the lifetime of a single CFL bulb, 10.1 halogens would need to be purchased."]
[null,null,"Questions?"]
[null,null,"\nContact Dan Cronin, EPA ENERGY STAR Program"]
[null,null,"Cronin [.] Daniel [@] epa [.] gov"]

{"sheet":"Product Emissions Analysis","index":1,"n_rows":454,"n_cols":20,"rows_kept":454,"cut":false,"hidden":false,"merged":[[411,7,411,12],[411,13,411,18],[365,7,365,12],[2,2,2,19],[266,7,266,12],[266,13,266,18],[308,7,308,12],[308,13,308,18],[246,7,246,12],[246,13,246,18],[290,13,290,18],[290,7,290,12],[365,13,365,18],[79,9,79,13],[151,7,151,12],[151,13,151,18],[12,13,12,18],[166,13,166,18],[156,7,156,12],[42,13,42,18],[330,7,330,12],[204,7,204,12],[204,13,204,18],[42,7,42,12],[12,7,12,12],[166,7,166,12],[156,13,156,18],[74,3,74,21],[90,7,90,12],[90,13,90,19],[346,7,346,12],[79,14,79,18],[84,9,84,13],[84,14,84,18],[346,13,346,18],[330,13,330,18],[119,7,119,12],[119,13,119,19]]}
[]
[null,null,"Scope 3 Use of Sold Products Emissions Analysis"]
[null,null,"For each Product Category, enter current total sales and % of current sales that are ENERGY STAR for each product type, as applicable (in yellow cells). Also enter a new, higher percentage of ENERGY STAR sales to see the Scope 3 Use of Sold Products emissions reductions achieved with increased ENERGY STAR sales (see the Summary Results worksheet for results across all product categories). For each product category, both lifetime and annual emissions are presented. Lifetime emissions are those that are required to be reported for the Scope 3 Use of Sold Products category. Annual emissions are shown in case retailers are interested in seeing emissions on an annual basis."]
[null,null,null,"Analysis Time Period (Optional)",null,"Enter period over which sales take place. Annual value is recommended (e.g., 2021). This is just for reference and doesn't affect any calculations."]
[null,null,null,"Global Warming Potential (GWP) Selection","AR5"]
[]
[]
[]
[null,null,null,"Residential Appliances"]
[]
[null,null,null,"Lifetime"]
[]
[null,null,null,null,null,null,null,"Current",null,null,null,null,null,"Increased ENERGY STAR Sales"]
[null,null,null,"Product Type","Total Unit Sales","% of Current Sales that are ENERGY STAR","Enter a Higher % of Sales that are ENERGY STAR for Analysis\n","Total ENERGY STAR Product Sales","Total Standard Product Sales","Lifetime Product Use Emissions - ENERGY STAR (Metric Tons CO2e)","Lifetime Product Use Emissions - Standard (Metric Tons CO2e)","Lifetime Total Product Use Emissions (Metric Tons CO2e)","Lifetime Emissions Savings from ENERGY STAR Product Sales\n(Metric Tons CO2e)","Total ENERGY STAR Product Sales","Total Standard Product Sales","Lifetime Product Use Emissions - ENERGY STAR (Metric Tons CO2e)","Lifetime Product Use Emissions - Standard (Metric Tons CO2e)","Lifetime Total Product Use Emissions (Metric Tons CO2e)","Lifetime Emissions Savings from ENERGY STAR Product Sales\n(Metric Tons CO2e)","Additional Lifetime Emissions Savings Achieved with Increased ENERGY STAR Sales\n(Metric Tons CO2e)"]
[null,null,null,"Room Air Conditioners",null,null,null,{"$f":"IF(F15=\"\",0,ROUND(E15*F15,0))","v":0},{"$f":"IF(F15=\"\",0,E15-H15)","v":0},{"$f":"IF(H15=0,0,H15*'Product Data and EFs'!L24/1000)","v":0},{"$f":"IF(I15=0,0,I15*'Product Data and EFs'!K24/1000)","v":0},{"$f":"IF(F15=\"\",0,SUM(J15:K15))","v":0},{"$f":"IF(L15=0,0,(E15*'Product Data and EFs'!K24/1000-'Product Emissions Analysis'!L15))","v":0},{"$f":"IF(G15=\"\",0,ROUND(E15*G15,0))","v":0},{"$f":"IF(G15=\"\",0,E15-N15)","v":0},{"$f":"IF(N15=0,0,N15*'Product Data and EFs'!L24/1000)","v":0},{"$f":"IF(O15=0,0,O15*'Product Data and EFs'!K24/1000)","v":0},{"$f":"IF(G15=\"\",0,SUM(P15:Q15))","v":0},{"$f":"IF(R15=0,0,(E15*'Product Data and EFs'!K24/1000-'Product Emissions Analysis'!R15))","v":0},{"$f":"IF(G15=\"\",0,L15-R15)","v":0}]
[null,null,null,"Dehumidifiers",null,null,null,{"$f":"IF(F16=\"\",0,ROUND(E16*F16,0))","v":0},{"$f":"IF(F16=\"\",0,E16-H16)","v":0},{"$f":"IF(H16=0,0,H16*'Product Data and EFs'!L25/1000)","v":0},{"$f":"IF(I16=0,0,I16*'Product Data and EFs'!K25/1000)","v":0},{"$f":"IF(F16=\"\",0,SUM(J16:K16))","v":0},{"$f":"IF(L16=0,0,(E16*'Product Data and EFs'!K25/1000-'Product Emissions Analysis'!L16))","v":0},{"$f":"IF(G16=\"\",0,ROUND(E16*G16,0))","v":0},{"$f":"IF(G16=\"\",0,E16-N16)","v":0},{"$f":"IF(N16=0,0,N16*'Product Data and EFs'!L25/1000)","v":0},{"$f":"IF(O16=0,0,O16*'Product Data and EFs'!K25/1000)","v":0},{"$f":"IF(G16=\"\",0,SUM(P16:Q16))","v":0},{"$f":"IF(R16=0,0,(E16*'Product Data and EFs'!K25/1000-'Product Emissions Analysis'!R16))","v":0},{"$f":"IF(G16=\"\",0,L16-R16)","v":0}]
[null,null,null,"Air Cleaners",null,null,null,0,0,{"$f":"IF(H17=0,0,H17*'Product Data and EFs'!L26/1000)","v":0},{"$f":"IF(I17=0,0,I17*'Product Data and EFs'!K26/1000)","v":0},0,{"$f":"IF(L17=0,0,(E17*'Product Data and EFs'!K26/1000-'Product Emissions Analysis'!L17))","v":0},0,0,{"$f":"IF(N17=0,0,N17*'Product Data and EFs'!L26/1000)","v":0},{"$f":"IF(O17=0,0,O17*'Product Data and EFs'!K26/1000)","v":0},0,{"$f":"IF(R17=0,0,(E17*'Product Data and EFs'!K26/1000-'Product Emissions Analysis'!R17))","v":0},0]
[null,null,null,"Ventilating Fans - Bathroom Fans",null,null,null,0,0,{"$f":"IF(H18=0,0,H18*'Product Data and EFs'!L27/1000)","v":0},{"$f":"IF(I18=0,0,I18*'Product Data and EFs'!K27/1000)","v":0},0,{"$f":"IF(L18=0,0,(E18*'Product Data and EFs'!K27/1000-'Product Emissions Analysis'!L18))","v":0},0,0,{"$f":"IF(N18=0,0,N18*'Product Data and EFs'!L27/1000)","v":0},{"$f":"IF(O18=0,0,O18*'Product Data and EFs'!K27/1000)","v":0},0,{"$f":"IF(R18=0,0,(E18*'Product Data and EFs'!K27/1000-'Product Emissions Analysis'!R18))","v":0},0]
[null,null,null,"Ventilating Fans - Inline Fans",null,null,null,0,0,{"$f":"IF(H19=0,0,H19*'Product Data and EFs'!L28/1000)","v":0},{"$f":"IF(I19=0,0,I19*'Product Data and EFs'!K28/1000)","v":0},0,{"$f":"IF(L19=0,0,(E19*'Product Data and EFs'!K28/1000-'Product Emissions Analysis'!L19))","v":0},0,0,{"$f":"IF(N19=0,0,N19*'Product Data and EFs'!L28/1000)","v":0},{"$f":"IF(O19=0,0,O19*'Product Data and EFs'!K28/1000)","v":0},0,{"$f":"IF(R19=0,0,(E19*'Product Data and EFs'!K28/1000-'Product Emissions Analysis'!R19))","v":0},0]
[null,null,null,"Ventilating Fans - Range Hoods",null,null,null,0,0,{"$f":"IF(H20=0,0,H20*'Product Data and EFs'!L29/1000)","v":0},{"$f":"IF(I20=0,0,I20*'Product Data and EFs'!K29/1000)","v":0},0,{"$f":"IF(L20=0,0,(E20*'Product Data and EFs'!K29/1000-'Product Emissions Analysis'!L20))","v":0},0,0,{"$f":"IF(N20=0,0,N20*'Product Data and EFs'!L29/1000)","v":0},{"$f":"IF(O20=0,0,O20*'Product Data and EFs'!K29/1000)","v":0},0,{"$f":"IF(R20=0,0,(E20*'Product Data and EFs'!K29/1000-'Product Emissions Analysis'!R20))","v":0},0]
[null,null,null,"Standard Ceiling Fan",null,null,null,0,0,{"$f":"IF(H21=0,0,H21*'Product Data and EFs'!L30/1000)","v":0},{"$f":"IF(I21=0,0,I21*'Product Data and EFs'!K30/1000)","v":0},0,{"$f":"IF(L21=0,0,(E21*'Product Data and EFs'!K30/1000-'Product Emissions Analysis'!L21))","v":0},0,0,{"$f":"IF(N21=0,0,N21*'Product Data and EFs'!L30/1000)","v":0},{"$f":"IF(O21=0,0,O21*'Product Data and EFs'!K30/1000)","v":0},0,{"$f":"IF(R21=0,0,(E21*'Product Data and EFs'!K30/1000-'Product Emissions Analysis'!R21))","v":0},0]
[null,null,null,"Hugger Ceiling Fan",null,null,null,0,0,{"$f":"IF(H22=0,0,H22*'Product Data and EFs'!L31/1000)","v":0},{"$f":"IF(I22=0,0,I22*'Product Data and EFs'!K31/1000)","v":0},0,{"$f":"IF(L22=0,0,(E22*'Product Data and EFs'!K31/1000-'Product Emissions Analysis'!L22))","v":0},0,0,{"$f":"IF(N22=0,0,N22*'Product Data and EFs'!L31/1000)","v":0},{"$f":"IF(O22=0,0,O22*'Product Data and EFs'!K31/1000)","v":0},0,{"$f":"IF(R22=0,0,(E22*'Product Data and EFs'!K31/1000-'Product Emissions Analysis'!R22))","v":0},0]
[null,null,null,"Standard Ceiling Fan with Light Kit",null,null,null,0,0,{"$f":"IF(H23=0,0,H23*'Product Data and EFs'!L32/1000)","v":0},{"$f":"IF(I23=0,0,I23*'Product Data and EFs'!K32/1000)","v":0},0,{"$f":"IF(L23=0,0,(E23*'Product Data and EFs'!K32/1000-'Product Emissions Analysis'!L23))","v":0},0,0,{"$f":"IF(N23=0,0,N23*'Product Data and EFs'!L32/1000)","v":0},{"$f":"IF(O23=0,0,O23*'Product Data and EFs'!K32/1000)","v":0},0,{"$f":"IF(R23=0,0,(E23*'Product Data and EFs'!K32/1000-'Product Emissions Analysis'!R23))","v":0},0]
[null,null,null,"Hugger Ceiling Fan with Light Kit",null,null,null,0,0,{"$f":"IF(H24=0,0,H24*'Product Data and EFs'!L33/1000)","v":0},{"$f":"IF(I24=0,0,I24*'Product Data and EFs'!K33/1000)","v":0},0,{"$f":"IF(L24=0,0,(E24*'Product Data and EFs'!K33/1000-'Product Emissions Analysis'!L24))","v":0},0,0,{"$f":"IF(N24=0,0,N24*'Product Data and EFs'!L33/1000)","v":0},{"$f":"IF(O24=0,0,O24*'Product Data and EFs'!K33/1000)","v":0},0,{"$f":"IF(R24=0,0,(E24*'Product Data and EFs'!K33/1000-'Product Emissions Analysis'!R24))","v":0},0]
[null,null,null,"Dishwashers - Standard",null,null,null,0,0,{"$f":"IF(H25=0,0,H25*'Product Data and EFs'!L34/1000)","v":0},{"$f":"IF(I25=0,0,I25*'Product Data and EFs'!K34/1000)","v":0},0,{"$f":"IF(L25=0,0,(E25*'Product Data and EFs'!K34/1000-'Product Emissions Analysis'!L25))","v":0},0,0,{"$f":"IF(N25=0,0,N25*'Product Data and EFs'!L34/1000)","v":0},{"$f":"IF(O25=0,0,O25*'Product Data and EFs'!K34/1000)","v":0},0,{"$f":"IF(R25=0,0,(E25*'Product Data and EFs'!K34/1000-'Product Emissions Analysis'!R25))","v":0},0]
[null,null,null,"Dishwashers - Compact",null,null,null,0,0,{"$f":"IF(H26=0,0,H26*'Product Data and EFs'!L35/1000)","v":0},{"$f":"IF(I26=0,0,I26*'Product Data and EFs'!K35/1000)","v":0},0,{"$f":"IF(L26=0,0,(E26*'Product Data and EFs'!K35/1000-'Product Emissions Analysis'!L26))","v":0},0,0,{"$f":"IF(N26=0,0,N26*'Product Data and EFs'!L35/1000)","v":0},{"$f":"IF(O26=0,0,O26*'Product Data and EFs'!K35/1000)","v":0},0,{"$f":"IF(R26=0,0,(E26*'Product Data and EFs'!K35/1000-'Product Emissions Analysis'!R26))","v":0},0]
[null,null,null,"Refrigerators - Top Freezer",null,null,null,0,0,{"$f":"IF(H27=0,0,H27*'Product Data and EFs'!L36/1000)","v":0},{"$f":"IF(I27=0,0,I27*'Product Data and EFs'!K36/1000)","v":0},0,{"$f":"IF(L27=0,0,(E27*'Product Data and EFs'!K36/1000-'Product Emissions Analysis'!L27))","v":0},0,0,{"$f":"IF(N27=0,0,N27*'Product Data and EFs'!L36/1000)","v":0},{"$f":"IF(O27=0,0,O27*'Product Data and EFs'!K36/1000)","v":0},0,{"$f":"IF(R27=0,0,(E27*'Product Data and EFs'!K36/1000-'Product Emissions Analysis'!R27))","v":0},0]
[null,null,null,"Refrigerators - Bottom Freezer",null,null,null,0,0,{"$f":"IF(H28=0,0,H28*'Product Data and EFs'!L37/1000)","v":0},{"$f":"IF(I28=0,0,I28*'Product Data and EFs'!K37/1000)","v":0},0,{"$f":"IF(L28=0,0,(E28*'Product Data and EFs'!K37/1000-'Product Emissions Analysis'!L28))","v":0},0,0,{"$f":"IF(N28=0,0,N28*'Product Data and EFs'!L37/1000)","v":0},{"$f":"IF(O28=0,0,O28*'Product Data and EFs'!K37/1000)","v":0},0,{"$f":"IF(R28=0,0,(E28*'Product Data and EFs'!K37/1000-'Product Emissions Analysis'!R28))","v":0},0]
[null,null,null,"Refrigerators - Side by Side",null,null,null,0,0,{"$f":"IF(H29=0,0,H29*'Product Data and EFs'!L38/1000)","v":0},{"$f":"IF(I29=0,0,I29*'Product Data and EFs'!K38/1000)","v":0},0,{"$f":"IF(L29=0,0,(E29*'Product Data and EFs'!K38/1000-'Product Emissions Analysis'!L29))","v":0},0,0,{"$f":"IF(N29=0,0,N29*'Product Data and EFs'!L38/1000)","v":0},{"$f":"IF(O29=0,0,O29*'Product Data and EFs'!K38/1000)","v":0},0,{"$f":"IF(R29=0,0,(E29*'Product Data and EFs'!K38/1000-'Product Emissions Analysis'!R29))","v":0},0]
[null,null,null,"Freezers - Chest Freezer",null,null,null,0,0,{"$f":"IF(H30=0,0,H30*'Product Data and EFs'!L39/1000)","v":0},{"$f":"IF(I30=0,0,I30*'Product Data and EFs'!K39/1000)","v":0},0,{"$f":"IF(L30=0,0,(E30*'Product Data and EFs'!K39/1000-'Product Emissions Analysis'!L30))","v":0},0,0,{"$f":"IF(N30=0,0,N30*'Product Data and EFs'!L39/1000)","v":0},{"$f":"IF(O30=0,0,O30*'Product Data and EFs'!K39/1000)","v":0},0,{"$f":"IF(R30=0,0,(E30*'Product Data and EFs'!K39/1000-'Product Emissions Analysis'!R30))","v":0},0]
[null,null,null,"Freezers - Upright Freezer",null,null,null,0,0,{"$f":"IF(H31=0,0,H31*'Product Data and EFs'!L40/1000)","v":0},{"$f":"IF(I31=0,0,I31*'Product Data and EFs'!K40/1000)","v":0},0,{"$f":"IF(L31=0,0,(E31*'Product Data and EFs'!K40/1000-'Product Emissions Analysis'!L31))","v":0},0,0,{"$f":"IF(N31=0,0,N31*'Product Data and EFs'!L40/1000)","v":0},{"$f":"IF(O31=0,0,O31*'Product Data and EFs'!K40/1000)","v":0},0,{"$f":"IF(R31=0,0,(E31*'Product Data and EFs'!K40/1000-'Product Emissions Analysis'!R31))","v":0},0]
[null,null,null,"Clothes Washers - Top Loading",null,null,null,0,0,{"$f":"IF(H32=0,0,H32*'Product Data and EFs'!L41/1000)","v":0},{"$f":"IF(I32=0,0,I32*'Product Data and EFs'!K41/1000)","v":0},0,{"$f":"IF(L32=0,0,(E32*'Product Data and EFs'!K41/1000-'Product Emissions Analysis'!L32))","v":0},0,0,{"$f":"IF(N32=0,0,N32*'Product Data and EFs'!L41/1000)","v":0},{"$f":"IF(O32=0,0,O32*'Product Data and EFs'!K41/1000)","v":0},0,{"$f":"IF(R32=0,0,(E32*'Product Data and EFs'!K41/1000-'Product Emissions Analysis'!R32))","v":0},0]
[null,null,null,"Clothes Washers - Front Loading",null,null,null,0,0,{"$f":"IF(H33=0,0,H33*'Product Data and EFs'!L42/1000)","v":0},{"$f":"IF(I33=0,0,I33*'Product Data and EFs'!K42/1000)","v":0},0,{"$f":"IF(L33=0,0,(E33*'Product Data and EFs'!K42/1000-'Product Emissions Analysis'!L33))","v":0},0,0,{"$f":"IF(N33=0,0,N33*'Product Data and EFs'!L42/1000)","v":0},{"$f":"IF(O33=0,0,O33*'Product Data and EFs'!K42/1000)","v":0},0,{"$f":"IF(R33=0,0,(E33*'Product Data and EFs'!K42/1000-'Product Emissions Analysis'!R33))","v":0},0]
[null,null,null,"Clothes Dryers - Standard Electric Dryer (Vented/Ventless)",null,null,null,0,0,{"$f":"IF(H34=0,0,H34*'Product Data and EFs'!L43/1000)","v":0},{"$f":"IF(I34=0,0,I34*'Product Data and EFs'!K43/1000)","v":0},0,{"$f":"IF(L34=0,0,(E34*'Product Data and EFs'!K43/1000-'Product Emissions Analysis'!L34))","v":0},0,0,{"$f":"IF(N34=0,0,N34*'Product Data and EFs'!L43/1000)","v":0},{"$f":"IF(O34=0,0,O34*'Product Data and EFs'!K43/1000)","v":0},0,{"$f":"IF(R34=0,0,(E34*'Product Data and EFs'!K43/1000-'Product Emissions Analysis'!R34))","v":0},0]
[null,null,null,"Clothes Dryers - Gas Dryers",null,null,null,0,0,{"$f":"IF(H35=0,0,H35*'Product Data and EFs'!L44/1000)","v":0},{"$f":"IF(I35=0,0,I35*'Product Data and EFs'!K44/1000)","v":0},0,{"$f":"IF(L35=0,0,(E35*'Product Data and EFs'!K44/1000-'Product Emissions Analysis'!L35))","v":0},0,0,{"$f":"IF(N35=0,0,N35*'Product Data and EFs'!L44/1000)","v":0},{"$f":"IF(O35=0,0,O35*'Product Data and EFs'!K44/1000)","v":0},0,{"$f":"IF(R35=0,0,(E35*'Product Data and EFs'!K44/1000-'Product Emissions Analysis'!R35))","v":0},0]
[null,null,null,"Water Heaters - Gas Storage Water Heater",null,null,null,0,0,{"$f":"IF(H36=0,0,H36*'Product Data and EFs'!L45/1000)","v":0},{"$f":"IF(I36=0,0,I36*'Product Data and EFs'!K45/1000)","v":0},0,{"$f":"IF(L36=0,0,(E36*'Product Data and EFs'!K45/1000-'Product Emissions Analysis'!L36))","v":0},0,0,{"$f":"IF(N36=0,0,N36*'Product Data and EFs'!L45/1000)","v":0},{"$f":"IF(O36=0,0,O36*'Product Data and EFs'!K45/1000)","v":0},0,{"$f":"IF(R36=0,0,(E36*'Product Data and EFs'!K45/1000-'Product Emissions Analysis'!R36))","v":0},0]
[null,null,null,"Water Heaters - Electric (Heat Pump) Water Heater",null,null,null,0,0,{"$f":"IF(H37=0,0,H37*'Product Data and EFs'!L46/1000)","v":0},{"$f":"IF(I37=0,0,I37*'Product Data and EFs'!K46/1000)","v":0},0,{"$f":"IF(L37=0,0,(E37*'Product Data and EFs'!K46/1000-'Product Emissions Analysis'!L37))","v":0},0,0,{"$f":"IF(N37=0,0,N37*'Product Data and EFs'!L46/1000)","v":0},{"$f":"IF(O37=0,0,O37*'Product Data and EFs'!K46/1000)","v":0},0,{"$f":"IF(R37=0,0,(E37*'Product Data and EFs'!K46/1000-'Product Emissions Analysis'!R37))","v":0},0]
[null,null,null,"Water Heaters - Tankless Gas Water Heater",null,null,null,0,0,{"$f":"IF(H38=0,0,H38*'Product Data and EFs'!L47/1000)","v":0},{"$f":"IF(I38=0,0,I38*'Product Data and EFs'!K47/1000)","v":0},0,{"$f":"IF(L38=0,0,(E38*'Product Data and EFs'!K47/1000-'Product Emissions Analysis'!L38))","v":0},0,0,{"$f":"IF(N38=0,0,N38*'Product Data and EFs'!L47/1000)","v":0},{"$f":"IF(O38=0,0,O38*'Product Data and EFs'!K47/1000)","v":0},0,{"$f":"IF(R38=0,0,(E38*'Product Data and EFs'!K47/1000-'Product Emissions Analysis'!R38))","v":0},0]
[null,null,null,"TOTAL",{"$f":"SUM(E15:E38)","v":0},"NA","NA",{"$f":"SUM(H15:H38)","v":0},0,0,0,0,0,0,0,0,0,0,0,0]
[]
[null,null,null,"Annual"]
[]
[null,null,null,null,null,null,null,"Current",null,null,null,null,null,"Increased ENERGY STAR Sales"]
[null,null,null,"Product Type","Total Unit Sales","% of Current Sales that are ENERGY STAR","Higher % of Sales that are ENERGY STAR for Analysis","Total ENERGY STAR Product Sales","Total Standard Product Sales","Annual Product Use Emissions - ENERGY STAR (Metric Tons CO2e)","Annual Product Use Emissions - Standard (Metric Tons CO2e)","Annual Total Product Use Emissions (Metric Tons CO2e)","Annual Emissions Savings from ENERGY STAR Product Sales\n(Metric Tons CO2e)","Total ENERGY STAR Product Sales","Total Standard Product Sales","Annual Product Use Emissions - ENERGY STAR (Metric Tons CO2e)","Annual Product Use Emissions - Standard (Metric Tons CO2e)","Annual Total Product Use Emissions (Metric Tons CO2e)","Annual Emissions Savings from ENERGY STAR Product Sales\n(Metric Tons CO2e)","Additional Annual Emissions Savings Achieved with Increased ENERGY STAR Sales\n(Metric Tons CO2e)"]
[null,null,null,"Room Air Conditioners",{"$f":"IF(E15=\"\",\"\",E15)","v":""},{"$f":"IF(F15=\"\",\"\",F15)","v":""},{"$f":"IF(G15=\"\",\"\",G15)","v":""},{"$f":"IF(F45=\"\",0,ROUND(E45*F45,0))","v":0},{"$f":"IF(F45=\"\",0,E45-H45)","v":0},{"$f":"IF(H45=0,0,H45*'Product Data and EFs'!L24/1000/'Product Data and EFs'!F24)","v":0},{"$f":"IF(I45=0,0,I45*'Product Data and EFs'!K24/1000/'Product Data and EFs'!F24)","v":0},{"$f":"IF(F45=\"\",0,SUM(J45:K45))","v":0},{"$f":"IF(L45=0,0,(E45*'Product Data and EFs'!K24/1000/'Product Data and EFs'!F24-'Product Emissions Analysis'!L45))","v":0},{"$f":"IF(G45=\"\",0,ROUND(E45*G45,0))","v":0},{"$f":"IF(G45=\"\",0,E45-N45)","v":0},{"$f":"IF(N45=0,0,N45*'Product Data and EFs'!L24/1000/'Product Data and EFs'!F24)","v":0},{"$f":"IF(O45=0,0,O45*'Product Data and EFs'!K24/1000/'Product Data and EFs'!F24)","v":0},{"$f":"IF(G45=\"\",0,SUM(P45:Q45))","v":0},{"$f":"IF(R45=0,0,(E45*'Product Data and EFs'!K24/1000/'Product Data and EFs'!F24-'Product Emissions Analysis'!R45))","v":0},{"$f":"IF(G45=\"\",0,L45-R45)","v":0}]
[null,null,null,"Dehumidifiers",{"$f":"IF(E16=\"\",\"\",E16)","v":""},"","",{"$f":"IF(F46=\"\",0,ROUND(E46*F46,0))","v":0},{"$f":"IF(F46=\"\",0,E46-H46)","v":0},{"$f":"IF(H46=0,0,H46*'Product Data and EFs'!L25/1000/'Product Data and EFs'!F25)","v":0},{"$f":"IF(I46=0,0,I46*'Product Data and EFs'!K25/1000/'Product Data and EFs'!F25)","v":0},{"$f":"IF(F46=\"\",0,SUM(J46:K46))","v":0},{"$f":"IF(L46=0,0,(E46*'Product Data and EFs'!K25/1000/'Product Data and EFs'!F25-'Product Emissions Analysis'!L46))","v":0},{"$f":"IF(G46=\"\",0,ROUND(E46*G46,0))","v":0},{"$f":"IF(G46=\"\",0,E46-N46)","v":0},{"$f":"IF(N46=0,0,N46*'Product Data and EFs'!L25/1000/'Product Data and EFs'!F25)","v":0},{"$f":"IF(O46=0,0,O46*'Product Data and EFs'!K25/1000/'Product Data and EFs'!F25)","v":0},{"$f":"IF(G46=\"\",0,SUM(P46:Q46))","v":0},{"$f":"IF(R46=0,0,(E46*'Product Data and EFs'!K25/1000/'Product Data and EFs'!F25-'Product Emissions Analysis'!R46))","v":0},{"$f":"IF(G46=\"\",0,L46-R46)","v":0}]
[null,null,null,"Air Cleaners",{"$f":"IF(E17=\"\",\"\",E17)","v":""},"","",0,0,{"$f":"IF(H47=0,0,H47*'Product Data and EFs'!L26/1000/'Product Data and EFs'!F26)","v":0},{"$f":"IF(I47=0,0,I47*'Product Data and EFs'!K26/1000/'Product Data and EFs'!F26)","v":0},0,{"$f":"IF(L47=0,0,(E47*'Product Data and EFs'!K26/1000/'Product Data and EFs'!F26-'Product Emissions Analysis'!L47))","v":0},0,0,{"$f":"IF(N47=0,0,N47*'Product Data and EFs'!L26/1000/'Product Data and EFs'!F26)","v":0},{"$f":"IF(O47=0,0,O47*'Product Data and EFs'!K26/1000/'Product Data and EFs'!F26)","v":0},0,{"$f":"IF(R47=0,0,(E47*'Product Data and EFs'!K26/1000/'Product Data and EFs'!F26-'Product Emissions Analysis'!R47))","v":0},0]
[null,null,null,"Ventilating Fans - Bathroom Fans",{"$f":"IF(E18=\"\",\"\",E18)","v":""},"","",0,0,{"$f":"IF(H48=0,0,H48*'Product Data and EFs'!L27/1000/'Product Data and EFs'!F27)","v":0},{"$f":"IF(I48=0,0,I48*'Product Data and EFs'!K27/1000/'Product Data and EFs'!F27)","v":0},0,{"$f":"IF(L48=0,0,(E48*'Product Data and EFs'!K27/1000/'Product Data and EFs'!F27-'Product Emissions Analysis'!L48))","v":0},0,0,{"$f":"IF(N48=0,0,N48*'Product Data and EFs'!L27/1000/'Product Data and EFs'!F27)","v":0},{"$f":"IF(O48=0,0,O48*'Product Data and EFs'!K27/1000/'Product Data and EFs'!F27)","v":0},0,{"$f":"IF(R48=0,0,(E48*'Product Data and EFs'!K27/1000/'Product Data and EFs'!F27-'Product Emissions Analysis'!R48))","v":0},0]
[null,null,null,"Ventilating Fans - Inline Fans",{"$f":"IF(E19=\"\",\"\",E19)","v":""},"","",0,0,{"$f":"IF(H49=0,0,H49*'Product Data and EFs'!L28/1000/'Product Data and EFs'!F28)","v":0},{"$f":"IF(I49=0,0,I49*'Product Data and EFs'!K28/1000/'Product Data and EFs'!F28)","v":0},0,{"$f":"IF(L49=0,0,(E49*'Product Data and EFs'!K28/1000/'Product Data and EFs'!F28-'Product Emissions Analysis'!L49))","v":0},0,0,{"$f":"IF(N49=0,0,N49*'Product Data and EFs'!L28/1000/'Product Data and EFs'!F28)","v":0},{"$f":"IF(O49=0,0,O49*'Product Data and EFs'!K28/1000/'Product Data and EFs'!F28)","v":0},0,{"$f":"IF(R49=0,0,(E49*'Product Data and EFs'!K28/1000/'Product Data and EFs'!F28-'Product Emissions Analysis'!R49))","v":0},0]
[null,null,null,"Ventilating Fans - Range Hoods",{"$f":"IF(E20=\"\",\"\",E20)","v":""},"","",0,0,{"$f":"IF(H50=0,0,H50*'Product Data and EFs'!L29/1000/'Product Data and EFs'!F29)","v":0},{"$f":"IF(I50=0,0,I50*'Product Data and EFs'!K29/1000/'Product Data and EFs'!F29)","v":0},0,{"$f":"IF(L50=0,0,(E50*'Product Data and EFs'!K29/1000/'Product Data and EFs'!F29-'Product Emissions Analysis'!L50))","v":0},0,0,{"$f":"IF(N50=0,0,N50*'Product Data and EFs'!L29/1000/'Product Data and EFs'!F29)","v":0},{"$f":"IF(O50=0,0,O50*'Product Data and EFs'!K29/1000/'Product Data and EFs'!F29)","v":0},0,{"$f":"IF(R50=0,0,(E50*'Product Data and EFs'!K29/1000/'Product Data and EFs'!F29-'Product Emissions Analysis'!R50))","v":0},0]
[null,null,null,"Standard Ceiling Fan",{"$f":"IF(E21=\"\",\"\",E21)","v":""},"","",0,0,{"$f":"IF(H51=0,0,H51*'Product Data and EFs'!L30/1000/'Product Data and EFs'!F30)","v":0},{"$f":"IF(I51=0,0,I51*'Product Data and EFs'!K30/1000/'Product Data and EFs'!F30)","v":0},0,{"$f":"IF(L51=0,0,(E51*'Product Data and EFs'!K30/1000/'Product Data and EFs'!F30-'Product Emissions Analysis'!L51))","v":0},0,0,{"$f":"IF(N51=0,0,N51*'Product Data and EFs'!L30/1000/'Product Data and EFs'!F30)","v":0},{"$f":"IF(O51=0,0,O51*'Product Data and EFs'!K30/1000/'Product Data and EFs'!F30)","v":0},0,{"$f":"IF(R51=0,0,(E51*'Product Data and EFs'!K30/1000/'Product Data and EFs'!F30-'Product Emissions Analysis'!R51))","v":0},0]
[null,null,null,"Hugger Ceiling Fan",{"$f":"IF(E22=\"\",\"\",E22)","v":""},"","",0,0,{"$f":"IF(H52=0,0,H52*'Product Data and EFs'!L31/1000/'Product Data and EFs'!F31)","v":0},{"$f":"IF(I52=0,0,I52*'Product Data and EFs'!K31/1000/'Product Data and EFs'!F31)","v":0},0,{"$f":"IF(L52=0,0,(E52*'Product Data and EFs'!K31/1000/'Product Data and EFs'!F31-'Product Emissions Analysis'!L52))","v":0},0,0,{"$f":"IF(N52=0,0,N52*'Product Data and EFs'!L31/1000/'Product Data and EFs'!F31)","v":0},{"$f":"IF(O52=0,0,O52*'Product Data and EFs'!K31/1000/'Product Data and EFs'!F31)","v":0},0,{"$f":"IF(R52=0,0,(E52*'Product Data and EFs'!K31/1000/'Product Data and EFs'!F31-'Product Emissions Analysis'!R52))","v":0},0]
[null,null,null,"Standard Ceiling Fan with Light Kit",{"$f":"IF(E23=\"\",\"\",E23)","v":""},"","",0,0,{"$f":"IF(H53=0,0,H53*'Product Data and EFs'!L32/1000/'Product Data and EFs'!F32)","v":0},{"$f":"IF(I53=0,0,I53*'Product Data and EFs'!K32/1000/'Product Data and EFs'!F32)","v":0},0,{"$f":"IF(L53=0,0,(E53*'Product Data and EFs'!K32/1000/'Product Data and EFs'!F32-'Product Emissions Analysis'!L53))","v":0},0,0,{"$f":"IF(N53=0,0,N53*'Product Data and EFs'!L32/1000/'Product Data and EFs'!F32)","v":0},{"$f":"IF(O53=0,0,O53*'Product Data and EFs'!K32/1000/'Product Data and EFs'!F32)","v":0},0,{"$f":"IF(R53=0,0,(E53*'Product Data and EFs'!K32/1000/'Product Data and EFs'!F32-'Product Emissions Analysis'!R53))","v":0},0]
[null,null,null,"Hugger Ceiling Fan with Light Kit",{"$f":"IF(E24=\"\",\"\",E24)","v":""},"","",0,0,{"$f":"IF(H54=0,0,H54*'Product Data and EFs'!L33/1000/'Product Data and EFs'!F33)","v":0},{"$f":"IF(I54=0,0,I54*'Product Data and EFs'!K33/1000/'Product Data and EFs'!F33)","v":0},0,{"$f":"IF(L54=0,0,(E54*'Product Data and EFs'!K33/1000/'Product Data and EFs'!F33-'Product Emissions Analysis'!L54))","v":0},0,0,{"$f":"IF(N54=0,0,N54*'Product Data and EFs'!L33/1000/'Product Data and EFs'!F33)","v":0},{"$f":"IF(O54=0,0,O54*'Product Data and EFs'!K33/1000/'Product Data and EFs'!F33)","v":0},0,{"$f":"IF(R54=0,0,(E54*'Product Data and EFs'!K33/1000/'Product Data and EFs'!F33-'Product Emissions Analysis'!R54))","v":0},0]
[null,null,null,"Dishwashers - Standard",{"$f":"IF(E25=\"\",\"\",E25)","v":""},"","",0,0,{"$f":"IF(H55=0,0,H55*'Product Data and EFs'!L34/1000/'Product Data and EFs'!F34)","v":0},{"$f":"IF(I55=0,0,I55*'Product Data and EFs'!K34/1000/'Product Data and EFs'!F34)","v":0},0,{"$f":"IF(L55=0,0,(E55*'Product Data and EFs'!K34/1000/'Product Data and EFs'!F34-'Product Emissions Analysis'!L55))","v":0},0,0,{"$f":"IF(N55=0,0,N55*'Product Data and EFs'!L34/1000/'Product Data and EFs'!F34)","v":0},{"$f":"IF(O55=0,0,O55*'Product Data and EFs'!K34/1000/'Product Data and EFs'!F34)","v":0},0,{"$f":"IF(R55=0,0,(E55*'Product Data and EFs'!K34/1000/'Product Data and EFs'!F34-'Product Emissions Analysis'!R55))","v":0},0]
[null,null,null,"Dishwashers - Compact",{"$f":"IF(E26=\"\",\"\",E26)","v":""},"","",0,0,{"$f":"IF(H56=0,0,H56*'Product Data and EFs'!L35/1000/'Product Data and EFs'!F35)","v":0},{"$f":"IF(I56=0,0,I56*'Product Data and EFs'!K35/1000/'Product Data and EFs'!F35)","v":0},0,{"$f":"IF(L56=0,0,(E56*'Product Data and EFs'!K35/1000/'Product Data and EFs'!F35-'Product Emissions Analysis'!L56))","v":0},0,0,{"$f":"IF(N56=0,0,N56*'Product Data and EFs'!L35/1000/'Product Data and EFs'!F35)","v":0},{"$f":"IF(O56=0,0,O56*'Product Data and EFs'!K35/1000/'Product Data and EFs'!F35)","v":0},0,{"$f":"IF(R56=0,0,(E56*'Product Data and EFs'!K35/1000/'Product Data and EFs'!F35-'Product Emissions Analysis'!R56))","v":0},0]
[null,null,null,"Refrigerators - Top Freezer",{"$f":"IF(E27=\"\",\"\",E27)","v":""},"","",0,0,{"$f":"IF(H57=0,0,H57*'Product Data and EFs'!L36/1000/'Product Data and EFs'!F36)","v":0},{"$f":"IF(I57=0,0,I57*'Product Data and EFs'!K36/1000/'Product Data and EFs'!F36)","v":0},0,{"$f":"IF(L57=0,0,(E57*'Product Data and EFs'!K36/1000/'Product Data and EFs'!F36-'Product Emissions Analysis'!L57))","v":0},0,0,{"$f":"IF(N57=0,0,N57*'Product Data and EFs'!L36/1000/'Product Data and EFs'!F36)","v":0},{"$f":"IF(O57=0,0,O57*'Product Data and EFs'!K36/1000/'Product Data and EFs'!F36)","v":0},0,{"$f":"IF(R57=0,0,(E57*'Product Data and EFs'!K36/1000/'Product Data and EFs'!F36-'Product Emissions Analysis'!R57))","v":0},0]
[null,null,null,"Refrigerators - Bottom Freezer",{"$f":"IF(E28=\"\",\"\",E28)","v":""},"","",0,0,{"$f":"IF(H58=0,0,H58*'Product Data and EFs'!L37/1000/'Product Data and EFs'!F37)","v":0},{"$f":"IF(I58=0,0,I58*'Product Data and EFs'!K37/1000/'Product Data and EFs'!F37)","v":0},0,{"$f":"IF(L58=0,0,(E58*'Product Data and EFs'!K37/1000/'Product Data and EFs'!F37-'Product Emissions Analysis'!L58))","v":0},0,0,{"$f":"IF(N58=0,0,N58*'Product Data and EFs'!L37/1000/'Product Data and EFs'!F37)","v":0},{"$f":"IF(O58=0,0,O58*'Product Data and EFs'!K37/1000/'Product Data and EFs'!F37)","v":0},0,{"$f":"IF(R58=0,0,(E58*'Product Data and EFs'!K37/1000/'Product Data and EFs'!F37-'Product Emissions Analysis'!R58))","v":0},0]
[null,null,null,"Refrigerators - Side by Side",{"$f":"IF(E29=\"\",\"\",E29)","v":""},"","",0,0,{"$f":"IF(H59=0,0,H59*'Product Data and EFs'!L38/1000/'Product Data and EFs'!F38)","v":0},{"$f":"IF(I59=0,0,I59*'Product Data and EFs'!K38/1000/'Product Data and EFs'!F38)","v":0},0,{"$f":"IF(L59=0,0,(E59*'Product Data and EFs'!K38/1000/'Product Data and EFs'!F38-'Product Emissions Analysis'!L59))","v":0},0,0,{"$f":"IF(N59=0,0,N59*'Product Data and EFs'!L38/1000/'Product Data and EFs'!F38)","v":0},{"$f":"IF(O59=0,0,O59*'Product Data and EFs'!K38/1000/'Product Data and EFs'!F38)","v":0},0,{"$f":"IF(R59=0,0,(E59*'Product Data and EFs'!K38/1000/'Product Data and EFs'!F38-'Product Emissions Analysis'!R59))","v":0},0]
[null,null,null,"Freezers - Chest Freezer",{"$f":"IF(E30=\"\",\"\",E30)","v":""},"","",0,0,{"$f":"IF(H60=0,0,H60*'Product Data and EFs'!L39/1000/'Product Data and EFs'!F39)","v":0},{"$f":"IF(I60=0,0,I60*'Product Data and EFs'!K39/1000/'Product Data and EFs'!F39)","v":0},0,{"$f":"IF(L60=0,0,(E60*'Product Data and EFs'!K39/1000/'Product Data and EFs'!F39-'Product Emissions Analysis'!L60))","v":0},0,0,{"$f":"IF(N60=0,0,N60*'Product Data and EFs'!L39/1000/'Product Data and EFs'!F39)","v":0},{"$f":"IF(O60=0,0,O60*'Product Data and EFs'!K39/1000/'Product Data and EFs'!F39)","v":0},0,{"$f":"IF(R60=0,0,(E60*'Product Data and EFs'!K39/1000/'Product Data and EFs'!F39-'Product Emissions Analysis'!R60))","v":0},0]
[null,null,null,"Freezers - Upright Freezer",{"$f":"IF(E31=\"\",\"\",E31)","v":""},"","",0,0,{"$f":"IF(H61=0,0,H61*'Product Data and EFs'!L40/1000/'Product Data and EFs'!F40)","v":0},{"$f":"IF(I61=0,0,I61*'Product Data and EFs'!K40/1000/'Product Data and EFs'!F40)","v":0},0,{"$f":"IF(L61=0,0,(E61*'Product Data and EFs'!K40/1000/'Product Data and EFs'!F40-'Product Emissions Analysis'!L61))","v":0},0,0,{"$f":"IF(N61=0,0,N61*'Product Data and EFs'!L40/1000/'Product Data and EFs'!F40)","v":0},{"$f":"IF(O61=0,0,O61*'Product Data and EFs'!K40/1000/'Product Data and EFs'!F40)","v":0},0,{"$f":"IF(R61=0,0,(E61*'Product Data and EFs'!K40/1000/'Product Data and EFs'!F40-'Product Emissions Analysis'!R61))","v":0},0]
[null,null,null,"Clothes Washers - Top Loading",{"$f":"IF(E32=\"\",\"\",E32)","v":""},"","",0,0,{"$f":"IF(H62=0,0,H62*'Product Data and EFs'!L41/1000/'Product Data and EFs'!F41)","v":0},{"$f":"IF(I62=0,0,I62*'Product Data and EFs'!K41/1000/'Product Data and EFs'!F41)","v":0},0,{"$f":"IF(L62=0,0,(E62*'Product Data and EFs'!K41/1000/'Product Data and EFs'!F41-'Product Emissions Analysis'!L62))","v":0},0,0,{"$f":"IF(N62=0,0,N62*'Product Data and EFs'!L41/1000/'Product Data and EFs'!F41)","v":0},{"$f":"IF(O62=0,0,O62*'Product Data and EFs'!K41/1000/'Product Data and EFs'!F41)","v":0},0,{"$f":"IF(R62=0,0,(E62*'Product Data and EFs'!K41/1000/'Product Data and EFs'!F41-'Product Emissions Analysis'!R62))","v":0},0]
[null,null,null,"Clothes Washers - Front Loading",{"$f":"IF(E33=\"\",\"\",E33)","v":""},"","",0,0,{"$f":"IF(H63=0,0,H63*'Product Data and EFs'!L42/1000/'Product Data and EFs'!F42)","v":0},{"$f":"IF(I63=0,0,I63*'Product Data and EFs'!K42/1000/'Product Data and EFs'!F42)","v":0},0,{"$f":"IF(L63=0,0,(E63*'Product Data and EFs'!K42/1000/'Product Data and EFs'!F42-'Product Emissions Analysis'!L63))","v":0},0,0,{"$f":"IF(N63=0,0,N63*'Product Data and EFs'!L42/1000/'Product Data and EFs'!F42)","v":0},{"$f":"IF(O63=0,0,O63*'Product Data and EFs'!K42/1000/'Product Data and EFs'!F42)","v":0},0,{"$f":"IF(R63=0,0,(E63*'Product Data and EFs'!K42/1000/'Product Data and EFs'!F42-'Product Emissions Analysis'!R63))","v":0},0]
[null,null,null,"Clothes Dryers - Standard Electric Dryer (Vented Ventless)",{"$f":"IF(E34=\"\",\"\",E34)","v":""},"","",0,0,{"$f":"IF(H64=0,0,H64*'Product Data and EFs'!L43/1000/'Product Data and EFs'!F43)","v":0},{"$f":"IF(I64=0,0,I64*'Product Data and EFs'!K43/1000/'Product Data and EFs'!F43)","v":0},0,{"$f":"IF(L64=0,0,(E64*'Product Data and EFs'!K43/1000/'Product Data and EFs'!F43-'Product Emissions Analysis'!L64))","v":0},0,0,{"$f":"IF(N64=0,0,N64*'Product Data and EFs'!L43/1000/'Product Data and EFs'!F43)","v":0},{"$f":"IF(O64=0,0,O64*'Product Data and EFs'!K43/1000/'Product Data and EFs'!F43)","v":0},0,{"$f":"IF(R64=0,0,(E64*'Product Data and EFs'!K43/1000/'Product Data and EFs'!F43-'Product Emissions Analysis'!R64))","v":0},0]
[null,null,null,"Clothes Dryers - Gas Dryers",{"$f":"IF(E35=\"\",\"\",E35)","v":""},"","",0,0,{"$f":"IF(H65=0,0,H65*'Product Data and EFs'!L44/1000/'Product Data and EFs'!F44)","v":0},{"$f":"IF(I65=0,0,I65*'Product Data and EFs'!K44/1000/'Product Data and EFs'!F44)","v":0},0,{"$f":"IF(L65=0,0,(E65*'Product Data and EFs'!K44/1000/'Product Data and EFs'!F44-'Product Emissions Analysis'!L65))","v":0},0,0,{"$f":"IF(N65=0,0,N65*'Product Data and EFs'!L44/1000/'Product Data and EFs'!F44)","v":0},{"$f":"IF(O65=0,0,O65*'Product Data and EFs'!K44/1000/'Product Data and EFs'!F44)","v":0},0,{"$f":"IF(R65=0,0,(E65*'Product Data and EFs'!K44/1000/'Product Data and EFs'!F44-'Product Emissions Analysis'!R65))","v":0},0]
[null,null,null,"Water Heaters - Gas Storage Water Heater",{"$f":"IF(E36=\"\",\"\",E36)","v":""},"","",0,0,{"$f":"IF(H66=0,0,H66*'Product Data and EFs'!L45/1000/'Product Data and EFs'!F45)","v":0},{"$f":"IF(I66=0,0,I66*'Product Data and EFs'!K45/1000/'Product Data and EFs'!F45)","v":0},0,{"$f":"IF(L66=0,0,(E66*'Product Data and EFs'!K45/1000/'Product Data and EFs'!F45-'Product Emissions Analysis'!L66))","v":0},0,0,{"$f":"IF(N66=0,0,N66*'Product Data and EFs'!L45/1000/'Product Data and EFs'!F45)","v":0},{"$f":"IF(O66=0,0,O66*'Product Data and EFs'!K45/1000/'Product Data and EFs'!F45)","v":0},0,{"$f":"IF(R66=0,0,(E66*'Product Data and EFs'!K45/1000/'Product Data and EFs'!F45-'Product Emissions Analysis'!R66))","v":0},0]
[null,null,null,"Water Heaters - Electric (Heat Pump) Water Heater",{"$f":"IF(E37=\"\",\"\",E37)","v":""},"","",0,0,{"$f":"IF(H67=0,0,H67*'Product Data and EFs'!L46/1000/'Product Data and EFs'!F46)","v":0},{"$f":"IF(I67=0,0,I67*'Product Data and EFs'!K46/1000/'Product Data and EFs'!F46)","v":0},0,{"$f":"IF(L67=0,0,(E67*'Product Data and EFs'!K46/1000/'Product Data and EFs'!F46-'Product Emissions Analysis'!L67))","v":0},0,0,{"$f":"IF(N67=0,0,N67*'Product Data and EFs'!L46/1000/'Product Data and EFs'!F46)","v":0},{"$f":"IF(O67=0,0,O67*'Product Data and EFs'!K46/1000/'Product Data and EFs'!F46)","v":0},0,{"$f":"IF(R67=0,0,(E67*'Product Data and EFs'!K46/1000/'Product Data and EFs'!F46-'Product Emissions Analysis'!R67))","v":0},0]
[null,null,null,"Water Heaters - Tankless Gas Water Heater",{"$f":"IF(E38=\"\",\"\",E38)","v":""},"","",0,0,{"$f":"IF(H68=0,0,H68*'Product Data and EFs'!L47/1000/'Product Data and EFs'!F47)","v":0},{"$f":"IF(I68=0,0,I68*'Product Data and EFs'!K47/1000/'Product Data and EFs'!F47)","v":0},0,{"$f":"IF(L68=0,0,(E68*'Product Data and EFs'!K47/1000/'Product Data and EFs'!F47-'Product Emissions Analysis'!L68))","v":0},0,0,{"$f":"IF(N68=0,0,N68*'Product Data and EFs'!L47/1000/'Product Data and EFs'!F47)","v":0},{"$f":"IF(O68=0,0,O68*'Product Data and EFs'!K47/1000/'Product Data and EFs'!F47)","v":0},0,{"$f":"IF(R68=0,0,(E68*'Product Data and EFs'!K47/1000/'Product Data and EFs'!F47-'Product Emissions Analysis'!R68))","v":0},0]
[null,null,null,"TOTAL",{"$f":"E39","v":0},{"$f":"F39","v":"NA"},"NA",{"$f":"SUM(H45:H68)","v":0},0,0,0,0,0,0,0,0,0,0,0,0]
[]
[]
[]
[null,null,null,"Residential Lighting"]
[]
[null,null,null,"NOTE: LIGHTBULBS ARE A UNIQUE PRODUCT TYPE WITH RESPECT TO SCOPE 3 USE OF SOLD PRODUCT REPORTING. RESULTS SEEN WILL DIFFER FROM OTHER PRODUCT TYPES IN THIS TOOL.\n\n- Because LEDs and CFLs have longer lifetimes than halogens (13.7 years, 9.1 years, 0.9 years, respectively), lifetime total product use emissions increase with increased sale of LEDs or CFLs. Retailers must report in their scope 3 inventory actual lifetime emissions associated with the products they sell in the reporting year. However, retailers can consider also reporting annual emissions associated with the lighbulbs they sell (i.e., the emissions that result from sold lightbulbs in the reporting year). Annual emissions will decrease with increased sale of LEDs of CFLs.  Retailers can additionally report the lifetime and annual emissions savings associated with their LED/CFL sales compared to only selling halogens to demonstrate commitment to decreasing emissions. Lifetime and annual emissions savings will increase with increased sale of LEDs or CFLs.\n\n- Lifetime emissions savings from LED/CFL sales shown represent emissions that would occur if a retailer only sold halogens and no LEDs or CFLs. Because halogens have a much shorter lifespan than LEDs or CFLs (0.9 years to 13.7 years and 9.1 years, respectively), lifetime emissions savings are determined by scaling up the number of halogens to match the lifetimes of LEDs and CFLs. For LEDs the scale up factor is 15.2 (13.7/0.9=15.2) and for CFLs the scale up factor is 10.1 (9.1/0.9=10.1). In other words, over the lifetime of a single LED bulb, 15.2 halogens would need to be purchased; and over the lifetime of a single CFL bulb, 10.1 halogens would need to be purchased. Annual emissions savings do not require a scale-up factor."]
[]
[]
[null,null,null,"Lightbulbs"]
[]
[null,null,null,"Lifetime",null,null,null,null,null,"Current",null,null,null,null,"Increased ENERGY STAR Sales"]
[null,null,null,"Product Type","Total Unit Sales","% of Current Sales that are LED","% of Current Sales that are CFL","Enter a Higher % of LED Sales for Analysis","Enter New % of CFL Sales for Analysis","Total LED Sales","Total CFL Sales","Total Halogen Sales","Lifetime Total Product Use Emissions (Metric Tons CO2e)","Lifetime Emissions Savings from LED/CFL Product Sales\n(Metric Tons CO2e)","Total LED Sales","Total CFL Sales","Total Halogen Sales","Lifetime Total Product Use Emissions (Metric Tons CO2e)","Lifetime Emissions Savings from LED/CFL Product Sales\n(Metric Tons CO2e)","Additional Lifetime Emissions Savings Achieved with Increased LED/CFL Sales\n(Metric Tons CO2e)"]
[null,null,null,"Lightbulbs",null,null,null,null,null,{"$f":"IF(F82=\"\",0,ROUND(E82*F82,0))","v":0},{"$f":"IF(G82=\"\",0,ROUND(E82*G82,0))","v":0},{"$f":"IF(F82=\"\",0,E82-J82-K82)","v":0},{"$f":"IF(J82=0,0,J82*'Product Data and EFs'!H54/1000+'Product Emissions Analysis'!K82*'Product Data and EFs'!H55/1000+'Product Emissions Analysis'!L82*'Product Data and EFs'!H53/1000)","v":0},{"$f":"IF(M82=0,0,J82*15.2*'Product Data and EFs'!H53/1000+'Product Emissions Analysis'!K82*10.1*'Product Data and EFs'!H53/1000+'Product Emissions Analysis'!L82*'Product Data and EFs'!H53/1000-'Product Emissions Analysis'!M82)","v":0},{"$f":"IF(H82=\"\",0,ROUND(E82*H82,0))","v":0},{"$f":"IF(I82=\"\",0,ROUND(E82*I82,0))","v":0},{"$f":"IF(H82=\"\",0,E82-O82-P82)","v":0},{"$f":"IF(O82=0,0,O82*'Product Data and EFs'!H54/1000+'Product Emissions Analysis'!P82*'Product Data and EFs'!H55/1000+'Product Emissions Analysis'!Q82*'Product Data and EFs'!H53/1000)","v":0},{"$f":"IF(R82=0,0,O82*15.2*'Product Data and EFs'!H53/1000+'Product Emissions Analysis'!P82*10.1*'Product Data and EFs'!H53/1000+'Product Emissions Analysis'!Q82*'Product Data and EFs'!H53/1000-'Product Emissions Analysis'!R82)","v":0},{"$f":"IF(H82=\"\",0,S82-N82)","v":0}]
[]
[]
[null,null,null,"Annual",null,null,null,null,null,"Current",null,null,null,null,"Increased ENERGY STAR Sales"]
[null,null,null,"Product Type","Total Unit Sales","% of Current Sales that are LED","% of Current Sales that are CFL","Enter a Higher % of LED Sales for Analysis","Enter New % of CFL Sales for Analysis","Total LED Sales","Total CFL Sales","Total Halogen Sales","Annual Total Product Use Emissions (Metric Tons CO2e)","Annual Emissions Savings from LED/CFL Product Sales\n(Metric Tons CO2e)","Total LED Sales","Total CFL Sales","Total Halogen Sales","Annual Total Product Use Emissions (Metric Tons CO2e)","Annual Emissions Savings from LED/CFL Product Sales\n(Metric Tons CO2e)","Additional Annual Emissions Savings Achieved with Increased LED/CFL Sales\n(Metric Tons CO2e)"]
[null,null,null,"Lightbulbs",{"$f":"IF(E82=\"\",\"\",E82)","v":""},{"$f":"IF(F82=\"\",\"\",F82)","v":""},{"$f":"IF(G82=\"\",\"\",G82)","v":""},{"$f":"IF(H82=\"\",\"\",H82)","v":""},{"$f":"IF(I82=\"\",\"\",I82)","v":""},{"$f":"IF(F87=\"\",0,ROUND(E87*F87,0))","v":0},{"$f":"IF(G87=\"\",0,ROUND(E87*G87,0))","v":0},{"$f":"IF(F87=\"\",0,E87-J87-K87)","v":0},{"$f":"IF(J87=0,0,J87*'Product Data and EFs'!H54/1000/'Product Data and EFs'!F54+'Product Emissions Analysis'!K87*'Product Data and EFs'!H55/1000/'Product Data and EFs'!F55+'Product Emissions Analysis'!L87*'Product Data and EFs'!H53/1000/'Product Data and EFs'!F53)","v":0},{"$f":"IF(M87=0,0,E87*'Product Data and EFs'!H53/1000-'Product Emissions Analysis'!M87)","v":0},{"$f":"IF(H87=\"\",0,ROUND(E87*H87,0))","v":0},{"$f":"IF(I87=\"\",0,ROUND(E87*I87,0))","v":0},{"$f":"IF(H87=\"\",0,E87-O87-P87)","v":0},{"$f":"IF(O87=0,0,O87*'Product Data and EFs'!H54/1000/'Product Data and EFs'!F54+'Product Emissions Analysis'!P87*'Product Data and EFs'!H55/1000/'Product Data and EFs'!F55+'Product Emissions Analysis'!Q87*'Product Data and EFs'!H53/1000/'Product Data and EFs'!F53)","v":0},{"$f":"IF(R87=0,0,E87*'Product Data and EFs'!H53/1000-'Product Emissions Analysis'!R87)","v":0},{"$f":"IF(H87=\"\",0,S87-N87)","v":0}]
[]
[null,null,null,"Light Fixtures"]
[]
[null,null,null,"Lifetime",null,null,null,"Current",null,null,null,null,null,"Increased ENERGY STAR Sales"]
[null,null,null,"Product Type","Total Unit Sales","% of Current Sales that are ENERGY STAR","Enter a Higher % of Sales that are ENERGY STAR for Analysis\n","Total ENERGY STAR Product Sales","Total Standard Product Sales","Lifetime Product Use Emissions - ENERGY STAR (Metric Tons CO2e)","Lifetime Product Use Emissions - Standard (Metric Tons CO2e)","Lifetime Total Product Use Emissions (Metric Tons CO2e)","Lifetime Emissions Savings from ENERGY STAR Product Sales\n(Metric Tons CO2e)","Total ENERGY STAR Product Sales","Total Standard Product Sales","Lifetime Product Use Emissions - ENERGY STAR (Metric Tons CO2e)","Lifetime Product Use Emissions - Standard (Metric Tons CO2e)","Lifetime Total Product Use Emissions (Metric Tons CO2e)","Lifetime Emissions Savings from ENERGY STAR Product Sales\n(Metric Tons CO2e)","Additional Lifetime Emissions Savings Achieved with Increased ENERGY STAR Sales\n(Metric Tons CO2e)"]
[null,null,null,"Cove Mount",null,null,null,{"$f":"IF(F93=\"\",0,ROUND(E93*F93,0))","v":0},{"$f":"IF(F93=\"\",0,E93-H93)","v":0},{"$f":"IF(H93=0,0,H93*'Product Data and EFs'!J59)","v":0},{"$f":"IF(I93=0,0,I93*'Product Data and EFs'!I59)","v":0},{"$f":"IF(F93=0,0,SUM(J93:K93))","v":0},{"$f":"IF(F93=0,0,(E93*'Product Data and EFs'!I59/1000-'Product Emissions Analysis'!L93))","v":0},{"$f":"IF(G93=\"\",0,ROUND(E93*G93,0))","v":0},{"$f":"IF(G93=\"\",0,E93-N93)","v":0},{"$f":"IF(N93=0,0,N93*'Product Data and EFs'!J59/1000)","v":0},{"$f":"IF(O93=0,0,O93*'Product Data and EFs'!I59/1000)","v":0},{"$f":"IF(G93=\"\",0,SUM(P93:Q93))","v":0},{"$f":"IF(R93=0,0,(E93*'Product Data and EFs'!I59/1000-'Product Emissions Analysis'!R93))","v":0},{"$f":"IF(G93=\"\",0,L93-R93)","v":0}]
[null,null,null,"Downlights ≤ 4.5\"",null,null,null,{"$f":"IF(F94=\"\",0,ROUND(E94*F94,0))","v":0},{"$f":"IF(F94=\"\",0,E94-H94)","v":0},{"$f":"IF(H94=0,0,H94*'Product Data and EFs'!J60)","v":0},{"$f":"IF(I94=0,0,I94*'Product Data and EFs'!I60)","v":0},{"$f":"IF(F94=0,0,SUM(J94:K94))","v":0},{"$f":"IF(F94=0,0,(E94*'Product Data and EFs'!I60/1000-'Product Emissions Analysis'!L94))","v":0},{"$f":"IF(G94=\"\",0,ROUND(E94*G94,0))","v":0},{"$f":"IF(G94=\"\",0,E94-N94)","v":0},{"$f":"IF(N94=0,0,N94*'Product Data and EFs'!J60/1000)","v":0},{"$f":"IF(O94=0,0,O94*'Product Data and EFs'!I60/1000)","v":0},{"$f":"IF(G94=\"\",0,SUM(P94:Q94))","v":0},{"$f":"IF(R94=0,0,(E94*'Product Data and EFs'!I60/1000-'Product Emissions Analysis'!R94))","v":0},{"$f":"IF(G94=\"\",0,L94-R94)","v":0}]
[null,null,null,"Downlights > 4.5\"",null,null,null,0,0,{"$f":"IF(H95=0,0,H95*'Product Data and EFs'!J61)","v":0},{"$f":"IF(I95=0,0,I95*'Product Data and EFs'!I61)","v":0},0,{"$f":"IF(F95=0,0,(E95*'Product Data and EFs'!I61/1000-'Product Emissions Analysis'!L95))","v":0},0,0,{"$f":"IF(N95=0,0,N95*'Product Data and EFs'!J61/1000)","v":0},{"$f":"IF(O95=0,0,O95*'Product Data and EFs'!I61/1000)","v":0},0,{"$f":"IF(R95=0,0,(E95*'Product Data and EFs'!I61/1000-'Product Emissions Analysis'!R95))","v":0},0]
[null,null,null,"Downlight Retrofits ≤ 4.5\"",null,null,null,0,0,{"$f":"IF(H96=0,0,H96*'Product Data and EFs'!J62)","v":0},{"$f":"IF(I96=0,0,I96*'Product Data and EFs'!I62)","v":0},0,{"$f":"IF(F96=0,0,(E96*'Product Data and EFs'!I62/1000-'Product Emissions Analysis'!L96))","v":0},0,0,{"$f":"IF(N96=0,0,N96*'Product Data and EFs'!J62/1000)","v":0},{"$f":"IF(O96=0,0,O96*'Product Data and EFs'!I62/1000)","v":0},0,{"$f":"IF(R96=0,0,(E96*'Product Data and EFs'!I62/1000-'Product Emissions Analysis'!R96))","v":0},0]
[null,null,null,"Downlight Retrofits > 4.5\"",null,null,null,0,0,{"$f":"IF(H97=0,0,H97*'Product Data and EFs'!J63)","v":0},{"$f":"IF(I97=0,0,I97*'Product Data and EFs'!I63)","v":0},0,{"$f":"IF(F97=0,0,(E97*'Product Data and EFs'!I63/1000-'Product Emissions Analysis'!L97))","v":0},0,0,{"$f":"IF(N97=0,0,N97*'Product Data and EFs'!J63/1000)","v":0},{"$f":"IF(O97=0,0,O97*'Product Data and EFs'!I63/1000)","v":0},0,{"$f":"IF(R97=0,0,(E97*'Product Data and EFs'!I63/1000-'Product Emissions Analysis'!R97))","v":0},0]
[null,null,null,"Accent Lights",null,null,null,0,0,{"$f":"IF(H98=0,0,H98*'Product Data and EFs'!J64)","v":0},{"$f":"IF(I98=0,0,I98*'Product Data and EFs'!I64)","v":0},0,{"$f":"IF(F98=0,0,(E98*'Product Data and EFs'!I64/1000-'Product Emissions Analysis'!L98))","v":0},0,0,{"$f":"IF(N98=0,0,N98*'Product Data and EFs'!J64/1000)","v":0},{"$f":"IF(O98=0,0,O98*'Product Data and EFs'!I64/1000)","v":0},0,{"$f":"IF(R98=0,0,(E98*'Product Data and EFs'!I64/1000-'Product Emissions Analysis'!R98))","v":0},0]
[null,null,null,"Undercabinet",null,null,null,0,0,{"$f":"IF(H99=0,0,H99*'Product Data and EFs'!J65)","v":0},{"$f":"IF(I99=0,0,I99*'Product Data and EFs'!I65)","v":0},0,{"$f":"IF(F99=0,0,(E99*'Product Data and EFs'!I65/1000-'Product Emissions Analysis'!L99))","v":0},0,0,{"$f":"IF(N99=0,0,N99*'Product Data and EFs'!J65/1000)","v":0},{"$f":"IF(O99=0,0,O99*'Product Data and EFs'!I65/1000)","v":0},0,{"$f":"IF(R99=0,0,(E99*'Product Data and EFs'!I65/1000-'Product Emissions Analysis'!R99))","v":0},0]
[null,null,null,"Outdoor Wall/Porch/Post",null,null,null,0,0,{"$f":"IF(H100=0,0,H100*'Product Data and EFs'!J66)","v":0},{"$f":"IF(I100=0,0,I100*'Product Data and EFs'!I66)","v":0},0,{"$f":"IF(F100=0,0,(E100*'Product Data and EFs'!I66/1000-'Product Emissions Analysis'!L100))","v":0},0,0,{"$f":"IF(N100=0,0,N100*'Product Data and EFs'!J66/1000)","v":0},{"$f":"IF(O100=0,0,O100*'Product Data and EFs'!I66/1000)","v":0},0,{"$f":"IF(R100=0,0,(E100*'Product Data and EFs'!I66/1000-'Product Emissions Analysis'!R100))","v":0},0]
[null,null,null,"Portable Desk Task",null,null,null,0,0,{"$f":"IF(H101=0,0,H101*'Product Data and EFs'!J67)","v":0},{"$f":"IF(I101=0,0,I101*'Product Data and EFs'!I67)","v":0},0,{"$f":"IF(F101=0,0,(E101*'Product Data and EFs'!I67/1000-'Product Emissions Analysis'!L101))","v":0},0,0,{"$f":"IF(N101=0,0,N101*'Product Data and EFs'!J67/1000)","v":0},{"$f":"IF(O101=0,0,O101*'Product Data and EFs'!I67/1000)","v":0},0,{"$f":"IF(R101=0,0,(E101*'Product Data and EFs'!I67/1000-'Product Emissions Analysis'!R101))","v":0},0]
[null,null,null,"Inseparable SSL",null,null,null,0,0,{"$f":"IF(H102=0,0,H102*'Product Data and EFs'!J68)","v":0},{"$f":"IF(I102=0,0,I102*'Product Data and EFs'!I68)","v":0},0,{"$f":"IF(F102=0,0,(E102*'Product Data and EFs'!I68/1000-'Product Emissions Analysis'!L102))","v":0},0,0,{"$f":"IF(N102=0,0,N102*'Product Data and EFs'!J68/1000)","v":0},{"$f":"IF(O102=0,0,O102*'Product Data and EFs'!I68/1000)","v":0},0,{"$f":"IF(R102=0,0,(E102*'Product Data and EFs'!I68/1000-'Product Emissions Analysis'!R102))","v":0},0]
[null,null,null,"Fluorescent (CFL) (800 lm)",null,null,null,0,0,{"$f":"IF(H103=0,0,H103*'Product Data and EFs'!J69)","v":0},{"$f":"IF(I103=0,0,I103*'Product Data and EFs'!I69)","v":0},0,{"$f":"IF(F103=0,0,(E103*'Product Data and EFs'!I69/1000-'Product Emissions Analysis'!L103))","v":0},0,0,{"$f":"IF(N103=0,0,N103*'Product Data and EFs'!J69/1000)","v":0},{"$f":"IF(O103=0,0,O103*'Product Data and EFs'!I69/1000)","v":0},0,{"$f":"IF(R103=0,0,(E103*'Product Data and EFs'!I69/1000-'Product Emissions Analysis'!R103))","v":0},0]
[null,null,null,"Fluorescent (CFL) (450 lm)",null,null,null,0,0,{"$f":"IF(H104=0,0,H104*'Product Data and EFs'!J70)","v":0},{"$f":"IF(I104=0,0,I104*'Product Data and EFs'!I70)","v":0},0,{"$f":"IF(F104=0,0,(E104*'Product Data and EFs'!I70/1000-'Product Emissions Analysis'!L104))","v":0},0,0,{"$f":"IF(N104=0,0,N104*'Product Data and EFs'!J70/1000)","v":0},{"$f":"IF(O104=0,0,O104*'Product Data and EFs'!I70/1000)","v":0},0,{"$f":"IF(R104=0,0,(E104*'Product Data and EFs'!I70/1000-'Product Emissions Analysis'!R104))","v":0},0]
[null,null,null,"Fluorescent (CFL) (250 lm)",null,null,null,0,0,{"$f":"IF(H105=0,0,H105*'Product Data and EFs'!J71)","v":0},{"$f":"IF(I105=0,0,I105*'Product Data and EFs'!I71)","v":0},0,{"$f":"IF(F105=0,0,(E105*'Product Data and EFs'!I71/1000-'Product Emissions Analysis'!L105))","v":0},0,0,{"$f":"IF(N105=0,0,N105*'Product Data and EFs'!J71/1000)","v":0},{"$f":"IF(O105=0,0,O105*'Product Data and EFs'!I71/1000)","v":0},0,{"$f":"IF(R105=0,0,(E105*'Product Data and EFs'!I71/1000-'Product Emissions Analysis'!R105))","v":0},0]
[null,null,null,"Solid State Light Engine - With Optics (800 lm)",null,null,null,0,0,{"$f":"IF(H106=0,0,H106*'Product Data and EFs'!J72)","v":0},{"$f":"IF(I106=0,0,I106*'Product Data and EFs'!I72)","v":0},0,{"$f":"IF(F106=0,0,(E106*'Product Data and EFs'!I72/1000-'Product Emissions Analysis'!L106))","v":0},0,0,{"$f":"IF(N106=0,0,N106*'Product Data and EFs'!J72/1000)","v":0},{"$f":"IF(O106=0,0,O106*'Product Data and EFs'!I72/1000)","v":0},0,{"$f":"IF(R106=0,0,(E106*'Product Data and EFs'!I72/1000-'Product Emissions Analysis'!R106))","v":0},0]
[null,null,null,"Solid State Light Engine - With Optics (450 lm)",null,null,null,0,0,{"$f":"IF(H107=0,0,H107*'Product Data and EFs'!J73)","v":0},{"$f":"IF(I107=0,0,I107*'Product Data and EFs'!I73)","v":0},0,{"$f":"IF(F107=0,0,(E107*'Product Data and EFs'!I73/1000-'Product Emissions Analysis'!L107))","v":0},0,0,{"$f":"IF(N107=0,0,N107*'Product Data and EFs'!J73/1000)","v":0},{"$f":"IF(O107=0,0,O107*'Product Data and EFs'!I73/1000)","v":0},0,{"$f":"IF(R107=0,0,(E107*'Product Data and EFs'!I73/1000-'Product Emissions Analysis'!R107))","v":0},0]
[null,null,null,"Solid State Light Engine - With Optics (250 lm)",null,null,null,0,0,{"$f":"IF(H108=0,0,H108*'Product Data and EFs'!J74)","v":0},{"$f":"IF(I108=0,0,I108*'Product Data and EFs'!I74)","v":0},0,{"$f":"IF(F108=0,0,(E108*'Product Data and EFs'!I74/1000-'Product Emissions Analysis'!L108))","v":0},0,0,{"$f":"IF(N108=0,0,N108*'Product Data and EFs'!J74/1000)","v":0},{"$f":"IF(O108=0,0,O108*'Product Data and EFs'!I74/1000)","v":0},0,{"$f":"IF(R108=0,0,(E108*'Product Data and EFs'!I74/1000-'Product Emissions Analysis'!R108))","v":0},0]
[null,null,null,"Solid State Light Engine - Without Optics (800 lm)",null,null,null,0,0,{"$f":"IF(H109=0,0,H109*'Product Data and EFs'!J75)","v":0},{"$f":"IF(I109=0,0,I109*'Product Data and EFs'!I75)","v":0},0,{"$f":"IF(F109=0,0,(E109*'Product Data and EFs'!I75/1000-'Product Emissions Analysis'!L109))","v":0},0,0,{"$f":"IF(N109=0,0,N109*'Product Data and EFs'!J75/1000)","v":0},{"$f":"IF(O109=0,0,O109*'Product Data and EFs'!I75/1000)","v":0},0,{"$f":"IF(R109=0,0,(E109*'Product Data and EFs'!I75/1000-'Product Emissions Analysis'!R109))","v":0},0]
[null,null,null,"Solid State Light Engine - Without Optics (450 lm)",null,null,null,0,0,{"$f":"IF(H110=0,0,H110*'Product Data and EFs'!J76)","v":0},{"$f":"IF(I110=0,0,I110*'Product Data and EFs'!I76)","v":0},0,{"$f":"IF(F110=0,0,(E110*'Product Data and EFs'!I76/1000-'Product Emissions Analysis'!L110))","v":0},0,0,{"$f":"IF(N110=0,0,N110*'Product Data and EFs'!J76/1000)","v":0},{"$f":"IF(O110=0,0,O110*'Product Data and EFs'!I76/1000)","v":0},0,{"$f":"IF(R110=0,0,(E110*'Product Data and EFs'!I76/1000-'Product Emissions Analysis'!R110))","v":0},0]
[null,null,null,"Solid State Light Engine - Without Optics (250 lm)",null,null,null,0,0,{"$f":"IF(H111=0,0,H111*'Product Data and EFs'!J77)","v":0},{"$f":"IF(I111=0,0,I111*'Product Data and EFs'!I77)","v":0},0,{"$f":"IF(F111=0,0,(E111*'Product Data and EFs'!I77/1000-'Product Emissions Analysis'!L111))","v":0},0,0,{"$f":"IF(N111=0,0,N111*'Product Data and EFs'!J77/1000)","v":0},{"$f":"IF(O111=0,0,O111*'Product Data and EFs'!I77/1000)","v":0},0,{"$f":"IF(R111=0,0,(E111*'Product Data and EFs'!I77/1000-'Product Emissions Analysis'!R111))","v":0},0]
[null,null,null,"Solid State Retrofit: Sconce - With Optics",null,null,null,0,0,{"$f":"IF(H112=0,0,H112*'Product Data and EFs'!J78)","v":0},{"$f":"IF(I112=0,0,I112*'Product Data and EFs'!I78)","v":0},0,{"$f":"IF(F112=0,0,(E112*'Product Data and EFs'!I78/1000-'Product Emissions Analysis'!L112))","v":0},0,0,{"$f":"IF(N112=0,0,N112*'Product Data and EFs'!J78/1000)","v":0},{"$f":"IF(O112=0,0,O112*'Product Data and EFs'!I78/1000)","v":0},0,{"$f":"IF(R112=0,0,(E112*'Product Data and EFs'!I78/1000-'Product Emissions Analysis'!R112))","v":0},0]
[null,null,null,"Solid State Retrofit: Sconce - Without Optics",null,null,null,0,0,{"$f":"IF(H113=0,0,H113*'Product Data and EFs'!J79)","v":0},{"$f":"IF(I113=0,0,I113*'Product Data and EFs'!I79)","v":0},0,{"$f":"IF(F113=0,0,(E113*'Product Data and EFs'!I79/1000-'Product Emissions Analysis'!L113))","v":0},0,0,{"$f":"IF(N113=0,0,N113*'Product Data and EFs'!J79/1000)","v":0},{"$f":"IF(O113=0,0,O113*'Product Data and EFs'!I79/1000)","v":0},0,{"$f":"IF(R113=0,0,(E113*'Product Data and EFs'!I79/1000-'Product Emissions Analysis'!R113))","v":0},0]
[null,null,null,"Solid State Retrofit: Ceiling Mount - With Optics",null,null,null,0,0,{"$f":"IF(H114=0,0,H114*'Product Data and EFs'!J80)","v":0},{"$f":"IF(I114=0,0,I114*'Product Data and EFs'!I80)","v":0},0,{"$f":"IF(F114=0,0,(E114*'Product Data and EFs'!I80/1000-'Product Emissions Analysis'!L114))","v":0},0,0,{"$f":"IF(N114=0,0,N114*'Product Data and EFs'!J80/1000)","v":0},{"$f":"IF(O114=0,0,O114*'Product Data and EFs'!I80/1000)","v":0},0,{"$f":"IF(R114=0,0,(E114*'Product Data and EFs'!I80/1000-'Product Emissions Analysis'!R114))","v":0},0]
[null,null,null,"Solid State Retrofit: Ceiling Mount - With Optics",null,null,null,0,0,{"$f":"IF(H115=0,0,H115*'Product Data and EFs'!J81)","v":0},{"$f":"IF(I115=0,0,I115*'Product Data and EFs'!I81)","v":0},0,{"$f":"IF(F115=0,0,(E115*'Product Data and EFs'!I81/1000-'Product Emissions Analysis'!L115))","v":0},0,0,{"$f":"IF(N115=0,0,N115*'Product Data and EFs'!J81/1000)","v":0},{"$f":"IF(O115=0,0,O115*'Product Data and EFs'!I81/1000)","v":0},0,{"$f":"IF(R115=0,0,(E115*'Product Data and EFs'!I81/1000-'Product Emissions Analysis'!R115))","v":0},0]
[null,null,null,"Solid State Retrofit: Ceiling Mount - Without Optics",null,null,null,0,0,{"$f":"IF(H116=0,0,H116*'Product Data and EFs'!J82)","v":0},{"$f":"IF(I116=0,0,I116*'Product Data and EFs'!I82)","v":0},0,{"$f":"IF(F116=0,0,(E116*'Product Data and EFs'!I82/1000-'Product Emissions Analysis'!L116))","v":0},0,0,{"$f":"IF(N116=0,0,N116*'Product Data and EFs'!J82/1000)","v":0},{"$f":"IF(O116=0,0,O116*'Product Data and EFs'!I82/1000)","v":0},0,{"$f":"IF(R116=0,0,(E116*'Product Data and EFs'!I82/1000-'Product Emissions Analysis'!R116))","v":0},0]
[null,null,null,"Solid State Retrofit: Ceiling Mount - Without Optics",null,null,null,0,0,{"$f":"IF(H117=0,0,H117*'Product Data and EFs'!J83)","v":0},{"$f":"IF(I117=0,0,I117*'Product Data and EFs'!I83)","v":0},0,{"$f":"IF(F117=0,0,(E117*'Product Data and EFs'!I83/1000-'Product Emissions Analysis'!L117))","v":0},0,0,{"$f":"IF(N117=0,0,N117*'Product Data and EFs'!J83/1000)","v":0},{"$f":"IF(O117=0,0,O117*'Product Data and EFs'!I83/1000)","v":0},0,{"$f":"IF(R117=0,0,(E117*'Product Data and EFs'!I83/1000-'Product Emissions Analysis'!R117))","v":0},0]
[null,null,null,"TOTAL",{"$f":"SUM(E93:E117)","v":0},"NA","NA",{"$f":"SUM(H93:H117)","v":0},0,0,0,0,0,0,0,0,0,0,0,0]
[]
[null,null,null,"Annual",null,null,null,"Current",null,null,null,null,null,"Increased ENERGY STAR Sales"]
[null,null,null,"Product Type","Total Unit Sales","% of Current Sales that are ENERGY STAR","Enter a Higher % of Sales that are ENERGY STAR for Analysis\n","Total ENERGY STAR Product Sales","Total Standard Product Sales","Annual Product Use Emissions - ENERGY STAR (Metric Tons CO2e)","Annual Product Use Emissions - Standard (Metric Tons CO2e)","Annual Total Product Use Emissions (Metric Tons CO2e)","Annual Emissions Savings from ENERGY STAR Product Sales\n(Metric Tons CO2e)","Total ENERGY STAR Product Sales","Total Standard Product Sales","Annual Product Use Emissions - ENERGY STAR (Metric Tons CO2e)","Annual Product Use Emissions - Standard (Metric Tons CO2e)","Annual Total Product Use Emissions (Metric Tons CO2e)","Annual Emissions Savings from ENERGY STAR Product Sales\n(Metric Tons CO2e)","Additional Annual Emissions Savings Achieved with Increased ENERGY STAR Sales\n(Metric Tons CO2e)"]
[null,null,null,"Cove Mount",{"$f":"IF(E93=\"\",\"\",E93)","v":""},{"$f":"IF(F93=\"\",\"\",F93)","v":""},"",{"$f":"IF(F122=\"\",0,ROUND(E122*F122,0))","v":0},{"$f":"IF(F122=\"\",0,E122-H122)","v":0},{"$f":"IF(H122=0,0,H122*'Product Data and EFs'!J59/1000/'Product Data and EFs'!F59)","v":0},{"$f":"IF(I122=0,0,I122*'Product Data and EFs'!I59/1000/'Product Data and EFs'!F59)","v":0},{"$f":"IF(F122=\"\",0,SUM(J122:K122))","v":0},{"$f":"IF(L122=0,0,(E122*'Product Data and EFs'!I59/1000/'Product Data and EFs'!F59-'Product Emissions Analysis'!L122))","v":0},{"$f":"IF(G122=\"\",0,ROUND(E122*G122,0))","v":0},{"$f":"IF(G122=\"\",0,E122-N122)","v":0},{"$f":"IF(N122=0,0,N122*'Product Data and EFs'!J59/1000/'Product Data and EFs'!F59)","v":0},{"$f":"IF(O122=0,0,O122*'Product Data and EFs'!I59/1000/'Product Data and EFs'!F59)","v":0},{"$f":"IF(G122=\"\",0,SUM(P122:Q122))","v":0},{"$f":"IF(R122=0,0,(E122*'Product Data and EFs'!I59/1000/'Product Data and EFs'!F59-'Product Emissions Analysis'!R122))","v":0},{"$f":"IF(G122=\"\",0,L122-R122)","v":0}]
[null,null,null,"Downlights ≤ 4.5\"",{"$f":"IF(E94=\"\",\"\",E94)","v":""},"","",{"$f":"IF(F123=\"\",0,ROUND(E123*F123,0))","v":0},{"$f":"IF(F123=\"\",0,E123-H123)","v":0},{"$f":"IF(H123=0,0,H123*'Product Data and EFs'!J60/1000/'Product Data and EFs'!F60)","v":0},{"$f":"IF(I123=0,0,I123*'Product Data and EFs'!I60/1000/'Product Data and EFs'!F60)","v":0},{"$f":"IF(F123=\"\",0,SUM(J123:K123))","v":0},{"$f":"IF(L123=0,0,(E123*'Product Data and EFs'!I60/1000/'Product Data and EFs'!F60-'Product Emissions Analysis'!L123))","v":0},{"$f":"IF(G123=\"\",0,ROUND(E123*G123,0))","v":0},{"$f":"IF(G123=\"\",0,E123-N123)","v":0},{"$f":"IF(N123=0,0,N123*'Product Data and EFs'!J60/1000/'Product Data and EFs'!F60)","v":0},{"$f":"IF(O123=0,0,O123*'Product Data and EFs'!I60/1000/'Product Data and EFs'!F60)","v":0},{"$f":"IF(G123=\"\",0,SUM(P123:Q123))","v":0},{"$f":"IF(R123=0,0,(E123*'Product Data and EFs'!I60/1000/'Product Data and EFs'!F60-'Product Emissions Analysis'!R123))","v":0},{"$f":"IF(G123=\"\",0,L123-R123)","v":0}]
[null,null,null,"Downlights > 4.5\"",{"$f":"IF(E95=\"\",\"\",E95)","v":""},"","",0,0,{"$f":"IF(H124=0,0,H124*'Product Data and EFs'!J61/1000/'Product Data and EFs'!F61)","v":0},{"$f":"IF(I124=0,0,I124*'Product Data and EFs'!I61/1000/'Product Data and EFs'!F61)","v":0},0,{"$f":"IF(L124=0,0,(E124*'Product Data and EFs'!I61/1000/'Product Data and EFs'!F61-'Product Emissions Analysis'!L124))","v":0},0,0,{"$f":"IF(N124=0,0,N124*'Product Data and EFs'!J61/1000/'Product Data and EFs'!F61)","v":0},{"$f":"IF(O124=0,0,O124*'Product Data and EFs'!I61/1000/'Product Data and EFs'!F61)","v":0},0,{"$f":"IF(R124=0,0,(E124*'Product Data and EFs'!I61/1000/'Product Data and EFs'!F61-'Product Emissions Analysis'!R124))","v":0},0]
[null,null,null,"Downlight Retrofits ≤ 4.5\"",{"$f":"IF(E96=\"\",\"\",E96)","v":""},"","",0,0,{"$f":"IF(H125=0,0,H125*'Product Data and EFs'!J62/1000/'Product Data and EFs'!F62)","v":0},{"$f":"IF(I125=0,0,I125*'Product Data and EFs'!I62/1000/'Product Data and EFs'!F62)","v":0},0,{"$f":"IF(L125=0,0,(E125*'Product Data and EFs'!I62/1000/'Product Data and EFs'!F62-'Product Emissions Analysis'!L125))","v":0},0,0,{"$f":"IF(N125=0,0,N125*'Product Data and EFs'!J62/1000/'Product Data and EFs'!F62)","v":0},{"$f":"IF(O125=0,0,O125*'Product Data and EFs'!I62/1000/'Product Data and EFs'!F62)","v":0},0,{"$f":"IF(R125=0,0,(E125*'Product Data and EFs'!I62/1000/'Product Data and EFs'!F62-'Product Emissions Analysis'!R125))","v":0},0]
[null,null,null,"Downlight Retrofits > 4.5\"",{"$f":"IF(E97=\"\",\"\",E97)","v":""},"","",0,0,{"$f":"IF(H126=0,0,H126*'Product Data and EFs'!J63/1000/'Product Data and EFs'!F63)","v":0},{"$f":"IF(I126=0,0,I126*'Product Data and EFs'!I63/1000/'Product Data and EFs'!F63)","v":0},0,{"$f":"IF(L126=0,0,(E126*'Product Data and EFs'!I63/1000/'Product Data and EFs'!F63-'Product Emissions Analysis'!L126))","v":0},0,0,{"$f":"IF(N126=0,0,N126*'Product Data and EFs'!J63/1000/'Product Data and EFs'!F63)","v":0},{"$f":"IF(O126=0,0,O126*'Product Data and EFs'!I63/1000/'Product Data and EFs'!F63)","v":0},0,{"$f":"IF(R126=0,0,(E126*'Product Data and EFs'!I63/1000/'Product Data and EFs'!F63-'Product Emissions Analysis'!R126))","v":0},0]
[null,null,null,"Accent Lights",{"$f":"IF(E98=\"\",\"\",E98)","v":""},"","",0,0,{"$f":"IF(H127=0,0,H127*'Product Data and EFs'!J64/1000/'Product Data and EFs'!F64)","v":0},{"$f":"IF(I127=0,0,I127*'Product Data and EFs'!I64/1000/'Product Data and EFs'!F64)","v":0},0,{"$f":"IF(L127=0,0,(E127*'Product Data and EFs'!I64/1000/'Product Data and EFs'!F64-'Product Emissions Analysis'!L127))","v":0},0,0,{"$f":"IF(N127=0,0,N127*'Product Data and EFs'!J64/1000/'Product Data and EFs'!F64)","v":0},{"$f":"IF(O127=0,0,O127*'Product Data and EFs'!I64/1000/'Product Data and EFs'!F64)","v":0},0,{"$f":"IF(R127=0,0,(E127*'Product Data and EFs'!I64/1000/'Product Data and EFs'!F64-'Product Emissions Analysis'!R127))","v":0},0]
[null,null,null,"Undercabinet",{"$f":"IF(E99=\"\",\"\",E99)","v":""},"","",0,0,{"$f":"IF(H128=0,0,H128*'Product Data and EFs'!J65/1000/'Product Data and EFs'!F65)","v":0},{"$f":"IF(I128=0,0,I128*'Product Data and EFs'!I65/1000/'Product Data and EFs'!F65)","v":0},0,{"$f":"IF(L128=0,0,(E128*'Product Data and EFs'!I65/1000/'Product Data and EFs'!F65-'Product Emissions Analysis'!L128))","v":0},0,0,{"$f":"IF(N128=0,0,N128*'Product Data and EFs'!J65/1000/'Product Data and EFs'!F65)","v":0},{"$f":"IF(O128=0,0,O128*'Product Data and EFs'!I65/1000/'Product Data and EFs'!F65)","v":0},0,{"$f":"IF(R128=0,0,(E128*'Product Data and EFs'!I65/1000/'Product Data and EFs'!F65-'Product Emissions Analysis'!R128))","v":0},0]
[null,null,null,"Outdoor Wall/Porch/Post",{"$f":"IF(E100=\"\",\"\",E100)","v":""},"","",0,0,{"$f":"IF(H129=0,0,H129*'Product Data and EFs'!J66/1000/'Product Data and EFs'!F66)","v":0},{"$f":"IF(I129=0,0,I129*'Product Data and EFs'!I66/1000/'Product Data and EFs'!F66)","v":0},0,{"$f":"IF(L129=0,0,(E129*'Product Data and EFs'!I66/1000/'Product Data and EFs'!F66-'Product Emissions Analysis'!L129))","v":0},0,0,{"$f":"IF(N129=0,0,N129*'Product Data and EFs'!J66/1000/'Product Data and EFs'!F66)","v":0},{"$f":"IF(O129=0,0,O129*'Product Data and EFs'!I66/1000/'Product Data and EFs'!F66)","v":0},0,{"$f":"IF(R129=0,0,(E129*'Product Data and EFs'!I66/1000/'Product Data and EFs'!F66-'Product Emissions Analysis'!R129))","v":0},0]
[null,null,null,"Portable Desk Task",{"$f":"IF(E101=\"\",\"\",E101)","v":""},"","",0,0,{"$f":"IF(H130=0,0,H130*'Product Data and EFs'!J67/1000/'Product Data and EFs'!F67)","v":0},{"$f":"IF(I130=0,0,I130*'Product Data and EFs'!I67/1000/'Product Data and EFs'!F67)","v":0},0,{"$f":"IF(L130=0,0,(E130*'Product Data and EFs'!I67/1000/'Product Data and EFs'!F67-'Product Emissions Analysis'!L130))","v":0},0,0,{"$f":"IF(N130=0,0,N130*'Product Data and EFs'!J67/1000/'Product Data and EFs'!F67)","v":0},{"$f":"IF(O130=0,0,O130*'Product Data and EFs'!I67/1000/'Product Data and EFs'!F67)","v":0},0,{"$f":"IF(R130=0,0,(E130*'Product Data and EFs'!I67/1000/'Product Data and EFs'!F67-'Product Emissions Analysis'!R130))","v":0},0]
[null,null,null,"Inseparable SSL",{"$f":"IF(E102=\"\",\"\",E102)","v":""},"","",0,0,{"$f":"IF(H131=0,0,H131*'Product Data and EFs'!J68/1000/'Product Data and EFs'!F68)","v":0},{"$f":"IF(I131=0,0,I131*'Product Data and EFs'!I68/1000/'Product Data and EFs'!F68)","v":0},0,{"$f":"IF(L131=0,0,(E131*'Product Data and EFs'!I68/1000/'Product Data and EFs'!F68-'Product Emissions Analysis'!L131))","v":0},0,0,{"$f":"IF(N131=0,0,N131*'Product Data and EFs'!J68/1000/'Product Data and EFs'!F68)","v":0},{"$f":"IF(O131=0,0,O131*'Product Data and EFs'!I68/1000/'Product Data and EFs'!F68)","v":0},0,{"$f":"IF(R131=0,0,(E131*'Product Data and EFs'!I68/1000/'Product Data and EFs'!F68-'Product Emissions Analysis'!R131))","v":0},0]
[null,null,null,"Fluorescent (CFL) (800 lm)",{"$f":"IF(E103=\"\",\"\",E103)","v":""},"","",0,0,{"$f":"IF(H132=0,0,H132*'Product Data and EFs'!J69/1000/'Product Data and EFs'!F69)","v":0},{"$f":"IF(I132=0,0,I132*'Product Data and EFs'!I69/1000/'Product Data and EFs'!F69)","v":0},0,{"$f":"IF(L132=0,0,(E132*'Product Data and EFs'!I69/1000/'Product Data and EFs'!F69-'Product Emissions Analysis'!L132))","v":0},0,0,{"$f":"IF(N132=0,0,N132*'Product Data and EFs'!J69/1000/'Product Data and EFs'!F69)","v":0},{"$f":"IF(O132=0,0,O132*'Product Data and EFs'!I69/1000/'Product Data and EFs'!F69)","v":0},0,{"$f":"IF(R132=0,0,(E132*'Product Data and EFs'!I69/1000/'Product Data and EFs'!F69-'Product Emissions Analysis'!R132))","v":0},0]
[null,null,null,"Fluorescent (CFL) (450 lm)",{"$f":"IF(E104=\"\",\"\",E104)","v":""},"","",0,0,{"$f":"IF(H133=0,0,H133*'Product Data and EFs'!J70/1000/'Product Data and EFs'!F70)","v":0},{"$f":"IF(I133=0,0,I133*'Product Data and EFs'!I70/1000/'Product Data and EFs'!F70)","v":0},0,{"$f":"IF(L133=0,0,(E133*'Product Data and EFs'!I70/1000/'Product Data and EFs'!F70-'Product Emissions Analysis'!L133))","v":0},0,0,{"$f":"IF(N133=0,0,N133*'Product Data and EFs'!J70/1000/'Product Data and EFs'!F70)","v":0},{"$f":"IF(O133=0,0,O133*'Product Data and EFs'!I70/1000/'Product Data and EFs'!F70)","v":0},0,{"$f":"IF(R133=0,0,(E133*'Product Data and EFs'!I70/1000/'Product Data and EFs'!F70-'Product Emissions Analysis'!R133))","v":0},0]
[null,null,null,"Fluorescent (CFL) (250 lm)",{"$f":"IF(E105=\"\",\"\",E105)","v":""},"","",0,0,{"$f":"IF(H134=0,0,H134*'Product Data and EFs'!J71/1000/'Product Data and EFs'!F71)","v":0},{"$f":"IF(I134=0,0,I134*'Product Data and EFs'!I71/1000/'Product Data and EFs'!F71)","v":0},0,{"$f":"IF(L134=0,0,(E134*'Product Data and EFs'!I71/1000/'Product Data and EFs'!F71-'Product Emissions Analysis'!L134))","v":0},0,0,{"$f":"IF(N134=0,0,N134*'Product Data and EFs'!J71/1000/'Product Data and EFs'!F71)","v":0},{"$f":"IF(O134=0,0,O134*'Product Data and EFs'!I71/1000/'Product Data and EFs'!F71)","v":0},0,{"$f":"IF(R134=0,0,(E134*'Product Data and EFs'!I71/1000/'Product Data and EFs'!F71-'Product Emissions Analysis'!R134))","v":0},0]
[null,null,null,"Solid State Light Engine - With Optics (800 lm)",{"$f":"IF(E106=\"\",\"\",E106)","v":""},"","",0,0,{"$f":"IF(H135=0,0,H135*'Product Data and EFs'!J72/1000/'Product Data and EFs'!F72)","v":0},{"$f":"IF(I135=0,0,I135*'Product Data and EFs'!I72/1000/'Product Data and EFs'!F72)","v":0},0,{"$f":"IF(L135=0,0,(E135*'Product Data and EFs'!I72/1000/'Product Data and EFs'!F72-'Product Emissions Analysis'!L135))","v":0},0,0,{"$f":"IF(N135=0,0,N135*'Product Data and EFs'!J72/1000/'Product Data and EFs'!F72)","v":0},{"$f":"IF(O135=0,0,O135*'Product Data and EFs'!I72/1000/'Product Data and EFs'!F72)","v":0},0,{"$f":"IF(R135=0,0,(E135*'Product Data and EFs'!I72/1000/'Product Data and EFs'!F72-'Product Emissions Analysis'!R135))","v":0},0]
[null,null,null,"Solid State Light Engine - With Optics (450 lm)",{"$f":"IF(E107=\"\",\"\",E107)","v":""},"","",0,0,{"$f":"IF(H136=0,0,H136*'Product Data and EFs'!J73/1000/'Product Data and EFs'!F73)","v":0},{"$f":"IF(I136=0,0,I136*'Product Data and EFs'!I73/1000/'Product Data and EFs'!F73)","v":0},0,{"$f":"IF(L136=0,0,(E136*'Product Data and EFs'!I73/1000/'Product Data and EFs'!F73-'Product Emissions Analysis'!L136))","v":0},0,0,{"$f":"IF(N136=0,0,N136*'Product Data and EFs'!J73/1000/'Product Data and EFs'!F73)","v":0},{"$f":"IF(O136=0,0,O136*'Product Data and EFs'!I73/1000/'Product Data and EFs'!F73)","v":0},0,{"$f":"IF(R136=0,0,(E136*'Product Data and EFs'!I73/1000/'Product Data and EFs'!F73-'Product Emissions Analysis'!R136))","v":0},0]
[null,null,null,"Solid State Light Engine - With Optics (250 lm)",{"$f":"IF(E108=\"\",\"\",E108)","v":""},"","",0,0,{"$f":"IF(H137=0,0,H137*'Product Data and EFs'!J74/1000/'Product Data and EFs'!F74)","v":0},{"$f":"IF(I137=0,0,I137*'Product Data and EFs'!I74/1000/'Product Data and EFs'!F74)","v":0},0,{"$f":"IF(L137=0,0,(E137*'Product Data and EFs'!I74/1000/'Product Data and EFs'!F74-'Product Emissions Analysis'!L137))","v":0},0,0,{"$f":"IF(N137=0,0,N137*'Product Data and EFs'!J74/1000/'Product Data and EFs'!F74)","v":0},{"$f":"IF(O137=0,0,O137*'Product Data and EFs'!I74/1000/'Product Data and EFs'!F74)","v":0},0,{"$f":"IF(R137=0,0,(E137*'Product Data and EFs'!I74/1000/'Product Data and EFs'!F74-'Product Emissions Analysis'!R137))","v":0},0]
[null,null,null,"Solid State Light Engine - Without Optics (800 lm)",{"$f":"IF(E109=\"\",\"\",E109)","v":""},"","",0,0,{"$f":"IF(H138=0,0,H138*'Product Data and EFs'!J75/1000/'Product Data and EFs'!F75)","v":0},{"$f":"IF(I138=0,0,I138*'Product Data and EFs'!I75/1000/'Product Data and EFs'!F75)","v":0},0,{"$f":"IF(L138=0,0,(E138*'Product Data and EFs'!I75/1000/'Product Data and EFs'!F75-'Product Emissions Analysis'!L138))","v":0},0,0,{"$f":"IF(N138=0,0,N138*'Product Data and EFs'!J75/1000/'Product Data and EFs'!F75)","v":0},{"$f":"IF(O138=0,0,O138*'Product Data and EFs'!I75/1000/'Product Data and EFs'!F75)","v":0},0,{"$f":"IF(R138=0,0,(E138*'Product Data and EFs'!I75/1000/'Product Data and EFs'!F75-'Product Emissions Analysis'!R138))","v":0},0]
[null,null,null,"Solid State Light Engine - Without Optics (450 lm)",{"$f":"IF(E110=\"\",\"\",E110)","v":""},"","",0,0,{"$f":"IF(H139=0,0,H139*'Product Data and EFs'!J76/1000/'Product Data and EFs'!F76)","v":0},{"$f":"IF(I139=0,0,I139*'Product Data and EFs'!I76/1000/'Product Data and EFs'!F76)","v":0},0,{"$f":"IF(L139=0,0,(E139*'Product Data and EFs'!I76/1000/'Product Data and EFs'!F76-'Product Emissions Analysis'!L139))","v":0},0,0,{"$f":"IF(N139=0,0,N139*'Product Data and EFs'!J76/1000/'Product Data and EFs'!F76)","v":0},{"$f":"IF(O139=0,0,O139*'Product Data and EFs'!I76/1000/'Product Data and EFs'!F76)","v":0},0,{"$f":"IF(R139=0,0,(E139*'Product Data and EFs'!I76/1000/'Product Data and EFs'!F76-'Product Emissions Analysis'!R139))","v":0},0]
[null,null,null,"Solid State Light Engine - Without Optics (250 lm)",{"$f":"IF(E111=\"\",\"\",E111)","v":""},"","",0,0,{"$f":"IF(H140=0,0,H140*'Product Data and EFs'!J77/1000/'Product Data and EFs'!F77)","v":0},{"$f":"IF(I140=0,0,I140*'Product Data and EFs'!I77/1000/'Product Data and EFs'!F77)","v":0},0,{"$f":"IF(L140=0,0,(E140*'Product Data and EFs'!I77/1000/'Product Data and EFs'!F77-'Product Emissions Analysis'!L140))","v":0},0,0,{"$f":"IF(N140=0,0,N140*'Product Data and EFs'!J77/1000/'Product Data and EFs'!F77)","v":0},{"$f":"IF(O140=0,0,O140*'Product Data and EFs'!I77/1000/'Product Data and EFs'!F77)","v":0},0,{"$f":"IF(R140=0,0,(E140*'Product Data and EFs'!I77/1000/'Product Data and EFs'!F77-'Product Emissions Analysis'!R140))","v":0},0]
[null,null,null,"Solid State Retrofit: Sconce - With Optics",{"$f":"IF(E112=\"\",\"\",E112)","v":""},"","",0,0,{"$f":"IF(H141=0,0,H141*'Product Data and EFs'!J78/1000/'Product Data and EFs'!F78)","v":0},{"$f":"IF(I141=0,0,I141*'Product Data and EFs'!I78/1000/'Product Data and EFs'!F78)","v":0},0,{"$f":"IF(L141=0,0,(E141*'Product Data and EFs'!I78/1000/'Product Data and EFs'!F78-'Product Emissions Analysis'!L141))","v":0},0,0,{"$f":"IF(N141=0,0,N141*'Product Data and EFs'!J78/1000/'Product Data and EFs'!F78)","v":0},{"$f":"IF(O141=0,0,O141*'Product Data and EFs'!I78/1000/'Product Data and EFs'!F78)","v":0},0,{"$f":"IF(R141=0,0,(E141*'Product Data and EFs'!I78/1000/'Product Data and EFs'!F78-'Product Emissions Analysis'!R141))","v":0},0]
[null,null,null,"Solid State Retrofit: Sconce - Without Optics",{"$f":"IF(E113=\"\",\"\",E113)","v":""},"","",0,0,{"$f":"IF(H142=0,0,H142*'Product Data and EFs'!J79/1000/'Product Data and EFs'!F79)","v":0},{"$f":"IF(I142=0,0,I142*'Product Data and EFs'!I79/1000/'Product Data and EFs'!F79)","v":0},0,{"$f":"IF(L142=0,0,(E142*'Product Data and EFs'!I79/1000/'Product Data and EFs'!F79-'Product Emissions Analysis'!L142))","v":0},0,0,{"$f":"IF(N142=0,0,N142*'Product Data and EFs'!J79/1000/'Product Data and EFs'!F79)","v":0},{"$f":"IF(O142=0,0,O142*'Product Data and EFs'!I79/1000/'Product Data and EFs'!F79)","v":0},0,{"$f":"IF(R142=0,0,(E142*'Product Data and EFs'!I79/1000/'Product Data and EFs'!F79-'Product Emissions Analysis'!R142))","v":0},0]
[null,null,null,"Solid State Retrofit: Ceiling Mount - With Optics",{"$f":"IF(E114=\"\",\"\",E114)","v":""},"","",0,0,{"$f":"IF(H143=0,0,H143*'Product Data and EFs'!J80/1000/'Product Data and EFs'!F80)","v":0},{"$f":"IF(I143=0,0,I143*'Product Data and EFs'!I80/1000/'Product Data and EFs'!F80)","v":0},0,{"$f":"IF(L143=0,0,(E143*'Product Data and EFs'!I80/1000/'Product Data and EFs'!F80-'Product Emissions Analysis'!L143))","v":0},0,0,{"$f":"IF(N143=0,0,N143*'Product Data and EFs'!J80/1000/'Product Data and EFs'!F80)","v":0},{"$f":"IF(O143=0,0,O143*'Product Data and EFs'!I80/1000/'Product Data and EFs'!F80)","v":0},0,{"$f":"IF(R143=0,0,(E143*'Product Data and EFs'!I80/1000/'Product Data and EFs'!F80-'Product Emissions Analysis'!R143))","v":0},0]
[null,null,null,"Solid State Retrofit: Ceiling Mount - With Optics",{"$f":"IF(E115=\"\",\"\",E115)","v":""},"","",0,0,{"$f":"IF(H144=0,0,H144*'Product Data and EFs'!J81/1000/'Product Data and EFs'!F81)","v":0},{"$f":"IF(I144=0,0,I144*'Product Data and EFs'!I81/1000/'Product Data and EFs'!F81)","v":0},0,{"$f":"IF(L144=0,0,(E144*'Product Data and EFs'!I81/1000/'Product Data and EFs'!F81-'Product Emissions Analysis'!L144))","v":0},0,0,{"$f":"IF(N144=0,0,N144*'Product Data and EFs'!J81/1000/'Product Data and EFs'!F81)","v":0},{"$f":"IF(O144=0,0,O144*'Product Data and EFs'!I81/1000/'Product Data and EFs'!F81)","v":0},0,{"$f":"IF(R144=0,0,(E144*'Product Data and EFs'!I81/1000/'Product Data and EFs'!F81-'Product Emissions Analysis'!R144))","v":0},0]
[null,null,null,"Solid State Retrofit: Ceiling Mount - Without Optics",{"$f":"IF(E116=\"\",\"\",E116)","v":""},"","",0,0,{"$f":"IF(H145=0,0,H145*'Product Data and EFs'!J82/1000/'Product Data and EFs'!F82)","v":0},{"$f":"IF(I145=0,0,I145*'Product Data and EFs'!I82/1000/'Product Data and EFs'!F82)","v":0},0,{"$f":"IF(L145=0,0,(E145*'Product Data and EFs'!I82/1000/'Product Data and EFs'!F82-'Product Emissions Analysis'!L145))","v":0},0,0,{"$f":"IF(N145=0,0,N145*'Product Data and EFs'!J82/1000/'Product Data and EFs'!F82)","v":0},{"$f":"IF(O145=0,0,O145*'Product Data and EFs'!I82/1000/'Product Data and EFs'!F82)","v":0},0,{"$f":"IF(R145=0,0,(E145*'Product Data and EFs'!I82/1000/'Product Data and EFs'!F82-'Product Emissions Analysis'!R145))","v":0},0]
[null,null,null,"Solid State Retrofit: Ceiling Mount - Without Optics",{"$f":"IF(E117=\"\",\"\",E117)","v":""},"","",0,0,{"$f":"IF(H146=0,0,H146*'Product Data and EFs'!J83/1000/'Product Data and EFs'!F83)","v":0},{"$f":"IF(I146=0,0,I146*'Product Data and EFs'!I83/1000/'Product Data and EFs'!F83)","v":0},0,{"$f":"IF(L146=0,0,(E146*'Product Data and EFs'!I83/1000/'Product Data and EFs'!F83-'Product Emissions Analysis'!L146))","v":0},0,0,{"$f":"IF(N146=0,0,N146*'Product Data and EFs'!J83/1000/'Product Data and EFs'!F83)","v":0},{"$f":"IF(O146=0,0,O146*'Product Data and EFs'!I83/1000/'Product Data and EFs'!F83)","v":0},0,{"$f":"IF(R146=0,0,(E146*'Product Data and EFs'!I83/1000/'Product Data and EFs'!F83-'Product Emissions Analysis'!R146))","v":0},0]
[null,null,null,"TOTAL",{"$f":"IF(E118=\"\",\"\",E118)","v":0},"NA","NA",{"$f":"SUM(H122:H146)","v":0},0,0,0,0,0,0,0,0,0,0,0,0]
[]
[]
[null,null,null,"Decorative Light Strings"]
[]
[null,null,null,"Lifetime",null,null,null,"Current",null,null,null,null,null,"Increased ENERGY STAR Sales"]
[null,null,null,"Product Type","Total Unit Sales","% of Current Sales that are ENERGY STAR","Enter a Higher % of Sales that are ENERGY STAR for Analysis\n","Total ENERGY STAR Product Sales","Total Standard Product Sales","Lifetime Product Use Emissions - ENERGY STAR (Metric Tons CO2e)","Lifetime Product Use Emissions - Standard (Metric Tons CO2e)","Lifetime Total Product Use Emissions (Metric Tons CO2e)","Lifetime Emissions Savings from ENERGY STAR Product Sales\n(Metric Tons CO2e)","Total ENERGY STAR Product Sales","Total Standard Product Sales","Lifetime Product Use Emissions - ENERGY STAR (Metric Tons CO2e)","Lifetime Product Use Emissions - Standard (Metric Tons CO2e)","Lifetime Total Product Use Emissions (Metric Tons CO2e)","Lifetime Emissions Savings from ENERGY STAR Product Sales\n(Metric Tons CO2e)","Additional Lifetime Emissions Savings Achieved with Increased ENERGY STAR Sales\n(Metric Tons CO2e)"]
[null,null,null,"Decorative Light Strings",null,null,null,{"$f":"IF(F154=\"\",0,ROUND(E154*F154,0))","v":0},{"$f":"IF(F154=\"\",0,E154-H154)","v":0},{"$f":"IF(H154=0,0,H154*'Product Data and EFs'!J88/1000)","v":0},{"$f":"IF(I154=0,0,I154*'Product Data and EFs'!I88/1000)","v":0},{"$f":"IF(F154=\"\",0,SUM(J154:K154))","v":0},{"$f":"IF(L154=0,0,(E154*'Product Data and EFs'!I88/1000-'Product Emissions Analysis'!L154))","v":0},{"$f":"IF(G154=\"\",0,ROUND(E154*G154,0))","v":0},{"$f":"IF(G154=\"\",0,E154-N154)","v":0},{"$f":"IF(N154=0,0,N154*'Product Data and EFs'!J88/1000)","v":0},{"$f":"IF(O154=0,0,O154*'Product Data and EFs'!I88/1000)","v":0},{"$f":"IF(G154=\"\",0,SUM(P154:Q154))","v":0},{"$f":"IF(R154=0,0,(E154*'Product Data and EFs'!I88/1000-'Product Emissions Analysis'!R154))","v":0},{"$f":"IF(G154=\"\",0,L154-R154)","v":0}]
[]
[]
[null,null,null,"Annual",null,null,null,"Current",null,null,null,null,null,"Increased ENERGY STAR Sales"]
[null,null,null,"Product Type","Total Unit Sales","% of Current Sales that are ENERGY STAR","Enter a Higher % of Sales that are ENERGY STAR for Analysis","Total ENERGY STAR Product Sales","Total Standard Product Sales","Annual Product Use Emissions - ENERGY STAR (Metric Tons CO2e)","Annual Product Use Emissions - Standard (Metric Tons CO2e)","Annual Total Product Use Emissions (Metric Tons CO2e)","Annual Emissions Savings from ENERGY STAR Product Sales\n(Metric Tons CO2e)","Total ENERGY STAR Product Sales","Total Standard Product Sales","Annual Product Use Emissions - ENERGY STAR (Metric Tons CO2e)","Annual Product Use Emissions - Standard (Metric Tons CO2e)","Annual Total Product Use Emissions (Metric Tons CO2e)","Annual Emissions Savings from ENERGY STAR Product Sales\n(Metric Tons CO2e)","Additional Annual Emissions Savings Achieved with Increased ENERGY STAR Sales\n(Metric Tons CO2e)"]
[null,null,null,"Decorative Light Strings",{"$f":"IF(E154=\"\",\"\",E154)","v":""},{"$f":"IF(F154=\"\",\"\",F154)","v":""},{"$f":"IF(G154=\"\",\"\",G154)","v":""},{"$f":"IF(F159=\"\",0,ROUND(E159*F159,0))","v":0},{"$f":"IF(F159=\"\",0,E159-H159)","v":0},{"$f":"IF(H159=0,0,H159*'Product Data and EFs'!J88/1000/'Product Data and EFs'!F88)","v":0},{"$f":"IF(I159=0,0,I159*'Product Data and EFs'!I88/1000/'Product Data and EFs'!F88)","v":0},{"$f":"IF(F159=\"\",0,SUM(J159:K159))","v":0},{"$f":"IF(L159=0,0,(E159*'Product Data and EFs'!I88/1000/'Product Data and EFs'!F88-'Product Emissions Analysis'!L159))","v":0},{"$f":"IF(G159=\"\",0,ROUND(E159*G159,0))","v":0},{"$f":"IF(G159=\"\",0,E159-N159)","v":0},{"$f":"IF(N159=0,0,N159*'Product Data and EFs'!J88/1000/'Product Data and EFs'!F88)","v":0},{"$f":"IF(O159=0,0,O159*'Product Data and EFs'!I88/1000/'Product Data and EFs'!F88)","v":0},{"$f":"IF(G159=\"\",0,SUM(P159:Q159))","v":0},{"$f":"IF(R159=0,0,(E159*'Product Data and EFs'!I88/1000/'Product Data and EFs'!F88-'Product Emissions Analysis'!R159))","v":0},{"$f":"IF(G159=\"\",0,L159-R159)","v":0}]
[]
[]
[]
[null,null,null,"Consumer Electronics"]
[]
[null,null,null,"Lifetime"]
[]
[null,null,null,null,null,null,null,"Current",null,null,null,null,null,"Increased ENERGY STAR Sales"]
[null,null,null,"Product Type","Total Unit Sales","% of Current Sales that are ENERGY STAR","Enter a Higher % of Sales that are ENERGY STAR for Analysis\n","Total ENERGY STAR Product Sales","Total Standard Product Sales","Lifetime Product Use Emissions - ENERGY STAR (Metric Tons CO2e)","Lifetime Product Use Emissions - Standard (Metric Tons CO2e)","Lifetime Total Product Use Emissions (Metric Tons CO2e)","Lifetime Emissions Savings from ENERGY STAR Product Sales\n(Metric Tons CO2e)","Total ENERGY STAR Product Sales","Total Standard Product Sales","Lifetime Product Use Emissions - ENERGY STAR (Metric Tons CO2e)","Lifetime Product Use Emissions - Standard (Metric Tons CO2e)","Lifetime Total Product Use Emissions (Metric Tons CO2e)","Lifetime Emissions Savings from ENERGY STAR Product Sales\n(Metric Tons CO2e)","Additional Lifetime Emissions Savings Achieved with Increased ENERGY STAR Sales\n(Metric Tons CO2e)"]
[null,null,null,"TV - LCD TVs 20\" and under",null,null,null,{"$f":"IF(F169=\"\",0,ROUND(E169*F169,0))","v":0},{"$f":"IF(F169=\"\",0,E169-H169)","v":0},{"$f":"IF(H169=0,0,H169*'Product Data and EFs'!L95/1000)","v":0},{"$f":"IF(I169=0,0,I169*'Product Data and EFs'!K95/1000)","v":0},{"$f":"IF(F169=\"\",0,SUM(J169:K169))","v":0},{"$f":"IF(L169=0,0,(E169*'Product Data and EFs'!K95/1000-'Product Emissions Analysis'!L169))","v":0},{"$f":"IF(G169=\"\",0,ROUND(E169*G169,0))","v":0},{"$f":"IF(G169=\"\",0,E169-N169)","v":0},{"$f":"IF(N169=0,0,N169*'Product Data and EFs'!L95/1000)","v":0},{"$f":"IF(O169=0,0,O169*'Product Data and EFs'!K95/1000)","v":0},{"$f":"IF(G169=\"\",0,SUM(P169:Q169))","v":0},{"$f":"IF(R169=0,0,(E169*'Product Data and EFs'!K95/1000-'Product Emissions Analysis'!R169))","v":0},{"$f":"IF(G169=\"\",0,L169-R169)","v":0}]
[null,null,null,"TV - LCD TVs 21\"-23\"",null,null,null,{"$f":"IF(F170=\"\",0,ROUND(E170*F170,0))","v":0},{"$f":"IF(F170=\"\",0,E170-H170)","v":0},{"$f":"IF(H170=0,0,H170*'Product Data and EFs'!L96/1000)","v":0},{"$f":"IF(I170=0,0,I170*'Product Data and EFs'!K96/1000)","v":0},{"$f":"IF(F170=\"\",0,SUM(J170:K170))","v":0},{"$f":"IF(L170=0,0,(E170*'Product Data and EFs'!K96/1000-'Product Emissions Analysis'!L170))","v":0},{"$f":"IF(G170=\"\",0,ROUND(E170*G170,0))","v":0},{"$f":"IF(G170=\"\",0,E170-N170)","v":0},{"$f":"IF(N170=0,0,N170*'Product Data and EFs'!L96/1000)","v":0},{"$f":"IF(O170=0,0,O170*'Product Data and EFs'!K96/1000)","v":0},{"$f":"IF(G170=\"\",0,SUM(P170:Q170))","v":0},{"$f":"IF(R170=0,0,(E170*'Product Data and EFs'!K96/1000-'Product Emissions Analysis'!R170))","v":0},{"$f":"IF(G170=\"\",0,L170-R170)","v":0}]
[null,null,null,"TV - LCD TVs 24\"-29\"",null,null,null,0,0,{"$f":"IF(H171=0,0,H171*'Product Data and EFs'!L97/1000)","v":0},{"$f":"IF(I171=0,0,I171*'Product Data and EFs'!K97/1000)","v":0},0,{"$f":"IF(L171=0,0,(E171*'Product Data and EFs'!K97/1000-'Product Emissions Analysis'!L171))","v":0},0,0,{"$f":"IF(N171=0,0,N171*'Product Data and EFs'!L97/1000)","v":0},{"$f":"IF(O171=0,0,O171*'Product Data and EFs'!K97/1000)","v":0},0,{"$f":"IF(R171=0,0,(E171*'Product Data and EFs'!K97/1000-'Product Emissions Analysis'!R171))","v":0},0]
[null,null,null,"TV - LCD TVs 30\"-34\"",null,null,null,0,0,{"$f":"IF(H172=0,0,H172*'Product Data and EFs'!L98/1000)","v":0},{"$f":"IF(I172=0,0,I172*'Product Data and EFs'!K98/1000)","v":0},0,{"$f":"IF(L172=0,0,(E172*'Product Data and EFs'!K98/1000-'Product Emissions Analysis'!L172))","v":0},0,0,{"$f":"IF(N172=0,0,N172*'Product Data and EFs'!L98/1000)","v":0},{"$f":"IF(O172=0,0,O172*'Product Data and EFs'!K98/1000)","v":0},0,{"$f":"IF(R172=0,0,(E172*'Product Data and EFs'!K98/1000-'Product Emissions Analysis'!R172))","v":0},0]
[null,null,null,"TV - LCD TVs 35\"-39\"",null,null,null,0,0,{"$f":"IF(H173=0,0,H173*'Product Data and EFs'!L99/1000)","v":0},{"$f":"IF(I173=0,0,I173*'Product Data and EFs'!K99/1000)","v":0},0,{"$f":"IF(L173=0,0,(E173*'Product Data and EFs'!K99/1000-'Product Emissions Analysis'!L173))","v":0},0,0,{"$f":"IF(N173=0,0,N173*'Product Data and EFs'!L99/1000)","v":0},{"$f":"IF(O173=0,0,O173*'Product Data and EFs'!K99/1000)","v":0},0,{"$f":"IF(R173=0,0,(E173*'Product Data and EFs'!K99/1000-'Product Emissions Analysis'!R173))","v":0},0]
[null,null,null,"TV - LCD TVs 40\"-44\"",null,null,null,0,0,{"$f":"IF(H174=0,0,H174*'Product Data and EFs'!L100/1000)","v":0},{"$f":"IF(I174=0,0,I174*'Product Data and EFs'!K100/1000)","v":0},0,{"$f":"IF(L174=0,0,(E174*'Product Data and EFs'!K100/1000-'Product Emissions Analysis'!L174))","v":0},0,0,{"$f":"IF(N174=0,0,N174*'Product Data and EFs'!L100/1000)","v":0},{"$f":"IF(O174=0,0,O174*'Product Data and EFs'!K100/1000)","v":0},0,{"$f":"IF(R174=0,0,(E174*'Product Data and EFs'!K100/1000-'Product Emissions Analysis'!R174))","v":0},0]
[null,null,null,"TV - LCD TVs 45\"-49\"",null,null,null,0,0,{"$f":"IF(H175=0,0,H175*'Product Data and EFs'!L101/1000)","v":0},{"$f":"IF(I175=0,0,I175*'Product Data and EFs'!K101/1000)","v":0},0,{"$f":"IF(L175=0,0,(E175*'Product Data and EFs'!K101/1000-'Product Emissions Analysis'!L175))","v":0},0,0,{"$f":"IF(N175=0,0,N175*'Product Data and EFs'!L101/1000)","v":0},{"$f":"IF(O175=0,0,O175*'Product Data and EFs'!K101/1000)","v":0},0,{"$f":"IF(R175=0,0,(E175*'Product Data and EFs'!K101/1000-'Product Emissions Analysis'!R175))","v":0},0]
[null,null,null,"TV - LCD TVs 50\"-54\"",null,null,null,0,0,{"$f":"IF(H176=0,0,H176*'Product Data and EFs'!L102/1000)","v":0},{"$f":"IF(I176=0,0,I176*'Product Data and EFs'!K102/1000)","v":0},0,{"$f":"IF(L176=0,0,(E176*'Product Data and EFs'!K102/1000-'Product Emissions Analysis'!L176))","v":0},0,0,{"$f":"IF(N176=0,0,N176*'Product Data and EFs'!L102/1000)","v":0},{"$f":"IF(O176=0,0,O176*'Product Data and EFs'!K102/1000)","v":0},0,{"$f":"IF(R176=0,0,(E176*'Product Data and EFs'!K102/1000-'Product Emissions Analysis'!R176))","v":0},0]
[null,null,null,"TV - LCD TVs 55\"-59\"",null,null,null,0,0,{"$f":"IF(H177=0,0,H177*'Product Data and EFs'!L103/1000)","v":0},{"$f":"IF(I177=0,0,I177*'Product Data and EFs'!K103/1000)","v":0},0,{"$f":"IF(L177=0,0,(E177*'Product Data and EFs'!K103/1000-'Product Emissions Analysis'!L177))","v":0},0,0,{"$f":"IF(N177=0,0,N177*'Product Data and EFs'!L103/1000)","v":0},{"$f":"IF(O177=0,0,O177*'Product Data and EFs'!K103/1000)","v":0},0,{"$f":"IF(R177=0,0,(E177*'Product Data and EFs'!K103/1000-'Product Emissions Analysis'!R177))","v":0},0]
[null,null,null,"TV - LCD TVs 60\"-64\"",null,null,null,0,0,{"$f":"IF(H178=0,0,H178*'Product Data and EFs'!L104/1000)","v":0},{"$f":"IF(I178=0,0,I178*'Product Data and EFs'!K104/1000)","v":0},0,{"$f":"IF(L178=0,0,(E178*'Product Data and EFs'!K104/1000-'Product Emissions Analysis'!L178))","v":0},0,0,{"$f":"IF(N178=0,0,N178*'Product Data and EFs'!L104/1000)","v":0},{"$f":"IF(O178=0,0,O178*'Product Data and EFs'!K104/1000)","v":0},0,{"$f":"IF(R178=0,0,(E178*'Product Data and EFs'!K104/1000-'Product Emissions Analysis'!R178))","v":0},0]
[null,null,null,"TV - LCD TVs 65\" or greater",null,null,null,0,0,{"$f":"IF(H179=0,0,H179*'Product Data and EFs'!L105/1000)","v":0},{"$f":"IF(I179=0,0,I179*'Product Data and EFs'!K105/1000)","v":0},0,{"$f":"IF(L179=0,0,(E179*'Product Data and EFs'!K105/1000-'Product Emissions Analysis'!L179))","v":0},0,0,{"$f":"IF(N179=0,0,N179*'Product Data and EFs'!L105/1000)","v":0},{"$f":"IF(O179=0,0,O179*'Product Data and EFs'!K105/1000)","v":0},0,{"$f":"IF(R179=0,0,(E179*'Product Data and EFs'!K105/1000-'Product Emissions Analysis'!R179))","v":0},0]
[null,null,null,"TV - Plasma TVs under 60\"",null,null,null,0,0,{"$f":"IF(H180=0,0,H180*'Product Data and EFs'!L106/1000)","v":0},{"$f":"IF(I180=0,0,I180*'Product Data and EFs'!K106/1000)","v":0},0,{"$f":"IF(L180=0,0,(E180*'Product Data and EFs'!K106/1000-'Product Emissions Analysis'!L180))","v":0},0,0,{"$f":"IF(N180=0,0,N180*'Product Data and EFs'!L106/1000)","v":0},{"$f":"IF(O180=0,0,O180*'Product Data and EFs'!K106/1000)","v":0},0,{"$f":"IF(R180=0,0,(E180*'Product Data and EFs'!K106/1000-'Product Emissions Analysis'!R180))","v":0},0]
[null,null,null,"TV - Plasma TVs 60\" and up",null,null,null,0,0,{"$f":"IF(H181=0,0,H181*'Product Data and EFs'!L107/1000)","v":0},{"$f":"IF(I181=0,0,I181*'Product Data and EFs'!K107/1000)","v":0},0,{"$f":"IF(L181=0,0,(E181*'Product Data and EFs'!K107/1000-'Product Emissions Analysis'!L181))","v":0},0,0,{"$f":"IF(N181=0,0,N181*'Product Data and EFs'!L107/1000)","v":0},{"$f":"IF(O181=0,0,O181*'Product Data and EFs'!K107/1000)","v":0},0,{"$f":"IF(R181=0,0,(E181*'Product Data and EFs'!K107/1000-'Product Emissions Analysis'!R181))","v":0},0]
[null,null,null,"TV - OLED TVs",null,null,null,0,0,{"$f":"IF(H182=0,0,H182*'Product Data and EFs'!L108/1000)","v":0},{"$f":"IF(I182=0,0,I182*'Product Data and EFs'!K108/1000)","v":0},0,{"$f":"IF(L182=0,0,(E182*'Product Data and EFs'!K108/1000-'Product Emissions Analysis'!L182))","v":0},0,0,{"$f":"IF(N182=0,0,N182*'Product Data and EFs'!L108/1000)","v":0},{"$f":"IF(O182=0,0,O182*'Product Data and EFs'!K108/1000)","v":0},0,{"$f":"IF(R182=0,0,(E182*'Product Data and EFs'!K108/1000-'Product Emissions Analysis'!R182))","v":0},0]
[null,null,null,"DVD Players",null,null,null,0,0,{"$f":"IF(H183=0,0,H183*'Product Data and EFs'!L109/1000)","v":0},{"$f":"IF(I183=0,0,I183*'Product Data and EFs'!K109/1000)","v":0},0,{"$f":"IF(L183=0,0,(E183*'Product Data and EFs'!K109/1000-'Product Emissions Analysis'!L183))","v":0},0,0,{"$f":"IF(N183=0,0,N183*'Product Data and EFs'!L109/1000)","v":0},{"$f":"IF(O183=0,0,O183*'Product Data and EFs'!K109/1000)","v":0},0,{"$f":"IF(R183=0,0,(E183*'Product Data and EFs'!K109/1000-'Product Emissions Analysis'!R183))","v":0},0]
[null,null,null,"Blu Ray",null,null,null,0,0,{"$f":"IF(H184=0,0,H184*'Product Data and EFs'!L110/1000)","v":0},{"$f":"IF(I184=0,0,I184*'Product Data and EFs'!K110/1000)","v":0},0,{"$f":"IF(L184=0,0,(E184*'Product Data and EFs'!K110/1000-'Product Emissions Analysis'!L184))","v":0},0,0,{"$f":"IF(N184=0,0,N184*'Product Data and EFs'!L110/1000)","v":0},{"$f":"IF(O184=0,0,O184*'Product Data and EFs'!K110/1000)","v":0},0,{"$f":"IF(R184=0,0,(E184*'Product Data and EFs'!K110/1000-'Product Emissions Analysis'!R184))","v":0},0]
[null,null,null,"Audio Equipment - Receivers",null,null,null,0,0,{"$f":"IF(H185=0,0,H185*'Product Data and EFs'!L111/1000)","v":0},{"$f":"IF(I185=0,0,I185*'Product Data and EFs'!K111/1000)","v":0},0,{"$f":"IF(L185=0,0,(E185*'Product Data and EFs'!K111/1000-'Product Emissions Analysis'!L185))","v":0},0,0,{"$f":"IF(N185=0,0,N185*'Product Data and EFs'!L111/1000)","v":0},{"$f":"IF(O185=0,0,O185*'Product Data and EFs'!K111/1000)","v":0},0,{"$f":"IF(R185=0,0,(E185*'Product Data and EFs'!K111/1000-'Product Emissions Analysis'!R185))","v":0},0]
[null,null,null,"Audio Equipment - Home Theater In-a-Box",null,null,null,0,0,{"$f":"IF(H186=0,0,H186*'Product Data and EFs'!L112/1000)","v":0},{"$f":"IF(I186=0,0,I186*'Product Data and EFs'!K112/1000)","v":0},0,{"$f":"IF(L186=0,0,(E186*'Product Data and EFs'!K112/1000-'Product Emissions Analysis'!L186))","v":0},0,0,{"$f":"IF(N186=0,0,N186*'Product Data and EFs'!L112/1000)","v":0},{"$f":"IF(O186=0,0,O186*'Product Data and EFs'!K112/1000)","v":0},0,{"$f":"IF(R186=0,0,(E186*'Product Data and EFs'!K112/1000-'Product Emissions Analysis'!R186))","v":0},0]
[null,null,null,"Audio Equipment - Compact Systems",null,null,null,0,0,{"$f":"IF(H187=0,0,H187*'Product Data and EFs'!L113/1000)","v":0},{"$f":"IF(I187=0,0,I187*'Product Data and EFs'!K113/1000)","v":0},0,{"$f":"IF(L187=0,0,(E187*'Product Data and EFs'!K113/1000-'Product Emissions Analysis'!L187))","v":0},0,0,{"$f":"IF(N187=0,0,N187*'Product Data and EFs'!L113/1000)","v":0},{"$f":"IF(O187=0,0,O187*'Product Data and EFs'!K113/1000)","v":0},0,{"$f":"IF(R187=0,0,(E187*'Product Data and EFs'!K113/1000-'Product Emissions Analysis'!R187))","v":0},0]
[null,null,null,"Audio Equipment - Soundbars",null,null,null,0,0,{"$f":"IF(H188=0,0,H188*'Product Data and EFs'!L114/1000)","v":0},{"$f":"IF(I188=0,0,I188*'Product Data and EFs'!K114/1000)","v":0},0,{"$f":"IF(L188=0,0,(E188*'Product Data and EFs'!K114/1000-'Product Emissions Analysis'!L188))","v":0},0,0,{"$f":"IF(N188=0,0,N188*'Product Data and EFs'!L114/1000)","v":0},{"$f":"IF(O188=0,0,O188*'Product Data and EFs'!K114/1000)","v":0},0,{"$f":"IF(R188=0,0,(E188*'Product Data and EFs'!K114/1000-'Product Emissions Analysis'!R188))","v":0},0]
[null,null,null,"Audio Equipment - Other Powered Speakers",null,null,null,0,0,{"$f":"IF(H189=0,0,H189*'Product Data and EFs'!L115/1000)","v":0},{"$f":"IF(I189=0,0,I189*'Product Data and EFs'!K115/1000)","v":0},0,{"$f":"IF(L189=0,0,(E189*'Product Data and EFs'!K115/1000-'Product Emissions Analysis'!L189))","v":0},0,0,{"$f":"IF(N189=0,0,N189*'Product Data and EFs'!L115/1000)","v":0},{"$f":"IF(O189=0,0,O189*'Product Data and EFs'!K115/1000)","v":0},0,{"$f":"IF(R189=0,0,(E189*'Product Data and EFs'!K115/1000-'Product Emissions Analysis'!R189))","v":0},0]
[null,null,null,"Audio Equipment - Home Radios",null,null,null,0,0,{"$f":"IF(H190=0,0,H190*'Product Data and EFs'!L116/1000)","v":0},{"$f":"IF(I190=0,0,I190*'Product Data and EFs'!K116/1000)","v":0},0,{"$f":"IF(L190=0,0,(E190*'Product Data and EFs'!K116/1000-'Product Emissions Analysis'!L190))","v":0},0,0,{"$f":"IF(N190=0,0,N190*'Product Data and EFs'!L116/1000)","v":0},{"$f":"IF(O190=0,0,O190*'Product Data and EFs'!K116/1000)","v":0},0,{"$f":"IF(R190=0,0,(E190*'Product Data and EFs'!K116/1000-'Product Emissions Analysis'!R190))","v":0},0]
[null,null,null,"Audio Equipment - Portable Media/MP3 Player Speakers and Docks",null,null,null,0,0,{"$f":"IF(H191=0,0,H191*'Product Data and EFs'!L117/1000)","v":0},{"$f":"IF(I191=0,0,I191*'Product Data and EFs'!K117/1000)","v":0},0,{"$f":"IF(L191=0,0,(E191*'Product Data and EFs'!K117/1000-'Product Emissions Analysis'!L191))","v":0},0,0,{"$f":"IF(N191=0,0,N191*'Product Data and EFs'!L117/1000)","v":0},{"$f":"IF(O191=0,0,O191*'Product Data and EFs'!K117/1000)","v":0},0,{"$f":"IF(R191=0,0,(E191*'Product Data and EFs'!K117/1000-'Product Emissions Analysis'!R191))","v":0},0]
[null,null,null,"Residential Telephony",null,null,null,0,0,{"$f":"IF(H192=0,0,H192*'Product Data and EFs'!L118/1000)","v":0},{"$f":"IF(I192=0,0,I192*'Product Data and EFs'!K118/1000)","v":0},0,{"$f":"IF(L192=0,0,(E192*'Product Data and EFs'!K118/1000-'Product Emissions Analysis'!L192))","v":0},0,0,{"$f":"IF(N192=0,0,N192*'Product Data and EFs'!L118/1000)","v":0},{"$f":"IF(O192=0,0,O192*'Product Data and EFs'!K118/1000)","v":0},0,{"$f":"IF(R192=0,0,(E192*'Product Data and EFs'!K118/1000-'Product Emissions Analysis'!R192))","v":0},0]
[null,null,null,"Commercial Telephony (VOIP)",null,null,null,0,0,{"$f":"IF(H193=0,0,H193*'Product Data and EFs'!L119/1000)","v":0},{"$f":"IF(I193=0,0,I193*'Product Data and EFs'!K119/1000)","v":0},0,{"$f":"IF(L193=0,0,(E193*'Product Data and EFs'!K119/1000-'Product Emissions Analysis'!L193))","v":0},0,0,{"$f":"IF(N193=0,0,N193*'Product Data and EFs'!L119/1000)","v":0},{"$f":"IF(O193=0,0,O193*'Product Data and EFs'!K119/1000)","v":0},0,{"$f":"IF(R193=0,0,(E193*'Product Data and EFs'!K119/1000-'Product Emissions Analysis'!R193))","v":0},0]
[null,null,null,"Set Top Box - Cable",null,null,null,0,0,{"$f":"IF(H194=0,0,H194*'Product Data and EFs'!L120/1000)","v":0},{"$f":"IF(I194=0,0,I194*'Product Data and EFs'!K120/1000)","v":0},0,{"$f":"IF(L194=0,0,(E194*'Product Data and EFs'!K120/1000-'Product Emissions Analysis'!L194))","v":0},0,0,{"$f":"IF(N194=0,0,N194*'Product Data and EFs'!L120/1000)","v":0},{"$f":"IF(O194=0,0,O194*'Product Data and EFs'!K120/1000)","v":0},0,{"$f":"IF(R194=0,0,(E194*'Product Data and EFs'!K120/1000-'Product Emissions Analysis'!R194))","v":0},0]
[null,null,null,"Set Top Box - Cable Digital Transport Adapter",null,null,null,0,0,{"$f":"IF(H195=0,0,H195*'Product Data and EFs'!L121/1000)","v":0},{"$f":"IF(I195=0,0,I195*'Product Data and EFs'!K121/1000)","v":0},0,{"$f":"IF(L195=0,0,(E195*'Product Data and EFs'!K121/1000-'Product Emissions Analysis'!L195))","v":0},0,0,{"$f":"IF(N195=0,0,N195*'Product Data and EFs'!L121/1000)","v":0},{"$f":"IF(O195=0,0,O195*'Product Data and EFs'!K121/1000)","v":0},0,{"$f":"IF(R195=0,0,(E195*'Product Data and EFs'!K121/1000-'Product Emissions Analysis'!R195))","v":0},0]
[null,null,null,"Set Top Box - Satellite",null,null,null,0,0,{"$f":"IF(H196=0,0,H196*'Product Data and EFs'!L122/1000)","v":0},{"$f":"IF(I196=0,0,I196*'Product Data and EFs'!K122/1000)","v":0},0,{"$f":"IF(L196=0,0,(E196*'Product Data and EFs'!K122/1000-'Product Emissions Analysis'!L196))","v":0},0,0,{"$f":"IF(N196=0,0,N196*'Product Data and EFs'!L122/1000)","v":0},{"$f":"IF(O196=0,0,O196*'Product Data and EFs'!K122/1000)","v":0},0,{"$f":"IF(R196=0,0,(E196*'Product Data and EFs'!K122/1000-'Product Emissions Analysis'!R196))","v":0},0]
[null,null,null,"Set Top Box - Multichannel Video Programming Distributor (MVPD) Internet Protocol (IP)",null,null,null,{"$f":"IF(F197=\"\",0,ROUND(E197*F197,0))","v":0},{"$f":"IF(F197=\"\",0,E197-H197)","v":0},{"$f":"IF(H197=0,0,H197*'Product Data and EFs'!L123/1000)","v":0},{"$f":"IF(I197=0,0,I197*'Product Data and EFs'!K123/1000)","v":0},0,{"$f":"IF(L197=0,0,(E197*'Product Data and EFs'!K123/1000-'Product Emissions Analysis'!L197))","v":0},0,0,{"$f":"IF(N197=0,0,N197*'Product Data and EFs'!L123/1000)","v":0},{"$f":"IF(O197=0,0,O197*'Product Data and EFs'!K123/1000)","v":0},0,{"$f":"IF(R197=0,0,(E197*'Product Data and EFs'!K123/1000-'Product Emissions Analysis'!R197))","v":0},0]
[null,null,null,"Set Top Box - Over-the-Top (OTT) Internet Protocol (IP)",null,null,null,0,0,{"$f":"IF(H198=0,0,H198*'Product Data and EFs'!L124/1000)","v":0},{"$f":"IF(I198=0,0,I198*'Product Data and EFs'!K124/1000)","v":0},0,{"$f":"IF(L198=0,0,(E198*'Product Data and EFs'!K124/1000-'Product Emissions Analysis'!L198))","v":0},0,0,{"$f":"IF(N198=0,0,N198*'Product Data and EFs'!L124/1000)","v":0},{"$f":"IF(O198=0,0,O198*'Product Data and EFs'!K124/1000)","v":0},0,{"$f":"IF(R198=0,0,(E198*'Product Data and EFs'!K124/1000-'Product Emissions Analysis'!R198))","v":0},0]
[null,null,null,"Set Top Box - Thin-client",null,null,null,0,0,{"$f":"IF(H199=0,0,H199*'Product Data and EFs'!L125/1000)","v":0},{"$f":"IF(I199=0,0,I199*'Product Data and EFs'!K125/1000)","v":0},0,{"$f":"IF(L199=0,0,(E199*'Product Data and EFs'!K125/1000-'Product Emissions Analysis'!L199))","v":0},0,0,{"$f":"IF(N199=0,0,N199*'Product Data and EFs'!L125/1000)","v":0},{"$f":"IF(O199=0,0,O199*'Product Data and EFs'!K125/1000)","v":0},0,{"$f":"IF(R199=0,0,(E199*'Product Data and EFs'!K125/1000-'Product Emissions Analysis'!R199))","v":0},0]
[null,null,null,"Computer Servers",null,null,null,0,0,{"$f":"IF(H200=0,0,H200*'Product Data and EFs'!L126/1000)","v":0},{"$f":"IF(I200=0,0,I200*'Product Data and EFs'!K126/1000)","v":0},0,{"$f":"IF(L200=0,0,(E200*'Product Data and EFs'!K126/1000-'Product Emissions Analysis'!L200))","v":0},0,0,{"$f":"IF(N200=0,0,N200*'Product Data and EFs'!L126/1000)","v":0},{"$f":"IF(O200=0,0,O200*'Product Data and EFs'!K126/1000)","v":0},0,{"$f":"IF(R200=0,0,(E200*'Product Data and EFs'!K126/1000-'Product Emissions Analysis'!R200))","v":0},0]
[null,null,null,"TOTAL",{"$f":"SUM(E169:E200)","v":0},"NA","NA",{"$f":"SUM(H169:H200)","v":0},0,0,0,0,0,0,0,0,0,0,0,0]
[]
[null,null,null,"Annual"]
[]
[null,null,null,null,null,null,null,"Current",null,null,null,null,null,"Increased ENERGY STAR Sales"]
[null,null,null,"Product Type","Total Unit Sales","% of Current Sales that are ENERGY STAR","Higher % of Sales that are ENERGY STAR for Analysis","Total ENERGY STAR Product Sales","Total Standard Product Sales","Annual Product Use Emissions - ENERGY STAR (Metric Tons CO2e)","Annual Product Use Emissions - Standard (Metric Tons CO2e)","Annual Total Product Use Emissions (Metric Tons CO2e)","Annual Emissions Savings from ENERGY STAR Product Sales\n(Metric Tons CO2e)","Total ENERGY STAR Product Sales","Total Standard Product Sales","Annual Product Use Emissions - ENERGY STAR (Metric Tons CO2e)","Annual Product Use Emissions - Standard (Metric Tons CO2e)","Annual Total Product Use Emissions (Metric Tons CO2e)","Annual Emissions Savings from ENERGY STAR Product Sales\n(Metric Tons CO2e)","Additional Annual Emissions Savings Achieved with Increased ENERGY STAR Sales\n(Metric Tons CO2e)"]
[null,null,null,"TV - LCD TVs 20\" and under",{"$f":"IF(E169=\"\",\"\",E169)","v":""},{"$f":"IF(F169=\"\",\"\",F169)","v":""},{"$f":"IF(G169=\"\",\"\",G169)","v":""},{"$f":"IF(F207=\"\",0,ROUND(E207*F207,0))","v":0},{"$f":"IF(F207=\"\",0,E207-H207)","v":0},{"$f":"IF(H207=0,0,H207*'Product Data and EFs'!L95/1000/'Product Data and EFs'!F95)","v":0},{"$f":"IF(I207=0,0,I207*'Product Data and EFs'!K95/1000/'Product Data and EFs'!F95)","v":0},{"$f":"IF(F207=\"\",0,SUM(J207:K207))","v":0},{"$f":"IF(L207=0,0,(E207*'Product Data and EFs'!K95/1000/'Product Data and EFs'!F95-'Product Emissions Analysis'!L207))","v":0},{"$f":"IF(G207=\"\",0,ROUND(E207*G207,0))","v":0},{"$f":"IF(G207=\"\",0,E207-N207)","v":0},{"$f":"IF(N207=0,0,N207*'Product Data and EFs'!L95/1000/'Product Data and EFs'!F95)","v":0},{"$f":"IF(O207=0,0,O207*'Product Data and EFs'!K95/1000/'Product Data and EFs'!F95)","v":0},{"$f":"IF(G207=\"\",0,SUM(P207:Q207))","v":0},{"$f":"IF(R207=0,0,(E207*'Product Data and EFs'!K95/1000/'Product Data and EFs'!F95-'Product Emissions Analysis'!R207))","v":0},{"$f":"IF(G207=\"\",0,L207-R207)","v":0}]
[null,null,null,"TV - LCD TVs 21\"-23\"",{"$f":"IF(E170=\"\",\"\",E170)","v":""},"","",{"$f":"IF(F208=\"\",0,ROUND(E208*F208,0))","v":0},{"$f":"IF(F208=\"\",0,E208-H208)","v":0},{"$f":"IF(H208=0,0,H208*'Product Data and EFs'!L96/1000/'Product Data and EFs'!F96)","v":0},{"$f":"IF(I208=0,0,I208*'Product Data and EFs'!K96/1000/'Product Data and EFs'!F96)","v":0},{"$f":"IF(F208=\"\",0,SUM(J208:K208))","v":0},{"$f":"IF(L208=0,0,(E208*'Product Data and EFs'!K96/1000/'Product Data and EFs'!F96-'Product Emissions Analysis'!L208))","v":0},{"$f":"IF(G208=\"\",0,ROUND(E208*G208,0))","v":0},{"$f":"IF(G208=\"\",0,E208-N208)","v":0},{"$f":"IF(N208=0,0,N208*'Product Data and EFs'!L96/1000/'Product Data and EFs'!F96)","v":0},{"$f":"IF(O208=0,0,O208*'Product Data and EFs'!K96/1000/'Product Data and EFs'!F96)","v":0},{"$f":"IF(G208=\"\",0,SUM(P208:Q208))","v":0},{"$f":"IF(R208=0,0,(E208*'Product Data and EFs'!K96/1000/'Product Data and EFs'!F96-'Product Emissions Analysis'!R208))","v":0},{"$f":"IF(G208=\"\",0,L208-R208)","v":0}]
[null,null,null,"TV - LCD TVs 24\"-29\"",{"$f":"IF(E171=\"\",\"\",E171)","v":""},"","",0,0,{"$f":"IF(H209=0,0,H209*'Product Data and EFs'!L97/1000/'Product Data and EFs'!F97)","v":0},{"$f":"IF(I209=0,0,I209*'Product Data and EFs'!K97/1000/'Product Data and EFs'!F97)","v":0},0,{"$f":"IF(L209=0,0,(E209*'Product Data and EFs'!K97/1000/'Product Data and EFs'!F97-'Product Emissions Analysis'!L209))","v":0},0,0,{"$f":"IF(N209=0,0,N209*'Product Data and EFs'!L97/1000/'Product Data and EFs'!F97)","v":0},{"$f":"IF(O209=0,0,O209*'Product Data and EFs'!K97/1000/'Product Data and EFs'!F97)","v":0},0,{"$f":"IF(R209=0,0,(E209*'Product Data and EFs'!K97/1000/'Product Data and EFs'!F97-'Product Emissions Analysis'!R209))","v":0},0]
[null,null,null,"TV - LCD TVs 30\"-34\"",{"$f":"IF(E172=\"\",\"\",E172)","v":""},"","",0,0,{"$f":"IF(H210=0,0,H210*'Product Data and EFs'!L98/1000/'Product Data and EFs'!F98)","v":0},{"$f":"IF(I210=0,0,I210*'Product Data and EFs'!K98/1000/'Product Data and EFs'!F98)","v":0},0,{"$f":"IF(L210=0,0,(E210*'Product Data and EFs'!K98/1000/'Product Data and EFs'!F98-'Product Emissions Analysis'!L210))","v":0},0,0,{"$f":"IF(N210=0,0,N210*'Product Data and EFs'!L98/1000/'Product Data and EFs'!F98)","v":0},{"$f":"IF(O210=0,0,O210*'Product Data and EFs'!K98/1000/'Product Data and EFs'!F98)","v":0},0,{"$f":"IF(R210=0,0,(E210*'Product Data and EFs'!K98/1000/'Product Data and EFs'!F98-'Product Emissions Analysis'!R210))","v":0},0]
[null,null,null,"TV - LCD TVs 35\"-39\"",{"$f":"IF(E173=\"\",\"\",E173)","v":""},"","",0,0,{"$f":"IF(H211=0,0,H211*'Product Data and EFs'!L99/1000/'Product Data and EFs'!F99)","v":0},{"$f":"IF(I211=0,0,I211*'Product Data and EFs'!K99/1000/'Product Data and EFs'!F99)","v":0},0,{"$f":"IF(L211=0,0,(E211*'Product Data and EFs'!K99/1000/'Product Data and EFs'!F99-'Product Emissions Analysis'!L211))","v":0},0,0,{"$f":"IF(N211=0,0,N211*'Product Data and EFs'!L99/1000/'Product Data and EFs'!F99)","v":0},{"$f":"IF(O211=0,0,O211*'Product Data and EFs'!K99/1000/'Product Data and EFs'!F99)","v":0},0,{"$f":"IF(R211=0,0,(E211*'Product Data and EFs'!K99/1000/'Product Data and EFs'!F99-'Product Emissions Analysis'!R211))","v":0},0]
[null,null,null,"TV - LCD TVs 40\"-44\"",{"$f":"IF(E174=\"\",\"\",E174)","v":""},"","",0,0,{"$f":"IF(H212=0,0,H212*'Product Data and EFs'!L100/1000/'Product Data and EFs'!F100)","v":0},{"$f":"IF(I212=0,0,I212*'Product Data and EFs'!K100/1000/'Product Data and EFs'!F100)","v":0},0,{"$f":"IF(L212=0,0,(E212*'Product Data and EFs'!K100/1000/'Product Data and EFs'!F100-'Product Emissions Analysis'!L212))","v":0},0,0,{"$f":"IF(N212=0,0,N212*'Product Data and EFs'!L100/1000/'Product Data and EFs'!F100)","v":0},{"$f":"IF(O212=0,0,O212*'Product Data and EFs'!K100/1000/'Product Data and EFs'!F100)","v":0},0,{"$f":"IF(R212=0,0,(E212*'Product Data and EFs'!K100/1000/'Product Data and EFs'!F100-'Product Emissions Analysis'!R212))","v":0},0]
[null,null,null,"TV - LCD TVs 45\"-49\"",{"$f":"IF(E175=\"\",\"\",E175)","v":""},"","",0,0,{"$f":"IF(H213=0,0,H213*'Product Data and EFs'!L101/1000/'Product Data and EFs'!F101)","v":0},{"$f":"IF(I213=0,0,I213*'Product Data and EFs'!K101/1000/'Product Data and EFs'!F101)","v":0},0,{"$f":"IF(L213=0,0,(E213*'Product Data and EFs'!K101/1000/'Product Data and EFs'!F101-'Product Emissions Analysis'!L213))","v":0},0,0,{"$f":"IF(N213=0,0,N213*'Product Data and EFs'!L101/1000/'Product Data and EFs'!F101)","v":0},{"$f":"IF(O213=0,0,O213*'Product Data and EFs'!K101/1000/'Product Data and EFs'!F101)","v":0},0,{"$f":"IF(R213=0,0,(E213*'Product Data and EFs'!K101/1000/'Product Data and EFs'!F101-'Product Emissions Analysis'!R213))","v":0},0]
[null,null,null,"TV - LCD TVs 50\"-54\"",{"$f":"IF(E176=\"\",\"\",E176)","v":""},"","",0,0,{"$f":"IF(H214=0,0,H214*'Product Data and EFs'!L102/1000/'Product Data and EFs'!F102)","v":0},{"$f":"IF(I214=0,0,I214*'Product Data and EFs'!K102/1000/'Product Data and EFs'!F102)","v":0},0,{"$f":"IF(L214=0,0,(E214*'Product Data and EFs'!K102/1000/'Product Data and EFs'!F102-'Product Emissions Analysis'!L214))","v":0},0,0,{"$f":"IF(N214=0,0,N214*'Product Data and EFs'!L102/1000/'Product Data and EFs'!F102)","v":0},{"$f":"IF(O214=0,0,O214*'Product Data and EFs'!K102/1000/'Product Data and EFs'!F102)","v":0},0,{"$f":"IF(R214=0,0,(E214*'Product Data and EFs'!K102/1000/'Product Data and EFs'!F102-'Product Emissions Analysis'!R214))","v":0},0]
[null,null,null,"TV - LCD TVs 55\"-59\"",{"$f":"IF(E177=\"\",\"\",E177)","v":""},"","",0,0,{"$f":"IF(H215=0,0,H215*'Product Data and EFs'!L103/1000/'Product Data and EFs'!F103)","v":0},{"$f":"IF(I215=0,0,I215*'Product Data and EFs'!K103/1000/'Product Data and EFs'!F103)","v":0},0,{"$f":"IF(L215=0,0,(E215*'Product Data and EFs'!K103/1000/'Product Data and EFs'!F103-'Product Emissions Analysis'!L215))","v":0},0,0,{"$f":"IF(N215=0,0,N215*'Product Data and EFs'!L103/1000/'Product Data and EFs'!F103)","v":0},{"$f":"IF(O215=0,0,O215*'Product Data and EFs'!K103/1000/'Product Data and EFs'!F103)","v":0},0,{"$f":"IF(R215=0,0,(E215*'Product Data and EFs'!K103/1000/'Product Data and EFs'!F103-'Product Emissions Analysis'!R215))","v":0},0]
[null,null,null,"TV - LCD TVs 60\"-64\"",{"$f":"IF(E178=\"\",\"\",E178)","v":""},"","",0,0,{"$f":"IF(H216=0,0,H216*'Product Data and EFs'!L104/1000/'Product Data and EFs'!F104)","v":0},{"$f":"IF(I216=0,0,I216*'Product Data and EFs'!K104/1000/'Product Data and EFs'!F104)","v":0},0,{"$f":"IF(L216=0,0,(E216*'Product Data and EFs'!K104/1000/'Product Data and EFs'!F104-'Product Emissions Analysis'!L216))","v":0},0,0,{"$f":"IF(N216=0,0,N216*'Product Data and EFs'!L104/1000/'Product Data and EFs'!F104)","v":0},{"$f":"IF(O216=0,0,O216*'Product Data and EFs'!K104/1000/'Product Data and EFs'!F104)","v":0},0,{"$f":"IF(R216=0,0,(E216*'Product Data and EFs'!K104/1000/'Product Data and EFs'!F104-'Product Emissions Analysis'!R216))","v":0},0]
[null,null,null,"TV - LCD TVs 65\" or greater",{"$f":"IF(E179=\"\",\"\",E179)","v":""},"","",0,0,{"$f":"IF(H217=0,0,H217*'Product Data and EFs'!L105/1000/'Product Data and EFs'!F105)","v":0},{"$f":"IF(I217=0,0,I217*'Product Data and EFs'!K105/1000/'Product Data and EFs'!F105)","v":0},0,{"$f":"IF(L217=0,0,(E217*'Product Data and EFs'!K105/1000/'Product Data and EFs'!F105-'Product Emissions Analysis'!L217))","v":0},0,0,{"$f":"IF(N217=0,0,N217*'Product Data and EFs'!L105/1000/'Product Data and EFs'!F105)","v":0},{"$f":"IF(O217=0,0,O217*'Product Data and EFs'!K105/1000/'Product Data and EFs'!F105)","v":0},0,{"$f":"IF(R217=0,0,(E217*'Product Data and EFs'!K105/1000/'Product Data and EFs'!F105-'Product Emissions Analysis'!R217))","v":0},0]
[null,null,null,"TV - Plasma TVs under 60\"",{"$f":"IF(E180=\"\",\"\",E180)","v":""},"","",0,0,{"$f":"IF(H218=0,0,H218*'Product Data and EFs'!L106/1000/'Product Data and EFs'!F106)","v":0},{"$f":"IF(I218=0,0,I218*'Product Data and EFs'!K106/1000/'Product Data and EFs'!F106)","v":0},0,{"$f":"IF(L218=0,0,(E218*'Product Data and EFs'!K106/1000/'Product Data and EFs'!F106-'Product Emissions Analysis'!L218))","v":0},0,0,{"$f":"IF(N218=0,0,N218*'Product Data and EFs'!L106/1000/'Product Data and EFs'!F106)","v":0},{"$f":"IF(O218=0,0,O218*'Product Data and EFs'!K106/1000/'Product Data and EFs'!F106)","v":0},0,{"$f":"IF(R218=0,0,(E218*'Product Data and EFs'!K106/1000/'Product Data and EFs'!F106-'Product Emissions Analysis'!R218))","v":0},0]
[null,null,null,"TV - Plasma TVs 60\" and up",{"$f":"IF(E181=\"\",\"\",E181)","v":""},"","",0,0,{"$f":"IF(H219=0,0,H219*'Product Data and EFs'!L107/1000/'Product Data and EFs'!F107)","v":0},{"$f":"IF(I219=0,0,I219*'Product Data and EFs'!K107/1000/'Product Data and EFs'!F107)","v":0},0,{"$f":"IF(L219=0,0,(E219*'Product Data and EFs'!K107/1000/'Product Data and EFs'!F107-'Product Emissions Analysis'!L219))","v":0},0,0,{"$f":"IF(N219=0,0,N219*'Product Data and EFs'!L107/1000/'Product Data and EFs'!F107)","v":0},{"$f":"IF(O219=0,0,O219*'Product Data and EFs'!K107/1000/'Product Data and EFs'!F107)","v":0},0,{"$f":"IF(R219=0,0,(E219*'Product Data and EFs'!K107/1000/'Product Data and EFs'!F107-'Product Emissions Analysis'!R219))","v":0},0]
[null,null,null,"TV - OLED TVs",{"$f":"IF(E182=\"\",\"\",E182)","v":""},"","",0,0,{"$f":"IF(H220=0,0,H220*'Product Data and EFs'!L108/1000/'Product Data and EFs'!F108)","v":0},{"$f":"IF(I220=0,0,I220*'Product Data and EFs'!K108/1000/'Product Data and EFs'!F108)","v":0},0,{"$f":"IF(L220=0,0,(E220*'Product Data and EFs'!K108/1000/'Product Data and EFs'!F108-'Product Emissions Analysis'!L220))","v":0},0,0,{"$f":"IF(N220=0,0,N220*'Product Data and EFs'!L108/1000/'Product Data and EFs'!F108)","v":0},{"$f":"IF(O220=0,0,O220*'Product Data and EFs'!K108/1000/'Product Data and EFs'!F108)","v":0},0,{"$f":"IF(R220=0,0,(E220*'Product Data and EFs'!K108/1000/'Product Data and EFs'!F108-'Product Emissions Analysis'!R220))","v":0},0]
[null,null,null,"DVD Players",{"$f":"IF(E183=\"\",\"\",E183)","v":""},"","",0,0,{"$f":"IF(H221=0,0,H221*'Product Data and EFs'!L109/1000/'Product Data and EFs'!F109)","v":0},{"$f":"IF(I221=0,0,I221*'Product Data and EFs'!K109/1000/'Product Data and EFs'!F109)","v":0},0,{"$f":"IF(L221=0,0,(E221*'Product Data and EFs'!K109/1000/'Product Data and EFs'!F109-'Product Emissions Analysis'!L221))","v":0},0,0,{"$f":"IF(N221=0,0,N221*'Product Data and EFs'!L109/1000/'Product Data and EFs'!F109)","v":0},{"$f":"IF(O221=0,0,O221*'Product Data and EFs'!K109/1000/'Product Data and EFs'!F109)","v":0},0,{"$f":"IF(R221=0,0,(E221*'Product Data and EFs'!K109/1000/'Product Data and EFs'!F109-'Product Emissions Analysis'!R221))","v":0},0]
[null,null,null,"Blu Ray",{"$f":"IF(E184=\"\",\"\",E184)","v":""},"","",0,0,{"$f":"IF(H222=0,0,H222*'Product Data and EFs'!L110/1000/'Product Data and EFs'!F110)","v":0},{"$f":"IF(I222=0,0,I222*'Product Data and EFs'!K110/1000/'Product Data and EFs'!F110)","v":0},0,{"$f":"IF(L222=0,0,(E222*'Product Data and EFs'!K110/1000/'Product Data and EFs'!F110-'Product Emissions Analysis'!L222))","v":0},0,0,{"$f":"IF(N222=0,0,N222*'Product Data and EFs'!L110/1000/'Product Data and EFs'!F110)","v":0},{"$f":"IF(O222=0,0,O222*'Product Data and EFs'!K110/1000/'Product Data and EFs'!F110)","v":0},0,{"$f":"IF(R222=0,0,(E222*'Product Data and EFs'!K110/1000/'Product Data and EFs'!F110-'Product Emissions Analysis'!R222))","v":0},0]
[null,null,null,"Audio Equipment - Receivers",{"$f":"IF(E185=\"\",\"\",E185)","v":""},"","",0,0,{"$f":"IF(H223=0,0,H223*'Product Data and EFs'!L111/1000/'Product Data and EFs'!F111)","v":0},{"$f":"IF(I223=0,0,I223*'Product Data and EFs'!K111/1000/'Product Data and EFs'!F111)","v":0},0,{"$f":"IF(L223=0,0,(E223*'Product Data and EFs'!K111/1000/'Product Data and EFs'!F111-'Product Emissions Analysis'!L223))","v":0},0,0,{"$f":"IF(N223=0,0,N223*'Product Data and EFs'!L111/1000/'Product Data and EFs'!F111)","v":0},{"$f":"IF(O223=0,0,O223*'Product Data and EFs'!K111/1000/'Product Data and EFs'!F111)","v":0},0,{"$f":"IF(R223=0,0,(E223*'Product Data and EFs'!K111/1000/'Product Data and EFs'!F111-'Product Emissions Analysis'!R223))","v":0},0]
[null,null,null,"Audio Equipment - Home Theater In-a-Box",{"$f":"IF(E186=\"\",\"\",E186)","v":""},"","",0,0,{"$f":"IF(H224=0,0,H224*'Product Data and EFs'!L112/1000/'Product Data and EFs'!F112)","v":0},{"$f":"IF(I224=0,0,I224*'Product Data and EFs'!K112/1000/'Product Data and EFs'!F112)","v":0},0,{"$f":"IF(L224=0,0,(E224*'Product Data and EFs'!K112/1000/'Product Data and EFs'!F112-'Product Emissions Analysis'!L224))","v":0},0,0,{"$f":"IF(N224=0,0,N224*'Product Data and EFs'!L112/1000/'Product Data and EFs'!F112)","v":0},{"$f":"IF(O224=0,0,O224*'Product Data and EFs'!K112/1000/'Product Data and EFs'!F112)","v":0},0,{"$f":"IF(R224=0,0,(E224*'Product Data and EFs'!K112/1000/'Product Data and EFs'!F112-'Product Emissions Analysis'!R224))","v":0},0]
[null,null,null,"Audio Equipment - Compact Systems",{"$f":"IF(E187=\"\",\"\",E187)","v":""},"","",0,0,{"$f":"IF(H225=0,0,H225*'Product Data and EFs'!L113/1000/'Product Data and EFs'!F113)","v":0},{"$f":"IF(I225=0,0,I225*'Product Data and EFs'!K113/1000/'Product Data and EFs'!F113)","v":0},0,{"$f":"IF(L225=0,0,(E225*'Product Data and EFs'!K113/1000/'Product Data and EFs'!F113-'Product Emissions Analysis'!L225))","v":0},0,0,{"$f":"IF(N225=0,0,N225*'Product Data and EFs'!L113/1000/'Product Data and EFs'!F113)","v":0},{"$f":"IF(O225=0,0,O225*'Product Data and EFs'!K113/1000/'Product Data and EFs'!F113)","v":0},0,{"$f":"IF(R225=0,0,(E225*'Product Data and EFs'!K113/1000/'Product Data and EFs'!F113-'Product Emissions Analysis'!R225))","v":0},0]
[null,null,null,"Audio Equipment - Soundbars",{"$f":"IF(E188=\"\",\"\",E188)","v":""},"","",0,0,{"$f":"IF(H226=0,0,H226*'Product Data and EFs'!L114/1000/'Product Data and EFs'!F114)","v":0},{"$f":"IF(I226=0,0,I226*'Product Data and EFs'!K114/1000/'Product Data and EFs'!F114)","v":0},0,{"$f":"IF(L226=0,0,(E226*'Product Data and EFs'!K114/1000/'Product Data and EFs'!F114-'Product Emissions Analysis'!L226))","v":0},0,0,{"$f":"IF(N226=0,0,N226*'Product Data and EFs'!L114/1000/'Product Data and EFs'!F114)","v":0},{"$f":"IF(O226=0,0,O226*'Product Data and EFs'!K114/1000/'Product Data and EFs'!F114)","v":0},0,{"$f":"IF(R226=0,0,(E226*'Product Data and EFs'!K114/1000/'Product Data and EFs'!F114-'Product Emissions Analysis'!R226))","v":0},0]
[null,null,null,"Audio Equipment - Other Powered Speakers",{"$f":"IF(E189=\"\",\"\",E189)","v":""},"","",0,0,{"$f":"IF(H227=0,0,H227*'Product Data and EFs'!L115/1000/'Product Data and EFs'!F115)","v":0},{"$f":"IF(I227=0,0,I227*'Product Data and EFs'!K115/1000/'Product Data and EFs'!F115)","v":0},0,{"$f":"IF(L227=0,0,(E227*'Product Data and EFs'!K115/1000/'Product Data and EFs'!F115-'Product Emissions Analysis'!L227))","v":0},0,0,{"$f":"IF(N227=0,0,N227*'Product Data and EFs'!L115/1000/'Product Data and EFs'!F115)","v":0},{"$f":"IF(O227=0,0,O227*'Product Data and EFs'!K115/1000/'Product Data and EFs'!F115)","v":0},0,{"$f":"IF(R227=0,0,(E227*'Product Data and EFs'!K115/1000/'Product Data and EFs'!F115-'Product Emissions Analysis'!R227))","v":0},0]
[null,null,null,"Audio Equipment - Home Radios",{"$f":"IF(E190=\"\",\"\",E190)","v":""},"","",0,0,{"$f":"IF(H228=0,0,H228*'Product Data and EFs'!L116/1000/'Product Data and EFs'!F116)","v":0},{"$f":"IF(I228=0,0,I228*'Product Data and EFs'!K116/1000/'Product Data and EFs'!F116)","v":0},0,{"$f":"IF(L228=0,0,(E228*'Product Data and EFs'!K116/1000/'Product Data and EFs'!F116-'Product Emissions Analysis'!L228))","v":0},0,0,{"$f":"IF(N228=0,0,N228*'Product Data and EFs'!L116/1000/'Product Data and EFs'!F116)","v":0},{"$f":"IF(O228=0,0,O228*'Product Data and EFs'!K116/1000/'Product Data and EFs'!F116)","v":0},0,{"$f":"IF(R228=0,0,(E228*'Product Data and EFs'!K116/1000/'Product Data and EFs'!F116-'Product Emissions Analysis'!R228))","v":0},0]
[null,null,null,"Audio Equipment - Portable Media/MP3 Player Speakers and Docks",{"$f":"IF(E191=\"\",\"\",E191)","v":""},"","",0,0,{"$f":"IF(H229=0,0,H229*'Product Data and EFs'!L117/1000/'Product Data and EFs'!F117)","v":0},{"$f":"IF(I229=0,0,I229*'Product Data and EFs'!K117/1000/'Product Data and EFs'!F117)","v":0},0,{"$f":"IF(L229=0,0,(E229*'Product Data and EFs'!K117/1000/'Product Data and EFs'!F117-'Product Emissions Analysis'!L229))","v":0},0,0,{"$f":"IF(N229=0,0,N229*'Product Data and EFs'!L117/1000/'Product Data and EFs'!F117)","v":0},{"$f":"IF(O229=0,0,O229*'Product Data and EFs'!K117/1000/'Product Data and EFs'!F117)","v":0},0,{"$f":"IF(R229=0,0,(E229*'Product Data and EFs'!K117/1000/'Product Data and EFs'!F117-'Product Emissions Analysis'!R229))","v":0},0]
[null,null,null,"Residential Telephony",{"$f":"IF(E192=\"\",\"\",E192)","v":""},"","",0,0,{"$f":"IF(H230=0,0,H230*'Product Data and EFs'!L118/1000/'Product Data and EFs'!F118)","v":0},{"$f":"IF(I230=0,0,I230*'Product Data and EFs'!K118/1000/'Product Data and EFs'!F118)","v":0},0,{"$f":"IF(L230=0,0,(E230*'Product Data and EFs'!K118/1000/'Product Data and EFs'!F118-'Product Emissions Analysis'!L230))","v":0},0,0,{"$f":"IF(N230=0,0,N230*'Product Data and EFs'!L118/1000/'Product Data and EFs'!F118)","v":0},{"$f":"IF(O230=0,0,O230*'Product Data and EFs'!K118/1000/'Product Data and EFs'!F118)","v":0},0,{"$f":"IF(R230=0,0,(E230*'Product Data and EFs'!K118/1000/'Product Data and EFs'!F118-'Product Emissions Analysis'!R230))","v":0},0]
[null,null,null,"Commercial Telephony (VOIP)",{"$f":"IF(E193=\"\",\"\",E193)","v":""},"","",0,0,{"$f":"IF(H231=0,0,H231*'Product Data and EFs'!L119/1000/'Product Data and EFs'!F119)","v":0},{"$f":"IF(I231=0,0,I231*'Product Data and EFs'!K119/1000/'Product Data and EFs'!F119)","v":0},0,{"$f":"IF(L231=0,0,(E231*'Product Data and EFs'!K119/1000/'Product Data and EFs'!F119-'Product Emissions Analysis'!L231))","v":0},0,0,{"$f":"IF(N231=0,0,N231*'Product Data and EFs'!L119/1000/'Product Data and EFs'!F119)","v":0},{"$f":"IF(O231=0,0,O231*'Product Data and EFs'!K119/1000/'Product Data and EFs'!F119)","v":0},0,{"$f":"IF(R231=0,0,(E231*'Product Data and EFs'!K119/1000/'Product Data and EFs'!F119-'Product Emissions Analysis'!R231))","v":0},0]
[null,null,null,"Set Top Box - Cable",{"$f":"IF(E194=\"\",\"\",E194)","v":""},"","",0,0,{"$f":"IF(H232=0,0,H232*'Product Data and EFs'!L120/1000/'Product Data and EFs'!F120)","v":0},{"$f":"IF(I232=0,0,I232*'Product Data and EFs'!K120/1000/'Product Data and EFs'!F120)","v":0},0,{"$f":"IF(L232=0,0,(E232*'Product Data and EFs'!K120/1000/'Product Data and EFs'!F120-'Product Emissions Analysis'!L232))","v":0},0,0,{"$f":"IF(N232=0,0,N232*'Product Data and EFs'!L120/1000/'Product Data and EFs'!F120)","v":0},{"$f":"IF(O232=0,0,O232*'Product Data and EFs'!K120/1000/'Product Data and EFs'!F120)","v":0},0,{"$f":"IF(R232=0,0,(E232*'Product Data and EFs'!K120/1000/'Product Data and EFs'!F120-'Product Emissions Analysis'!R232))","v":0},0]
[null,null,null,"Set Top Box - Cable Digital Transport Adapter",{"$f":"IF(E195=\"\",\"\",E195)","v":""},"","",0,0,{"$f":"IF(H233=0,0,H233*'Product Data and EFs'!L121/1000/'Product Data and EFs'!F121)","v":0},{"$f":"IF(I233=0,0,I233*'Product Data and EFs'!K121/1000/'Product Data and EFs'!F121)","v":0},0,{"$f":"IF(L233=0,0,(E233*'Product Data and EFs'!K121/1000/'Product Data and EFs'!F121-'Product Emissions Analysis'!L233))","v":0},0,0,{"$f":"IF(N233=0,0,N233*'Product Data and EFs'!L121/1000/'Product Data and EFs'!F121)","v":0},{"$f":"IF(O233=0,0,O233*'Product Data and EFs'!K121/1000/'Product Data and EFs'!F121)","v":0},0,{"$f":"IF(R233=0,0,(E233*'Product Data and EFs'!K121/1000/'Product Data and EFs'!F121-'Product Emissions Analysis'!R233))","v":0},0]
[null,null,null,"Set Top Box - Satellite",{"$f":"IF(E196=\"\",\"\",E196)","v":""},"","",0,0,{"$f":"IF(H234=0,0,H234*'Product Data and EFs'!L122/1000/'Product Data and EFs'!F122)","v":0},{"$f":"IF(I234=0,0,I234*'Product Data and EFs'!K122/1000/'Product Data and EFs'!F122)","v":0},0,{"$f":"IF(L234=0,0,(E234*'Product Data and EFs'!K122/1000/'Product Data and EFs'!F122-'Product Emissions Analysis'!L234))","v":0},0,0,{"$f":"IF(N234=0,0,N234*'Product Data and EFs'!L122/1000/'Product Data and EFs'!F122)","v":0},{"$f":"IF(O234=0,0,O234*'Product Data and EFs'!K122/1000/'Product Data and EFs'!F122)","v":0},0,{"$f":"IF(R234=0,0,(E234*'Product Data and EFs'!K122/1000/'Product Data and EFs'!F122-'Product Emissions Analysis'!R234))","v":0},0]
[null,null,null,"Set Top Box - Multichannel Video Programming Distributor (MVPD) Internet Protocol (IP)",{"$f":"IF(E197=\"\",\"\",E197)","v":""},"","",0,0,{"$f":"IF(H235=0,0,H235*'Product Data and EFs'!L123/1000/'Product Data and EFs'!F123)","v":0},{"$f":"IF(I235=0,0,I235*'Product Data and EFs'!K123/1000/'Product Data and EFs'!F123)","v":0},0,{"$f":"IF(L235=0,0,(E235*'Product Data and EFs'!K123/1000/'Product Data and EFs'!F123-'Product Emissions Analysis'!L235))","v":0},0,0,{"$f":"IF(N235=0,0,N235*'Product Data and EFs'!L123/1000/'Product Data and EFs'!F123)","v":0},{"$f":"IF(O235=0,0,O235*'Product Data and EFs'!K123/1000/'Product Data and EFs'!F123)","v":0},0,{"$f":"IF(R235=0,0,(E235*'Product Data and EFs'!K123/1000/'Product Data and EFs'!F123-'Product Emissions Analysis'!R235))","v":0},0]
[null,null,null,"Set Top Box - Over-the-Top (OTT) Internet Protocol (IP)",{"$f":"IF(E198=\"\",\"\",E198)","v":""},"","",0,0,{"$f":"IF(H236=0,0,H236*'Product Data and EFs'!L124/1000/'Product Data and EFs'!F124)","v":0},{"$f":"IF(I236=0,0,I236*'Product Data and EFs'!K124/1000/'Product Data and EFs'!F124)","v":0},0,{"$f":"IF(L236=0,0,(E236*'Product Data and EFs'!K124/1000/'Product Data and EFs'!F124-'Product Emissions Analysis'!L236))","v":0},0,0,{"$f":"IF(N236=0,0,N236*'Product Data and EFs'!L124/1000/'Product Data and EFs'!F124)","v":0},{"$f":"IF(O236=0,0,O236*'Product Data and EFs'!K124/1000/'Product Data and EFs'!F124)","v":0},0,{"$f":"IF(R236=0,0,(E236*'Product Data and EFs'!K124/1000/'Product Data and EFs'!F124-'Product Emissions Analysis'!R236))","v":0},0]
[null,null,null,"Set Top Box - Thin-client",{"$f":"IF(E199=\"\",\"\",E199)","v":""},"","",0,0,{"$f":"IF(H237=0,0,H237*'Product Data and EFs'!L125/1000/'Product Data and EFs'!F125)","v":0},{"$f":"IF(I237=0,0,I237*'Product Data and EFs'!K125/1000/'Product Data and EFs'!F125)","v":0},0,{"$f":"IF(L237=0,0,(E237*'Product Data and EFs'!K125/1000/'Product Data and EFs'!F125-'Product Emissions Analysis'!L237))","v":0},0,0,{"$f":"IF(N237=0,0,N237*'Product Data and EFs'!L125/1000/'Product Data and EFs'!F125)","v":0},{"$f":"IF(O237=0,0,O237*'Product Data and EFs'!K125/1000/'Product Data and EFs'!F125)","v":0},0,{"$f":"IF(R237=0,0,(E237*'Product Data and EFs'!K125/1000/'Product Data and EFs'!F125-'Product Emissions Analysis'!R237))","v":0},0]
[null,null,null,"Computer Servers",{"$f":"IF(E200=\"\",\"\",E200)","v":""},"","",0,0,{"$f":"IF(H238=0,0,H238*'Product Data and EFs'!L126/1000/'Product Data and EFs'!F126)","v":0},{"$f":"IF(I238=0,0,I238*'Product Data and EFs'!K126/1000/'Product Data and EFs'!F126)","v":0},0,{"$f":"IF(L238=0,0,(E238*'Product Data and EFs'!K126/1000/'Product Data and EFs'!F126-'Product Emissions Analysis'!L238))","v":0},0,0,{"$f":"IF(N238=0,0,N238*'Product Data and EFs'!L126/1000/'Product Data and EFs'!F126)","v":0},{"$f":"IF(O238=0,0,O238*'Product Data and EFs'!K126/1000/'Product Data and EFs'!F126)","v":0},0,{"$f":"IF(R238=0,0,(E238*'Product Data and EFs'!K126/1000/'Product Data and EFs'!F126-'Product Emissions Analysis'!R238))","v":0},0]
[null,null,null,"TOTAL",{"$f":"IF(E201=\"\",\"\",E201)","v":0},"NA","NA",{"$f":"SUM(H207:H238)","v":0},0,0,0,0,0,0,0,0,0,0,0,0]
[]
[]
[]
[null,null,null,"Office Equipment"]
[]
[null,null,null,"Lifetime"]
[]
[null,null,null,null,null,null,null,"Current",null,null,null,null,null,"Increased ENERGY STAR Sales"]
[null,null,null,"Product Type","Total Unit Sales","% of Current Sales that are ENERGY STAR","Enter a Higher % of Sales that are ENERGY STAR for Analysis\n","Total ENERGY STAR Product Sales","Total Standard Product Sales","Lifetime Product Use Emissions - ENERGY STAR (Metric Tons CO2e)","Lifetime Product Use Emissions - Standard (Metric Tons CO2e)","Lifetime Total Product Use Emissions (Metric Tons CO2e)","Lifetime Emissions Savings from ENERGY STAR Product Sales\n(Metric Tons CO2e)","Total ENERGY STAR Product Sales","Total Standard Product Sales","Lifetime Product Use Emissions - ENERGY STAR (Metric Tons CO2e)","Lifetime Product Use Emissions - Standard (Metric Tons CO2e)","Lifetime Total Product Use Emissions (Metric Tons CO2e)","Lifetime Emissions Savings from ENERGY STAR Product Sales\n(Metric Tons CO2e)","Additional Lifetime Emissions Savings Achieved with Increased ENERGY STAR Sales\n(Metric Tons CO2e)"]
[null,null,null,"Workstation",null,null,null,{"$f":"IF(F249=\"\",0,ROUND(E249*F249,0))","v":0},{"$f":"IF(F249=\"\",0,E249-H249)","v":0},{"$f":"IF(H249=0,0,H249*'Product Data and EFs'!L133/1000)","v":0},{"$f":"IF(I249=0,0,I249*'Product Data and EFs'!K133/1000)","v":0},{"$f":"IF(F249=\"\",0,SUM(J249:K249))","v":0},{"$f":"IF(L249=0,0,(E249*'Product Data and EFs'!K133/1000-'Product Emissions Analysis'!L249))","v":0},{"$f":"IF(G249=\"\",0,ROUND(E249*G249,0))","v":0},{"$f":"IF(G249=\"\",0,E249-N249)","v":0},{"$f":"IF(N249=0,0,N249*'Product Data and EFs'!L133/1000)","v":0},{"$f":"IF(O249=0,0,O249*'Product Data and EFs'!K133/1000)","v":0},{"$f":"IF(G249=\"\",0,SUM(P249:Q249))","v":0},{"$f":"IF(R249=0,0,(E249*'Product Data and EFs'!K133/1000-'Product Emissions Analysis'!R249))","v":0},{"$f":"IF(G249=\"\",0,L249-R249)","v":0}]
[null,null,null,"Printer (Mono, Laser)",null,null,null,{"$f":"IF(F250=\"\",0,ROUND(E250*F250,0))","v":0},{"$f":"IF(F250=\"\",0,E250-H250)","v":0},{"$f":"IF(H250=0,0,H250*'Product Data and EFs'!L134/1000)","v":0},{"$f":"IF(I250=0,0,I250*'Product Data and EFs'!K134/1000)","v":0},{"$f":"IF(F250=\"\",0,SUM(J250:K250))","v":0},{"$f":"IF(L250=0,0,(E250*'Product Data and EFs'!K134/1000-'Product Emissions Analysis'!L250))","v":0},{"$f":"IF(G250=\"\",0,ROUND(E250*G250,0))","v":0},{"$f":"IF(G250=\"\",0,E250-N250)","v":0},{"$f":"IF(N250=0,0,N250*'Product Data and EFs'!L134/1000)","v":0},{"$f":"IF(O250=0,0,O250*'Product Data and EFs'!K134/1000)","v":0},{"$f":"IF(G250=\"\",0,SUM(P250:Q250))","v":0},{"$f":"IF(R250=0,0,(E250*'Product Data and EFs'!K134/1000-'Product Emissions Analysis'!R250))","v":0},{"$f":"IF(G250=\"\",0,L250-R250)","v":0}]
[null,null,null,"Multifunction Device (Mono, Laser)",null,null,null,0,0,{"$f":"IF(H251=0,0,H251*'Product Data and EFs'!L135/1000)","v":0},{"$f":"IF(I251=0,0,I251*'Product Data and EFs'!K135/1000)","v":0},0,{"$f":"IF(L251=0,0,(E251*'Product Data and EFs'!K135/1000-'Product Emissions Analysis'!L251))","v":0},0,0,{"$f":"IF(N251=0,0,N251*'Product Data and EFs'!L135/1000)","v":0},{"$f":"IF(O251=0,0,O251*'Product Data and EFs'!K135/1000)","v":0},0,{"$f":"IF(R251=0,0,(E251*'Product Data and EFs'!K135/1000-'Product Emissions Analysis'!R251))","v":0},0]
[null,null,null,"Printer (Color, Laser)",null,null,null,0,0,{"$f":"IF(H252=0,0,H252*'Product Data and EFs'!L136/1000)","v":0},{"$f":"IF(I252=0,0,I252*'Product Data and EFs'!K136/1000)","v":0},0,{"$f":"IF(L252=0,0,(E252*'Product Data and EFs'!K136/1000-'Product Emissions Analysis'!L252))","v":0},0,0,{"$f":"IF(N252=0,0,N252*'Product Data and EFs'!L136/1000)","v":0},{"$f":"IF(O252=0,0,O252*'Product Data and EFs'!K136/1000)","v":0},0,{"$f":"IF(R252=0,0,(E252*'Product Data and EFs'!K136/1000-'Product Emissions Analysis'!R252))","v":0},0]
[null,null,null,"Multifunction Device (Color, Laser)",null,null,null,0,0,{"$f":"IF(H253=0,0,H253*'Product Data and EFs'!L137/1000)","v":0},{"$f":"IF(I253=0,0,I253*'Product Data and EFs'!K137/1000)","v":0},0,{"$f":"IF(L253=0,0,(E253*'Product Data and EFs'!K137/1000-'Product Emissions Analysis'!L253))","v":0},0,0,{"$f":"IF(N253=0,0,N253*'Product Data and EFs'!L137/1000)","v":0},{"$f":"IF(O253=0,0,O253*'Product Data and EFs'!K137/1000)","v":0},0,{"$f":"IF(R253=0,0,(E253*'Product Data and EFs'!K137/1000-'Product Emissions Analysis'!R253))","v":0},0]
[null,null,null,"Multifunction Device (Inkjet)",null,null,null,0,0,{"$f":"IF(H254=0,0,H254*'Product Data and EFs'!L138/1000)","v":0},{"$f":"IF(I254=0,0,I254*'Product Data and EFs'!K138/1000)","v":0},0,{"$f":"IF(L254=0,0,(E254*'Product Data and EFs'!K138/1000-'Product Emissions Analysis'!L254))","v":0},0,0,{"$f":"IF(N254=0,0,N254*'Product Data and EFs'!L138/1000)","v":0},{"$f":"IF(O254=0,0,O254*'Product Data and EFs'!K138/1000)","v":0},0,{"$f":"IF(R254=0,0,(E254*'Product Data and EFs'!K138/1000-'Product Emissions Analysis'!R254))","v":0},0]
[null,null,null,"Scanner (Inkjet)",null,null,null,0,0,{"$f":"IF(H255=0,0,H255*'Product Data and EFs'!L139/1000)","v":0},{"$f":"IF(I255=0,0,I255*'Product Data and EFs'!K139/1000)","v":0},0,{"$f":"IF(L255=0,0,(E255*'Product Data and EFs'!K139/1000-'Product Emissions Analysis'!L255))","v":0},0,0,{"$f":"IF(N255=0,0,N255*'Product Data and EFs'!L139/1000)","v":0},{"$f":"IF(O255=0,0,O255*'Product Data and EFs'!K139/1000)","v":0},0,{"$f":"IF(R255=0,0,(E255*'Product Data and EFs'!K139/1000-'Product Emissions Analysis'!R255))","v":0},0]
[null,null,null,"Printer (Inkjet)",null,null,null,0,0,{"$f":"IF(H256=0,0,H256*'Product Data and EFs'!L140/1000)","v":0},{"$f":"IF(I256=0,0,I256*'Product Data and EFs'!K140/1000)","v":0},0,{"$f":"IF(L256=0,0,(E256*'Product Data and EFs'!K140/1000-'Product Emissions Analysis'!L256))","v":0},0,0,{"$f":"IF(N256=0,0,N256*'Product Data and EFs'!L140/1000)","v":0},{"$f":"IF(O256=0,0,O256*'Product Data and EFs'!K140/1000)","v":0},0,{"$f":"IF(R256=0,0,(E256*'Product Data and EFs'!K140/1000-'Product Emissions Analysis'!R256))","v":0},0]
[null,null,null,"Professional Displays",null,null,null,0,0,{"$f":"IF(H257=0,0,H257*'Product Data and EFs'!L141/1000)","v":0},{"$f":"IF(I257=0,0,I257*'Product Data and EFs'!K141/1000)","v":0},0,{"$f":"IF(L257=0,0,(E257*'Product Data and EFs'!K141/1000-'Product Emissions Analysis'!L257))","v":0},0,0,{"$f":"IF(N257=0,0,N257*'Product Data and EFs'!L141/1000)","v":0},{"$f":"IF(O257=0,0,O257*'Product Data and EFs'!K141/1000)","v":0},0,{"$f":"IF(R257=0,0,(E257*'Product Data and EFs'!K141/1000-'Product Emissions Analysis'!R257))","v":0},0]
[null,null,null,"Servers",null,null,null,0,0,{"$f":"IF(H258=0,0,H258*'Product Data and EFs'!L142/1000)","v":0},{"$f":"IF(I258=0,0,I258*'Product Data and EFs'!K142/1000)","v":0},0,{"$f":"IF(L258=0,0,(E258*'Product Data and EFs'!K142/1000-'Product Emissions Analysis'!L258))","v":0},0,0,{"$f":"IF(N258=0,0,N258*'Product Data and EFs'!L142/1000)","v":0},{"$f":"IF(O258=0,0,O258*'Product Data and EFs'!K142/1000)","v":0},0,{"$f":"IF(R258=0,0,(E258*'Product Data and EFs'!K142/1000-'Product Emissions Analysis'!R258))","v":0},0]
[null,null,null,"Small Network Equipment",null,null,null,0,0,{"$f":"IF(H259=0,0,H259*'Product Data and EFs'!L143/1000)","v":0},{"$f":"IF(I259=0,0,I259*'Product Data and EFs'!K143/1000)","v":0},0,{"$f":"IF(L259=0,0,(E259*'Product Data and EFs'!K143/1000-'Product Emissions Analysis'!L259))","v":0},0,0,{"$f":"IF(N259=0,0,N259*'Product Data and EFs'!L143/1000)","v":0},{"$f":"IF(O259=0,0,O259*'Product Data and EFs'!K143/1000)","v":0},0,{"$f":"IF(R259=0,0,(E259*'Product Data and EFs'!K143/1000-'Product Emissions Analysis'!R259))","v":0},0]
[null,null,null,"Residential UPS",null,null,null,0,0,{"$f":"IF(H260=0,0,H260*'Product Data and EFs'!L144/1000)","v":0},{"$f":"IF(I260=0,0,I260*'Product Data and EFs'!K144/1000)","v":0},0,{"$f":"IF(L260=0,0,(E260*'Product Data and EFs'!K144/1000-'Product Emissions Analysis'!L260))","v":0},0,0,{"$f":"IF(N260=0,0,N260*'Product Data and EFs'!L144/1000)","v":0},{"$f":"IF(O260=0,0,O260*'Product Data and EFs'!K144/1000)","v":0},0,{"$f":"IF(R260=0,0,(E260*'Product Data and EFs'!K144/1000-'Product Emissions Analysis'!R260))","v":0},0]
[null,null,null,"Small Commercial UPS",null,null,null,0,0,{"$f":"IF(H261=0,0,H261*'Product Data and EFs'!L145/1000)","v":0},{"$f":"IF(I261=0,0,I261*'Product Data and EFs'!K145/1000)","v":0},0,{"$f":"IF(L261=0,0,(E261*'Product Data and EFs'!K145/1000-'Product Emissions Analysis'!L261))","v":0},0,0,{"$f":"IF(N261=0,0,N261*'Product Data and EFs'!L145/1000)","v":0},{"$f":"IF(O261=0,0,O261*'Product Data and EFs'!K145/1000)","v":0},0,{"$f":"IF(R261=0,0,(E261*'Product Data and EFs'!K145/1000-'Product Emissions Analysis'!R261))","v":0},0]
[null,null,null,"Larger Commercial UPS",null,null,null,0,0,{"$f":"IF(H262=0,0,H262*'Product Data and EFs'!L146/1000)","v":0},{"$f":"IF(I262=0,0,I262*'Product Data and EFs'!K146/1000)","v":0},0,{"$f":"IF(L262=0,0,(E262*'Product Data and EFs'!K146/1000-'Product Emissions Analysis'!L262))","v":0},0,0,{"$f":"IF(N262=0,0,N262*'Product Data and EFs'!L146/1000)","v":0},{"$f":"IF(O262=0,0,O262*'Product Data and EFs'!K146/1000)","v":0},0,{"$f":"IF(R262=0,0,(E262*'Product Data and EFs'!K146/1000-'Product Emissions Analysis'!R262))","v":0},0]
[null,null,null,"TOTAL",{"$f":"SUM(E249:E262)","v":0},"NA","NA",{"$f":"SUM(H249:H262)","v":0},0,0,0,0,0,0,0,0,0,0,0,0]
[]
[null,null,null,"Annual"]
[]
[null,null,null,null,null,null,null,"Current",null,null,null,null,null,"Increased ENERGY STAR Sales"]
[null,null,null,"Product Type","Total Unit Sales","% of Current Sales that are ENERGY STAR","Higher % of Sales that are ENERGY STAR for Analysis","Total ENERGY STAR Product Sales","Total Standard Product Sales","Annual Product Use Emissions - ENERGY STAR (Metric Tons CO2e)","Annual Product Use Emissions - Standard (Metric Tons CO2e)","Annual Total Product Use Emissions (Metric Tons CO2e)","Annual Emissions Savings from ENERGY STAR Product Sales\n(Metric Tons CO2e)","Total ENERGY STAR Product Sales","Total Standard Product Sales","Annual Product Use Emissions - ENERGY STAR (Metric Tons CO2e)","Annual Product Use Emissions - Standard (Metric Tons CO2e)","Annual Total Product Use Emissions (Metric Tons CO2e)","Annual Emissions Savings from ENERGY STAR Product Sales\n(Metric Tons CO2e)","Additional Annual Emissions Savings Achieved with Increased ENERGY STAR Sales\n(Metric Tons CO2e)"]
[null,null,null,"Workstation",{"$f":"IF(E249=\"\",\"\",E249)","v":""},{"$f":"IF(F249=\"\",\"\",F249)","v":""},{"$f":"IF(G249=\"\",\"\",G249)","v":""},{"$f":"IF(F269=\"\",0,ROUND(E269*F269,0))","v":0},{"$f":"IF(F269=\"\",0,E269-H269)","v":0},{"$f":"IF(H269=0,0,H269*'Product Data and EFs'!L133/1000/'Product Data and EFs'!F133)","v":0},{"$f":"IF(I269=0,0,I269*'Product Data and EFs'!K133/1000/'Product Data and EFs'!F133)","v":0},{"$f":"IF(F269=\"\",0,SUM(J269:K269))","v":0},{"$f":"IF(L269=0,0,(E269*'Product Data and EFs'!K133/1000/'Product Data and EFs'!F133-'Product Emissions Analysis'!L269))","v":0},{"$f":"IF(G269=\"\",0,ROUND(E269*G269,0))","v":0},{"$f":"IF(G269=\"\",0,E269-N269)","v":0},{"$f":"IF(N269=0,0,N269*'Product Data and EFs'!L133/1000/'Product Data and EFs'!F133)","v":0},{"$f":"IF(O269=0,0,O269*'Product Data and EFs'!K133/1000/'Product Data and EFs'!F133)","v":0},{"$f":"IF(G269=\"\",0,SUM(P269:Q269))","v":0},{"$f":"IF(R269=0,0,(E269*'Product Data and EFs'!K133/1000/'Product Data and EFs'!F133-'Product Emissions Analysis'!R269))","v":0},{"$f":"IF(G269=\"\",0,L269-R269)","v":0}]
[null,null,null,"Printer (Mono, Laser)",{"$f":"IF(E250=\"\",\"\",E250)","v":""},"","",{"$f":"IF(F270=\"\",0,ROUND(E270*F270,0))","v":0},{"$f":"IF(F270=\"\",0,E270-H270)","v":0},{"$f":"IF(H270=0,0,H270*'Product Data and EFs'!L134/1000/'Product Data and EFs'!F134)","v":0},{"$f":"IF(I270=0,0,I270*'Product Data and EFs'!K134/1000/'Product Data and EFs'!F134)","v":0},{"$f":"IF(F270=\"\",0,SUM(J270:K270))","v":0},{"$f":"IF(L270=0,0,(E270*'Product Data and EFs'!K134/1000/'Product Data and EFs'!F134-'Product Emissions Analysis'!L270))","v":0},{"$f":"IF(G270=\"\",0,ROUND(E270*G270,0))","v":0},{"$f":"IF(G270=\"\",0,E270-N270)","v":0},{"$f":"IF(N270=0,0,N270*'Product Data and EFs'!L134/1000/'Product Data and EFs'!F134)","v":0},{"$f":"IF(O270=0,0,O270*'Product Data and EFs'!K134/1000/'Product Data and EFs'!F134)","v":0},{"$f":"IF(G270=\"\",0,SUM(P270:Q270))","v":0},{"$f":"IF(R270=0,0,(E270*'Product Data and EFs'!K134/1000/'Product Data and EFs'!F134-'Product Emissions Analysis'!R270))","v":0},{"$f":"IF(G270=\"\",0,L270-R270)","v":0}]
[null,null,null,"Multifunction Device (Mono, Laser)",{"$f":"IF(E251=\"\",\"\",E251)","v":""},"","",0,0,{"$f":"IF(H271=0,0,H271*'Product Data and EFs'!L135/1000/'Product Data and EFs'!F135)","v":0},{"$f":"IF(I271=0,0,I271*'Product Data and EFs'!K135/1000/'Product Data and EFs'!F135)","v":0},0,{"$f":"IF(L271=0,0,(E271*'Product Data and EFs'!K135/1000/'Product Data and EFs'!F135-'Product Emissions Analysis'!L271))","v":0},0,0,{"$f":"IF(N271=0,0,N271*'Product Data and EFs'!L135/1000/'Product Data and EFs'!F135)","v":0},{"$f":"IF(O271=0,0,O271*'Product Data and EFs'!K135/1000/'Product Data and EFs'!F135)","v":0},0,{"$f":"IF(R271=0,0,(E271*'Product Data and EFs'!K135/1000/'Product Data and EFs'!F135-'Product Emissions Analysis'!R271))","v":0},0]
[null,null,null,"Printer (Color, Laser)",{"$f":"IF(E252=\"\",\"\",E252)","v":""},"","",0,0,{"$f":"IF(H272=0,0,H272*'Product Data and EFs'!L136/1000/'Product Data and EFs'!F136)","v":0},{"$f":"IF(I272=0,0,I272*'Product Data and EFs'!K136/1000/'Product Data and EFs'!F136)","v":0},0,{"$f":"IF(L272=0,0,(E272*'Product Data and EFs'!K136/1000/'Product Data and EFs'!F136-'Product Emissions Analysis'!L272))","v":0},0,0,{"$f":"IF(N272=0,0,N272*'Product Data and EFs'!L136/1000/'Product Data and EFs'!F136)","v":0},{"$f":"IF(O272=0,0,O272*'Product Data and EFs'!K136/1000/'Product Data and EFs'!F136)","v":0},0,{"$f":"IF(R272=0,0,(E272*'Product Data and EFs'!K136/1000/'Product Data and EFs'!F136-'Product Emissions Analysis'!R272))","v":0},0]
[null,null,null,"Multifunction Device (Color, Laser)",{"$f":"IF(E253=\"\",\"\",E253)","v":""},"","",0,0,{"$f":"IF(H273=0,0,H273*'Product Data and EFs'!L137/1000/'Product Data and EFs'!F137)","v":0},{"$f":"IF(I273=0,0,I273*'Product Data and EFs'!K137/1000/'Product Data and EFs'!F137)","v":0},0,{"$f":"IF(L273=0,0,(E273*'Product Data and EFs'!K137/1000/'Product Data and EFs'!F137-'Product Emissions Analysis'!L273))","v":0},0,0,{"$f":"IF(N273=0,0,N273*'Product Data and EFs'!L137/1000/'Product Data and EFs'!F137)","v":0},{"$f":"IF(O273=0,0,O273*'Product Data and EFs'!K137/1000/'Product Data and EFs'!F137)","v":0},0,{"$f":"IF(R273=0,0,(E273*'Product Data and EFs'!K137/1000/'Product Data and EFs'!F137-'Product Emissions Analysis'!R273))","v":0},0]
[null,null,null,"Multifunction Device (Inkjet)",{"$f":"IF(E254=\"\",\"\",E254)","v":""},"","",0,0,{"$f":"IF(H274=0,0,H274*'Product Data and EFs'!L138/1000/'Product Data and EFs'!F138)","v":0},{"$f":"IF(I274=0,0,I274*'Product Data and EFs'!K138/1000/'Product Data and EFs'!F138)","v":0},0,{"$f":"IF(L274=0,0,(E274*'Product Data and EFs'!K138/1000/'Product Data and EFs'!F138-'Product Emissions Analysis'!L274))","v":0},0,0,{"$f":"IF(N274=0,0,N274*'Product Data and EFs'!L138/1000/'Product Data and EFs'!F138)","v":0},{"$f":"IF(O274=0,0,O274*'Product Data and EFs'!K138/1000/'Product Data and EFs'!F138)","v":0},0,{"$f":"IF(R274=0,0,(E274*'Product Data and EFs'!K138/1000/'Product Data and EFs'!F138-'Product Emissions Analysis'!R274))","v":0},0]
[null,null,null,"Scanner (Inkjet)",{"$f":"IF(E255=\"\",\"\",E255)","v":""},"","",0,0,{"$f":"IF(H275=0,0,H275*'Product Data and EFs'!L139/1000/'Product Data and EFs'!F139)","v":0},{"$f":"IF(I275=0,0,I275*'Product Data and EFs'!K139/1000/'Product Data and EFs'!F139)","v":0},0,{"$f":"IF(L275=0,0,(E275*'Product Data and EFs'!K139/1000/'Product Data and EFs'!F139-'Product Emissions Analysis'!L275))","v":0},0,0,{"$f":"IF(N275=0,0,N275*'Product Data and EFs'!L139/1000/'Product Data and EFs'!F139)","v":0},{"$f":"IF(O275=0,0,O275*'Product Data and EFs'!K139/1000/'Product Data and EFs'!F139)","v":0},0,{"$f":"IF(R275=0,0,(E275*'Product Data and EFs'!K139/1000/'Product Data and EFs'!F139-'Product Emissions Analysis'!R275))","v":0},0]
[null,null,null,"Printer (Inkjet)",{"$f":"IF(E256=\"\",\"\",E256)","v":""},"","",0,0,{"$f":"IF(H276=0,0,H276*'Product Data and EFs'!L140/1000/'Product Data and EFs'!F140)","v":0},{"$f":"IF(I276=0,0,I276*'Product Data and EFs'!K140/1000/'Product Data and EFs'!F140)","v":0},0,{"$f":"IF(L276=0,0,(E276*'Product Data and EFs'!K140/1000/'Product Data and EFs'!F140-'Product Emissions Analysis'!L276))","v":0},0,0,{"$f":"IF(N276=0,0,N276*'Product Data and EFs'!L140/1000/'Product Data and EFs'!F140)","v":0},{"$f":"IF(O276=0,0,O276*'Product Data and EFs'!K140/1000/'Product Data and EFs'!F140)","v":0},0,{"$f":"IF(R276=0,0,(E276*'Product Data and EFs'!K140/1000/'Product Data and EFs'!F140-'Product Emissions Analysis'!R276))","v":0},0]
[null,null,null,"Professional Displays",{"$f":"IF(E257=\"\",\"\",E257)","v":""},"","",0,0,{"$f":"IF(H277=0,0,H277*'Product Data and EFs'!L141/1000/'Product Data and EFs'!F141)","v":0},{"$f":"IF(I277=0,0,I277*'Product Data and EFs'!K141/1000/'Product Data and EFs'!F141)","v":0},0,{"$f":"IF(L277=0,0,(E277*'Product Data and EFs'!K141/1000/'Product Data and EFs'!F141-'Product Emissions Analysis'!L277))","v":0},0,0,{"$f":"IF(N277=0,0,N277*'Product Data and EFs'!L141/1000/'Product Data and EFs'!F141)","v":0},{"$f":"IF(O277=0,0,O277*'Product Data and EFs'!K141/1000/'Product Data and EFs'!F141)","v":0},0,{"$f":"IF(R277=0,0,(E277*'Product Data and EFs'!K141/1000/'Product Data and EFs'!F141-'Product Emissions Analysis'!R277))","v":0},0]
[null,null,null,"Servers",{"$f":"IF(E258=\"\",\"\",E258)","v":""},"","",0,0,{"$f":"IF(H278=0,0,H278*'Product Data and EFs'!L142/1000/'Product Data and EFs'!F142)","v":0},{"$f":"IF(I278=0,0,I278*'Product Data and EFs'!K142/1000/'Product Data and EFs'!F142)","v":0},0,{"$f":"IF(L278=0,0,(E278*'Product Data and EFs'!K142/1000/'Product Data and EFs'!F142-'Product Emissions Analysis'!L278))","v":0},0,0,{"$f":"IF(N278=0,0,N278*'Product Data and EFs'!L142/1000/'Product Data and EFs'!F142)","v":0},{"$f":"IF(O278=0,0,O278*'Product Data and EFs'!K142/1000/'Product Data and EFs'!F142)","v":0},0,{"$f":"IF(R278=0,0,(E278*'Product Data and EFs'!K142/1000/'Product Data and EFs'!F142-'Product Emissions Analysis'!R278))","v":0},0]
[null,null,null,"Small Network Equipment",{"$f":"IF(E259=\"\",\"\",E259)","v":""},"","",0,0,{"$f":"IF(H279=0,0,H279*'Product Data and EFs'!L143/1000/'Product Data and EFs'!F143)","v":0},{"$f":"IF(I279=0,0,I279*'Product Data and EFs'!K143/1000/'Product Data and EFs'!F143)","v":0},0,{"$f":"IF(L279=0,0,(E279*'Product Data and EFs'!K143/1000/'Product Data and EFs'!F143-'Product Emissions Analysis'!L279))","v":0},0,0,{"$f":"IF(N279=0,0,N279*'Product Data and EFs'!L143/1000/'Product Data and EFs'!F143)","v":0},{"$f":"IF(O279=0,0,O279*'Product Data and EFs'!K143/1000/'Product Data and EFs'!F143)","v":0},0,{"$f":"IF(R279=0,0,(E279*'Product Data and EFs'!K143/1000/'Product Data and EFs'!F143-'Product Emissions Analysis'!R279))","v":0},0]
[null,null,null,"Residential UPS",{"$f":"IF(E260=\"\",\"\",E260)","v":""},"","",0,0,{"$f":"IF(H280=0,0,H280*'Product Data and EFs'!L144/1000/'Product Data and EFs'!F144)","v":0},{"$f":"IF(I280=0,0,I280*'Product Data and EFs'!K144/1000/'Product Data and EFs'!F144)","v":0},0,{"$f":"IF(L280=0,0,(E280*'Product Data and EFs'!K144/1000/'Product Data and EFs'!F144-'Product Emissions Analysis'!L280))","v":0},0,0,{"$f":"IF(N280=0,0,N280*'Product Data and EFs'!L144/1000/'Product Data and EFs'!F144)","v":0},{"$f":"IF(O280=0,0,O280*'Product Data and EFs'!K144/1000/'Product Data and EFs'!F144)","v":0},0,{"$f":"IF(R280=0,0,(E280*'Product Data and EFs'!K144/1000/'Product Data and EFs'!F144-'Product Emissions Analysis'!R280))","v":0},0]
[null,null,null,"Small Commercial UPS",{"$f":"IF(E261=\"\",\"\",E261)","v":""},"","",0,0,{"$f":"IF(H281=0,0,H281*'Product Data and EFs'!L145/1000/'Product Data and EFs'!F145)","v":0},{"$f":"IF(I281=0,0,I281*'Product Data and EFs'!K145/1000/'Product Data and EFs'!F145)","v":0},0,{"$f":"IF(L281=0,0,(E281*'Product Data and EFs'!K145/1000/'Product Data and EFs'!F145-'Product Emissions Analysis'!L281))","v":0},0,0,{"$f":"IF(N281=0,0,N281*'Product Data and EFs'!L145/1000/'Product Data and EFs'!F145)","v":0},{"$f":"IF(O281=0,0,O281*'Product Data and EFs'!K145/1000/'Product Data and EFs'!F145)","v":0},0,{"$f":"IF(R281=0,0,(E281*'Product Data and EFs'!K145/1000/'Product Data and EFs'!F145-'Product Emissions Analysis'!R281))","v":0},0]
[null,null,null,"Larger Commercial UPS",{"$f":"IF(E262=\"\",\"\",E262)","v":""},"","",0,0,{"$f":"IF(H282=0,0,H282*'Product Data and EFs'!L146/1000/'Product Data and EFs'!F146)","v":0},{"$f":"IF(I282=0,0,I282*'Product Data and EFs'!K146/1000/'Product Data and EFs'!F146)","v":0},0,{"$f":"IF(L282=0,0,(E282*'Product Data and EFs'!K146/1000/'Product Data and EFs'!F146-'Product Emissions Analysis'!L282))","v":0},0,0,{"$f":"IF(N282=0,0,N282*'Product Data and EFs'!L146/1000/'Product Data and EFs'!F146)","v":0},{"$f":"IF(O282=0,0,O282*'Product Data and EFs'!K146/1000/'Product Data and EFs'!F146)","v":0},0,{"$f":"IF(R282=0,0,(E282*'Product Data and EFs'!K146/1000/'Product Data and EFs'!F146-'Product Emissions Analysis'!R282))","v":0},0]
[null,null,null,"TOTAL",{"$f":"IF(E263=\"\",\"\",E263)","v":0},"NA","NA",{"$f":"SUM(H269:H282)","v":0},0,0,0,0,0,0,0,0,0,0,0,0]
[]
[]
[]
[null,null,null,"Computers and Monitors"]
[]
[null,null,null,"Lifetime"]
[]
[null,null,null,null,null,null,null,"Current",null,null,null,null,null,"Increased ENERGY STAR Sales"]
[null,null,null,"Product Type","Total Unit Sales","% of Current Sales that are ENERGY STAR","Higher % of Sales that are ENERGY STAR for Analysis","Total ENERGY STAR Product Sales","Total Standard Product Sales","Lifetime Product Use Emissions - ENERGY STAR (Metric Tons CO2e)","Lifetime Product Use Emissions - Standard (Metric Tons CO2e)","Lifetime Total Product Use Emissions (Metric Tons CO2e)","Lifetime Emissions Savings from ENERGY STAR Product Sales\n(Metric Tons CO2e)","Total ENERGY STAR Product Sales","Total Standard Product Sales","Lifetime Product Use Emissions - ENERGY STAR (Metric Tons CO2e)","Lifetime Product Use Emissions - Standard (Metric Tons CO2e)","Lifetime Total Product Use Emissions (Metric Tons CO2e)","Lifetime Emissions Savings from ENERGY STAR Product Sales\n(Metric Tons CO2e)","Additional Lifetime Emissions Savings Achieved with Increased ENERGY STAR Sales\n(Metric Tons CO2e)"]
[null,null,null,"Home Desktop-Power Management Not Enabled",null,null,null,{"$f":"IF(F293=\"\",0,ROUND(E293*F293,0))","v":0},{"$f":"IF(F293=\"\",0,E293-H293)","v":0},{"$f":"IF(H293=0,0,H293*'Product Data and EFs'!L153/1000)","v":0},{"$f":"IF(I293=0,0,I293*'Product Data and EFs'!K153/1000)","v":0},{"$f":"IF(F293=\"\",0,SUM(J293:K293))","v":0},{"$f":"IF(L293=0,0,(E293*'Product Data and EFs'!K153/1000-'Product Emissions Analysis'!L293))","v":0},{"$f":"IF(G293=\"\",0,ROUND(E293*G293,0))","v":0},{"$f":"IF(G293=\"\",0,E293-N293)","v":0},{"$f":"IF(N293=0,0,N293*'Product Data and EFs'!L153/1000)","v":0},{"$f":"IF(O293=0,0,O293*'Product Data and EFs'!K153/1000)","v":0},{"$f":"IF(G293=\"\",0,SUM(P293:Q293))","v":0},{"$f":"IF(R293=0,0,(E293*'Product Data and EFs'!K153/1000-'Product Emissions Analysis'!R293))","v":0},{"$f":"IF(G293=\"\",0,L293-R293)","v":0}]
[null,null,null,"Home Desktop-Power Management Enabled",null,null,null,{"$f":"IF(F294=\"\",0,ROUND(E294*F294,0))","v":0},{"$f":"IF(F294=\"\",0,E294-H294)","v":0},{"$f":"IF(H294=0,0,H294*'Product Data and EFs'!L154/1000)","v":0},{"$f":"IF(I294=0,0,I294*'Product Data and EFs'!K154/1000)","v":0},{"$f":"IF(F294=\"\",0,SUM(J294:K294))","v":0},{"$f":"IF(L294=0,0,(E294*'Product Data and EFs'!K154/1000-'Product Emissions Analysis'!L294))","v":0},{"$f":"IF(G294=\"\",0,ROUND(E294*G294,0))","v":0},{"$f":"IF(G294=\"\",0,E294-N294)","v":0},{"$f":"IF(N294=0,0,N294*'Product Data and EFs'!L154/1000)","v":0},{"$f":"IF(O294=0,0,O294*'Product Data and EFs'!K154/1000)","v":0},{"$f":"IF(G294=\"\",0,SUM(P294:Q294))","v":0},{"$f":"IF(R294=0,0,(E294*'Product Data and EFs'!K154/1000-'Product Emissions Analysis'!R294))","v":0},{"$f":"IF(G294=\"\",0,L294-R294)","v":0}]
[null,null,null,"Home Laptop-Power Management Not Enabled",null,null,null,0,0,{"$f":"IF(H295=0,0,H295*'Product Data and EFs'!L155/1000)","v":0},{"$f":"IF(I295=0,0,I295*'Product Data and EFs'!K155/1000)","v":0},0,{"$f":"IF(L295=0,0,(E295*'Product Data and EFs'!K155/1000-'Product Emissions Analysis'!L295))","v":0},0,0,{"$f":"IF(N295=0,0,N295*'Product Data and EFs'!L155/1000)","v":0},{"$f":"IF(O295=0,0,O295*'Product Data and EFs'!K155/1000)","v":0},0,{"$f":"IF(R295=0,0,(E295*'Product Data and EFs'!K155/1000-'Product Emissions Analysis'!R295))","v":0},0]
[null,null,null,"Home Laptop-Power Management Enabled",null,null,null,0,0,{"$f":"IF(H296=0,0,H296*'Product Data and EFs'!L156/1000)","v":0},{"$f":"IF(I296=0,0,I296*'Product Data and EFs'!K156/1000)","v":0},0,{"$f":"IF(L296=0,0,(E296*'Product Data and EFs'!K156/1000-'Product Emissions Analysis'!L296))","v":0},0,0,{"$f":"IF(N296=0,0,N296*'Product Data and EFs'!L156/1000)","v":0},{"$f":"IF(O296=0,0,O296*'Product Data and EFs'!K156/1000)","v":0},0,{"$f":"IF(R296=0,0,(E296*'Product Data and EFs'!K156/1000-'Product Emissions Analysis'!R296))","v":0},0]
[null,null,null,"Home Monitors-Power Management Not Enabled",null,null,null,0,0,{"$f":"IF(H297=0,0,H297*'Product Data and EFs'!L157/1000)","v":0},{"$f":"IF(I297=0,0,I297*'Product Data and EFs'!K157/1000)","v":0},0,{"$f":"IF(L297=0,0,(E297*'Product Data and EFs'!K157/1000-'Product Emissions Analysis'!L297))","v":0},0,0,{"$f":"IF(N297=0,0,N297*'Product Data and EFs'!L157/1000)","v":0},{"$f":"IF(O297=0,0,O297*'Product Data and EFs'!K157/1000)","v":0},0,{"$f":"IF(R297=0,0,(E297*'Product Data and EFs'!K157/1000-'Product Emissions Analysis'!R297))","v":0},0]
[null,null,null,"Home Monitors-Power Management Enabled",null,null,null,0,0,{"$f":"IF(H298=0,0,H298*'Product Data and EFs'!L158/1000)","v":0},{"$f":"IF(I298=0,0,I298*'Product Data and EFs'!K158/1000)","v":0},0,{"$f":"IF(L298=0,0,(E298*'Product Data and EFs'!K158/1000-'Product Emissions Analysis'!L298))","v":0},0,0,{"$f":"IF(N298=0,0,N298*'Product Data and EFs'!L158/1000)","v":0},{"$f":"IF(O298=0,0,O298*'Product Data and EFs'!K158/1000)","v":0},0,{"$f":"IF(R298=0,0,(E298*'Product Data and EFs'!K158/1000-'Product Emissions Analysis'!R298))","v":0},0]
[null,null,null,"Office Desktop-Power Management Not Enabled",null,null,null,0,0,{"$f":"IF(H299=0,0,H299*'Product Data and EFs'!L159/1000)","v":0},{"$f":"IF(I299=0,0,I299*'Product Data and EFs'!K159/1000)","v":0},0,{"$f":"IF(L299=0,0,(E299*'Product Data and EFs'!K159/1000-'Product Emissions Analysis'!L299))","v":0},0,0,{"$f":"IF(N299=0,0,N299*'Product Data and EFs'!L159/1000)","v":0},{"$f":"IF(O299=0,0,O299*'Product Data and EFs'!K159/1000)","v":0},0,{"$f":"IF(R299=0,0,(E299*'Product Data and EFs'!K159/1000-'Product Emissions Analysis'!R299))","v":0},0]
[null,null,null,"Office Desktop-Power Management Enabled",null,null,null,0,0,{"$f":"IF(H300=0,0,H300*'Product Data and EFs'!L160/1000)","v":0},{"$f":"IF(I300=0,0,I300*'Product Data and EFs'!K160/1000)","v":0},0,{"$f":"IF(L300=0,0,(E300*'Product Data and EFs'!K160/1000-'Product Emissions Analysis'!L300))","v":0},0,0,{"$f":"IF(N300=0,0,N300*'Product Data and EFs'!L160/1000)","v":0},{"$f":"IF(O300=0,0,O300*'Product Data and EFs'!K160/1000)","v":0},0,{"$f":"IF(R300=0,0,(E300*'Product Data and EFs'!K160/1000-'Product Emissions Analysis'!R300))","v":0},0]
[null,null,null,"Office Laptop-Power Management Not Enabled",null,null,null,0,0,{"$f":"IF(H301=0,0,H301*'Product Data and EFs'!L161/1000)","v":0},{"$f":"IF(I301=0,0,I301*'Product Data and EFs'!K161/1000)","v":0},0,{"$f":"IF(L301=0,0,(E301*'Product Data and EFs'!K161/1000-'Product Emissions Analysis'!L301))","v":0},0,0,{"$f":"IF(N301=0,0,N301*'Product Data and EFs'!L161/1000)","v":0},{"$f":"IF(O301=0,0,O301*'Product Data and EFs'!K161/1000)","v":0},0,{"$f":"IF(R301=0,0,(E301*'Product Data and EFs'!K161/1000-'Product Emissions Analysis'!R301))","v":0},0]
[null,null,null,"Office Laptop-Power Management Enabled",null,null,null,0,0,{"$f":"IF(H302=0,0,H302*'Product Data and EFs'!L162/1000)","v":0},{"$f":"IF(I302=0,0,I302*'Product Data and EFs'!K162/1000)","v":0},0,{"$f":"IF(L302=0,0,(E302*'Product Data and EFs'!K162/1000-'Product Emissions Analysis'!L302))","v":0},0,0,{"$f":"IF(N302=0,0,N302*'Product Data and EFs'!L162/1000)","v":0},{"$f":"IF(O302=0,0,O302*'Product Data and EFs'!K162/1000)","v":0},0,{"$f":"IF(R302=0,0,(E302*'Product Data and EFs'!K162/1000-'Product Emissions Analysis'!R302))","v":0},0]
[null,null,null,"Office Monitors-Power Management Not Enabled",null,null,null,0,0,{"$f":"IF(H303=0,0,H303*'Product Data and EFs'!L163/1000)","v":0},{"$f":"IF(I303=0,0,I303*'Product Data and EFs'!K163/1000)","v":0},0,{"$f":"IF(L303=0,0,(E303*'Product Data and EFs'!K163/1000-'Product Emissions Analysis'!L303))","v":0},0,0,{"$f":"IF(N303=0,0,N303*'Product Data and EFs'!L163/1000)","v":0},{"$f":"IF(O303=0,0,O303*'Product Data and EFs'!K163/1000)","v":0},0,{"$f":"IF(R303=0,0,(E303*'Product Data and EFs'!K163/1000-'Product Emissions Analysis'!R303))","v":0},0]
[null,null,null,"Office Monitors-Power Management Enabled",null,null,null,0,0,{"$f":"IF(H304=0,0,H304*'Product Data and EFs'!L164/1000)","v":0},{"$f":"IF(I304=0,0,I304*'Product Data and EFs'!K164/1000)","v":0},0,{"$f":"IF(L304=0,0,(E304*'Product Data and EFs'!K164/1000-'Product Emissions Analysis'!L304))","v":0},0,0,{"$f":"IF(N304=0,0,N304*'Product Data and EFs'!L164/1000)","v":0},{"$f":"IF(O304=0,0,O304*'Product Data and EFs'!K164/1000)","v":0},0,{"$f":"IF(R304=0,0,(E304*'Product Data and EFs'!K164/1000-'Product Emissions Analysis'!R304))","v":0},0]
[null,null,null,"TOTAL",{"$f":"SUM(E293:E304)","v":0},"NA","NA",{"$f":"SUM(H293:H304)","v":0},0,0,0,0,0,0,0,0,0,0,0,0]
[]
[null,null,null,"Annual"]
[]
[null,null,null,null,null,null,null,"Current",null,null,null,null,null,"Increased ENERGY STAR Sales"]
[null,null,null,"Product Type","Total Unit Sales","% of Current Sales that are ENERGY STAR","Higher % of Sales that are ENERGY STAR for Analysis","Total ENERGY STAR Product Sales","Total Standard Product Sales","Annual Product Use Emissions - ENERGY STAR (Metric Tons CO2e)","Annual Product Use Emissions - Standard (Metric Tons CO2e)","Annual Total Product Use Emissions (Metric Tons CO2e)","Annual Emissions Savings from ENERGY STAR Product Sales\n(Metric Tons CO2e)","Total ENERGY STAR Product Sales","Total Standard Product Sales","Annual Product Use Emissions - ENERGY STAR (Metric Tons CO2e)","Annual Product Use Emissions - Standard (Metric Tons CO2e)","Annual Total Product Use Emissions (Metric Tons CO2e)","Annual Emissions Savings from ENERGY STAR Product Sales\n(Metric Tons CO2e)","Additional Annual Emissions Savings Achieved with Increased ENERGY STAR Sales\n(Metric Tons CO2e)"]
[null,null,null,"Home Desktop-Power Management Not Enabled",{"$f":"IF(E293=\"\",\"\",E293)","v":""},{"$f":"IF(F293=\"\",\"\",F293)","v":""},"",{"$f":"IF(F311=\"\",0,ROUND(E311*F311,0))","v":0},{"$f":"IF(F311=\"\",0,E311-H311)","v":0},{"$f":"IF(H311=0,0,H311*'Product Data and EFs'!L153/1000/'Product Data and EFs'!F153)","v":0},{"$f":"IF(I311=0,0,I311*'Product Data and EFs'!K153/1000/'Product Data and EFs'!F153)","v":0},{"$f":"IF(F311=\"\",0,SUM(J311:K311))","v":0},{"$f":"IF(L311=0,0,(E311*'Product Data and EFs'!K153/1000/'Product Data and EFs'!F153-'Product Emissions Analysis'!L311))","v":0},{"$f":"IF(G311=\"\",0,ROUND(E311*G311,0))","v":0},{"$f":"IF(G311=\"\",0,E311-N311)","v":0},{"$f":"IF(N311=0,0,N311*'Product Data and EFs'!L153/1000/'Product Data and EFs'!F153)","v":0},{"$f":"IF(O311=0,0,O311*'Product Data and EFs'!K153/1000/'Product Data and EFs'!F153)","v":0},{"$f":"IF(G311=\"\",0,SUM(P311:Q311))","v":0},{"$f":"IF(R311=0,0,(E311*'Product Data and EFs'!K153/1000/'Product Data and EFs'!F153-'Product Emissions Analysis'!R311))","v":0},{"$f":"IF(G311=\"\",0,L311-R311)","v":0}]
[null,null,null,"Home Desktop-Power Management Enabled",{"$f":"IF(E294=\"\",\"\",E294)","v":""},"","",{"$f":"IF(F312=\"\",0,ROUND(E312*F312,0))","v":0},{"$f":"IF(F312=\"\",0,E312-H312)","v":0},{"$f":"IF(H312=0,0,H312*'Product Data and EFs'!L154/1000/'Product Data and EFs'!F154)","v":0},{"$f":"IF(I312=0,0,I312*'Product Data and EFs'!K154/1000/'Product Data and EFs'!F154)","v":0},{"$f":"IF(F312=\"\",0,SUM(J312:K312))","v":0},{"$f":"IF(L312=0,0,(E312*'Product Data and EFs'!K154/1000/'Product Data and EFs'!F154-'Product Emissions Analysis'!L312))","v":0},{"$f":"IF(G312=\"\",0,ROUND(E312*G312,0))","v":0},{"$f":"IF(G312=\"\",0,E312-N312)","v":0},{"$f":"IF(N312=0,0,N312*'Product Data and EFs'!L154/1000/'Product Data and EFs'!F154)","v":0},{"$f":"IF(O312=0,0,O312*'Product Data and EFs'!K154/1000/'Product Data and EFs'!F154)","v":0},{"$f":"IF(G312=\"\",0,SUM(P312:Q312))","v":0},{"$f":"IF(R312=0,0,(E312*'Product Data and EFs'!K154/1000/'Product Data and EFs'!F154-'Product Emissions Analysis'!R312))","v":0},{"$f":"IF(G312=\"\",0,L312-R312)","v":0}]
[null,null,null,"Home Laptop-Power Management Not Enabled","","","",0,0,{"$f":"IF(H313=0,0,H313*'Product Data and EFs'!L155/1000/'Product Data and EFs'!F155)","v":0},{"$f":"IF(I313=0,0,I313*'Product Data and EFs'!K155/1000/'Product Data and EFs'!F155)","v":0},0,{"$f":"IF(L313=0,0,(E313*'Product Data and EFs'!K155/1000/'Product Data and EFs'!F155-'Product Emissions Analysis'!L313))","v":0},0,0,{"$f":"IF(N313=0,0,N313*'Product Data and EFs'!L155/1000/'Product Data and EFs'!F155)","v":0},{"$f":"IF(O313=0,0,O313*'Product Data and EFs'!K155/1000/'Product Data and EFs'!F155)","v":0},0,{"$f":"IF(R313=0,0,(E313*'Product Data and EFs'!K155/1000/'Product Data and EFs'!F155-'Product Emissions Analysis'!R313))","v":0},0]
[null,null,null,"Home Laptop-Power Management Enabled","","","",0,0,{"$f":"IF(H314=0,0,H314*'Product Data and EFs'!L156/1000/'Product Data and EFs'!F156)","v":0},{"$f":"IF(I314=0,0,I314*'Product Data and EFs'!K156/1000/'Product Data and EFs'!F156)","v":0},0,{"$f":"IF(L314=0,0,(E314*'Product Data and EFs'!K156/1000/'Product Data and EFs'!F156-'Product Emissions Analysis'!L314))","v":0},0,0,{"$f":"IF(N314=0,0,N314*'Product Data and EFs'!L156/1000/'Product Data and EFs'!F156)","v":0},{"$f":"IF(O314=0,0,O314*'Product Data and EFs'!K156/1000/'Product Data and EFs'!F156)","v":0},0,{"$f":"IF(R314=0,0,(E314*'Product Data and EFs'!K156/1000/'Product Data and EFs'!F156-'Product Emissions Analysis'!R314))","v":0},0]
[null,null,null,"Home Monitors-Power Management Not Enabled","","","",0,0,{"$f":"IF(H315=0,0,H315*'Product Data and EFs'!L157/1000/'Product Data and EFs'!F157)","v":0},{"$f":"IF(I315=0,0,I315*'Product Data and EFs'!K157/1000/'Product Data and EFs'!F157)","v":0},0,{"$f":"IF(L315=0,0,(E315*'Product Data and EFs'!K157/1000/'Product Data and EFs'!F157-'Product Emissions Analysis'!L315))","v":0},0,0,{"$f":"IF(N315=0,0,N315*'Product Data and EFs'!L157/1000/'Product Data and EFs'!F157)","v":0},{"$f":"IF(O315=0,0,O315*'Product Data and EFs'!K157/1000/'Product Data and EFs'!F157)","v":0},0,{"$f":"IF(R315=0,0,(E315*'Product Data and EFs'!K157/1000/'Product Data and EFs'!F157-'Product Emissions Analysis'!R315))","v":0},0]
[null,null,null,"Home Monitors-Power Management Enabled","","","",0,0,{"$f":"IF(H316=0,0,H316*'Product Data and EFs'!L158/1000/'Product Data and EFs'!F158)","v":0},{"$f":"IF(I316=0,0,I316*'Product Data and EFs'!K158/1000/'Product Data and EFs'!F158)","v":0},0,{"$f":"IF(L316=0,0,(E316*'Product Data and EFs'!K158/1000/'Product Data and EFs'!F158-'Product Emissions Analysis'!L316))","v":0},0,0,{"$f":"IF(N316=0,0,N316*'Product Data and EFs'!L158/1000/'Product Data and EFs'!F158)","v":0},{"$f":"IF(O316=0,0,O316*'Product Data and EFs'!K158/1000/'Product Data and EFs'!F158)","v":0},0,{"$f":"IF(R316=0,0,(E316*'Product Data and EFs'!K158/1000/'Product Data and EFs'!F158-'Product Emissions Analysis'!R316))","v":0},0]
[null,null,null,"Office Desktop-Power Management Not Enabled","","","",0,0,{"$f":"IF(H317=0,0,H317*'Product Data and EFs'!L159/1000/'Product Data and EFs'!F159)","v":0},{"$f":"IF(I317=0,0,I317*'Product Data and EFs'!K159/1000/'Product Data and EFs'!F159)","v":0},0,{"$f":"IF(L317=0,0,(E317*'Product Data and EFs'!K159/1000/'Product Data and EFs'!F159-'Product Emissions Analysis'!L317))","v":0},0,0,{"$f":"IF(N317=0,0,N317*'Product Data and EFs'!L159/1000/'Product Data and EFs'!F159)","v":0},{"$f":"IF(O317=0,0,O317*'Product Data and EFs'!K159/1000/'Product Data and EFs'!F159)","v":0},0,{"$f":"IF(R317=0,0,(E317*'Product Data and EFs'!K159/1000/'Product Data and EFs'!F159-'Product Emissions Analysis'!R317))","v":0},0]
[null,null,null,"Office Desktop-Power Management Enabled","","","",0,0,{"$f":"IF(H318=0,0,H318*'Product Data and EFs'!L160/1000/'Product Data and EFs'!F160)","v":0},{"$f":"IF(I318=0,0,I318*'Product Data and EFs'!K160/1000/'Product Data and EFs'!F160)","v":0},0,{"$f":"IF(L318=0,0,(E318*'Product Data and EFs'!K160/1000/'Product Data and EFs'!F160-'Product Emissions Analysis'!L318))","v":0},0,0,{"$f":"IF(N318=0,0,N318*'Product Data and EFs'!L160/1000/'Product Data and EFs'!F160)","v":0},{"$f":"IF(O318=0,0,O318*'Product Data and EFs'!K160/1000/'Product Data and EFs'!F160)","v":0},0,{"$f":"IF(R318=0,0,(E318*'Product Data and EFs'!K160/1000/'Product Data and EFs'!F160-'Product Emissions Analysis'!R318))","v":0},0]
[null,null,null,"Office Laptop-Power Management Not Enabled","","","",0,0,{"$f":"IF(H319=0,0,H319*'Product Data and EFs'!L161/1000/'Product Data and EFs'!F161)","v":0},{"$f":"IF(I319=0,0,I319*'Product Data and EFs'!K161/1000/'Product Data and EFs'!F161)","v":0},0,{"$f":"IF(L319=0,0,(E319*'Product Data and EFs'!K161/1000/'Product Data and EFs'!F161-'Product Emissions Analysis'!L319))","v":0},0,0,{"$f":"IF(N319=0,0,N319*'Product Data and EFs'!L161/1000/'Product Data and EFs'!F161)","v":0},{"$f":"IF(O319=0,0,O319*'Product Data and EFs'!K161/1000/'Product Data and EFs'!F161)","v":0},0,{"$f":"IF(R319=0,0,(E319*'Product Data and EFs'!K161/1000/'Product Data and EFs'!F161-'Product Emissions Analysis'!R319))","v":0},0]
[null,null,null,"Office Laptop-Power Management Enabled","","","",0,0,{"$f":"IF(H320=0,0,H320*'Product Data and EFs'!L162/1000/'Product Data and EFs'!F162)","v":0},{"$f":"IF(I320=0,0,I320*'Product Data and EFs'!K162/1000/'Product Data and EFs'!F162)","v":0},0,{"$f":"IF(L320=0,0,(E320*'Product Data and EFs'!K162/1000/'Product Data and EFs'!F162-'Product Emissions Analysis'!L320))","v":0},0,0,{"$f":"IF(N320=0,0,N320*'Product Data and EFs'!L162/1000/'Product Data and EFs'!F162)","v":0},{"$f":"IF(O320=0,0,O320*'Product Data and EFs'!K162/1000/'Product Data and EFs'!F162)","v":0},0,{"$f":"IF(R320=0,0,(E320*'Product Data and EFs'!K162/1000/'Product Data and EFs'!F162-'Product Emissions Analysis'!R320))","v":0},0]
[null,null,null,"Office Monitors-Power Management Not Enabled","","","",0,0,{"$f":"IF(H321=0,0,H321*'Product Data and EFs'!L163/1000/'Product Data and EFs'!F163)","v":0},{"$f":"IF(I321=0,0,I321*'Product Data and EFs'!K163/1000/'Product Data and EFs'!F163)","v":0},0,{"$f":"IF(L321=0,0,(E321*'Product Data and EFs'!K163/1000/'Product Data and EFs'!F163-'Product Emissions Analysis'!L321))","v":0},0,0,{"$f":"IF(N321=0,0,N321*'Product Data and EFs'!L163/1000/'Product Data and EFs'!F163)","v":0},{"$f":"IF(O321=0,0,O321*'Product Data and EFs'!K163/1000/'Product Data and EFs'!F163)","v":0},0,{"$f":"IF(R321=0,0,(E321*'Product Data and EFs'!K163/1000/'Product Data and EFs'!F163-'Product Emissions Analysis'!R321))","v":0},0]
[null,null,null,"Office Monitors-Power Management Enabled","","","",0,0,{"$f":"IF(H322=0,0,H322*'Product Data and EFs'!L164/1000/'Product Data and EFs'!F164)","v":0},{"$f":"IF(I322=0,0,I322*'Product Data and EFs'!K164/1000/'Product Data and EFs'!F164)","v":0},0,{"$f":"IF(L322=0,0,(E322*'Product Data and EFs'!K164/1000/'Product Data and EFs'!F164-'Product Emissions Analysis'!L322))","v":0},0,0,{"$f":"IF(N322=0,0,N322*'Product Data and EFs'!L164/1000/'Product Data and EFs'!F164)","v":0},{"$f":"IF(O322=0,0,O322*'Product Data and EFs'!K164/1000/'Product Data and EFs'!F164)","v":0},0,{"$f":"IF(R322=0,0,(E322*'Product Data and EFs'!K164/1000/'Product Data and EFs'!F164-'Product Emissions Analysis'!R322))","v":0},0]
[null,null,null,"TOTAL",0,"NA","NA",{"$f":"SUM(H311:H322)","v":0},0,0,0,0,0,0,0,0,0,0,0,0]
[]
[]
[]
[null,null,null,"Heating and Cooling"]
[]
[null,null,null,"Lifetime"]
[]
[null,null,null,null,null,null,null,"Current",null,null,null,null,null,"Increased ENERGY STAR Sales"]
[null,null,null,"Product Type","Total Unit Sales","% of Current Sales that are ENERGY STAR","Enter a Higher % of Sales that are ENERGY STAR for Analysis\n","Total ENERGY STAR Product Sales","Total Standard Product Sales","Lifetime Product Use Emissions - ENERGY STAR (Metric Tons CO2e)","Lifetime Product Use Emissions - Standard (Metric Tons CO2e)","Lifetime Total Product Use Emissions (Metric Tons CO2e)","Lifetime Emissions Savings from ENERGY STAR Product Sales\n(Metric Tons CO2e)","Total ENERGY STAR Product Sales","Total Standard Product Sales","Lifetime Product Use Emissions - ENERGY STAR (Metric Tons CO2e)","Lifetime Product Use Emissions - Standard (Metric Tons CO2e)","Lifetime Total Product Use Emissions (Metric Tons CO2e)","Lifetime Emissions Savings from ENERGY STAR Product Sales\n(Metric Tons CO2e)","Additional Lifetime Emissions Savings Achieved with Increased ENERGY STAR Sales\n(Metric Tons CO2e)"]
[null,null,null,"Furnace (Gas)",null,null,null,{"$f":"IF(F333=\"\",0,ROUND(E333*F333,0))","v":0},{"$f":"IF(F333=\"\",0,E333-H333)","v":0},{"$f":"IF(H333=0,0,H333*'Product Data and EFs'!L171/1000)","v":0},{"$f":"IF(I333=0,0,I333*'Product Data and EFs'!K171/1000)","v":0},{"$f":"IF(F333=\"\",0,SUM(J333:K333))","v":0},{"$f":"IF(L333=0,0,(E333*'Product Data and EFs'!K171/1000-'Product Emissions Analysis'!L333))","v":0},{"$f":"IF(G333=\"\",0,ROUND(E333*G333,0))","v":0},{"$f":"IF(G333=\"\",0,E333-N333)","v":0},{"$f":"IF(N333=0,0,N333*'Product Data and EFs'!L171/1000)","v":0},{"$f":"IF(O333=0,0,O333*'Product Data and EFs'!K171/1000)","v":0},{"$f":"IF(G333=\"\",0,SUM(P333:Q333))","v":0},{"$f":"IF(R333=0,0,(E333*'Product Data and EFs'!K171/1000-'Product Emissions Analysis'!R333))","v":0},{"$f":"IF(G333=\"\",0,L333-R333)","v":0}]
[null,null,null,"Furnace (Oil)",null,null,null,{"$f":"IF(F334=\"\",0,ROUND(E334*F334,0))","v":0},{"$f":"IF(F334=\"\",0,E334-H334)","v":0},{"$f":"IF(H334=0,0,H334*'Product Data and EFs'!L172/1000)","v":0},{"$f":"IF(I334=0,0,I334*'Product Data and EFs'!K172/1000)","v":0},{"$f":"IF(F334=\"\",0,SUM(J334:K334))","v":0},{"$f":"IF(L334=0,0,(E334*'Product Data and EFs'!K172/1000-'Product Emissions Analysis'!L334))","v":0},{"$f":"IF(G334=\"\",0,ROUND(E334*G334,0))","v":0},{"$f":"IF(G334=\"\",0,E334-N334)","v":0},{"$f":"IF(N334=0,0,N334*'Product Data and EFs'!L172/1000)","v":0},{"$f":"IF(O334=0,0,O334*'Product Data and EFs'!K172/1000)","v":0},{"$f":"IF(G334=\"\",0,SUM(P334:Q334))","v":0},{"$f":"IF(R334=0,0,(E334*'Product Data and EFs'!K172/1000-'Product Emissions Analysis'!R334))","v":0},{"$f":"IF(G334=\"\",0,L334-R334)","v":0}]
[null,null,null,"Furnace (Gas) - North",null,null,null,0,0,{"$f":"IF(H335=0,0,H335*'Product Data and EFs'!L173/1000)","v":0},{"$f":"IF(I335=0,0,I335*'Product Data and EFs'!K173/1000)","v":0},0,{"$f":"IF(L335=0,0,(E335*'Product Data and EFs'!K173/1000-'Product Emissions Analysis'!L335))","v":0},0,0,{"$f":"IF(N335=0,0,N335*'Product Data and EFs'!L173/1000)","v":0},{"$f":"IF(O335=0,0,O335*'Product Data and EFs'!K173/1000)","v":0},0,{"$f":"IF(R335=0,0,(E335*'Product Data and EFs'!K173/1000-'Product Emissions Analysis'!R335))","v":0},0]
[null,null,null,"Furnace (Gas) - South",null,null,null,0,0,{"$f":"IF(H336=0,0,H336*'Product Data and EFs'!L174/1000)","v":0},{"$f":"IF(I336=0,0,I336*'Product Data and EFs'!K174/1000)","v":0},0,{"$f":"IF(L336=0,0,(E336*'Product Data and EFs'!K174/1000-'Product Emissions Analysis'!L336))","v":0},0,0,{"$f":"IF(N336=0,0,N336*'Product Data and EFs'!L174/1000)","v":0},{"$f":"IF(O336=0,0,O336*'Product Data and EFs'!K174/1000)","v":0},0,{"$f":"IF(R336=0,0,(E336*'Product Data and EFs'!K174/1000-'Product Emissions Analysis'!R336))","v":0},0]
[null,null,null,"Central Air Conditioner",null,null,null,0,0,{"$f":"IF(H337=0,0,H337*'Product Data and EFs'!L175/1000)","v":0},{"$f":"IF(I337=0,0,I337*'Product Data and EFs'!K175/1000)","v":0},0,{"$f":"IF(L337=0,0,(E337*'Product Data and EFs'!K175/1000-'Product Emissions Analysis'!L337))","v":0},0,0,{"$f":"IF(N337=0,0,N337*'Product Data and EFs'!L175/1000)","v":0},{"$f":"IF(O337=0,0,O337*'Product Data and EFs'!K175/1000)","v":0},0,{"$f":"IF(R337=0,0,(E337*'Product Data and EFs'!K175/1000-'Product Emissions Analysis'!R337))","v":0},0]
[null,null,null,"Air-Source Heat Pump",null,null,null,0,0,{"$f":"IF(H338=0,0,H338*'Product Data and EFs'!L176/1000)","v":0},{"$f":"IF(I338=0,0,I338*'Product Data and EFs'!K176/1000)","v":0},0,{"$f":"IF(L338=0,0,(E338*'Product Data and EFs'!K176/1000-'Product Emissions Analysis'!L338))","v":0},0,0,{"$f":"IF(N338=0,0,N338*'Product Data and EFs'!L176/1000)","v":0},{"$f":"IF(O338=0,0,O338*'Product Data and EFs'!K176/1000)","v":0},0,{"$f":"IF(R338=0,0,(E338*'Product Data and EFs'!K176/1000-'Product Emissions Analysis'!R338))","v":0},0]
[null,null,null,"Geothermal Heat Pump",null,null,null,0,0,{"$f":"IF(H339=0,0,H339*'Product Data and EFs'!L177/1000)","v":0},{"$f":"IF(I339=0,0,I339*'Product Data and EFs'!K177/1000)","v":0},0,{"$f":"IF(L339=0,0,(E339*'Product Data and EFs'!K177/1000-'Product Emissions Analysis'!L339))","v":0},0,0,{"$f":"IF(N339=0,0,N339*'Product Data and EFs'!L177/1000)","v":0},{"$f":"IF(O339=0,0,O339*'Product Data and EFs'!K177/1000)","v":0},0,{"$f":"IF(R339=0,0,(E339*'Product Data and EFs'!K177/1000-'Product Emissions Analysis'!R339))","v":0},0]
[null,null,null,"Boiler - Gas",null,null,null,0,0,{"$f":"IF(H340=0,0,H340*'Product Data and EFs'!L178/1000)","v":0},{"$f":"IF(I340=0,0,I340*'Product Data and EFs'!K178/1000)","v":0},0,{"$f":"IF(L340=0,0,(E340*'Product Data and EFs'!K178/1000-'Product Emissions Analysis'!L340))","v":0},0,0,{"$f":"IF(N340=0,0,N340*'Product Data and EFs'!L178/1000)","v":0},{"$f":"IF(O340=0,0,O340*'Product Data and EFs'!K178/1000)","v":0},0,{"$f":"IF(R340=0,0,(E340*'Product Data and EFs'!K178/1000-'Product Emissions Analysis'!R340))","v":0},0]
[null,null,null,"Boiler - Oil",null,null,null,0,0,{"$f":"IF(H341=0,0,H341*'Product Data and EFs'!L179/1000)","v":0},{"$f":"IF(I341=0,0,I341*'Product Data and EFs'!K179/1000)","v":0},0,{"$f":"IF(L341=0,0,(E341*'Product Data and EFs'!K179/1000-'Product Emissions Analysis'!L341))","v":0},0,0,{"$f":"IF(N341=0,0,N341*'Product Data and EFs'!L179/1000)","v":0},{"$f":"IF(O341=0,0,O341*'Product Data and EFs'!K179/1000)","v":0},0,{"$f":"IF(R341=0,0,(E341*'Product Data and EFs'!K179/1000-'Product Emissions Analysis'!R341))","v":0},0]
[null,null,null,"Smart Thermostats",null,null,null,{"$f":"IF(F342=\"\",0,ROUND(E342*F342,0))","v":0},{"$f":"IF(F342=\"\",0,E342-H342)","v":0},{"$f":"IF(H342=0,0,H342*'Product Data and EFs'!L180/1000)","v":0},{"$f":"IF(I342=0,0,I342*'Product Data and EFs'!K180/1000)","v":0},{"$f":"IF(F342=\"\",0,SUM(J342:K342))","v":0},{"$f":"IF(L342=0,0,(E342*'Product Data and EFs'!K180/1000-'Product Emissions Analysis'!L342))","v":0},{"$f":"IF(G342=\"\",0,ROUND(E342*G342,0))","v":0},{"$f":"IF(G342=\"\",0,E342-N342)","v":0},{"$f":"IF(N342=0,0,N342*'Product Data and EFs'!L180/1000)","v":0},{"$f":"IF(O342=0,0,O342*'Product Data and EFs'!K180/1000)","v":0},{"$f":"IF(G342=\"\",0,SUM(P342:Q342))","v":0},{"$f":"IF(R342=0,0,(E342*'Product Data and EFs'!K180/1000-'Product Emissions Analysis'!R342))","v":0},{"$f":"IF(G342=\"\",0,L342-R342)","v":0}]
[null,null,null,"TOTAL",{"$f":"SUM(E333:E342)","v":0},"NA","NA",{"$f":"SUM(H333:H342)","v":0},{"$f":"SUM(I333:I342)","v":0},0,0,0,0,0,0,0,0,0,0,0]
[]
[null,null,null,"Annual"]
[]
[null,null,null,null,null,null,null,"Current",null,null,null,null,null,"Increased ENERGY STAR Sales"]
[null,null,null,"Product Type","Total Unit Sales","% of Current Sales that are ENERGY STAR","Higher % of Sales that are ENERGY STAR for Analysis","Total ENERGY STAR Product Sales","Total Standard Product Sales","Annual Product Use Emissions - ENERGY STAR (Metric Tons CO2e)","Annual Product Use Emissions - Standard (Metric Tons CO2e)","Annual Total Product Use Emissions (Metric Tons CO2e)","Annual Emissions Savings from ENERGY STAR Product Sales\n(Metric Tons CO2e)","Total ENERGY STAR Product Sales","Total Standard Product Sales","Annual Product Use Emissions - ENERGY STAR (Metric Tons CO2e)","Annual Product Use Emissions - Standard (Metric Tons CO2e)","Annual Total Product Use Emissions (Metric Tons CO2e)","Annual Emissions Savings from ENERGY STAR Product Sales\n(Metric Tons CO2e)","Additional Annual Emissions Savings Achieved with Increased ENERGY STAR Sales\n(Metric Tons CO2e)"]
[null,null,null,"Furnace (Gas)",{"$f":"IF(E333=\"\",\"\",E333)","v":""},"","",{"$f":"IF(F349=\"\",0,ROUND(E349*F349,0))","v":0},{"$f":"IF(F349=\"\",0,E349-H349)","v":0},{"$f":"IF(H349=0,0,H349*'Product Data and EFs'!L171/1000/'Product Data and EFs'!F171)","v":0},{"$f":"IF(I349=0,0,I349*'Product Data and EFs'!K171/1000/'Product Data and EFs'!F171)","v":0},{"$f":"IF(F349=\"\",0,SUM(J349:K349))","v":0},{"$f":"IF(L349=0,0,(E349*'Product Data and EFs'!K171/1000/'Product Data and EFs'!F171-'Product Emissions Analysis'!L349))","v":0},{"$f":"IF(G349=\"\",0,ROUND(E349*G349,0))","v":0},{"$f":"IF(G349=\"\",0,E349-N349)","v":0},{"$f":"IF(N349=0,0,N349*'Product Data and EFs'!L171/1000/'Product Data and EFs'!F171)","v":0},{"$f":"IF(O349=0,0,O349*'Product Data and EFs'!K171/1000/'Product Data and EFs'!F171)","v":0},{"$f":"IF(G349=\"\",0,SUM(P349:Q349))","v":0},{"$f":"IF(R349=0,0,(E349*'Product Data and EFs'!K171/1000/'Product Data and EFs'!F171-'Product Emissions Analysis'!R349))","v":0},{"$f":"IF(G349=\"\",0,L349-R349)","v":0}]
[null,null,null,"Furnace (Oil)","","","",{"$f":"IF(F350=\"\",0,ROUND(E350*F350,0))","v":0},{"$f":"IF(F350=\"\",0,E350-H350)","v":0},{"$f":"IF(H350=0,0,H350*'Product Data and EFs'!L172/1000/'Product Data and EFs'!F172)","v":0},{"$f":"IF(I350=0,0,I350*'Product Data and EFs'!K172/1000/'Product Data and EFs'!F172)","v":0},{"$f":"IF(F350=\"\",0,SUM(J350:K350))","v":0},{"$f":"IF(L350=0,0,(E350*'Product Data and EFs'!K172/1000/'Product Data and EFs'!F172-'Product Emissions Analysis'!L350))","v":0},{"$f":"IF(G350=\"\",0,ROUND(E350*G350,0))","v":0},{"$f":"IF(G350=\"\",0,E350-N350)","v":0},{"$f":"IF(N350=0,0,N350*'Product Data and EFs'!L172/1000/'Product Data and EFs'!F172)","v":0},{"$f":"IF(O350=0,0,O350*'Product Data and EFs'!K172/1000/'Product Data and EFs'!F172)","v":0},{"$f":"IF(G350=\"\",0,SUM(P350:Q350))","v":0},{"$f":"IF(R350=0,0,(E350*'Product Data and EFs'!K172/1000/'Product Data and EFs'!F172-'Product Emissions Analysis'!R350))","v":0},{"$f":"IF(G350=\"\",0,L350-R350)","v":0}]
[null,null,null,"Furnace (Gas) - North","","","",0,0,{"$f":"IF(H351=0,0,H351*'Product Data and EFs'!L173/1000/'Product Data and EFs'!F173)","v":0},{"$f":"IF(I351=0,0,I351*'Product Data and EFs'!K173/1000/'Product Data and EFs'!F173)","v":0},0,{"$f":"IF(L351=0,0,(E351*'Product Data and EFs'!K173/1000/'Product Data and EFs'!F173-'Product Emissions Analysis'!L351))","v":0},0,0,{"$f":"IF(N351=0,0,N351*'Product Data and EFs'!L173/1000/'Product Data and EFs'!F173)","v":0},{"$f":"IF(O351=0,0,O351*'Product Data and EFs'!K173/1000/'Product Data and EFs'!F173)","v":0},0,{"$f":"IF(R351=0,0,(E351*'Product Data and EFs'!K173/1000/'Product Data and EFs'!F173-'Product Emissions Analysis'!R351))","v":0},0]
[null,null,null,"Furnace (Gas) - South","","","",0,0,{"$f":"IF(H352=0,0,H352*'Product Data and EFs'!L174/1000/'Product Data and EFs'!F174)","v":0},{"$f":"IF(I352=0,0,I352*'Product Data and EFs'!K174/1000/'Product Data and EFs'!F174)","v":0},0,{"$f":"IF(L352=0,0,(E352*'Product Data and EFs'!K174/1000/'Product Data and EFs'!F174-'Product Emissions Analysis'!L352))","v":0},0,0,{"$f":"IF(N352=0,0,N352*'Product Data and EFs'!L174/1000/'Product Data and EFs'!F174)","v":0},{"$f":"IF(O352=0,0,O352*'Product Data and EFs'!K174/1000/'Product Data and EFs'!F174)","v":0},0,{"$f":"IF(R352=0,0,(E352*'Product Data and EFs'!K174/1000/'Product Data and EFs'!F174-'Product Emissions Analysis'!R352))","v":0},0]
[null,null,null,"Central Air Conditioner","","","",0,0,{"$f":"IF(H353=0,0,H353*'Product Data and EFs'!L175/1000/'Product Data and EFs'!F175)","v":0},{"$f":"IF(I353=0,0,I353*'Product Data and EFs'!K175/1000/'Product Data and EFs'!F175)","v":0},0,{"$f":"IF(L353=0,0,(E353*'Product Data and EFs'!K175/1000/'Product Data and EFs'!F175-'Product Emissions Analysis'!L353))","v":0},0,0,{"$f":"IF(N353=0,0,N353*'Product Data and EFs'!L175/1000/'Product Data and EFs'!F175)","v":0},{"$f":"IF(O353=0,0,O353*'Product Data and EFs'!K175/1000/'Product Data and EFs'!F175)","v":0},0,{"$f":"IF(R353=0,0,(E353*'Product Data and EFs'!K175/1000/'Product Data and EFs'!F175-'Product Emissions Analysis'!R353))","v":0},0]
[null,null,null,"Air-Source Heat Pump","","","",0,0,{"$f":"IF(H354=0,0,H354*'Product Data and EFs'!L176/1000/'Product Data and EFs'!F176)","v":0},{"$f":"IF(I354=0,0,I354*'Product Data and EFs'!K176/1000/'Product Data and EFs'!F176)","v":0},0,{"$f":"IF(L354=0,0,(E354*'Product Data and EFs'!K176/1000/'Product Data and EFs'!F176-'Product Emissions Analysis'!L354))","v":0},0,0,{"$f":"IF(N354=0,0,N354*'Product Data and EFs'!L176/1000/'Product Data and EFs'!F176)","v":0},{"$f":"IF(O354=0,0,O354*'Product Data and EFs'!K176/1000/'Product Data and EFs'!F176)","v":0},0,{"$f":"IF(R354=0,0,(E354*'Product Data and EFs'!K176/1000/'Product Data and EFs'!F176-'Product Emissions Analysis'!R354))","v":0},0]
[null,null,null,"Geothermal Heat Pump","","","",0,0,{"$f":"IF(H355=0,0,H355*'Product Data and EFs'!L177/1000/'Product Data and EFs'!F177)","v":0},{"$f":"IF(I355=0,0,I355*'Product Data and EFs'!K177/1000/'Product Data and EFs'!F177)","v":0},0,{"$f":"IF(L355=0,0,(E355*'Product Data and EFs'!K177/1000/'Product Data and EFs'!F177-'Product Emissions Analysis'!L355))","v":0},0,0,{"$f":"IF(N355=0,0,N355*'Product Data and EFs'!L177/1000/'Product Data and EFs'!F177)","v":0},{"$f":"IF(O355=0,0,O355*'Product Data and EFs'!K177/1000/'Product Data and EFs'!F177)","v":0},0,{"$f":"IF(R355=0,0,(E355*'Product Data and EFs'!K177/1000/'Product Data and EFs'!F177-'Product Emissions Analysis'!R355))","v":0},0]
[null,null,null,"Boiler - Gas","","","",0,0,{"$f":"IF(H356=0,0,H356*'Product Data and EFs'!L178/1000/'Product Data and EFs'!F178)","v":0},{"$f":"IF(I356=0,0,I356*'Product Data and EFs'!K178/1000/'Product Data and EFs'!F178)","v":0},0,{"$f":"IF(L356=0,0,(E356*'Product Data and EFs'!K178/1000/'Product Data and EFs'!F178-'Product Emissions Analysis'!L356))","v":0},0,0,{"$f":"IF(N356=0,0,N356*'Product Data and EFs'!L178/1000/'Product Data and EFs'!F178)","v":0},{"$f":"IF(O356=0,0,O356*'Product Data and EFs'!K178/1000/'Product Data and EFs'!F178)","v":0},0,{"$f":"IF(R356=0,0,(E356*'Product Data and EFs'!K178/1000/'Product Data and EFs'!F178-'Product Emissions Analysis'!R356))","v":0},0]
[null,null,null,"Boiler - Oil","","","",0,0,{"$f":"IF(H357=0,0,H357*'Product Data and EFs'!L179/1000/'Product Data and EFs'!F179)","v":0},{"$f":"IF(I357=0,0,I357*'Product Data and EFs'!K179/1000/'Product Data and EFs'!F179)","v":0},0,{"$f":"IF(L357=0,0,(E357*'Product Data and EFs'!K179/1000/'Product Data and EFs'!F179-'Product Emissions Analysis'!L357))","v":0},0,0,{"$f":"IF(N357=0,0,N357*'Product Data and EFs'!L179/1000/'Product Data and EFs'!F179)","v":0},{"$f":"IF(O357=0,0,O357*'Product Data and EFs'!K179/1000/'Product Data and EFs'!F179)","v":0},0,{"$f":"IF(R357=0,0,(E357*'Product Data and EFs'!K179/1000/'Product Data and EFs'!F179-'Product Emissions Analysis'!R357))","v":0},0]
[null,null,null,"TOTAL",{"$f":"IF(E343=\"\",\"\",E343)","v":0},"NA","NA",{"$f":"SUM(H349:H357)","v":0},0,0,0,0,0,0,0,0,0,0,0,0]
[]
[]
[]
[null,null,null,"Commercial Appliances"]
[]
[null,null,null,"Lifetime"]
[]
[null,null,null,null,null,null,null,"Current",null,null,null,null,null,"Increased ENERGY STAR Sales"]
[null,null,null,"Product Type","Total Unit Sales","% of Current Sales that are ENERGY STAR","Enter a Higher % of Sales that are ENERGY STAR for Analysis\n","Total ENERGY STAR Product Sales","Total Standard Product Sales","Lifetime Product Use Emissions - ENERGY STAR (Metric Tons CO2e)","Lifetime Product Use Emissions - Standard (Metric Tons CO2e)","Lifetime Total Product Use Emissions (Metric Tons CO2e)","Lifetime Emissions Savings from ENERGY STAR Product Sales\n(Metric Tons CO2e)","Total ENERGY STAR Product Sales","Total Standard Product Sales","Lifetime Product Use Emissions - ENERGY STAR (Metric Tons CO2e)","Lifetime Product Use Emissions - Standard (Metric Tons CO2e)","Lifetime Total Product Use Emissions (Metric Tons CO2e)","Lifetime Emissions Savings from ENERGY STAR Product Sales\n(Metric Tons CO2e)","Additional Lifetime Emissions Savings Achieved with Increased ENERGY STAR Sales\n(Metric Tons CO2e)"]
[null,null,null,"Water Coolers - Hot and Cold",null,null,null,{"$f":"IF(F368=\"\",0,ROUND(E368*F368,0))","v":0},{"$f":"IF(F368=\"\",0,E368-H368)","v":0},{"$f":"IF(H368=0,0,H368*'Product Data and EFs'!L187/1000)","v":0},{"$f":"IF(I368=0,0,I368*'Product Data and EFs'!K187/1000)","v":0},{"$f":"IF(F368=\"\",0,SUM(J368:K368))","v":0},{"$f":"IF(L368=0,0,(E368*'Product Data and EFs'!K187/1000-'Product Emissions Analysis'!L368))","v":0},{"$f":"IF(G368=\"\",0,ROUND(E368*G368,0))","v":0},{"$f":"IF(G368=\"\",0,E368-N368)","v":0},{"$f":"IF(N368=0,0,N368*'Product Data and EFs'!L187/1000)","v":0},{"$f":"IF(O368=0,0,O368*'Product Data and EFs'!K187/1000)","v":0},{"$f":"IF(G368=\"\",0,SUM(P368:Q368))","v":0},{"$f":"IF(R368=0,0,(E368*'Product Data and EFs'!K187/1000-'Product Emissions Analysis'!R368))","v":0},{"$f":"IF(G368=\"\",0,L368-R368)","v":0}]
[null,null,null,"Water Coolers - Cook and Cold",null,null,null,{"$f":"IF(F369=\"\",0,ROUND(E369*F369,0))","v":0},{"$f":"IF(F369=\"\",0,E369-H369)","v":0},{"$f":"IF(H369=0,0,H369*'Product Data and EFs'!L188/1000)","v":0},{"$f":"IF(I369=0,0,I369*'Product Data and EFs'!K188/1000)","v":0},{"$f":"IF(F369=\"\",0,SUM(J369:K369))","v":0},{"$f":"IF(L369=0,0,(E369*'Product Data and EFs'!K188/1000-'Product Emissions Analysis'!L369))","v":0},{"$f":"IF(G369=\"\",0,ROUND(E369*G369,0))","v":0},{"$f":"IF(G369=\"\",0,E369-N369)","v":0},{"$f":"IF(N369=0,0,N369*'Product Data and EFs'!L188/1000)","v":0},{"$f":"IF(O369=0,0,O369*'Product Data and EFs'!K188/1000)","v":0},{"$f":"IF(G369=\"\",0,SUM(P369:Q369))","v":0},{"$f":"IF(R369=0,0,(E369*'Product Data and EFs'!K188/1000-'Product Emissions Analysis'!R369))","v":0},{"$f":"IF(G369=\"\",0,L369-R369)","v":0}]
[null,null,null,"Commercial Refrigerators - Vertical Closed Solid Door",null,null,null,0,0,{"$f":"IF(H370=0,0,H370*'Product Data and EFs'!L189/1000)","v":0},{"$f":"IF(I370=0,0,I370*'Product Data and EFs'!K189/1000)","v":0},0,{"$f":"IF(L370=0,0,(E370*'Product Data and EFs'!K189/1000-'Product Emissions Analysis'!L370))","v":0},0,0,{"$f":"IF(N370=0,0,N370*'Product Data and EFs'!L189/1000)","v":0},{"$f":"IF(O370=0,0,O370*'Product Data and EFs'!K189/1000)","v":0},0,{"$f":"IF(R370=0,0,(E370*'Product Data and EFs'!K189/1000-'Product Emissions Analysis'!R370))","v":0},0]
[null,null,null,"Commercial Refrigerators - Vertical Closed Transparent Door",null,null,null,0,0,{"$f":"IF(H371=0,0,H371*'Product Data and EFs'!L190/1000)","v":0},{"$f":"IF(I371=0,0,I371*'Product Data and EFs'!K190/1000)","v":0},0,{"$f":"IF(L371=0,0,(E371*'Product Data and EFs'!K190/1000-'Product Emissions Analysis'!L371))","v":0},0,0,{"$f":"IF(N371=0,0,N371*'Product Data and EFs'!L190/1000)","v":0},{"$f":"IF(O371=0,0,O371*'Product Data and EFs'!K190/1000)","v":0},0,{"$f":"IF(R371=0,0,(E371*'Product Data and EFs'!K190/1000-'Product Emissions Analysis'!R371))","v":0},0]
[null,null,null,"Commercial Refrigerators - Horizontal Closed Solid and Transparent",null,null,null,0,0,{"$f":"IF(H372=0,0,H372*'Product Data and EFs'!L191/1000)","v":0},{"$f":"IF(I372=0,0,I372*'Product Data and EFs'!K191/1000)","v":0},0,{"$f":"IF(L372=0,0,(E372*'Product Data and EFs'!K191/1000-'Product Emissions Analysis'!L372))","v":0},0,0,{"$f":"IF(N372=0,0,N372*'Product Data and EFs'!L191/1000)","v":0},{"$f":"IF(O372=0,0,O372*'Product Data and EFs'!K191/1000)","v":0},0,{"$f":"IF(R372=0,0,(E372*'Product Data and EFs'!K191/1000-'Product Emissions Analysis'!R372))","v":0},0]
[null,null,null,"Commercial Freezers - Vertical Closed Solid Door",null,null,null,0,0,{"$f":"IF(H373=0,0,H373*'Product Data and EFs'!L192/1000)","v":0},{"$f":"IF(I373=0,0,I373*'Product Data and EFs'!K192/1000)","v":0},0,{"$f":"IF(L373=0,0,(E373*'Product Data and EFs'!K192/1000-'Product Emissions Analysis'!L373))","v":0},0,0,{"$f":"IF(N373=0,0,N373*'Product Data and EFs'!L192/1000)","v":0},{"$f":"IF(O373=0,0,O373*'Product Data and EFs'!K192/1000)","v":0},0,{"$f":"IF(R373=0,0,(E373*'Product Data and EFs'!K192/1000-'Product Emissions Analysis'!R373))","v":0},0]
[null,null,null,"Commercial Freezers - Vertical Closed Transparent Door",null,null,null,0,0,{"$f":"IF(H374=0,0,H374*'Product Data and EFs'!L193/1000)","v":0},{"$f":"IF(I374=0,0,I374*'Product Data and EFs'!K193/1000)","v":0},0,{"$f":"IF(L374=0,0,(E374*'Product Data and EFs'!K193/1000-'Product Emissions Analysis'!L374))","v":0},0,0,{"$f":"IF(N374=0,0,N374*'Product Data and EFs'!L193/1000)","v":0},{"$f":"IF(O374=0,0,O374*'Product Data and EFs'!K193/1000)","v":0},0,{"$f":"IF(R374=0,0,(E374*'Product Data and EFs'!K193/1000-'Product Emissions Analysis'!R374))","v":0},0]
[null,null,null,"Commercial Freezers - Horizontal Closed Solid and Transparent",null,null,null,0,0,{"$f":"IF(H375=0,0,H375*'Product Data and EFs'!L194/1000)","v":0},{"$f":"IF(I375=0,0,I375*'Product Data and EFs'!K194/1000)","v":0},0,{"$f":"IF(L375=0,0,(E375*'Product Data and EFs'!K194/1000-'Product Emissions Analysis'!L375))","v":0},0,0,{"$f":"IF(N375=0,0,N375*'Product Data and EFs'!L194/1000)","v":0},{"$f":"IF(O375=0,0,O375*'Product Data and EFs'!K194/1000)","v":0},0,{"$f":"IF(R375=0,0,(E375*'Product Data and EFs'!K194/1000-'Product Emissions Analysis'!R375))","v":0},0]
[null,null,null,"Hot Food Holding Cabinets",null,null,null,0,0,{"$f":"IF(H376=0,0,H376*'Product Data and EFs'!L195/1000)","v":0},{"$f":"IF(I376=0,0,I376*'Product Data and EFs'!K195/1000)","v":0},0,{"$f":"IF(L376=0,0,(E376*'Product Data and EFs'!K195/1000-'Product Emissions Analysis'!L376))","v":0},0,0,{"$f":"IF(N376=0,0,N376*'Product Data and EFs'!L195/1000)","v":0},{"$f":"IF(O376=0,0,O376*'Product Data and EFs'!K195/1000)","v":0},0,{"$f":"IF(R376=0,0,(E376*'Product Data and EFs'!K195/1000-'Product Emissions Analysis'!R376))","v":0},0]
[null,null,null,"Fryers (Large Vat) - Electric Fryers",null,null,null,0,0,{"$f":"IF(H377=0,0,H377*'Product Data and EFs'!L196/1000)","v":0},{"$f":"IF(I377=0,0,I377*'Product Data and EFs'!K196/1000)","v":0},0,{"$f":"IF(L377=0,0,(E377*'Product Data and EFs'!K196/1000-'Product Emissions Analysis'!L377))","v":0},0,0,{"$f":"IF(N377=0,0,N377*'Product Data and EFs'!L196/1000)","v":0},{"$f":"IF(O377=0,0,O377*'Product Data and EFs'!K196/1000)","v":0},0,{"$f":"IF(R377=0,0,(E377*'Product Data and EFs'!K196/1000-'Product Emissions Analysis'!R377))","v":0},0]
[null,null,null,"Fryers (Large Vat) - Gas Fryers",null,null,null,0,0,{"$f":"IF(H378=0,0,H378*'Product Data and EFs'!L197/1000)","v":0},{"$f":"IF(I378=0,0,I378*'Product Data and EFs'!K197/1000)","v":0},0,{"$f":"IF(L378=0,0,(E378*'Product Data and EFs'!K197/1000-'Product Emissions Analysis'!L378))","v":0},0,0,{"$f":"IF(N378=0,0,N378*'Product Data and EFs'!L197/1000)","v":0},{"$f":"IF(O378=0,0,O378*'Product Data and EFs'!K197/1000)","v":0},0,{"$f":"IF(R378=0,0,(E378*'Product Data and EFs'!K197/1000-'Product Emissions Analysis'!R378))","v":0},0]
[null,null,null,"Fryers (Standard) - Electric Fryers",null,null,null,0,0,{"$f":"IF(H379=0,0,H379*'Product Data and EFs'!L198/1000)","v":0},{"$f":"IF(I379=0,0,I379*'Product Data and EFs'!K198/1000)","v":0},0,{"$f":"IF(L379=0,0,(E379*'Product Data and EFs'!K198/1000-'Product Emissions Analysis'!L379))","v":0},0,0,{"$f":"IF(N379=0,0,N379*'Product Data and EFs'!L198/1000)","v":0},{"$f":"IF(O379=0,0,O379*'Product Data and EFs'!K198/1000)","v":0},0,{"$f":"IF(R379=0,0,(E379*'Product Data and EFs'!K198/1000-'Product Emissions Analysis'!R379))","v":0},0]
[null,null,null,"Fryers (Standard) - Gas Fryers",null,null,null,0,0,{"$f":"IF(H380=0,0,H380*'Product Data and EFs'!L199/1000)","v":0},{"$f":"IF(I380=0,0,I380*'Product Data and EFs'!K199/1000)","v":0},0,{"$f":"IF(L380=0,0,(E380*'Product Data and EFs'!K199/1000-'Product Emissions Analysis'!L380))","v":0},0,0,{"$f":"IF(N380=0,0,N380*'Product Data and EFs'!L199/1000)","v":0},{"$f":"IF(O380=0,0,O380*'Product Data and EFs'!K199/1000)","v":0},0,{"$f":"IF(R380=0,0,(E380*'Product Data and EFs'!K199/1000-'Product Emissions Analysis'!R380))","v":0},0]
[null,null,null,"Steamers - Electric Steamers",null,null,null,0,0,{"$f":"IF(H381=0,0,H381*'Product Data and EFs'!L200/1000)","v":0},{"$f":"IF(I381=0,0,I381*'Product Data and EFs'!K200/1000)","v":0},0,{"$f":"IF(L381=0,0,(E381*'Product Data and EFs'!K200/1000-'Product Emissions Analysis'!L381))","v":0},0,0,{"$f":"IF(N381=0,0,N381*'Product Data and EFs'!L200/1000)","v":0},{"$f":"IF(O381=0,0,O381*'Product Data and EFs'!K200/1000)","v":0},0,{"$f":"IF(R381=0,0,(E381*'Product Data and EFs'!K200/1000-'Product Emissions Analysis'!R381))","v":0},0]
[null,null,null,"Steamers - Gas Steamers",null,null,null,0,0,{"$f":"IF(H382=0,0,H382*'Product Data and EFs'!L201/1000)","v":0},{"$f":"IF(I382=0,0,I382*'Product Data and EFs'!K201/1000)","v":0},0,{"$f":"IF(L382=0,0,(E382*'Product Data and EFs'!K201/1000-'Product Emissions Analysis'!L382))","v":0},0,0,{"$f":"IF(N382=0,0,N382*'Product Data and EFs'!L201/1000)","v":0},{"$f":"IF(O382=0,0,O382*'Product Data and EFs'!K201/1000)","v":0},0,{"$f":"IF(R382=0,0,(E382*'Product Data and EFs'!K201/1000-'Product Emissions Analysis'!R382))","v":0},0]
[null,null,null,"Ice Machines - Batch Ice Machines",null,null,null,0,0,{"$f":"IF(H383=0,0,H383*'Product Data and EFs'!L202/1000)","v":0},{"$f":"IF(I383=0,0,I383*'Product Data and EFs'!K202/1000)","v":0},0,{"$f":"IF(L383=0,0,(E383*'Product Data and EFs'!K202/1000-'Product Emissions Analysis'!L383))","v":0},0,0,{"$f":"IF(N383=0,0,N383*'Product Data and EFs'!L202/1000)","v":0},{"$f":"IF(O383=0,0,O383*'Product Data and EFs'!K202/1000)","v":0},0,{"$f":"IF(R383=0,0,(E383*'Product Data and EFs'!K202/1000-'Product Emissions Analysis'!R383))","v":0},0]
[null,null,null,"Ice Machines - Continuous Ice Machines",null,null,null,0,0,{"$f":"IF(H384=0,0,H384*'Product Data and EFs'!L203/1000)","v":0},{"$f":"IF(I384=0,0,I384*'Product Data and EFs'!K203/1000)","v":0},0,{"$f":"IF(L384=0,0,(E384*'Product Data and EFs'!K203/1000-'Product Emissions Analysis'!L384))","v":0},0,0,{"$f":"IF(N384=0,0,N384*'Product Data and EFs'!L203/1000)","v":0},{"$f":"IF(O384=0,0,O384*'Product Data and EFs'!K203/1000)","v":0},0,{"$f":"IF(R384=0,0,(E384*'Product Data and EFs'!K203/1000-'Product Emissions Analysis'!R384))","v":0},0]
[null,null,null,"Dishwashers - Flight Type",null,null,null,0,0,{"$f":"IF(H385=0,0,H385*'Product Data and EFs'!L204/1000)","v":0},{"$f":"IF(I385=0,0,I385*'Product Data and EFs'!K204/1000)","v":0},0,{"$f":"IF(L385=0,0,(E385*'Product Data and EFs'!K204/1000-'Product Emissions Analysis'!L385))","v":0},0,0,{"$f":"IF(N385=0,0,N385*'Product Data and EFs'!L204/1000)","v":0},{"$f":"IF(O385=0,0,O385*'Product Data and EFs'!K204/1000)","v":0},0,{"$f":"IF(R385=0,0,(E385*'Product Data and EFs'!K204/1000-'Product Emissions Analysis'!R385))","v":0},0]
[null,null,null,"Dishwashers - Other Dishwasher",null,null,null,0,0,{"$f":"IF(H386=0,0,H386*'Product Data and EFs'!L205/1000)","v":0},{"$f":"IF(I386=0,0,I386*'Product Data and EFs'!K205/1000)","v":0},0,{"$f":"IF(L386=0,0,(E386*'Product Data and EFs'!K205/1000-'Product Emissions Analysis'!L386))","v":0},0,0,{"$f":"IF(N386=0,0,N386*'Product Data and EFs'!L205/1000)","v":0},{"$f":"IF(O386=0,0,O386*'Product Data and EFs'!K205/1000)","v":0},0,{"$f":"IF(R386=0,0,(E386*'Product Data and EFs'!K205/1000-'Product Emissions Analysis'!R386))","v":0},0]
[null,null,null,"Vending Machines",null,null,null,0,0,{"$f":"IF(H387=0,0,H387*'Product Data and EFs'!L206/1000)","v":0},{"$f":"IF(I387=0,0,I387*'Product Data and EFs'!K206/1000)","v":0},0,{"$f":"IF(L387=0,0,(E387*'Product Data and EFs'!K206/1000-'Product Emissions Analysis'!L387))","v":0},0,0,{"$f":"IF(N387=0,0,N387*'Product Data and EFs'!L206/1000)","v":0},{"$f":"IF(O387=0,0,O387*'Product Data and EFs'!K206/1000)","v":0},0,{"$f":"IF(R387=0,0,(E387*'Product Data and EFs'!K206/1000-'Product Emissions Analysis'!R387))","v":0},0]
[null,null,null,"Griddles - Electric Griddles",null,null,null,0,0,{"$f":"IF(H388=0,0,H388*'Product Data and EFs'!L207/1000)","v":0},{"$f":"IF(I388=0,0,I388*'Product Data and EFs'!K207/1000)","v":0},0,{"$f":"IF(L388=0,0,(E388*'Product Data and EFs'!K207/1000-'Product Emissions Analysis'!L388))","v":0},0,0,{"$f":"IF(N388=0,0,N388*'Product Data and EFs'!L207/1000)","v":0},{"$f":"IF(O388=0,0,O388*'Product Data and EFs'!K207/1000)","v":0},0,{"$f":"IF(R388=0,0,(E388*'Product Data and EFs'!K207/1000-'Product Emissions Analysis'!R388))","v":0},0]
[null,null,null,"Griddles - Gas Griddles",null,null,null,0,0,{"$f":"IF(H389=0,0,H389*'Product Data and EFs'!L208/1000)","v":0},{"$f":"IF(I389=0,0,I389*'Product Data and EFs'!K208/1000)","v":0},0,{"$f":"IF(L389=0,0,(E389*'Product Data and EFs'!K208/1000-'Product Emissions Analysis'!L389))","v":0},0,0,{"$f":"IF(N389=0,0,N389*'Product Data and EFs'!L208/1000)","v":0},{"$f":"IF(O389=0,0,O389*'Product Data and EFs'!K208/1000)","v":0},0,{"$f":"IF(R389=0,0,(E389*'Product Data and EFs'!K208/1000-'Product Emissions Analysis'!R389))","v":0},0]
[null,null,null,"Ovens - Full-size Gas Convection Ovens",null,null,null,0,0,{"$f":"IF(H390=0,0,H390*'Product Data and EFs'!L209/1000)","v":0},{"$f":"IF(I390=0,0,I390*'Product Data and EFs'!K209/1000)","v":0},0,{"$f":"IF(L390=0,0,(E390*'Product Data and EFs'!K209/1000-'Product Emissions Analysis'!L390))","v":0},0,0,{"$f":"IF(N390=0,0,N390*'Product Data and EFs'!L209/1000)","v":0},{"$f":"IF(O390=0,0,O390*'Product Data and EFs'!K209/1000)","v":0},0,{"$f":"IF(R390=0,0,(E390*'Product Data and EFs'!K209/1000-'Product Emissions Analysis'!R390))","v":0},0]
[null,null,null,"Ovens - Half-size Electric Convection Ovens",null,null,null,0,0,{"$f":"IF(H391=0,0,H391*'Product Data and EFs'!L210/1000)","v":0},{"$f":"IF(I391=0,0,I391*'Product Data and EFs'!K210/1000)","v":0},0,{"$f":"IF(L391=0,0,(E391*'Product Data and EFs'!K210/1000-'Product Emissions Analysis'!L391))","v":0},0,0,{"$f":"IF(N391=0,0,N391*'Product Data and EFs'!L210/1000)","v":0},{"$f":"IF(O391=0,0,O391*'Product Data and EFs'!K210/1000)","v":0},0,{"$f":"IF(R391=0,0,(E391*'Product Data and EFs'!K210/1000-'Product Emissions Analysis'!R391))","v":0},0]
[null,null,null,"Ovens - Full-size Electric Convection Ovens",null,null,null,0,0,{"$f":"IF(H392=0,0,H392*'Product Data and EFs'!L211/1000)","v":0},{"$f":"IF(I392=0,0,I392*'Product Data and EFs'!K211/1000)","v":0},0,{"$f":"IF(L392=0,0,(E392*'Product Data and EFs'!K211/1000-'Product Emissions Analysis'!L392))","v":0},0,0,{"$f":"IF(N392=0,0,N392*'Product Data and EFs'!L211/1000)","v":0},{"$f":"IF(O392=0,0,O392*'Product Data and EFs'!K211/1000)","v":0},0,{"$f":"IF(R392=0,0,(E392*'Product Data and EFs'!K211/1000-'Product Emissions Analysis'!R392))","v":0},0]
[null,null,null,"Ovens - Gas Combination Ovens",null,null,null,0,0,{"$f":"IF(H393=0,0,H393*'Product Data and EFs'!L212/1000)","v":0},{"$f":"IF(I393=0,0,I393*'Product Data and EFs'!K212/1000)","v":0},0,{"$f":"IF(L393=0,0,(E393*'Product Data and EFs'!K212/1000-'Product Emissions Analysis'!L393))","v":0},0,0,{"$f":"IF(N393=0,0,N393*'Product Data and EFs'!L212/1000)","v":0},{"$f":"IF(O393=0,0,O393*'Product Data and EFs'!K212/1000)","v":0},0,{"$f":"IF(R393=0,0,(E393*'Product Data and EFs'!K212/1000-'Product Emissions Analysis'!R393))","v":0},0]
[null,null,null,"Ovens - Electric Combination Ovens",null,null,null,0,0,{"$f":"IF(H394=0,0,H394*'Product Data and EFs'!L213/1000)","v":0},{"$f":"IF(I394=0,0,I394*'Product Data and EFs'!K213/1000)","v":0},0,{"$f":"IF(L394=0,0,(E394*'Product Data and EFs'!K213/1000-'Product Emissions Analysis'!L394))","v":0},0,0,{"$f":"IF(N394=0,0,N394*'Product Data and EFs'!L213/1000)","v":0},{"$f":"IF(O394=0,0,O394*'Product Data and EFs'!K213/1000)","v":0},0,{"$f":"IF(R394=0,0,(E394*'Product Data and EFs'!K213/1000-'Product Emissions Analysis'!R394))","v":0},0]
[null,null,null,"Ovens - Single Gas Rack Ovens",null,null,null,0,0,{"$f":"IF(H395=0,0,H395*'Product Data and EFs'!L214/1000)","v":0},{"$f":"IF(I395=0,0,I395*'Product Data and EFs'!K214/1000)","v":0},0,{"$f":"IF(L395=0,0,(E395*'Product Data and EFs'!K214/1000-'Product Emissions Analysis'!L395))","v":0},0,0,{"$f":"IF(N395=0,0,N395*'Product Data and EFs'!L214/1000)","v":0},{"$f":"IF(O395=0,0,O395*'Product Data and EFs'!K214/1000)","v":0},0,{"$f":"IF(R395=0,0,(E395*'Product Data and EFs'!K214/1000-'Product Emissions Analysis'!R395))","v":0},0]
[null,null,null,"Ovens - Double Gas Rack Ovens",null,null,null,0,0,{"$f":"IF(H396=0,0,H396*'Product Data and EFs'!L215/1000)","v":0},{"$f":"IF(I396=0,0,I396*'Product Data and EFs'!K215/1000)","v":0},0,{"$f":"IF(L396=0,0,(E396*'Product Data and EFs'!K215/1000-'Product Emissions Analysis'!L396))","v":0},0,0,{"$f":"IF(N396=0,0,N396*'Product Data and EFs'!L215/1000)","v":0},{"$f":"IF(O396=0,0,O396*'Product Data and EFs'!K215/1000)","v":0},0,{"$f":"IF(R396=0,0,(E396*'Product Data and EFs'!K215/1000-'Product Emissions Analysis'!R396))","v":0},0]
[null,null,null,"Clothes Washers",null,null,null,0,0,{"$f":"IF(H397=0,0,H397*'Product Data and EFs'!L216/1000)","v":0},{"$f":"IF(I397=0,0,I397*'Product Data and EFs'!K216/1000)","v":0},0,{"$f":"IF(L397=0,0,(E397*'Product Data and EFs'!K216/1000-'Product Emissions Analysis'!L397))","v":0},0,0,{"$f":"IF(N397=0,0,N397*'Product Data and EFs'!L216/1000)","v":0},{"$f":"IF(O397=0,0,O397*'Product Data and EFs'!K216/1000)","v":0},0,{"$f":"IF(R397=0,0,(E397*'Product Data and EFs'!K216/1000-'Product Emissions Analysis'!R397))","v":0},0]
[null,null,null,"Water Heaters - Gas-fired Storage Water Heaters",null,null,null,0,0,{"$f":"IF(H398=0,0,H398*'Product Data and EFs'!L217/1000)","v":0},{"$f":"IF(I398=0,0,I398*'Product Data and EFs'!K217/1000)","v":0},0,{"$f":"IF(L398=0,0,(E398*'Product Data and EFs'!K217/1000-'Product Emissions Analysis'!L398))","v":0},0,0,{"$f":"IF(N398=0,0,N398*'Product Data and EFs'!L217/1000)","v":0},{"$f":"IF(O398=0,0,O398*'Product Data and EFs'!K217/1000)","v":0},0,{"$f":"IF(R398=0,0,(E398*'Product Data and EFs'!K217/1000-'Product Emissions Analysis'!R398))","v":0},0]
[null,null,null,"Water Heaters - Gas-fired Instantaneous Water Heaters",null,null,null,0,0,{"$f":"IF(H399=0,0,H399*'Product Data and EFs'!L218/1000)","v":0},{"$f":"IF(I399=0,0,I399*'Product Data and EFs'!K218/1000)","v":0},0,{"$f":"IF(L399=0,0,(E399*'Product Data and EFs'!K218/1000-'Product Emissions Analysis'!L399))","v":0},0,0,{"$f":"IF(N399=0,0,N399*'Product Data and EFs'!L218/1000)","v":0},{"$f":"IF(O399=0,0,O399*'Product Data and EFs'!K218/1000)","v":0},0,{"$f":"IF(R399=0,0,(E399*'Product Data and EFs'!K218/1000-'Product Emissions Analysis'!R399))","v":0},0]
[null,null,null,"Water Heaters - Electric Water Heaters",null,null,null,0,0,{"$f":"IF(H400=0,0,H400*'Product Data and EFs'!L219/1000)","v":0},{"$f":"IF(I400=0,0,I400*'Product Data and EFs'!K219/1000)","v":0},0,{"$f":"IF(L400=0,0,(E400*'Product Data and EFs'!K219/1000-'Product Emissions Analysis'!L400))","v":0},0,0,{"$f":"IF(N400=0,0,N400*'Product Data and EFs'!L219/1000)","v":0},{"$f":"IF(O400=0,0,O400*'Product Data and EFs'!K219/1000)","v":0},0,{"$f":"IF(R400=0,0,(E400*'Product Data and EFs'!K219/1000-'Product Emissions Analysis'!R400))","v":0},0]
[null,null,null,"LCHVAC",null,null,null,0,0,{"$f":"IF(H401=0,0,H401*'Product Data and EFs'!L220/1000)","v":0},{"$f":"IF(I401=0,0,I401*'Product Data and EFs'!K220/1000)","v":0},0,{"$f":"IF(L401=0,0,(E401*'Product Data and EFs'!K220/1000-'Product Emissions Analysis'!L401))","v":0},0,0,{"$f":"IF(N401=0,0,N401*'Product Data and EFs'!L220/1000)","v":0},{"$f":"IF(O401=0,0,O401*'Product Data and EFs'!K220/1000)","v":0},0,{"$f":"IF(R401=0,0,(E401*'Product Data and EFs'!K220/1000-'Product Emissions Analysis'!R401))","v":0},0]
[null,null,null,"Pool Pumps - Above-Ground",null,null,null,0,0,{"$f":"IF(H402=0,0,H402*'Product Data and EFs'!L221/1000)","v":0},{"$f":"IF(I402=0,0,I402*'Product Data and EFs'!K221/1000)","v":0},0,{"$f":"IF(L402=0,0,(E402*'Product Data and EFs'!K221/1000-'Product Emissions Analysis'!L402))","v":0},0,0,{"$f":"IF(N402=0,0,N402*'Product Data and EFs'!L221/1000)","v":0},{"$f":"IF(O402=0,0,O402*'Product Data and EFs'!K221/1000)","v":0},0,{"$f":"IF(R402=0,0,(E402*'Product Data and EFs'!K221/1000-'Product Emissions Analysis'!R402))","v":0},0]
[null,null,null,"Pool Pumps - Below-Ground",null,null,null,0,0,{"$f":"IF(H403=0,0,H403*'Product Data and EFs'!L222/1000)","v":0},{"$f":"IF(I403=0,0,I403*'Product Data and EFs'!K222/1000)","v":0},0,{"$f":"IF(L403=0,0,(E403*'Product Data and EFs'!K222/1000-'Product Emissions Analysis'!L403))","v":0},0,0,{"$f":"IF(N403=0,0,N403*'Product Data and EFs'!L222/1000)","v":0},{"$f":"IF(O403=0,0,O403*'Product Data and EFs'!K222/1000)","v":0},0,{"$f":"IF(R403=0,0,(E403*'Product Data and EFs'!K222/1000-'Product Emissions Analysis'!R403))","v":0},0]
[null,null,null,"Pool Pumps - Pressure Cleaner Booster",null,null,null,0,0,{"$f":"IF(H404=0,0,H404*'Product Data and EFs'!L223/1000)","v":0},{"$f":"IF(I404=0,0,I404*'Product Data and EFs'!K223/1000)","v":0},0,{"$f":"IF(L404=0,0,(E404*'Product Data and EFs'!K223/1000-'Product Emissions Analysis'!L404))","v":0},0,0,{"$f":"IF(N404=0,0,N404*'Product Data and EFs'!L223/1000)","v":0},{"$f":"IF(O404=0,0,O404*'Product Data and EFs'!K223/1000)","v":0},0,{"$f":"IF(R404=0,0,(E404*'Product Data and EFs'!K223/1000-'Product Emissions Analysis'!R404))","v":0},0]
[null,null,null,"Electric Vehicle Supply Equipment",null,null,null,0,0,{"$f":"IF(H405=0,0,H405*'Product Data and EFs'!L224/1000)","v":0},{"$f":"IF(I405=0,0,I405*'Product Data and EFs'!K224/1000)","v":0},0,{"$f":"IF(L405=0,0,(E405*'Product Data and EFs'!K224/1000-'Product Emissions Analysis'!L405))","v":0},0,0,{"$f":"IF(N405=0,0,N405*'Product Data and EFs'!L224/1000)","v":0},{"$f":"IF(O405=0,0,O405*'Product Data and EFs'!K224/1000)","v":0},0,{"$f":"IF(R405=0,0,(E405*'Product Data and EFs'!K224/1000-'Product Emissions Analysis'!R405))","v":0},0]
[null,null,null,"Commerical Boilers",null,null,null,0,0,{"$f":"IF(H406=0,0,H406*'Product Data and EFs'!L225/1000)","v":0},{"$f":"IF(I406=0,0,I406*'Product Data and EFs'!K225/1000)","v":0},0,{"$f":"IF(L406=0,0,(E406*'Product Data and EFs'!K225/1000-'Product Emissions Analysis'!L406))","v":0},0,0,{"$f":"IF(N406=0,0,N406*'Product Data and EFs'!L225/1000)","v":0},{"$f":"IF(O406=0,0,O406*'Product Data and EFs'!K225/1000)","v":0},0,{"$f":"IF(R406=0,0,(E406*'Product Data and EFs'!K225/1000-'Product Emissions Analysis'!R406))","v":0},0]
[null,null,null,"Commercial Coffee Brewers",null,null,null,0,0,{"$f":"IF(H407=0,0,H407*'Product Data and EFs'!L226/1000)","v":0},{"$f":"IF(I407=0,0,I407*'Product Data and EFs'!K226/1000)","v":0},0,{"$f":"IF(L407=0,0,(E407*'Product Data and EFs'!K226/1000-'Product Emissions Analysis'!L407))","v":0},0,0,{"$f":"IF(N407=0,0,N407*'Product Data and EFs'!L226/1000)","v":0},{"$f":"IF(O407=0,0,O407*'Product Data and EFs'!K226/1000)","v":0},0,{"$f":"IF(R407=0,0,(E407*'Product Data and EFs'!K226/1000-'Product Emissions Analysis'!R407))","v":0},0]
[null,null,null,"TOTAL",{"$f":"SUM(E368:E407)","v":0},"NA","NA",{"$f":"SUM(H368:H407)","v":0},0,0,0,0,0,0,0,0,0,0,0,0]
[]
[null,null,null,"Annual"]
[]
[null,null,null,null,null,null,null,"Current",null,null,null,null,null,"Increased ENERGY STAR Sales"]
[null,null,null,"Product Type","Total Unit Sales","% of Current Sales that are ENERGY STAR","Higher % of Sales that are ENERGY STAR for Analysis","Total ENERGY STAR Product Sales","Total Standard Product Sales","Annual Product Use Emissions - ENERGY STAR (Metric Tons CO2e)","Annual Product Use Emissions - Standard (Metric Tons CO2e)","Annual Total Product Use Emissions (Metric Tons CO2e)","Annual Emissions Savings from ENERGY STAR Product Sales\n(Metric Tons CO2e)","Total ENERGY STAR Product Sales","Total Standard Product Sales","Annual Product Use Emissions - ENERGY STAR (Metric Tons CO2e)","Annual Product Use Emissions - Standard (Metric Tons CO2e)","Annual Total Product Use Emissions (Metric Tons CO2e)","Annual Emissions Savings from ENERGY STAR Product Sales\n(Metric Tons CO2e)","Additional Annual Emissions Savings Achieved with Increased ENERGY STAR Sales\n(Metric Tons CO2e)"]
[null,null,null,"Water Coolers - Hot and Cold",{"$f":"IF(E368=\"\",\"\",E368)","v":""},{"$f":"IF(F368=\"\",\"\",F368)","v":""},{"$f":"IF(G368=\"\",\"\",G368)","v":""},{"$f":"IF(F414=\"\",0,ROUND(E414*F414,0))","v":0},{"$f":"IF(F414=\"\",0,E414-H414)","v":0},{"$f":"IF(H414=0,0,H414*'Product Data and EFs'!L187/1000/'Product Data and EFs'!F187)","v":0},{"$f":"IF(I414=0,0,I414*'Product Data and EFs'!K187/1000/'Product Data and EFs'!F187)","v":0},{"$f":"IF(F414=\"\",0,SUM(J414:K414))","v":0},{"$f":"IF(L414=0,0,(E414*'Product Data and EFs'!K187/1000/'Product Data and EFs'!F187-'Product Emissions Analysis'!L414))","v":0},{"$f":"IF(G414=\"\",0,ROUND(E414*G414,0))","v":0},{"$f":"IF(G414=\"\",0,E414-N414)","v":0},{"$f":"IF(N414=0,0,N414*'Product Data and EFs'!L187/1000/'Product Data and EFs'!F187)","v":0},{"$f":"IF(O414=0,0,O414*'Product Data and EFs'!K187/1000/'Product Data and EFs'!F187)","v":0},{"$f":"IF(G414=\"\",0,SUM(P414:Q414))","v":0},{"$f":"IF(R414=0,0,(E414*'Product Data and EFs'!K187/1000/'Product Data and EFs'!F187-'Product Emissions Analysis'!R414))","v":0},{"$f":"IF(G414=\"\",0,L414-R414)","v":0}]
[null,null,null,"Water Coolers - Cook and Cold",{"$f":"IF(E369=\"\",\"\",E369)","v":""},"","",{"$f":"IF(F415=\"\",0,ROUND(E415*F415,0))","v":0},{"$f":"IF(F415=\"\",0,E415-H415)","v":0},{"$f":"IF(H415=0,0,H415*'Product Data and EFs'!L188/1000/'Product Data and EFs'!F188)","v":0},{"$f":"IF(I415=0,0,I415*'Product Data and EFs'!K188/1000/'Product Data and EFs'!F188)","v":0},{"$f":"IF(F415=\"\",0,SUM(J415:K415))","v":0},{"$f":"IF(L415=0,0,(E415*'Product Data and EFs'!K188/1000/'Product Data and EFs'!F188-'Product Emissions Analysis'!L415))","v":0},{"$f":"IF(G415=\"\",0,ROUND(E415*G415,0))","v":0},{"$f":"IF(G415=\"\",0,E415-N415)","v":0},{"$f":"IF(N415=0,0,N415*'Product Data and EFs'!L188/1000/'Product Data and EFs'!F188)","v":0},{"$f":"IF(O415=0,0,O415*'Product Data and EFs'!K188/1000/'Product Data and EFs'!F188)","v":0},{"$f":"IF(G415=\"\",0,SUM(P415:Q415))","v":0},{"$f":"IF(R415=0,0,(E415*'Product Data and EFs'!K188/1000/'Product Data and EFs'!F188-'Product Emissions Analysis'!R415))","v":0},{"$f":"IF(G415=\"\",0,L415-R415)","v":0}]
[null,null,null,"Commercial Refrigerators - Vertical Closed Solid Door",{"$f":"IF(E370=\"\",\"\",E370)","v":""},"","",0,0,{"$f":"IF(H416=0,0,H416*'Product Data and EFs'!L189/1000/'Product Data and EFs'!F189)","v":0},{"$f":"IF(I416=0,0,I416*'Product Data and EFs'!K189/1000/'Product Data and EFs'!F189)","v":0},0,{"$f":"IF(L416=0,0,(E416*'Product Data and EFs'!K189/1000/'Product Data and EFs'!F189-'Product Emissions Analysis'!L416))","v":0},0,0,{"$f":"IF(N416=0,0,N416*'Product Data and EFs'!L189/1000/'Product Data and EFs'!F189)","v":0},{"$f":"IF(O416=0,0,O416*'Product Data and EFs'!K189/1000/'Product Data and EFs'!F189)","v":0},0,{"$f":"IF(R416=0,0,(E416*'Product Data and EFs'!K189/1000/'Product Data and EFs'!F189-'Product Emissions Analysis'!R416))","v":0},0]
[null,null,null,"Commercial Refrigerators - Vertical Closed Transparent Door",{"$f":"IF(E371=\"\",\"\",E371)","v":""},"","",0,0,{"$f":"IF(H417=0,0,H417*'Product Data and EFs'!L190/1000/'Product Data and EFs'!F190)","v":0},{"$f":"IF(I417=0,0,I417*'Product Data and EFs'!K190/1000/'Product Data and EFs'!F190)","v":0},0,{"$f":"IF(L417=0,0,(E417*'Product Data and EFs'!K190/1000/'Product Data and EFs'!F190-'Product Emissions Analysis'!L417))","v":0},0,0,{"$f":"IF(N417=0,0,N417*'Product Data and EFs'!L190/1000/'Product Data and EFs'!F190)","v":0},{"$f":"IF(O417=0,0,O417*'Product Data and EFs'!K190/1000/'Product Data and EFs'!F190)","v":0},0,{"$f":"IF(R417=0,0,(E417*'Product Data and EFs'!K190/1000/'Product Data and EFs'!F190-'Product Emissions Analysis'!R417))","v":0},0]
[null,null,null,"Commercial Refrigerators - Horizontal Closed Solid and Transparent",{"$f":"IF(E372=\"\",\"\",E372)","v":""},"","",0,0,{"$f":"IF(H418=0,0,H418*'Product Data and EFs'!L191/1000/'Product Data and EFs'!F191)","v":0},{"$f":"IF(I418=0,0,I418*'Product Data and EFs'!K191/1000/'Product Data and EFs'!F191)","v":0},0,{"$f":"IF(L418=0,0,(E418*'Product Data and EFs'!K191/1000/'Product Data and EFs'!F191-'Product Emissions Analysis'!L418))","v":0},0,0,{"$f":"IF(N418=0,0,N418*'Product Data and EFs'!L191/1000/'Product Data and EFs'!F191)","v":0},{"$f":"IF(O418=0,0,O418*'Product Data and EFs'!K191/1000/'Product Data and EFs'!F191)","v":0},0,{"$f":"IF(R418=0,0,(E418*'Product Data and EFs'!K191/1000/'Product Data and EFs'!F191-'Product Emissions Analysis'!R418))","v":0},0]
[null,null,null,"Commercial Freezers - Vertical Closed Solid Door",{"$f":"IF(E373=\"\",\"\",E373)","v":""},"","",0,0,{"$f":"IF(H419=0,0,H419*'Product Data and EFs'!L192/1000/'Product Data and EFs'!F192)","v":0},{"$f":"IF(I419=0,0,I419*'Product Data and EFs'!K192/1000/'Product Data and EFs'!F192)","v":0},0,{"$f":"IF(L419=0,0,(E419*'Product Data and EFs'!K192/1000/'Product Data and EFs'!F192-'Product Emissions Analysis'!L419))","v":0},0,0,{"$f":"IF(N419=0,0,N419*'Product Data and EFs'!L192/1000/'Product Data and EFs'!F192)","v":0},{"$f":"IF(O419=0,0,O419*'Product Data and EFs'!K192/1000/'Product Data and EFs'!F192)","v":0},0,{"$f":"IF(R419=0,0,(E419*'Product Data and EFs'!K192/1000/'Product Data and EFs'!F192-'Product Emissions Analysis'!R419))","v":0},0]
[null,null,null,"Commercial Freezers - Vertical Closed Transparent Door",{"$f":"IF(E374=\"\",\"\",E374)","v":""},"","",0,0,{"$f":"IF(H420=0,0,H420*'Product Data and EFs'!L193/1000/'Product Data and EFs'!F193)","v":0},{"$f":"IF(I420=0,0,I420*'Product Data and EFs'!K193/1000/'Product Data and EFs'!F193)","v":0},0,{"$f":"IF(L420=0,0,(E420*'Product Data and EFs'!K193/1000/'Product Data and EFs'!F193-'Product Emissions Analysis'!L420))","v":0},0,0,{"$f":"IF(N420=0,0,N420*'Product Data and EFs'!L193/1000/'Product Data and EFs'!F193)","v":0},{"$f":"IF(O420=0,0,O420*'Product Data and EFs'!K193/1000/'Product Data and EFs'!F193)","v":0},0,{"$f":"IF(R420=0,0,(E420*'Product Data and EFs'!K193/1000/'Product Data and EFs'!F193-'Product Emissions Analysis'!R420))","v":0},0]
[null,null,null,"Commercial Freezers - Horizontal Closed Solid and Transparent",{"$f":"IF(E375=\"\",\"\",E375)","v":""},"","",0,0,{"$f":"IF(H421=0,0,H421*'Product Data and EFs'!L194/1000/'Product Data and EFs'!F194)","v":0},{"$f":"IF(I421=0,0,I421*'Product Data and EFs'!K194/1000/'Product Data and EFs'!F194)","v":0},0,{"$f":"IF(L421=0,0,(E421*'Product Data and EFs'!K194/1000/'Product Data and EFs'!F194-'Product Emissions Analysis'!L421))","v":0},0,0,{"$f":"IF(N421=0,0,N421*'Product Data and EFs'!L194/1000/'Product Data and EFs'!F194)","v":0},{"$f":"IF(O421=0,0,O421*'Product Data and EFs'!K194/1000/'Product Data and EFs'!F194)","v":0},0,{"$f":"IF(R421=0,0,(E421*'Product Data and EFs'!K194/1000/'Product Data and EFs'!F194-'Product Emissions Analysis'!R421))","v":0},0]
[null,null,null,"Hot Food Holding Cabinets",{"$f":"IF(E376=\"\",\"\",E376)","v":""},"","",0,0,{"$f":"IF(H422=0,0,H422*'Product Data and EFs'!L195/1000/'Product Data and EFs'!F195)","v":0},{"$f":"IF(I422=0,0,I422*'Product Data and EFs'!K195/1000/'Product Data and EFs'!F195)","v":0},0,{"$f":"IF(L422=0,0,(E422*'Product Data and EFs'!K195/1000/'Product Data and EFs'!F195-'Product Emissions Analysis'!L422))","v":0},0,0,{"$f":"IF(N422=0,0,N422*'Product Data and EFs'!L195/1000/'Product Data and EFs'!F195)","v":0},{"$f":"IF(O422=0,0,O422*'Product Data and EFs'!K195/1000/'Product Data and EFs'!F195)","v":0},0,{"$f":"IF(R422=0,0,(E422*'Product Data and EFs'!K195/1000/'Product Data and EFs'!F195-'Product Emissions Analysis'!R422))","v":0},0]
[null,null,null,"Fryers (Large Vat) - Electric Fryers",{"$f":"IF(E377=\"\",\"\",E377)","v":""},"","",0,0,{"$f":"IF(H423=0,0,H423*'Product Data and EFs'!L196/1000/'Product Data and EFs'!F196)","v":0},{"$f":"IF(I423=0,0,I423*'Product Data and EFs'!K196/1000/'Product Data and EFs'!F196)","v":0},0,{"$f":"IF(L423=0,0,(E423*'Product Data and EFs'!K196/1000/'Product Data and EFs'!F196-'Product Emissions Analysis'!L423))","v":0},0,0,{"$f":"IF(N423=0,0,N423*'Product Data and EFs'!L196/1000/'Product Data and EFs'!F196)","v":0},{"$f":"IF(O423=0,0,O423*'Product Data and EFs'!K196/1000/'Product Data and EFs'!F196)","v":0},0,{"$f":"IF(R423=0,0,(E423*'Product Data and EFs'!K196/1000/'Product Data and EFs'!F196-'Product Emissions Analysis'!R423))","v":0},0]
[null,null,null,"Fryers (Large Vat) - Gas Fryers",{"$f":"IF(E378=\"\",\"\",E378)","v":""},"","",0,0,{"$f":"IF(H424=0,0,H424*'Product Data and EFs'!L197/1000/'Product Data and EFs'!F197)","v":0},{"$f":"IF(I424=0,0,I424*'Product Data and EFs'!K197/1000/'Product Data and EFs'!F197)","v":0},0,{"$f":"IF(L424=0,0,(E424*'Product Data and EFs'!K197/1000/'Product Data and EFs'!F197-'Product Emissions Analysis'!L424))","v":0},0,0,{"$f":"IF(N424=0,0,N424*'Product Data and EFs'!L197/1000/'Product Data and EFs'!F197)","v":0},{"$f":"IF(O424=0,0,O424*'Product Data and EFs'!K197/1000/'Product Data and EFs'!F197)","v":0},0,{"$f":"IF(R424=0,0,(E424*'Product Data and EFs'!K197/1000/'Product Data and EFs'!F197-'Product Emissions Analysis'!R424))","v":0},0]
[null,null,null,"Fryers (Standard) - Electric Fryers",{"$f":"IF(E379=\"\",\"\",E379)","v":""},"","",0,0,{"$f":"IF(H425=0,0,H425*'Product Data and EFs'!L198/1000/'Product Data and EFs'!F198)","v":0},{"$f":"IF(I425=0,0,I425*'Product Data and EFs'!K198/1000/'Product Data and EFs'!F198)","v":0},0,{"$f":"IF(L425=0,0,(E425*'Product Data and EFs'!K198/1000/'Product Data and EFs'!F198-'Product Emissions Analysis'!L425))","v":0},0,0,{"$f":"IF(N425=0,0,N425*'Product Data and EFs'!L198/1000/'Product Data and EFs'!F198)","v":0},{"$f":"IF(O425=0,0,O425*'Product Data and EFs'!K198/1000/'Product Data and EFs'!F198)","v":0},0,{"$f":"IF(R425=0,0,(E425*'Product Data and EFs'!K198/1000/'Product Data and EFs'!F198-'Product Emissions Analysis'!R425))","v":0},0]
[null,null,null,"Fryers (Standard) - Gas Fryers",{"$f":"IF(E380=\"\",\"\",E380)","v":""},"","",0,0,{"$f":"IF(H426=0,0,H426*'Product Data and EFs'!L199/1000/'Product Data and EFs'!F199)","v":0},{"$f":"IF(I426=0,0,I426*'Product Data and EFs'!K199/1000/'Product Data and EFs'!F199)","v":0},0,{"$f":"IF(L426=0,0,(E426*'Product Data and EFs'!K199/1000/'Product Data and EFs'!F199-'Product Emissions Analysis'!L426))","v":0},0,0,{"$f":"IF(N426=0,0,N426*'Product Data and EFs'!L199/1000/'Product Data and EFs'!F199)","v":0},{"$f":"IF(O426=0,0,O426*'Product Data and EFs'!K199/1000/'Product Data and EFs'!F199)","v":0},0,{"$f":"IF(R426=0,0,(E426*'Product Data and EFs'!K199/1000/'Product Data and EFs'!F199-'Product Emissions Analysis'!R426))","v":0},0]
[null,null,null,"Steamers - Electric Steamers",{"$f":"IF(E381=\"\",\"\",E381)","v":""},"","",0,0,{"$f":"IF(H427=0,0,H427*'Product Data and EFs'!L200/1000/'Product Data and EFs'!F200)","v":0},{"$f":"IF(I427=0,0,I427*'Product Data and EFs'!K200/1000/'Product Data and EFs'!F200)","v":0},0,{"$f":"IF(L427=0,0,(E427*'Product Data and EFs'!K200/1000/'Product Data and EFs'!F200-'Product Emissions Analysis'!L427))","v":0},0,0,{"$f":"IF(N427=0,0,N427*'Product Data and EFs'!L200/1000/'Product Data and EFs'!F200)","v":0},{"$f":"IF(O427=0,0,O427*'Product Data and EFs'!K200/1000/'Product Data and EFs'!F200)","v":0},0,{"$f":"IF(R427=0,0,(E427*'Product Data and EFs'!K200/1000/'Product Data and EFs'!F200-'Product Emissions Analysis'!R427))","v":0},0]
[null,null,null,"Steamers - Gas Steamers",{"$f":"IF(E382=\"\",\"\",E382)","v":""},"","",0,0,{"$f":"IF(H428=0,0,H428*'Product Data and EFs'!L201/1000/'Product Data and EFs'!F201)","v":0},{"$f":"IF(I428=0,0,I428*'Product Data and EFs'!K201/1000/'Product Data and EFs'!F201)","v":0},0,{"$f":"IF(L428=0,0,(E428*'Product Data and EFs'!K201/1000/'Product Data and EFs'!F201-'Product Emissions Analysis'!L428))","v":0},0,0,{"$f":"IF(N428=0,0,N428*'Product Data and EFs'!L201/1000/'Product Data and EFs'!F201)","v":0},{"$f":"IF(O428=0,0,O428*'Product Data and EFs'!K201/1000/'Product Data and EFs'!F201)","v":0},0,{"$f":"IF(R428=0,0,(E428*'Product Data and EFs'!K201/1000/'Product Data and EFs'!F201-'Product Emissions Analysis'!R428))","v":0},0]
[null,null,null,"Ice Machines - Batch Ice Machines",{"$f":"IF(E383=\"\",\"\",E383)","v":""},"","",0,0,{"$f":"IF(H429=0,0,H429*'Product Data and EFs'!L202/1000/'Product Data and EFs'!F202)","v":0},{"$f":"IF(I429=0,0,I429*'Product Data and EFs'!K202/1000/'Product Data and EFs'!F202)","v":0},0,{"$f":"IF(L429=0,0,(E429*'Product Data and EFs'!K202/1000/'Product Data and EFs'!F202-'Product Emissions Analysis'!L429))","v":0},0,0,{"$f":"IF(N429=0,0,N429*'Product Data and EFs'!L202/1000/'Product Data and EFs'!F202)","v":0},{"$f":"IF(O429=0,0,O429*'Product Data and EFs'!K202/1000/'Product Data and EFs'!F202)","v":0},0,{"$f":"IF(R429=0,0,(E429*'Product Data and EFs'!K202/1000/'Product Data and EFs'!F202-'Product Emissions Analysis'!R429))","v":0},0]
[null,null,null,"Ice Machines - Continuous Ice Machines",{"$f":"IF(E384=\"\",\"\",E384)","v":""},"","",0,0,{"$f":"IF(H430=0,0,H430*'Product Data and EFs'!L203/1000/'Product Data and EFs'!F203)","v":0},{"$f":"IF(I430=0,0,I430*'Product Data and EFs'!K203/1000/'Product Data and EFs'!F203)","v":0},0,{"$f":"IF(L430=0,0,(E430*'Product Data and EFs'!K203/1000/'Product Data and EFs'!F203-'Product Emissions Analysis'!L430))","v":0},0,0,{"$f":"IF(N430=0,0,N430*'Product Data and EFs'!L203/1000/'Product Data and EFs'!F203)","v":0},{"$f":"IF(O430=0,0,O430*'Product Data and EFs'!K203/1000/'Product Data and EFs'!F203)","v":0},0,{"$f":"IF(R430=0,0,(E430*'Product Data and EFs'!K203/1000/'Product Data and EFs'!F203-'Product Emissions Analysis'!R430))","v":0},0]
[null,null,null,"Dishwashers - Flight Type",{"$f":"IF(E385=\"\",\"\",E385)","v":""},"","",0,0,{"$f":"IF(H431=0,0,H431*'Product Data and EFs'!L204/1000/'Product Data and EFs'!F204)","v":0},{"$f":"IF(I431=0,0,I431*'Product Data and EFs'!K204/1000/'Product Data and EFs'!F204)","v":0},0,{"$f":"IF(L431=0,0,(E431*'Product Data and EFs'!K204/1000/'Product Data and EFs'!F204-'Product Emissions Analysis'!L431))","v":0},0,0,{"$f":"IF(N431=0,0,N431*'Product Data and EFs'!L204/1000/'Product Data and EFs'!F204)","v":0},{"$f":"IF(O431=0,0,O431*'Product Data and EFs'!K204/1000/'Product Data and EFs'!F204)","v":0},0,{"$f":"IF(R431=0,0,(E431*'Product Data and EFs'!K204/1000/'Product Data and EFs'!F204-'Product Emissions Analysis'!R431))","v":0},0]
[null,null,null,"Dishwashers - Other Dishwasher",{"$f":"IF(E386=\"\",\"\",E386)","v":""},"","",0,0,{"$f":"IF(H432=0,0,H432*'Product Data and EFs'!L205/1000/'Product Data and EFs'!F205)","v":0},{"$f":"IF(I432=0,0,I432*'Product Data and EFs'!K205/1000/'Product Data and EFs'!F205)","v":0},0,{"$f":"IF(L432=0,0,(E432*'Product Data and EFs'!K205/1000/'Product Data and EFs'!F205-'Product Emissions Analysis'!L432))","v":0},0,0,{"$f":"IF(N432=0,0,N432*'Product Data and EFs'!L205/1000/'Product Data and EFs'!F205)","v":0},{"$f":"IF(O432=0,0,O432*'Product Data and EFs'!K205/1000/'Product Data and EFs'!F205)","v":0},0,{"$f":"IF(R432=0,0,(E432*'Product Data and EFs'!K205/1000/'Product Data and EFs'!F205-'Product Emissions Analysis'!R432))","v":0},0]
[null,null,null,"Vending Machines",{"$f":"IF(E387=\"\",\"\",E387)","v":""},"","",0,0,{"$f":"IF(H433=0,0,H433*'Product Data and EFs'!L206/1000/'Product Data and EFs'!F206)","v":0},{"$f":"IF(I433=0,0,I433*'Product Data and EFs'!K206/1000/'Product Data and EFs'!F206)","v":0},0,{"$f":"IF(L433=0,0,(E433*'Product Data and EFs'!K206/1000/'Product Data and EFs'!F206-'Product Emissions Analysis'!L433))","v":0},0,0,{"$f":"IF(N433=0,0,N433*'Product Data and EFs'!L206/1000/'Product Data and EFs'!F206)","v":0},{"$f":"IF(O433=0,0,O433*'Product Data and EFs'!K206/1000/'Product Data and EFs'!F206)","v":0},0,{"$f":"IF(R433=0,0,(E433*'Product Data and EFs'!K206/1000/'Product Data and EFs'!F206-'Product Emissions Analysis'!R433))","v":0},0]
[null,null,null,"Griddles - Electric Griddles",{"$f":"IF(E388=\"\",\"\",E388)","v":""},"","",0,0,{"$f":"IF(H434=0,0,H434*'Product Data and EFs'!L207/1000/'Product Data and EFs'!F207)","v":0},{"$f":"IF(I434=0,0,I434*'Product Data and EFs'!K207/1000/'Product Data and EFs'!F207)","v":0},0,{"$f":"IF(L434=0,0,(E434*'Product Data and EFs'!K207/1000/'Product Data and EFs'!F207-'Product Emissions Analysis'!L434))","v":0},0,0,{"$f":"IF(N434=0,0,N434*'Product Data and EFs'!L207/1000/'Product Data and EFs'!F207)","v":0},{"$f":"IF(O434=0,0,O434*'Product Data and EFs'!K207/1000/'Product Data and EFs'!F207)","v":0},0,{"$f":"IF(R434=0,0,(E434*'Product Data and EFs'!K207/1000/'Product Data and EFs'!F207-'Product Emissions Analysis'!R434))","v":0},0]
[null,null,null,"Griddles - Gas Griddles",{"$f":"IF(E389=\"\",\"\",E389)","v":""},"","",0,0,{"$f":"IF(H435=0,0,H435*'Product Data and EFs'!L208/1000/'Product Data and EFs'!F208)","v":0},{"$f":"IF(I435=0,0,I435*'Product Data and EFs'!K208/1000/'Product Data and EFs'!F208)","v":0},0,{"$f":"IF(L435=0,0,(E435*'Product Data and EFs'!K208/1000/'Product Data and EFs'!F208-'Product Emissions Analysis'!L435))","v":0},0,0,{"$f":"IF(N435=0,0,N435*'Product Data and EFs'!L208/1000/'Product Data and EFs'!F208)","v":0},{"$f":"IF(O435=0,0,O435*'Product Data and EFs'!K208/1000/'Product Data and EFs'!F208)","v":0},0,{"$f":"IF(R435=0,0,(E435*'Product Data and EFs'!K208/1000/'Product Data and EFs'!F208-'Product Emissions Analysis'!R435))","v":0},0]
[null,null,null,"Ovens - Full-size Gas Convection Ovens",{"$f":"IF(E390=\"\",\"\",E390)","v":""},"","",0,0,{"$f":"IF(H436=0,0,H436*'Product Data and EFs'!L209/1000/'Product Data and EFs'!F209)","v":0},{"$f":"IF(I436=0,0,I436*'Product Data and EFs'!K209/1000/'Product Data and EFs'!F209)","v":0},0,{"$f":"IF(L436=0,0,(E436*'Product Data and EFs'!K209/1000/'Product Data and EFs'!F209-'Product Emissions Analysis'!L436))","v":0},0,0,{"$f":"IF(N436=0,0,N436*'Product Data and EFs'!L209/1000/'Product Data and EFs'!F209)","v":0},{"$f":"IF(O436=0,0,O436*'Product Data and EFs'!K209/1000/'Product Data and EFs'!F209)","v":0},0,{"$f":"IF(R436=0,0,(E436*'Product Data and EFs'!K209/1000/'Product Data and EFs'!F209-'Product Emissions Analysis'!R436))","v":0},0]
[null,null,null,"Ovens - Half-size Electric Convection Ovens",{"$f":"IF(E391=\"\",\"\",E391)","v":""},"","",0,0,{"$f":"IF(H437=0,0,H437*'Product Data and EFs'!L210/1000/'Product Data and EFs'!F210)","v":0},{"$f":"IF(I437=0,0,I437*'Product Data and EFs'!K210/1000/'Product Data and EFs'!F210)","v":0},0,{"$f":"IF(L437=0,0,(E437*'Product Data and EFs'!K210/1000/'Product Data and EFs'!F210-'Product Emissions Analysis'!L437))","v":0},0,0,{"$f":"IF(N437=0,0,N437*'Product Data and EFs'!L210/1000/'Product Data and EFs'!F210)","v":0},{"$f":"IF(O437=0,0,O437*'Product Data and EFs'!K210/1000/'Product Data and EFs'!F210)","v":0},0,{"$f":"IF(R437=0,0,(E437*'Product Data and EFs'!K210/1000/'Product Data and EFs'!F210-'Product Emissions Analysis'!R437))","v":0},0]
[null,null,null,"Ovens - Full-size Electric Convection Ovens",{"$f":"IF(E392=\"\",\"\",E392)","v":""},"","",0,0,{"$f":"IF(H438=0,0,H438*'Product Data and EFs'!L211/1000/'Product Data and EFs'!F211)","v":0},{"$f":"IF(I438=0,0,I438*'Product Data and EFs'!K211/1000/'Product Data and EFs'!F211)","v":0},0,{"$f":"IF(L438=0,0,(E438*'Product Data and EFs'!K211/1000/'Product Data and EFs'!F211-'Product Emissions Analysis'!L438))","v":0},0,0,{"$f":"IF(N438=0,0,N438*'Product Data and EFs'!L211/1000/'Product Data and EFs'!F211)","v":0},{"$f":"IF(O438=0,0,O438*'Product Data and EFs'!K211/1000/'Product Data and EFs'!F211)","v":0},0,{"$f":"IF(R438=0,0,(E438*'Product Data and EFs'!K211/1000/'Product Data and EFs'!F211-'Product Emissions Analysis'!R438))","v":0},0]
[null,null,null,"Ovens - Gas Combination Ovens",{"$f":"IF(E393=\"\",\"\",E393)","v":""},"","",0,0,{"$f":"IF(H439=0,0,H439*'Product Data and EFs'!L212/1000/'Product Data and EFs'!F212)","v":0},{"$f":"IF(I439=0,0,I439*'Product Data and EFs'!K212/1000/'Product Data and EFs'!F212)","v":0},0,{"$f":"IF(L439=0,0,(E439*'Product Data and EFs'!K212/1000/'Product Data and EFs'!F212-'Product Emissions Analysis'!L439))","v":0},0,0,{"$f":"IF(N439=0,0,N439*'Product Data and EFs'!L212/1000/'Product Data and EFs'!F212)","v":0},{"$f":"IF(O439=0,0,O439*'Product Data and EFs'!K212/1000/'Product Data and EFs'!F212)","v":0},0,{"$f":"IF(R439=0,0,(E439*'Product Data and EFs'!K212/1000/'Product Data and EFs'!F212-'Product Emissions Analysis'!R439))","v":0},0]
[null,null,null,"Ovens - Electric Combination Ovens",{"$f":"IF(E394=\"\",\"\",E394)","v":""},"","",0,0,{"$f":"IF(H440=0,0,H440*'Product Data and EFs'!L213/1000/'Product Data and EFs'!F213)","v":0},{"$f":"IF(I440=0,0,I440*'Product Data and EFs'!K213/1000/'Product Data and EFs'!F213)","v":0},0,{"$f":"IF(L440=0,0,(E440*'Product Data and EFs'!K213/1000/'Product Data and EFs'!F213-'Product Emissions Analysis'!L440))","v":0},0,0,{"$f":"IF(N440=0,0,N440*'Product Data and EFs'!L213/1000/'Product Data and EFs'!F213)","v":0},{"$f":"IF(O440=0,0,O440*'Product Data and EFs'!K213/1000/'Product Data and EFs'!F213)","v":0},0,{"$f":"IF(R440=0,0,(E440*'Product Data and EFs'!K213/1000/'Product Data and EFs'!F213-'Product Emissions Analysis'!R440))","v":0},0]
[null,null,null,"Ovens - Single Gas Rack Ovens",{"$f":"IF(E395=\"\",\"\",E395)","v":""},"","",0,0,{"$f":"IF(H441=0,0,H441*'Product Data and EFs'!L214/1000/'Product Data and EFs'!F214)","v":0},{"$f":"IF(I441=0,0,I441*'Product Data and EFs'!K214/1000/'Product Data and EFs'!F214)","v":0},0,{"$f":"IF(L441=0,0,(E441*'Product Data and EFs'!K214/1000/'Product Data and EFs'!F214-'Product Emissions Analysis'!L441))","v":0},0,0,{"$f":"IF(N441=0,0,N441*'Product Data and EFs'!L214/1000/'Product Data and EFs'!F214)","v":0},{"$f":"IF(O441=0,0,O441*'Product Data and EFs'!K214/1000/'Product Data and EFs'!F214)","v":0},0,{"$f":"IF(R441=0,0,(E441*'Product Data and EFs'!K214/1000/'Product Data and EFs'!F214-'Product Emissions Analysis'!R441))","v":0},0]
[null,null,null,"Ovens - Double Gas Rack Ovens",{"$f":"IF(E396=\"\",\"\",E396)","v":""},"","",0,0,{"$f":"IF(H442=0,0,H442*'Product Data and EFs'!L215/1000/'Product Data and EFs'!F215)","v":0},{"$f":"IF(I442=0,0,I442*'Product Data and EFs'!K215/1000/'Product Data and EFs'!F215)","v":0},0,{"$f":"IF(L442=0,0,(E442*'Product Data and EFs'!K215/1000/'Product Data and EFs'!F215-'Product Emissions Analysis'!L442))","v":0},0,0,{"$f":"IF(N442=0,0,N442*'Product Data and EFs'!L215/1000/'Product Data and EFs'!F215)","v":0},{"$f":"IF(O442=0,0,O442*'Product Data and EFs'!K215/1000/'Product Data and EFs'!F215)","v":0},0,{"$f":"IF(R442=0,0,(E442*'Product Data and EFs'!K215/1000/'Product Data and EFs'!F215-'Product Emissions Analysis'!R442))","v":0},0]
[null,null,null,"Clothes Washers",{"$f":"IF(E397=\"\",\"\",E397)","v":""},"","",0,0,{"$f":"IF(H443=0,0,H443*'Product Data and EFs'!L216/1000/'Product Data and EFs'!F216)","v":0},{"$f":"IF(I443=0,0,I443*'Product Data and EFs'!K216/1000/'Product Data and EFs'!F216)","v":0},0,{"$f":"IF(L443=0,0,(E443*'Product Data and EFs'!K216/1000/'Product Data and EFs'!F216-'Product Emissions Analysis'!L443))","v":0},0,0,{"$f":"IF(N443=0,0,N443*'Product Data and EFs'!L216/1000/'Product Data and EFs'!F216)","v":0},{"$f":"IF(O443=0,0,O443*'Product Data and EFs'!K216/1000/'Product Data and EFs'!F216)","v":0},0,{"$f":"IF(R443=0,0,(E443*'Product Data and EFs'!K216/1000/'Product Data and EFs'!F216-'Product Emissions Analysis'!R443))","v":0},0]
[null,null,null,"Water Heaters - Gas-fired Storage Water Heaters",{"$f":"IF(E398=\"\",\"\",E398)","v":""},"","",0,0,{"$f":"IF(H444=0,0,H444*'Product Data and EFs'!L217/1000/'Product Data and EFs'!F217)","v":0},{"$f":"IF(I444=0,0,I444*'Product Data and EFs'!K217/1000/'Product Data and EFs'!F217)","v":0},0,{"$f":"IF(L444=0,0,(E444*'Product Data and EFs'!K217/1000/'Product Data and EFs'!F217-'Product Emissions Analysis'!L444))","v":0},0,0,{"$f":"IF(N444=0,0,N444*'Product Data and EFs'!L217/1000/'Product Data and EFs'!F217)","v":0},{"$f":"IF(O444=0,0,O444*'Product Data and EFs'!K217/1000/'Product Data and EFs'!F217)","v":0},0,{"$f":"IF(R444=0,0,(E444*'Product Data and EFs'!K217/1000/'Product Data and EFs'!F217-'Product Emissions Analysis'!R444))","v":0},0]
[null,null,null,"Water Heaters - Gas-fired Instantaneous Water Heaters",{"$f":"IF(E399=\"\",\"\",E399)","v":""},"","",0,0,{"$f":"IF(H445=0,0,H445*'Product Data and EFs'!L218/1000/'Product Data and EFs'!F218)","v":0},{"$f":"IF(I445=0,0,I445*'Product Data and EFs'!K218/1000/'Product Data and EFs'!F218)","v":0},0,{"$f":"IF(L445=0,0,(E445*'Product Data and EFs'!K218/1000/'Product Data and EFs'!F218-'Product Emissions Analysis'!L445))","v":0},0,0,{"$f":"IF(N445=0,0,N445*'Product Data and EFs'!L218/1000/'Product Data and EFs'!F218)","v":0},{"$f":"IF(O445=0,0,O445*'Product Data and EFs'!K218/1000/'Product Data and EFs'!F218)","v":0},0,{"$f":"IF(R445=0,0,(E445*'Product Data and EFs'!K218/1000/'Product Data and EFs'!F218-'Product Emissions Analysis'!R445))","v":0},0]
[null,null,null,"Water Heaters - Electric Water Heaters",{"$f":"IF(E400=\"\",\"\",E400)","v":""},"","",0,0,{"$f":"IF(H446=0,0,H446*'Product Data and EFs'!L219/1000/'Product Data and EFs'!F219)","v":0},{"$f":"IF(I446=0,0,I446*'Product Data and EFs'!K219/1000/'Product Data and EFs'!F219)","v":0},0,{"$f":"IF(L446=0,0,(E446*'Product Data and EFs'!K219/1000/'Product Data and EFs'!F219-'Product Emissions Analysis'!L446))","v":0},0,0,{"$f":"IF(N446=0,0,N446*'Product Data and EFs'!L219/1000/'Product Data and EFs'!F219)","v":0},{"$f":"IF(O446=0,0,O446*'Product Data and EFs'!K219/1000/'Product Data and EFs'!F219)","v":0},0,{"$f":"IF(R446=0,0,(E446*'Product Data and EFs'!K219/1000/'Product Data and EFs'!F219-'Product Emissions Analysis'!R446))","v":0},0]
[null,null,null,"LCHVAC",{"$f":"IF(E401=\"\",\"\",E401)","v":""},"","",0,0,{"$f":"IF(H447=0,0,H447*'Product Data and EFs'!L220/1000/'Product Data and EFs'!F220)","v":0},{"$f":"IF(I447=0,0,I447*'Product Data and EFs'!K220/1000/'Product Data and EFs'!F220)","v":0},0,{"$f":"IF(L447=0,0,(E447*'Product Data and EFs'!K220/1000/'Product Data and EFs'!F220-'Product Emissions Analysis'!L447))","v":0},0,0,{"$f":"IF(N447=0,0,N447*'Product Data and EFs'!L220/1000/'Product Data and EFs'!F220)","v":0},{"$f":"IF(O447=0,0,O447*'Product Data and EFs'!K220/1000/'Product Data and EFs'!F220)","v":0},0,{"$f":"IF(R447=0,0,(E447*'Product Data and EFs'!K220/1000/'Product Data and EFs'!F220-'Product Emissions Analysis'!R447))","v":0},0]
[null,null,null,"Pool Pumps - Above-Ground",{"$f":"IF(E402=\"\",\"\",E402)","v":""},"","",0,0,{"$f":"IF(H448=0,0,H448*'Product Data and EFs'!L221/1000/'Product Data and EFs'!F221)","v":0},{"$f":"IF(I448=0,0,I448*'Product Data and EFs'!K221/1000/'Product Data and EFs'!F221)","v":0},0,{"$f":"IF(L448=0,0,(E448*'Product Data and EFs'!K221/1000/'Product Data and EFs'!F221-'Product Emissions Analysis'!L448))","v":0},0,0,{"$f":"IF(N448=0,0,N448*'Product Data and EFs'!L221/1000/'Product Data and EFs'!F221)","v":0},{"$f":"IF(O448=0,0,O448*'Product Data and EFs'!K221/1000/'Product Data and EFs'!F221)","v":0},0,{"$f":"IF(R448=0,0,(E448*'Product Data and EFs'!K221/1000/'Product Data and EFs'!F221-'Product Emissions Analysis'!R448))","v":0},0]
[null,null,null,"Pool Pumps - Below-Ground",{"$f":"IF(E403=\"\",\"\",E403)","v":""},"","",0,0,{"$f":"IF(H449=0,0,H449*'Product Data and EFs'!L222/1000/'Product Data and EFs'!F222)","v":0},{"$f":"IF(I449=0,0,I449*'Product Data and EFs'!K222/1000/'Product Data and EFs'!F222)","v":0},0,{"$f":"IF(L449=0,0,(E449*'Product Data and EFs'!K222/1000/'Product Data and EFs'!F222-'Product Emissions Analysis'!L449))","v":0},0,0,{"$f":"IF(N449=0,0,N449*'Product Data and EFs'!L222/1000/'Product Data and EFs'!F222)","v":0},{"$f":"IF(O449=0,0,O449*'Product Data and EFs'!K222/1000/'Product Data and EFs'!F222)","v":0},0,{"$f":"IF(R449=0,0,(E449*'Product Data and EFs'!K222/1000/'Product Data and EFs'!F222-'Product Emissions Analysis'!R449))","v":0},0]
[null,null,null,"Pool Pumps - Pressure Cleaner Booster",{"$f":"IF(E404=\"\",\"\",E404)","v":""},"","",0,0,{"$f":"IF(H450=0,0,H450*'Product Data and EFs'!L223/1000/'Product Data and EFs'!F223)","v":0},{"$f":"IF(I450=0,0,I450*'Product Data and EFs'!K223/1000/'Product Data and EFs'!F223)","v":0},0,{"$f":"IF(L450=0,0,(E450*'Product Data and EFs'!K223/1000/'Product Data and EFs'!F223-'Product Emissions Analysis'!L450))","v":0},0,0,{"$f":"IF(N450=0,0,N450*'Product Data and EFs'!L223/1000/'Product Data and EFs'!F223)","v":0},{"$f":"IF(O450=0,0,O450*'Product Data and EFs'!K223/1000/'Product Data and EFs'!F223)","v":0},0,{"$f":"IF(R450=0,0,(E450*'Product Data and EFs'!K223/1000/'Product Data and EFs'!F223-'Product Emissions Analysis'!R450))","v":0},0]
[null,null,null,"Electric Vehicle Supply Equipment",{"$f":"IF(E405=\"\",\"\",E405)","v":""},"","",0,0,{"$f":"IF(H451=0,0,H451*'Product Data and EFs'!L224/1000/'Product Data and EFs'!F224)","v":0},{"$f":"IF(I451=0,0,I451*'Product Data and EFs'!K224/1000/'Product Data and EFs'!F224)","v":0},0,{"$f":"IF(L451=0,0,(E451*'Product Data and EFs'!K224/1000/'Product Data and EFs'!F224-'Product Emissions Analysis'!L451))","v":0},0,0,{"$f":"IF(N451=0,0,N451*'Product Data and EFs'!L224/1000/'Product Data and EFs'!F224)","v":0},{"$f":"IF(O451=0,0,O451*'Product Data and EFs'!K224/1000/'Product Data and EFs'!F224)","v":0},0,{"$f":"IF(R451=0,0,(E451*'Product Data and EFs'!K224/1000/'Product Data and EFs'!F224-'Product Emissions Analysis'!R451))","v":0},0]
[null,null,null,"Commerical Boilers",{"$f":"IF(E406=\"\",\"\",E406)","v":""},"","",0,0,{"$f":"IF(H452=0,0,H452*'Product Data and EFs'!L225/1000/'Product Data and EFs'!F225)","v":0},{"$f":"IF(I452=0,0,I452*'Product Data and EFs'!K225/1000/'Product Data and EFs'!F225)","v":0},0,{"$f":"IF(L452=0,0,(E452*'Product Data and EFs'!K225/1000/'Product Data and EFs'!F225-'Product Emissions Analysis'!L452))","v":0},0,0,{"$f":"IF(N452=0,0,N452*'Product Data and EFs'!L225/1000/'Product Data and EFs'!F225)","v":0},{"$f":"IF(O452=0,0,O452*'Product Data and EFs'!K225/1000/'Product Data and EFs'!F225)","v":0},0,{"$f":"IF(R452=0,0,(E452*'Product Data and EFs'!K225/1000/'Product Data and EFs'!F225-'Product Emissions Analysis'!R452))","v":0},0]
[null,null,null,"Commercial Coffee Brewers",{"$f":"IF(E407=\"\",\"\",E407)","v":""},"","",0,0,{"$f":"IF(H453=0,0,H453*'Product Data and EFs'!L226/1000/'Product Data and EFs'!F226)","v":0},{"$f":"IF(I453=0,0,I453*'Product Data and EFs'!K226/1000/'Product Data and EFs'!F226)","v":0},0,{"$f":"IF(L453=0,0,(E453*'Product Data and EFs'!K226/1000/'Product Data and EFs'!F226-'Product Emissions Analysis'!L453))","v":0},0,0,{"$f":"IF(N453=0,0,N453*'Product Data and EFs'!L226/1000/'Product Data and EFs'!F226)","v":0},{"$f":"IF(O453=0,0,O453*'Product Data and EFs'!K226/1000/'Product Data and EFs'!F226)","v":0},0,{"$f":"IF(R453=0,0,(E453*'Product Data and EFs'!K226/1000/'Product Data and EFs'!F226-'Product Emissions Analysis'!R453))","v":0},0]
[null,null,null,"TOTAL",{"$f":"IF(E408=\"\",\"\",E408)","v":0},"NA","NA",{"$f":"SUM(H414:H453)","v":0},0,0,0,0,0,0,0,0,0,0,0,0]

{"sheet":"Summary Results","index":2,"n_rows":88,"n_cols":8,"rows_kept":88,"cut":false,"hidden":false,"merged":[[14,15,29,23],[30,7,31,9],[87,7,87,9],[73,2,73,4],[10,7,10,9],[67,7,80,9],[66,7,66,9],[2,2,2,10],[36,2,36,10],[64,7,64,9],[21,2,21,4],[10,2,10,4],[61,2,61,4],[16,7,16,9],[17,7,22,9],[52,5,52,10],[53,5,53,10]]}
[]
[null,null,"Summary Results"]
[null,null,"\nThis worksheet summarizes the results of the lifetime product emissions analysis across all product categories. The first \"Results\" section (Scope 3 Use of Sold Products) summarizes the impacts of selling more ENERGY STAR products on the Scope 3 Use of Sold Products category only. The second \"Results\" section (GHG Inventory) is optional. If you have estimates of your Scope 1 and 2 emissions as well as other Scope 3 categories, entering them in this section will let you see the impact of selling more ENERGY STAR Products on your GHG inventory.\n\nNote: The \"Scope 3 Use of Sold Products\" results only account for products contained in this tool. Therefore, the percentage figures in the \"Emissions Savings Calculations\" section do not account for other products you may sell. However, in the optional \"GHG Inventory\" results section you have the option of entering use of sold products emissions associated with products not accounted for in this tool. Therefore the percentage figures in the \"Emissions Savings Calculations\" section are inclusive of all of your Scope 3 Use of Sold Products emissions."]
[]
[null,null,"Analysis Time Period",{"$f":"'Product Emissions Analysis'!E4","v":0},"Value entered at top of \"Product Emissions Analysis\" worksheet."]
[]
[]
[null,null,"Scope 3 Use of Sold Products"]
[]
[null,null,"Emissions Inventory Results for ENERGY STAR Product Categories"]
[null,null,"This is the total lifetime emissions associated with the use of products sold. This is the value that would be reported in your scope 3 inventory under Category 11, Use of Sold Products."]
[null,null,null,"Current","With Increased Sale of ENERGY STAR Products"]
[null,null,"TOTAL ENERGY STAR PRODUCTS SOLD",{"$f":"SUM('Product Emissions Analysis'!$H$263,'Product Emissions Analysis'!$H$305,'Product Emissions Analysis'!H118,'Product Emissions Analysis'!$H$343,'Product Emissions Analysis'!$J$82,'Product Emissions Analysis'!$K$82,'Product Emissions Analysis'!$H$154,'Product Emissions Analysis'!$H$39,'Product Emissions Analysis'!$H$201,'Product Emissions Analysis'!$H$408)","v":0},{"$f":"SUM('Product Emissions Analysis'!$N$263,'Product Emissions Analysis'!$N$305,'Product Emissions Analysis'!N118,'Product Emissions Analysis'!$N$343,'Product Emissions Analysis'!$O$82,'Product Emissions Analysis'!$P$82,'Product Emissions Analysis'!$N$159,'Product Emissions Analysis'!$N$39,'Product Emissions Analysis'!$N$201,'Product Emissions Analysis'!$N$408)","v":0}]
[]
[null,null,"TOTAL SCOPE 3 USE OF SOLD PRODUCT EMISSIONS\n(Metric Tons CO2e)",{"$f":"ROUND(SUM(D16:D17),0)","v":0},{"$f":"ROUND(SUM(E16:E17),0)","v":0}]
[null,null,"ENERGY STAR Products",{"$f":"SUM('Product Emissions Analysis'!J263,'Product Emissions Analysis'!J305,'Product Emissions Analysis'!J147,'Product Emissions Analysis'!J343,'Product Emissions Analysis'!J82*'Product Data and EFs'!H54/1000,'Product Emissions Analysis'!K82*'Product Data and EFs'!H55/1000,'Product Emissions Analysis'!J154,'Product Emissions Analysis'!J39,'Product Emissions Analysis'!J201,'Product Emissions Analysis'!J408)","v":0},{"$f":"SUM('Product Emissions Analysis'!P263,'Product Emissions Analysis'!P305,'Product Emissions Analysis'!P147,'Product Emissions Analysis'!P343,'Product Emissions Analysis'!O82*'Product Data and EFs'!H54/1000,'Product Emissions Analysis'!P82*'Product Data and EFs'!H55/1000,'Product Emissions Analysis'!P154,'Product Emissions Analysis'!P39,'Product Emissions Analysis'!P201,'Product Emissions Analysis'!P408)","v":0}]
[null,null,"Non-ENERGY STAR Products",{"$f":"SUM('Product Emissions Analysis'!K263,'Product Emissions Analysis'!K305,'Product Emissions Analysis'!K147,'Product Emissions Analysis'!K343,'Product Emissions Analysis'!L82*'Product Data and EFs'!H53/1000,'Product Emissions Analysis'!K154,'Product Emissions Analysis'!K39,'Product Emissions Analysis'!K201,'Product Emissions Analysis'!K408)","v":0},{"$f":"SUM('Product Emissions Analysis'!Q263,'Product Emissions Analysis'!Q305,'Product Emissions Analysis'!Q147,'Product Emissions Analysis'!Q343,'Product Emissions Analysis'!Q82*'Product Data and EFs'!H53/1000,'Product Emissions Analysis'!Q154,'Product Emissions Analysis'!Q39,'Product Emissions Analysis'!Q201,'Product Emissions Analysis'!Q408)","v":0},null,null,"Key Takeaways"]
[null,null,null,null,null,null,null,{"$f":"IF(D13=0,\"Enter data on the 'Product Emissions Analysis' worksheet to see results.\",\"Currently, you sell \"&TEXT(D13,\"#,##0\")&\" ENERGY STAR products, and have total reported Scope 3 Use of Sold Product emissions of \"&TEXT(D15,\"#,##0\")&\" metric tons CO2e. With the increase in ENERGY STAR product sales, you sell \"&TEXT(E13,\"#,##0\")&\" ENERGY STAR products, and have total reported Scope 3 Use of Sold Product emissions of \"&TEXT(E15,\"#,##0\")&\" metric tons CO2e (a change of \"&TEXT(E19,\"#,##0\")&\" metric tons CO2e).\n\nLifetime emissions savings associated with the \"&TEXT(D13,\"#,##0\")&\" ENERGY STAR products you currently sell are \"&TEXT(D28,\"#,##0\")&\" metric tons CO2e, equal to \"&TEXT(D29*100,\"#,##0.00\")&\"% of current Scope 3 Use of Sold Product emissions reported.\n\nBy selling an additional \"&TEXT(E13-D13,\"#,##0\")&\" ENERGY STAR products you increase lifetime emissions savings to \"&TEXT(E28,\"#,##0\")&\" metric tons CO2e, equal to \"&TEXT(E29*100,\"#,##0.00\")&\"% of your new Scope 3 Use of Sold Product emissions reported. This is a lifetime emissions savings increase of \"&TEXT(E31,\"#,##0\")&\" metric tons CO2e, equal to \"&TEXT(E32*100,\"#,##0.00\")&\"% of current Scope 3 Use of Sold Product emissions reported.\")","v":"Enter data on the 'Product Emissions Analysis' worksheet to see results."}]
[null,null,"CHANGE IN SCOPE 3 INVENTORY EMISSIONS ASSOCIATED WITH INCREASED SALE OF ENERGY STAR PRODUCTS (Metric Tons CO2e)","NA",{"$f":"E15-D15","v":0}]
[]
[null,null,"Emissions Savings Calculations for ENERGY STAR Product Categories"]
[null,null,"Emissions savings were determined by calculating the emissions that would have occurred if you did not sell any ENERGY STAR products (and instead sold all standard products), and then subtracting from that the actual emissions associated with your product sales (i.e., those that include ENERGY STAR product sales). See \"Assumptions Used in This Tool\" on the \"Getting Started\" worksheet for the special case regarding lightbulbs."]
[null,null,null,"Current","With ENERGY STAR Products"]
[null,null,"TOTAL PRODUCT USE EMISSIONS IF NOT SELLING ENERGY STAR (Metric Tons CO2e)",{"$f":"SUM(D25:D26)","v":0},{"$f":"SUM(E25:E26)","v":0}]
[null,null,"Products with Same Lifetimes (All Except Lightbulbs)",{"$f":"ROUND(SUMPRODUCT('Product Emissions Analysis'!E249:E262,'Product Data and EFs'!K133:K146)/1000+SUMPRODUCT('Product Emissions Analysis'!E293:E304,'Product Data and EFs'!K153:K164)/1000+SUMPRODUCT('Product Emissions Analysis'!E333:E341,'Product Data and EFs'!K171:K179)/1000+('Product Emissions Analysis'!E154*'Product Data and EFs'!I88/1000)+SUMPRODUCT('Product Emissions Analysis'!E15:E38,'Product Data and EFs'!K24:K47)/1000+SUMPRODUCT('Product Emissions Analysis'!E169:E200,'Product Data and EFs'!K95:K126)/1000+SUMPRODUCT('Product Emissions Analysis'!E368:E407,'Product Data and EFs'!K187:K226)/1000+SUMPRODUCT('Product Emissions Analysis'!E93:E117,'Product Data and EFs'!I59:I83)/1000,0)","v":0},{"$f":"ROUND(SUMPRODUCT('Product Emissions Analysis'!H249:H262,'Product Data and EFs'!L133:L146)/1000+SUMPRODUCT('Product Emissions Analysis'!H293:H304,'Product Data and EFs'!L153:L164)/1000+SUMPRODUCT('Product Emissions Analysis'!H333:H341,'Product Data and EFs'!L171:L179)/1000+('Product Emissions Analysis'!H154*'Product Data and EFs'!J88/1000)+SUMPRODUCT('Product Emissions Analysis'!H15:H38,'Product Data and EFs'!L24:L47)/1000+SUMPRODUCT('Product Emissions Analysis'!H169:H200,'Product Data and EFs'!L95:L126)/1000+SUMPRODUCT('Product Emissions Analysis'!H368:H407,'Product Data and EFs'!L187:L226)/1000,0)+ROUND(SUMPRODUCT('Product Emissions Analysis'!I249:I262,'Product Data and EFs'!K133:K146)/1000+SUMPRODUCT('Product Emissions Analysis'!I293:I304,'Product Data and EFs'!K153:K164)/1000+SUMPRODUCT('Product Emissions Analysis'!I333:I341,'Product Data and EFs'!K171:K179)/1000+('Product Emissions Analysis'!I154*'Product Data and EFs'!I88/1000)+SUMPRODUCT('Product Emissions Analysis'!I15:I38,'Product Data and EFs'!K24:K47)/1000+SUMPRODUCT('Product Emissions Analysis'!I169:I200,'Product Data and EFs'!K95:K126)/1000+SUMPRODUCT('Product Emissions Analysis'!I368:I407,'Product Data and EFs'!K187:K226)/1000,0)","v":0}]
[null,null,"Lightbulbs",{"$f":"('Product Emissions Analysis'!J82*15.2*'Product Data and EFs'!H53/1000)+('Product Emissions Analysis'!K82*10.1*'Product Data and EFs'!H53/1000)+('Product Emissions Analysis'!L82*'Product Data and EFs'!H53/1000)","v":0},{"$f":"('Product Emissions Analysis'!O82*15.2*'Product Data and EFs'!H53/1000)+('Product Emissions Analysis'!P82*10.1*'Product Data and EFs'!H53/1000)+('Product Emissions Analysis'!Q82*'Product Data and EFs'!H53/1000)","v":0}]
[]
[null,null,"TOTAL EMISSIONS SAVINGS FROM ENERGY STAR PRODUCT SALES (Metric Tons CO2e)",{"$f":"ROUND(D24-D15,0)","v":0},{"$f":"ROUND(E24-E15,0)","v":0}]
[null,null,"As a Percentage of Scope 3 Use of Sold Product Emissions",{"$f":"IF(D15=0,0,ROUND(D28/D15,4))","v":0},{"$f":"IF(E15=0,0,ROUND(E28/E15,4))","v":0}]
[]
[null,null,"ADDITIONAL EMISSIONS SAVINGS ACHIEVED WITH INCREASED ENERGY STAR PRODUCT SALES (Metric Tons CO2e)","NA",{"$f":"E28-D28","v":0}]
[null,null,"As a Percentage of Current Scope 3 Use of Sold Product Emissions","NA",{"$f":"IF(D15=0,0,ROUND(E31/D15,4))","v":0}]
[]
[]
[null,null,"GHG Inventory (Optional)"]
[]
[null,null,"Enter your organization's current total Scope 1 and 2 emissions, as well as other Scope 3 categories in the yellow cells (emissions with increased sale of ENERGY STAR products remains the same for the analysis). Be sure to check emissions factors used in developing these values for consistency to what is used in this tool. This tool uses emissions factors from EPA's GHG Emission Factors Hub and global warming potentials from IPCC's Fourth Assessment Report, 2007 (AR4). (See the \"Product Data and EFs\" worksheet for more detail on emissions factors used in this tool)."]
[]
[null,null,null,"Current Emissions\n(Metric Tons CO2e)","Emissions w/Increased Sale of ENERGY STAR Products\n(Metric Tons CO2e)"]
[null,null,"SCOPE 1 TOTAL EMISSIONS",null,{"$f":"IF(D40=\"\",0,D40)","v":0}]
[null,null,"SCOPE 2 TOTAL EMISSIONS",null,{"$f":"IF(D41=\"\",0,D41)","v":0}]
[null,null,"SCOPE 3 TOTAL EMISSIONS",{"$f":"SUM(D43:D58)","v":0},{"$f":"SUM(E43:E58)","v":0}]
[null,null,"Category 1: Purchased Goods and Services",null,{"$f":"IF(D43=\"\",0,D43)","v":0}]
[null,null,"Category 2: Capital Goods",null,0]
[null,null,"Category 3: Fuel- and Energy-Related Activities Not Included in Scope 1 or Scope 2",null,0]
[null,null,"Category 4: Upstream Transportation and Distribution",null,{"$f":"IF(D46=\"\",0,D46)","v":0}]
[null,null,"Category 5: Waste Generated in Operations",null,0]
[null,null,"Category 6: Business Travel",null,0]
[null,null,"Category 7: Employee Commuting",null,0]
[null,null,"Category 8: Upstream Leased Assets",null,0]
[null,null,"Category 9: Downstream Transportation and Distribution",null,0]
[null,null,"Category 10: Processing of Sold Products",null,0]
[null,null,"Category 11: Use of Sold Products (this tool)",{"$f":"D15","v":0},{"$f":"E15","v":0},"Calculated based on sales figures entered in the \"Product Emissions Analysis\" worksheet. Only accounts for product types contained in this tool."]
[null,null,"Category 11: Use of Sold Products (other)",null,0,"Enter use of sold product emissions associated with products not accounted for in this tool (optional)"]
[null,null,"Category 12: End-of-Life Treatment of Sold Products",null,{"$f":"IF(D55=\"\",0,D55)","v":0}]
[null,null,"Category 13: Downstream Leased Assets",null,{"$f":"IF(D56=\"\",0,D56)","v":0}]
[null,null,"Category 14: Franchises",null,{"$f":"IF(D57=\"\",0,D57)","v":0}]
[null,null,"Category 15: Investments",null,{"$f":"IF(D58=\"\",0,D58)","v":0}]
[null,null,"TOTAL INVENTORY EMISSIONS",{"$f":"SUM(D40:D42)","v":0},{"$f":"SUM(E40:E42)","v":0}]
[]
[null,null,"Emissions Inventory Results"]
[null,null,"This is the total lifetime emissions associated with the use of products sold. This is the value that would be reported in your scope 3 inventory under Category 11, Use of Sold Products."]
[null,null,null,"Current","With Increased Sale of ENERGY STAR Products"]
[null,null,"TOTAL ENERGY STAR PRODUCTS SOLD",{"$f":"IF(D13=\"\",0,D13)","v":0},{"$f":"IF(E13=\"\",0,E13)","v":0}]
[]
[null,null,"TOTAL SCOPE 3 USE OF SOLD PRODUCT EMISSIONS\n(Metric Tons CO2e)",{"$f":"ROUND(SUM(D67:D69),0)","v":0},{"$f":"ROUND(SUM(E67:E69),0)","v":0}]
[null,null,"ENERGY STAR Products",{"$f":"IF(D16=\"\",0,D16)","v":0},{"$f":"IF(E16=\"\",0,E16)","v":0},null,null,"Key Takeaways"]
[null,null,"Non-ENERGY STAR Products",{"$f":"IF(D17=\"\",0,D17)","v":0},{"$f":"IF(E17=\"\",0,E17)","v":0},null,null,{"$f":"IF(D13=0,\"Enter data on the ‘Product Emissions Analysis’ worksheet to see results.\",\"Currently, you sell \"&TEXT(D64,\"#,##0\")&\" ENERGY STAR products, and have total reported Scope 3 Use of Sold Product emissions of \"&TEXT(D66,\"#,##0\")&\" metric tons CO2e. With the increase in ENERGY STAR product sales, you sell \"&TEXT(E64,\"#,##0\")&\" ENERGY STAR products, and have total reported Scope 3 Use of Sold Product emissions of \"&TEXT(E66,\"#,##0\")&\" metric tons CO2e (a change of \"&TEXT(E71,\"#,##0\")&\" metric tons CO2e).\n\nLifetime emissions savings associated with the \"&TEXT(D64,\"#,##0\")&\" ENERGY STAR products you currently sell are \"&TEXT(D81,\"#,##0\")&\" metric tons CO2e. These emissions savings are equal to:\n- \"&TEXT(D82*100,\"#,##0.00\")&\"% of total inventory emissions.\n- \"&TEXT(D83*100,\"#,##0.00\")&\"% of total Scope 1 and Scope 2 emissions.\n- \"&TEXT(D84*100,\"#,##0.00\")&\"% of total Scope 3 emissions.\n- \"&TEXT(D85*100,\"#,##0.00\")&\"% of Scope 3 Use of Sold Product emissions.\n\nBy selling an additional \"&TEXT(E64-D64,\"#,##0\")&\" ENERGY STAR products you increase lifetime emissions savings to \"&TEXT(E81,\"#,##0\")&\" metric tons CO2e. These emissions savings are equal to: \n- \"&TEXT(E82*100,\"#,##0.00\")&\"% of total inventory emissions.\n- \"&TEXT(E83*100,\"#,##0.00\")&\"% of total Scope 1 and Scope 2 emissions.\n- \"&TEXT(E84*100,\"#,##0.00\")&\"% of total Scope 3 emissions.\n- \"&TEXT(E85*100,\"#,##0.00\")&\"% of Scope 3 Use of Sold Product emissions.\n\nThis is also a lifetime emissions savings increase of \"&TEXT(E87,\"#,##0\")&\" metric tons CO2e, equal to \"&TEXT(E88*100,\"#,##0.00\")&\"% of current Scope 3 Use of Sold Product emissions reported.\")","v":"Enter data on the ‘Product Emissions Analysis’ worksheet to see results."}]
[null,null,"Products Not Accounted for in This Tool\n(Entered Above, if Applicable)",{"$f":"IF(D54=\"\",0,D54)","v":0},{"$f":"IF(E54=\"\",0,E54)","v":0}]
[]
[null,null,"CHANGE IN SCOPE 3 INVENTORY EMISSIONS ASSOCIATED WITH INCREASED SALE OF ENERGY STAR PRODUCTS (Metric Tons CO2e)","NA",{"$f":"E66-D66","v":0}]
[]
[null,null,"Emissions Savings Calculations"]
[null,null,"Emissions savings were determined by calculating the emissions that would have occurred if you did not sell any ENERGY STAR products (and instead sold all standard products), and then subtracting from that the actual emissions associated with your product sales (i.e., those that include ENERGY STAR product sales). See \"Assumptions Used in This Tool\" on the \"Getting Started\" worksheet for the special case regarding lightbulbs."]
[null,null,null,"Current","With Increased Sale of ENERGY STAR Products"]
[null,null,"TOTAL PRODUCT USE EMISSIONS IF NOT SELLING ENERGY STAR (Metric Tons CO2e)",{"$f":"SUM(D77:D79)","v":0},{"$f":"SUM(E77:E79)","v":0}]
[null,null,"Products with Same Lifetimes (All Except Lightbulbs)",{"$f":"IF(D25=\"\",0,D25)","v":0},{"$f":"IF(E25=\"\",0,E25)","v":0}]
[null,null,"Lightbulbs",{"$f":"IF(D26=\"\",0,D26)","v":0},{"$f":"IF(E26=\"\",0,E26)","v":0}]
[null,null,"Products Not Accounted for in This Tool\n(Entered Above, if Applicable)",{"$f":"IF(D54=\"\",0,D54)","v":0},{"$f":"IF(E54=\"\",0,E54)","v":0}]
[]
[null,null,"TOTAL EMISSIONS SAVINGS FROM ENERGY STAR PRODUCT SALES (Metric Tons CO2e)",{"$f":"IF(D28=\"\",0,D28)","v":0},{"$f":"IF(E28=\"\",0,E28)","v":0}]
[null,null,"As a Percentage of Total Inventory Emissions",{"$f":"IF(D59=0,0,ROUND(D81/D59,4))","v":0},{"$f":"IF(E59=0,0,ROUND(E81/E59,4))","v":0}]
[null,null,"As a Percentage of Total Scope 1 and 2 Emissions",{"$f":"IF(D40+D41=0,0,ROUND(D81/(D40+D41),4))","v":0},{"$f":"IF(E40+E41=0,0,ROUND(E81/(E40+E41),4))","v":0}]
[null,null,"As a Percentage of Total Scope 3 Emissions",{"$f":"IF(D42=0,0,ROUND(D81/D42,4))","v":0},{"$f":"IF(E42=0,0,ROUND(E81/E42,4))","v":0}]
[null,null,"As a Percentage of Scope 3 Use of Sold Product Emissions",{"$f":"IF(D66=0,0,ROUND(D81/D66,4))","v":0},{"$f":"IF(E66=0,0,ROUND(E81/E66,4))","v":0}]
[]
[null,null,"ADDITIONAL INVENTORY EMISSIONS SAVINGS ACHIEVED WITH INCREASED ENERGY STAR PRODUCT SALES (Metric Tons CO2e)","NA",{"$f":"IF(E31=\"\",0,E31)","v":0}]
[null,null,"As a Percentage of Current Total GHG Inventory Emissions","NA",{"$f":"IF(D59=0,0,ROUND(E87/D59,4))","v":0}]

{"sheet":"Summary Results - Figures","index":3,"n_rows":79,"n_cols":23,"rows_kept":79,"cut":false,"hidden":false,"merged":[[3,2,4,11],[66,1,66,12],[5,1,5,12],[34,1,34,12],[8,19,8,22],[8,15,8,18],[7,15,7,20],[80,16,89,17],[38,19,38,22],[38,15,38,18],[37,15,37,20],[23,16,25,22]]}
[]
[null,null,"Summary Results - Figures"]
[]
[null,null,"This worksheet illustrates the summary results in three charts.\n\nNOTE: In the first two charts ('Scope 3 Use of Sold Product Emissions Savings - Lifetime' and 'Scope 3 Use of Sold Products Emissions Savings - Annual'), emissions savings were determined by calculating the emissions that would have occurred if you did not sell any ENERGY STAR products (and instead sold all standard products), and then subtracting from that the actual emissions associated with your product sales (i.e., those that include ENERGY STAR product sales). See \"Assumptions Used in This Tool\" on the \"Getting Started\" worksheet for the special case regarding lightbulbs. The third chart illustrates the change in total inventory emissions associated with increased ENERGY STAR Sales, which equals the change in your reported Scope 3 Use of Sold Product emissions. Also, the first two charts only represent emissions associated with products contained in this tool. The third chart (GHG Inventory Emissions) includes Scope 3 Use of Sold Products emissions associated with products not contained in this tool (if you entered these emissions in the \"GHG Inventory\" section of the \"Summary Results\" worksheet). "]
[]
[null,"Scope 3 Use of Sold Product Emissions Savings - Lifetime"]
[]
[null,null,null,null,null,null,null,null,null,null,null,null,null,null,null,"Emissions Comparison (Metric Ton CO2e)"]
[null,null,null,null,null,null,null,null,null,null,null,null,null,null,null,"Current Sales:",null,null,null,"Increased ENERGY STAR Sales:"]
[null,null,null,null,null,null,null,null,null,null,null,null,null,null,null,"Lifetime Product Use Emissions - ENERGY STAR ","Lifetime Product Use Emissions - Standard ","Total all Products","Savings from Use of ENERGY STAR","Lifetime Product Use Emissions - ENERGY STAR ","Lifetime Product Use Emissions - Standard ","Total all Products","Savings from Use of ENERGY STAR"]
[null,null,null,null,null,null,null,null,null,null,null,null,null,null,"Office Equipment",{"$f":"'Product Emissions Analysis'!J263","v":0},{"$f":"'Product Emissions Analysis'!K263","v":0},{"$f":"P11+Q11","v":0},null,{"$f":"'Product Emissions Analysis'!P263","v":0},{"$f":"'Product Emissions Analysis'!Q263","v":0},{"$f":"T11+U11","v":0}]
[null,null,null,null,null,null,null,null,null,null,null,null,null,null,"Computers and Monitors",{"$f":"'Product Emissions Analysis'!J305","v":0},{"$f":"'Product Emissions Analysis'!K305","v":0},{"$f":"P12+Q12","v":0},null,{"$f":"'Product Emissions Analysis'!P305","v":0},{"$f":"'Product Emissions Analysis'!Q305","v":0},{"$f":"T12+U12","v":0}]
[null,null,null,null,null,null,null,null,null,null,null,null,null,null,"Heating and Cooling",{"$f":"'Product Emissions Analysis'!J343","v":0},{"$f":"'Product Emissions Analysis'!K343","v":0},0,null,{"$f":"'Product Emissions Analysis'!P343","v":0},{"$f":"'Product Emissions Analysis'!Q343","v":0},0]
[null,null,null,null,null,null,null,null,null,null,null,null,null,null,"Residential Lighting",{"$f":"('Product Emissions Analysis'!J82*'Product Data and EFs'!H54/1000)+('Product Emissions Analysis'!K82*'Product Data and EFs'!H55/1000)+'Product Emissions Analysis'!J154","v":0},{"$f":"('Product Emissions Analysis'!L82*'Product Data and EFs'!H53/1000)+'Product Emissions Analysis'!K154","v":0},0,null,{"$f":"('Product Emissions Analysis'!O82*'Product Data and EFs'!H54/1000)+('Product Emissions Analysis'!P82*'Product Data and EFs'!H55/1000)+'Product Emissions Analysis'!P154","v":0},{"$f":"('Product Emissions Analysis'!Q82*'Product Data and EFs'!H53/1000)+'Product Emissions Analysis'!Q154","v":0},0]
[null,null,null,null,null,null,null,null,null,null,null,null,null,null,"Residential Appliances",{"$f":"'Product Emissions Analysis'!J39","v":0},{"$f":"'Product Emissions Analysis'!K39","v":0},0,null,{"$f":"'Product Emissions Analysis'!P39","v":0},{"$f":"'Product Emissions Analysis'!Q39","v":0},0]
[null,null,null,null,null,null,null,null,null,null,null,null,null,null,"Consumer Electronics",{"$f":"'Product Emissions Analysis'!J201","v":0},{"$f":"'Product Emissions Analysis'!K201","v":0},0,null,{"$f":"'Product Emissions Analysis'!P201","v":0},{"$f":"'Product Emissions Analysis'!Q201","v":0},0]
[null,null,null,null,null,null,null,null,null,null,null,null,null,null,"Commercial Appliances",{"$f":"'Product Emissions Analysis'!J408","v":0},{"$f":"'Product Emissions Analysis'!K408","v":0},0,null,{"$f":"'Product Emissions Analysis'!P408","v":0},{"$f":"'Product Emissions Analysis'!Q408","v":0},0]
[null,null,null,null,null,null,null,null,null,null,null,null,null,null,"Total Emissions",0,0,0,{"$f":"SUM($R$11:$R$17)","v":0},0,0,0,{"$f":"SUM(V11:V17)","v":0}]
[null,null,null,null,null,null,null,null,null,null,null,null,null,null,"Lifetime Product Use Emission Savings",0,0,0,{"$f":"'Summary Results'!D28","v":0},0,0,0,{"$f":"'Summary Results'!E28","v":0}]
[null,null,null,null,null,null,null,null,null,null,null,null,null,null,"Baseline Emissions if not using ENERGY STAR ",{"$f":"$S$18+$S$19","v":0},{"$f":"$S$18+$S$19","v":0},{"$f":"$S$18+$S$19","v":0},{"$f":"$S$18+$S$19","v":0}]
[null,null,null,null,null,null,null,null,null,null,null,null,null,null,"Baseline Emissions if not using ENERGY STAR ",null,null,null,null,{"$f":"$W$18+$W$19","v":0},{"$f":"$W$18+$W$19","v":0},0,0]
[]
[]
[]
[]
[]
[]
[]
[]
[]
[]
[]
[]
[]
[null,"Scope 3 Use of Sold Product Emissions Savings - Annual"]
[]
[]
[null,null,null,null,null,null,null,null,null,null,null,null,null,null,null,"Emissions Comparison (Metric Ton CO2e)"]
[null,null,null,null,null,null,null,null,null,null,null,null,null,null,null,"Current Sales:",null,null,null,"Increased ENERGY STAR Sales:"]
[null,null,null,null,null,null,null,null,null,null,null,null,null,null,null,"Annual Product Use Emissions - ENERGY STAR ","Annual Product Use Emissions - Standard ","Total all Products","Savings from Use of ENERGY STAR","Annual Product Use Emissions - ENERGY STAR ","Annual Product Use Emissions - Standard ","Total all Products","Savings from Use of ENERGY STAR"]
[null,null,null,null,null,null,null,null,null,null,null,null,null,null,"Office Equipment",{"$f":"'Product Emissions Analysis'!J283","v":0},{"$f":"'Product Emissions Analysis'!K283","v":0},{"$f":"P41+Q41","v":0},null,{"$f":"'Product Emissions Analysis'!P283","v":0},{"$f":"'Product Emissions Analysis'!Q283","v":0},{"$f":"T41+U41","v":0}]
[null,null,null,null,null,null,null,null,null,null,null,null,null,null,"Computers and Monitors",{"$f":"'Product Emissions Analysis'!J323","v":0},{"$f":"'Product Emissions Analysis'!K323","v":0},{"$f":"P42+Q42","v":0},null,{"$f":"'Product Emissions Analysis'!P323","v":0},{"$f":"'Product Emissions Analysis'!Q323","v":0},{"$f":"T42+U42","v":0}]
[null,null,null,null,null,null,null,null,null,null,null,null,null,null,"Heating and Cooling",{"$f":"'Product Emissions Analysis'!J358","v":0},{"$f":"'Product Emissions Analysis'!K358","v":0},0,null,{"$f":"'Product Emissions Analysis'!P358","v":0},{"$f":"'Product Emissions Analysis'!Q358","v":0},0]
[null,null,null,null,null,null,null,null,null,null,null,null,null,null,"Residential Lighting",{"$f":"('Product Emissions Analysis'!J87*'Product Data and EFs'!H54/1000/'Product Data and EFs'!F54)+('Product Emissions Analysis'!K87*'Product Data and EFs'!H55/1000/'Product Data and EFs'!F55)+'Product Emissions Analysis'!J159","v":0},{"$f":"('Product Emissions Analysis'!L87*'Product Data and EFs'!H53/1000/'Product Data and EFs'!F53)+'Product Emissions Analysis'!K159","v":0},0,null,{"$f":"('Product Emissions Analysis'!O87*'Product Data and EFs'!H54/1000/'Product Data and EFs'!F54)+('Product Emissions Analysis'!P87*'Product Data and EFs'!H55/1000/'Product Data and EFs'!F55)+'Product Emissions Analysis'!P159","v":0},{"$f":"('Product Emissions Analysis'!Q87*'Product Data and EFs'!H53/1000/'Product Data and EFs'!F53)+'Product Emissions Analysis'!Q159","v":0},0]
[null,null,null,null,null,null,null,null,null,null,null,null,null,null,"Residential Appliances",{"$f":"'Product Emissions Analysis'!J69","v":0},{"$f":"'Product Emissions Analysis'!K69","v":0},0,null,{"$f":"'Product Emissions Analysis'!P69","v":0},{"$f":"'Product Emissions Analysis'!Q69","v":0},0]
[null,null,null,null,null,null,null,null,null,null,null,null,null,null,"Consumer Electronics",{"$f":"'Product Emissions Analysis'!J239","v":0},{"$f":"'Product Emissions Analysis'!K239","v":0},0,null,{"$f":"'Product Emissions Analysis'!P239","v":0},{"$f":"'Product Emissions Analysis'!Q239","v":0},0]
[null,null,null,null,null,null,null,null,null,null,null,null,null,null,"Commercial Appliances",{"$f":"'Product Emissions Analysis'!J454","v":0},{"$f":"'Product Emissions Analysis'!K454","v":0},0,null,{"$f":"'Product Emissions Analysis'!P454","v":0},{"$f":"'Product Emissions Analysis'!Q454","v":0},0]
[null,null,null,null,null,null,null,null,null,null,null,null,null,null,"Total Emissions",0,0,0,{"$f":"SUM($R$41:$R$47)","v":0},0,0,0,{"$f":"SUM(V41:V47)","v":0}]
[null,null,null,null,null,null,null,null,null,null,null,null,null,null,"Annual Product Use Emission Savings",0,0,0,{"$f":"SUM('Product Emissions Analysis'!M283,'Product Emissions Analysis'!M323,'Product Emissions Analysis'!M358,'Product Emissions Analysis'!N87,'Product Emissions Analysis'!M159,'Product Emissions Analysis'!M69,'Product Emissions Analysis'!M239,'Product Emissions Analysis'!M454)","v":0},0,0,0,{"$f":"SUM('Product Emissions Analysis'!S283,'Product Emissions Analysis'!S323,'Product Emissions Analysis'!S358,'Product Emissions Analysis'!S87,'Product Emissions Analysis'!S159,'Product Emissions Analysis'!S69,'Product Emissions Analysis'!S239,'Product Emissions Analysis'!S454)","v":0}]
[null,null,null,null,null,null,null,null,null,null,null,null,null,null,"Baseline Emissions if not using ENERGY STAR ",{"$f":"$S$48+$S$49","v":0},{"$f":"$S$48+$S$49","v":0},0,0]
[null,null,null,null,null,null,null,null,null,null,null,null,null,null,"Baseline Emissions if not using ENERGY STAR ",null,null,null,null,{"$f":"$W$48+$W$49","v":0},{"$f":"$W$48+$W$49","v":0},0,0]
[]
[]
[]
[]
[]
[]
[]
[]
[]
[]
[]
[]
[]
[]
[]
[null,"Change in GHG Inventory Emissions with Increased ENERGY STAR Sales"]
[]
[]
[]
[null,null,null,null,null,null,null,null,null,null,null,null,null,null,null,"Current Sales","With Increased Sale of ESTAR Products","Change in GHG Emissions with Increased Sale of ESTAR Products"]
[null,null,null,null,null,null,null,null,null,null,null,null,null,null,"Scope 1",{"$f":"'Summary Results'!D40","v":0},{"$f":"'Summary Results'!E40","v":0}]
[null,null,null,null,null,null,null,null,null,null,null,null,null,null,"Scope 2",{"$f":"'Summary Results'!D41","v":0},{"$f":"'Summary Results'!E41","v":0}]
[null,null,null,null,null,null,null,null,null,null,null,null,null,null,"Scope 3: Use of Sold Products",{"$f":"'Summary Results'!D53+'Summary Results'!D54","v":0},{"$f":"'Summary Results'!E53+'Summary Results'!E54","v":0}]
[null,null,null,null,null,null,null,null,null,null,null,null,null,null,"Scope 3: Other",{"$f":"SUM('Summary Results'!D43:D52,'Summary Results'!D55:D58)","v":0},{"$f":"SUM('Summary Results'!E43:E52,'Summary Results'!E55:E58)","v":0}]
[null,null,null,null,null,null,null,null,null,null,null,null,null,null,"Current GHG Inventory Emissions",{"$f":"SUM(P72:P75)","v":0},{"$f":"SUM(P72:P75)","v":0},{"$f":"SUM(P72:P75)","v":0}]
[null,null,null,null,null,null,null,null,null,null,null,null,null,null,"Total Emissions",0,0,{"$f":"SUM(Q72:Q75)","v":0}]
[null,null,null,null,null,null,null,null,null,null,null,null,null,null,"Emissions difference from current",null,null,{"$f":"IF(P74>Q74,R77,IF(P74<Q74,Q76))","v":false}]
[null,null,null,null,null,null,null,null,null,null,null,null,null,null,"Change in GHG Emissions with Increased Sale of ESTAR Products",0,0,{"$f":"ABS(P74-Q74)","v":0}]

{"sheet":"Product Data and EFs","index":4,"n_rows":226,"n_cols":12,"rows_kept":226,"cut":false,"hidden":false,"merged":[[56,8,56,9],[51,8,51,9],[51,10,51,11],[150,4,151,4],[150,5,151,5],[150,6,150,7],[150,8,150,9],[150,10,150,11],[92,8,92,9],[92,10,92,11],[85,4,86,4],[85,5,86,5],[85,6,85,7],[85,8,85,9],[85,10,85,11],[56,4,57,4],[56,5,57,5],[168,4,169,4],[168,5,169,5],[168,6,168,7],[92,5,93,5],[92,6,92,7],[56,6,56,7],[168,8,168,9],[168,10,168,11],[2,2,2,13],[130,6,130,7],[130,8,130,9],[130,10,130,11],[130,4,131,4],[130,5,131,5],[3,2,3,14],[10,8,14,11],[21,4,22,4],[21,5,22,5],[21,6,21,7],[21,8,21,9],[21,10,21,11],[92,4,93,4],[184,4,185,4],[184,5,185,5],[184,6,184,7],[184,8,184,9],[184,10,184,11]]}
[]
[null,null,"Product Data and Emission Factors"]
[null,null,"This worksheet presents the Scope 3 Use of Sold Products emission factors used in the analysis as well as the data used to produce these factors (i.e., Scope 1 and 2 emissions factors and product energy use data)."]
[null,null,"Source for Scope 1 and Scope 2 emission factors: U.S. EPA GHG Emission Factors Hub, https://www.epa.gov/climateleadership/center-corporate-climate-leadership-ghg-emission-factors-hub. Global warming potentials are from IPCC's Fourth Assessment Report (AR4, 2007), Fifth Assessment Report (AR5, 2014), or Sixth Assessment Report (AR6, 2021) based on the selection made on the Product Emissions Analysis tab."]
[null,null,"Source for product energy use data: ENERGY STAR Certified Products 2021 Data Book (March 2021)"]
[]
[]
[]
[null,null,null,"Scope 1 and 2 Emission Factors"]
[]
[null,null,null,null,null,"Emission Factor",null,null,"Note: Emissions Factors were accessed from the April 2022 version of the U.S. EPA GHG Emission Factors Hub, https://www.epa.gov/climateleadership/ghg-emission-factors-hub."]
[null,null,null,null,"Scope 1 Emission Factor - Natural Gas",{"$f":"_xlfn.IFS('Product Emissions Analysis'!E5='EF Calcs'!A65,'EF Calcs'!B16,'Product Emissions Analysis'!E5='EF Calcs'!A66,'EF Calcs'!B17,'Product Emissions Analysis'!E5='EF Calcs'!A67,'EF Calcs'!B18)","v":53.1145},"kg CO2e/MMBtu"]
[null,null,null,null,"Scope 1 Emission Factor - Propane",{"$f":"_xlfn.IFS('Product Emissions Analysis'!E5='EF Calcs'!A65,'EF Calcs'!B28,'Product Emissions Analysis'!E5='EF Calcs'!A66,'EF Calcs'!B29,'Product Emissions Analysis'!E5='EF Calcs'!A67,'EF Calcs'!B30)","v":63.113},"kg CO2e/MMBtu"]
[null,null,null,null,"Scope 1 Emission Factor - Distillate Fuel Oil #2",{"$f":"_xlfn.IFS('Product Emissions Analysis'!E5='EF Calcs'!A65,'EF Calcs'!B40,'Product Emissions Analysis'!E5='EF Calcs'!A66,'EF Calcs'!B41,'Product Emissions Analysis'!E5='EF Calcs'!A67,'EF Calcs'!B42)","v":74.203000000000003},"kg CO2e/MMBtu"]
[null,null,null,null,"Scope 2 Emission Factor - U.S. Average Electricity",{"$f":"_xlfn.IFS('Product Emissions Analysis'!E5='EF Calcs'!A65,'EF Calcs'!B57,'Product Emissions Analysis'!E5='EF Calcs'!A66,'EF Calcs'!B58,'Product Emissions Analysis'!E5='EF Calcs'!A67,'EF Calcs'!B59)","v":0.37308243597536084},"kg CO2e/kWh"]
[]
[]
[null,null,null,"Scope 3 Use of Sold Products Emission Factors and Product Energy Use Data"]
[]
[null,null,null,null,"Residential Appliances"]
[]
[null,null,null,null,"Product Type","Product Lifetime (Years)","Electricity - Unit Energy Consumption\n(kWh/year)",null,"Fuel - Unit Energy Consumption\n(MMBtu/year)",null,"Product End Use Emission Factor\n(kg CO2e/Product Sold)"]
[null,null,null,null,null,null,"Stnd. New","ENERGY STAR","Stnd. New","ENERGY STAR","Stnd. New","ENERGY STAR"]
[null,null,null,null,"Room Air Conditioners",9,611.25943959959682,555.69039963599721,0,0,{"$f":"F24*(G24*$F$15+I24*$F$12)","v":2052.4514466487635},{"$f":"F24*(H24*$F$15+J24*$F$12)","v":1865.8649514988765}]
[null,null,null,null,"Dehumidifiers",11,533.71244539208112,462.01520288959188,0,0,{"$f":"F25*(G25*$F$15+I25*$F$12)","v":2190.3061316096882},{"$f":"F25*(H25*$F$15+J25*$F$12)","v":1896.0673308686946}]
[null,null,null,null,"Air Cleaners",9,457.92069955574357,334.40721034429646,0,0,1537.5795306641833,1122.8531097867751]
[null,null,null,null,"Ventilating Fans - Bathroom Fans",10,38.285295321637435,17.263600000000004,0,0,142.8357124063258,64.407459417042404]
[null,null,null,null,"Ventilating Fans - Inline Fans",10,114.28571428571429,84.21052631578948,0,0,426.37992682898386,314.17468292661971]
[null,null,null,null,"Ventilating Fans - Range Hoods",14,11.707317073170731,8.571428571428573,0,0,61.149121213522555,44.769892317043308]
[null,null,null,null,"Standard Ceiling Fan",13.8,120.124,41.085000000000001,0,0,618.46293263963867,211.52766797225826]
[null,null,null,null,"Hugger Ceiling Fan",13.8,106.596,38.766000000000005,0,0,548.81351576416807,199.58820923968761]
[null,null,null,null,"Standard Ceiling Fan with Light Kit",13.8,141.24510000000001,55.499400000000001,0,0,727.20571049065154,285.74074859095902]
[null,null,null,null,"Hugger Ceiling Fan with Light Kit",13.8,127.696,53.166000000000004,0,0,657.44765947147357,273.72715091671131]
[null,null,null,null,"Dishwashers - Standard",12,206.08295999999999,181.24559999999997,0.45910525397333329,0.40377335040000001,1215.2529449037534,1068.7892349316398]
[null,null,null,null,"Dishwashers - Compact",12,149.02415999999999,136.26983999999999,0.33199142143999999,0.30357774122666664,878.78225983268158,803.57116552267735]
[null,null,null,null,"Refrigerators - Top Freezer",12,400.74900000000002,360.58199999999999,0,0,1794.1489576162787,1614.3217311464105]
[null,null,null,null,"Refrigerators - Bottom Freezer",12,612.51499999999999,559.78300000000002,0,0,2742.2230592573778,2506.1424630911451]
[null,null,null,null,"Refrigerators - Side by Side",12,691.56200000000001,630.90699999999993,0,0,3096.1156270559095,2824.5638452068833]
[null,null,null,null,"Freezers - Chest Freezer",11,239.3116,215.3424,0,0,982.1125015367727,883.745138768586]
[null,null,null,null,"Freezers - Upright Freezer",11,438.62799999999999,394.84399999999999,0,0,1800.0884299970062,1620.4029748528092]
[null,null,null,null,"Clothes Washers - Top Loading",11,413.95183803457678,332.59428016317969,0.99846892300345769,0.66983127941072973,2282.1847149341356,1756.291214975131]
[null,null,null,null,"Clothes Washers - Front Loading",11,424.61987147473559,290.70160447919318,0.60866862375746167,0.28113778871633194,2098.2208019289515,1357.2697140179855]
[null,null,null,null,"Clothes Dryers - Standard Electric Dryer (Vented Ventless)",12,768.72014452780934,608.48600508905849,0,0,3441.5518092451985,2724.1852924265013]
[null,null,null,null,"Clothes Dryers - Gas Dryers",12,42.081969520993908,34,2.7184952310562061,2.2200000000000002,1921.0987037936177,1567.1879138779473]
[null,null,null,null,"Water Heaters - Gas Storage Water Heater",13,0,0,19.103336070032739,17.32135300225,13190.633867992801,11960.195052494098]
[null,null,null,null,"Water Heaters - Electric (Heat Pump) Water Heater",13,3527.867547980884,1624.0538257129999,0,0,17110.410441788707,7876.7774468774314]
[null,null,null,null,"Water Heaters - Tankless Gas Water Heater",20,0,0,20.902265710459258,19.46073014422069,22204.267841563764,20672.939024904197]
[]
[]
[null,null,null,null,"Residential Lighting"]
[]
[null,null,null,null,"Product Type","Product Lifetime (Years)","Electricity - Unit Energy Consumption\n(kWh/year)","Product End Use Emission Factor\n(kg CO2e/Product Sold)"]
[null,null,null,null,"Halogen Bulb",0.9,47,{"$f":"F53*G53*$F$15","v":15.781387041757766}]
[null,null,null,null,"LED Bulb",13.698630136986301,10,{"$f":"F54*G54*$F$15","v":51.107183010323403}]
[null,null,null,null,"CFL Bulb",9.1324200913242013,14,47.700037476301844]
[]
[null,null,null,null,"Product Type","Product Lifetime (Years)","Electricity - Unit Energy Consumption\n(kWh/year)",null,"Product End Use Emission Factor\n(kg CO2e/Product Sold)"]
[null,null,null,null,null,null,"Stnd. New","ENERGY STAR","Stnd. New","ENERGY STAR"]
[null,null,null,null,"Cove Mount",20,31.285714285714288,3.9818181818181819,{"$f":"F59*G59*$F$15","v":233.44300993886867},{"$f":"F59*H59*$F$15","v":29.710928537674192}]
[null,null,null,null,"Downlights ≤ 4.5\"",20,38.159090909090907,6.2962499999999997,{"$f":"F60*G60*$F$15","v":284.72973181937766},{"$f":"F60*H60*$F$15","v":46.980405750197313}]
[null,null,null,null,"Downlights > 4.5\"",20,41.975000000000001,10.49375,313.20270500131545,78.300676250328863]
[null,null,null,null,"Downlight Retrofits ≤ 4.5\"",20,38.159090909090907,5.3967857142857145,284.72973181937766,40.26891921445484]
[null,null,null,null,"Downlight Retrofits > 4.5\"",20,41.975000000000001,8.9946428571428552,313.20270500131545,67.114865357424719]
[null,null,null,null,"Accent Lights",20,15.531914893617023,3.65,115.89369287745252,27.235017826201343]
[null,null,null,null,"Undercabinet",20,8.8306451612903221,2.28125,65.89117216016453,17.021886141375838]
[null,null,null,null,"Outdoor Wall/Porch/Post",20,51.217741935483865,9.125,382.16879852895426,68.08754456550335]
[null,null,null,null,"Portable Desk Task",20,12.555999999999999,4.38,93.688461322132611,32.682021391441609]
[null,null,null,null,"Inseparable SSL",20,12.555999999999999,3.1285714285714286,93.688461322132611,23.344300993886865]
[null,null,null,null,"Fluorescent (CFL) (800 lm)",20,50.223999999999997,13.476923076923079,374.75384528853044,100.56006581982034]
[null,null,null,null,"Fluorescent (CFL) (450 lm)",20,46.095967741935482,7.5807692307692314,343.95191867605888,56.565037023648948]
[null,null,null,null,"Fluorescent (CFL) (250 lm)",20,27.375,4.2115384615384608,204.26263369651005,31.425020568693849]
[null,null,null,null,"Solid State Light Engine - With Optics (800 lm)",20,50.223999999999997,13.476923076923079,374.75384528853044,100.56006581982034]
[null,null,null,null,"Solid State Light Engine - With Optics (450 lm)",20,81.948387096774184,13.476923076923079,611.47007764632679,100.56006581982034]
[null,null,null,null,"Solid State Light Engine - With Optics (250 lm)",20,87.6,13.476923076923079,653.64042782883223,100.56006581982034]
[null,null,null,null,"Solid State Light Engine - Without Optics (800 lm)",20,50.223999999999997,9.7333333333333343,374.75384528853044,72.626714203203576]
[null,null,null,null,"Solid State Light Engine - Without Optics (450 lm)",20,81.948387096774184,9.7333333333333343,611.47007764632679,72.626714203203576]
[null,null,null,null,"Solid State Light Engine - Without Optics (250 lm)",20,87.6,9.7333333333333343,653.64042782883223,72.626714203203576]
[null,null,null,null,"Solid State Retrofit: Sconce - With Optics",20,27.375,4.2115384615384608,204.26263369651005,31.425020568693849]
[null,null,null,null,"Solid State Retrofit: Sconce - Without Optics",20,27.375,3.0416666666666665,204.26263369651005,22.695848188501117]
[null,null,null,null,"Solid State Retrofit: Ceiling Mount - With Optics",20,50.223999999999997,13.476923076923079,374.75384528853044,100.56006581982034]
[null,null,null,null,"Solid State Retrofit: Ceiling Mount - With Optics",20,19.252747252747255,13.476923076923079,143.65723688545765,100.56006581982034]
[null,null,null,null,"Solid State Retrofit: Ceiling Mount - Without Optics",20,50.223999999999997,9.7333333333333343,374.75384528853044,72.626714203203576]
[null,null,null,null,"Solid State Retrofit: Ceiling Mount - Without Optics",20,19.252747252747255,9.7333333333333343,143.65723688545765,72.626714203203576]
[]
[]
[null,null,null,null,"Product Type","Product Lifetime (Years)","Electricity - Unit Energy Consumption\n(kWh/year)",null,"Product End Use Emission Factor\n(kg CO2e/Product Sold)"]
[null,null,null,null,null,null,"Stnd. New","ENERGY STAR","Stnd. New","ENERGY STAR"]
[null,null,null,null,"Decorative Light Strings",5,11,3,{"$f":"F88*G88*$F$15","v":20.519533978644844},{"$f":"F88*H88*$F$15","v":5.5962365396304126}]
[]
[]
[null,null,null,null,"Consumer Electronics"]
[]
[null,null,null,null,"Product Type","Product Lifetime (Years)","Electricity - Unit Energy Consumption\n(kWh/year)",null,"Fuel - Unit Energy Consumption\n(MMBtu/year)",null,"Product End Use Emission Factor\n(kg CO2e/Product Sold)"]
[null,null,null,null,null,null,"Stnd. New","ENERGY STAR","Stnd. New","ENERGY STAR","Stnd. New","ENERGY STAR"]
[null,null,null,null,"TV - LCD TVs 20\" and under",5,44.617600000000003,36.912748083527532,0,0,{"$f":"F95*(G95*$F$15+I95*$F$12)","v":83.230214476871311},{"$f":"F95*(H95*$F$15+J95*$F$12)","v":68.857489867736419}]
[null,null,null,null,"TV - LCD TVs 21\"-23\"",5,48.23331460674158,40.80135965311073,0,0,{"$f":"F96*(G96*$F$15+I96*$F$12)","v":89.975012543245498},{"$f":"F96*(H96*$F$15+J96*$F$12)","v":76.111353252446776}]
[null,null,null,null,"TV - LCD TVs 24\"-29\"",5,54.542344594594532,45.327077752690649,0,0,101.74395392579441,84.553682918092065]
[null,null,null,null,"TV - LCD TVs 30\"-34\"",5,65.613903654485014,54.727997271060161,0,0,122.39697504633951,102.09027268970013]
[null,null,null,null,"TV - LCD TVs 35\"-39\"",5,85.493124087591141,69.041569426473245,0,0,159.47991496871151,128.79098452595318]
[null,null,null,null,"TV - LCD TVs 40\"-44\"",5,100.51859340659354,74.001758009166807,0,0,187.5086084447438,138.04378072259561]
[null,null,null,null,"TV - LCD TVs 45\"-49\"",5,127.93777710843382,90.786540279949463,0,0,238.65668768443624,169.35431800709381]
[null,null,null,null,"TV - LCD TVs 50\"-54\"",5,136.96339455782314,101.1384825291448,0,0,255.4931844054357,188.66495716412405]
[null,null,null,null,"TV - LCD TVs 55\"-59\"",5,161.49425000000005,109.86748861016785,0,0,301.25334093006967,204.9481514258832]
[null,null,null,null,"TV - LCD TVs 60\"-64\"",5,162.12167241379308,122.97205183053622,0,0,302.42374234268692,229.39356326912392]
[null,null,null,null,"TV - LCD TVs 65\" or greater",5,294.92,164.65636731817295,0,0,550.14736008926707,307.15199308958881]
[null,null,null,null,"TV - Plasma TVs under 60\"",5,135.2475294117647,85.231893194430057,0,0,252.29238866295219,158.99261167884873]
[null,null,null,null,"TV - Plasma TVs 60\" and up",5,177.1199,97.447846018713079,0,0,330.40161875856154,181.78039886606672]
[null,null,null,null,"TV - OLED TVs",5,154.19946428571424,110.65020122283968,0,0,287.64555880904959,206.40823306690439]
[null,null,null,null,"DVD Players",7,19.386211905354919,12.356340317559154,0,0,50.628586133890487,32.269534817908735]
[null,null,null,null,"Blu Ray",7,15.986999999999998,9.1469000000000005,0,0,41.751282327566656,23.887834135361196]
[null,null,null,null,"Audio Equipment - Receivers",7,65,54.126874999999998,0,0,169.75250836878919,141.35650463713699]
[null,null,null,null,"Audio Equipment - Home Theater In-a-Box",7,91,59.589506135875006,0,0,237.65351171630485,155.6225867541867]
[null,null,null,null,"Audio Equipment - Compact Systems",7,105,38.858386666666661,0,0,274.21559044189024,101.48167088970736]
[null,null,null,null,"Audio Equipment - Soundbars",7,91,28.370255,0,0,237.65351171630485,74.091106912495121]
[null,null,null,null,"Audio Equipment - Other Powered Speakers",7,91,32.197183333333335,0,0,237.65351171630485,84.085425126817015]
[null,null,null,null,"Audio Equipment - Home Radios",7,15.7,12.283769999999999,0,0,41.001759713692152,32.080011841927401]
[null,null,null,null,"Audio Equipment - Portable Media/MP3 Player Speakers and Docks",7,25,14.089999999999998,0,0,65.289426295688145,36.797120660249831]
[null,null,null,null,"Residential Telephony",7,10.824949268559184,6.7565403773597028,0,0,28.270189096966327,17.645225799258693]
[null,null,null,null,"Commercial Telephony (VOIP)",7,34.900233380612235,21.37857142857143,0,0,91.144648600231903,55.831786543712752]
[null,null,null,null,"Set Top Box - Cable",6,152.10416666666669,129.97916666666666,0,0,340.48435813201371,290.95766475628454]
[null,null,null,null,"Set Top Box - Cable Digital Transport Adapter",6,45,37,0,0,100.73225771334744,82.824300786530102]
[null,null,null,null,"Set Top Box - Satellite",6,129.33333333333334,99.444444444444443,0,0,289.51197031688002,222.60585346529865]
[null,null,null,null,"Set Top Box - Multichannel Video Programming Distributor (MVPD) Internet Protocol (IP)",6,116.24999999999999,96.25,0,0,260.22499909281413,215.4551067757709]
[null,null,null,null,"Set Top Box - Over-the-Top (OTT) Internet Protocol (IP)",6,41.510099999999994,23.25,0,0,92.920135353484937,52.044999818562843]
[null,null,null,null,"Set Top Box - Thin-client",6,53.571428571428569,26.714285714285715,0,0,119.9193544206517,59.79978473776498]
[null,null,null,null,"Computer Servers",4,2403.8285468883914,1738.1892430757362,0,0,3587.3048397609318,2593.951507971457]
[]
[]
[null,null,null,null,"Office Equipment"]
[]
[null,null,null,null,"Product Type","Product Lifetime (Years)","Electricity - Unit Energy Consumption\n(kWh/year)",null,"Fuel - Unit Energy Consumption\n(MMBtu/year)",null,"Product End Use Emission Factor\n(kg CO2e/Product Sold)"]
[null,null,null,null,null,null,"Stnd. New","ENERGY STAR","Stnd. New","ENERGY STAR","Stnd. New","ENERGY STAR"]
[null,null,null,null,"Workstation",4,1254,914.5,0,0,{"$f":"F133*(G133*$F$15+I133*$F$12)","v":1871.38149885241},{"$f":"F133*(H133*$F$15+J133*$F$12)","v":1364.73555079787}]
[null,null,null,null,"Printer (Mono, Laser)",4,49.834925482539688,34.661714285714297,0,0,{"$f":"F134*(G134*$F$15+I134*$F$12)","v":74.370141582705969},{"$f":"F134*(H134*$F$15+J134*$F$12)","v":51.726707203185015}]
[null,null,null,null,"Multifunction Device (Mono, Laser)",4,47.525894786135723,32.515185840707979,0,0,70.924306394880858,48.523378958571577]
[null,null,null,null,"Printer (Color, Laser)",4,64.766957567049786,38.30367816091956,0,0,96.653657199311056,57.161718220368392]
[null,null,null,null,"Multifunction Device (Color, Laser)",4,70.062901915447142,40.051921951219498,0,0,104.55695247247118,59.770674428223991]
[null,null,null,null,"Multifunction Device (Inkjet)",4,17.575528993288607,15.534286048780501,0,0,26.22848468148678,23.18227712086837]
[null,null,null,null,"Scanner (Inkjet)",4,18.348064764705889,15.125840470588265,0,0,27.381362791400637,22.572741635767073]
[null,null,null,null,"Printer (Inkjet)",4,11.833906753246756,10.755091695483868,0,0,17.660091034426294,16.050143235557982]
[null,null,null,null,"Professional Displays",6,905.30087272727269,867.40478379903971,0,0,2026.5111293262657,1941.6809382985616]
[null,null,null,null,"Servers",5,3694.221282461539,2959.2,0,0,6891.2453754638627,5520.127722691439]
[null,null,null,null,"Small Network Equipment",5,76.550272386870901,60.572167124213159,0,0,142.79781048335599,112.99205831504055]
[null,null,null,null,"Residential UPS",7.1000000000000005,279.04057139427908,168,0,0,739.14646639331306,445.01272963141042]
[null,null,null,null,"Small Commercial UPS",5,1404.382668918076,682.33333333333337,0,0,2619.7525358076723,1272.8329107359395]
[null,null,null,null,"Larger Commercial UPS",12,46698.578061682922,16989,0,0,209069.03111805854,76059.570057424862]
[]
[]
[null,null,null,null,"Computers and Monitors"]
[]
[null,null,null,null,"Product Type","Product Lifetime (Years)","Electricity - Unit Energy Consumption\n(kWh/year)",null,"Fuel - Unit Energy Consumption\n(MMBtu/year)",null,"Product End Use Emission Factor\n(kg CO2e/Product Sold)"]
[null,null,null,null,null,null,"Stnd. New","ENERGY STAR","Stnd. New","ENERGY STAR","Stnd. New","ENERGY STAR"]
[null,null,null,null,"Home Desktop-Power Management Not Enabled",4,87.412387480447322,51.232622935002581,0,0,{"$f":"F153*(G153*$F$15+I153*$F$12)","v":130.44810582250969},{"$f":"F153*(H153*$F$15+J153*$F$12)","v":76.455967063991622}]
[null,null,null,null,"Home Desktop-Power Management Enabled",4,29.16070447103592,17.362291378794758,0,0,{"$f":"F154*(G154*$F$15+I154*$F$12)","v":43.517386635246709},{"$f":"F154*(H154*$F$15+J154*$F$12)","v":25.910263846859021}]
[null,null,null,null,"Home Laptop-Power Management Not Enabled",4,29.710607300597999,19.395647450262,0,0,44.338022984057766,28.944701592252173]
[null,null,null,null,"Home Laptop-Power Management Enabled",4,10.125587072120002,7.3156194666739998,0,0,15.110714762188607,10.917316525182024]
[null,null,null,null,"Home Monitors-Power Management Not Enabled",7,41.848335180371286,36.823695947702348,0,0,109.29015181424418,96.167919300493708]
[null,null,null,null,"Home Monitors-Power Management Enabled",7,23.102583393691294,20.307673648492464,0,0,60.334176628895868,53.035054476405492]
[null,null,null,null,"Office Desktop-Power Management Not Enabled",4,155.64462324680585,90.905819375080483,0,0,232.27310074954241,135.66145814716472]
[null,null,null,null,"Office Desktop-Power Management Enabled",4,33.163607359633644,19.689403638581876,0,0,49.491037677850102,29.383082689537037]
[null,null,null,null,"Office Laptop-Power Management Not Enabled",4,52.560161034275993,33.701603659044004,0,0,78.437091655699717,50.293905557569083]
[null,null,null,null,"Office Laptop-Power Management Enabled",4,11.380329908390001,8.3016961530379998,0,0,16.983204817701587,12.388868094010796]
[null,null,null,null,"Office Monitors-Power Management Not Enabled",7,131.29066315710648,115.52048329481153,0,0,342.8756830203169,301.69064318875485]
[null,null,null,null,"Office Monitors-Power Management Enabled",7,16.192142689960349,14.112451157698608,0,0,42.28702826901727,36.855753588482486]
[]
[]
[null,null,null,null,"Heating and Cooling"]
[]
[null,null,null,null,"Product Type","Product Lifetime (Years)","Electricity - Unit Energy Consumption\n(kWh/year)",null,"Fuel - Unit Energy Consumption\n(MMBtu/year)",null,"Product End Use Emission Factor\n(kg CO2e/Product Sold)"]
[null,null,null,null,null,null,"Stnd. New","ENERGY STAR","Stnd. New","ENERGY STAR","Stnd. New","ENERGY STAR"]
[null,null,null,null,"Furnace (Gas)",15,294.80686494831417,265.01406102204123,34.824000512515667,29.997105014238528,{"$f":"F171*(G171*$F$15+I171*$F$12)","v":29394.699578087842},{"$f":"F171*(H171*$F$15+J171*$F$12)","v":25382.299885988974}]
[null,null,null,null,"Furnace (Oil)",15,483,466,67.3,64.900000000000006,{"$f":"F172*(G172*$F$15+I172*$F$14)","v":77610.910748641487},{"$f":"F172*(H172*$F$15+J172*$F$14)","v":74844.466727467778}]
[null,null,null,null,"Furnace (Gas) - North",15,369,325,47.4,40.1,{"$f":"F173*(G173*$F$15+I173*$F$12)","v":39829.42078312362},{"$f":"F173*(H173*$F$15+J173*$F$12)","v":33767.148625379887}]
[null,null,null,null,"Furnace (Gas) - South",15,228,211,23.5,20.9,19998.803181035735,17832.201659862014]
[null,null,null,null,"Central Air Conditioner",11,2415.1709055111405,2227.7293997042502,null,null,{"$f":"F175*G175*$F$15","v":9911.6362919740568},{"$f":"F175*H175*$F$15","v":9142.3938224914909}]
[null,null,null,null,"Air-Source Heat Pump",12,4687.8317214700201,4444.2727272727279,null,null,{"$f":"F176*G176*$F$15","v":20987.372137063252},{"$f":"F176*H176*$F$15","v":19896.961142757238}]
[null,null,null,null,"Geothermal Heat Pump",15,10926,4267.7158528119999,null,null,61144.480432001888,23883.147396266482]
[null,null,null,null,"Boiler - Gas",15,147,134.23099999999999,74.8,68.626900000000006,60417.115771325669,55427.440627701129]
[null,null,null,null,"Boiler - Oil",20,284,257.03919999999994,78.900000000000006,76.418739999999985,{"$f":"F179*(G179*$F$15+I179*$F$14)","v":119211.44223634007},{"$f":"F179*(H179*$F$15+J179*$F$14)","v":115327.93150194312}]
[null,null,null,null,"Smart Thermostat",10,3238.214158049756,2996.8364768904407,35.374043017406777,33.110104264292744,{"$f":"F180*('Smart Thermostat Calcs'!C21+'Smart Thermostat Calcs'!C22)","v":32195.999418100371},{"$f":"F180*('Smart Thermostat Calcs'!D21+'Smart Thermostat Calcs'!D22)","v":30008.115051400811}]
[]
[]
[null,null,null,null,"Commercial Appliances"]
[]
[null,null,null,null,"Product Type","Product Lifetime (Years)","Electricity - Unit Energy Consumption\n(kWh/year)",null,"Fuel - Unit Energy Consumption\n(MMBtu/year)",null,"Product End Use Emission Factor\n(kg CO2e/Product Sold)"]
[null,null,null,null,null,null,"Stnd. New","ENERGY STAR","Stnd. New","ENERGY STAR","Stnd. New","ENERGY STAR"]
[null,null,null,null,"Water Coolers - Hot and Cold",5.1431462488761612,396.28639237668216,258.50048717948715,0,0,{"$f":"F187*(G187*$F$15+I187*$F$12)","v":760.40127703202347},{"$f":"F187*(H187*$F$15+J187*$F$12)","v":496.01526660002537}]
[null,null,null,null,"Water Coolers - Cook and Cold",5.1431462488761612,73,53.073919999999966,0,0,{"$f":"F188*(G188*$F$15+I188*$F$12)","v":140.07367977090283},{"$f":"F188*(H188*$F$15+J188*$F$12)","v":101.83916814063711}]
[null,null,null,null,"Commercial Refrigerators - Vertical Closed Solid Door",12,1112.2918750000001,827.58913749999988,0,0,4979.7187468872189,3705.1076568629733]
[null,null,null,null,"Commercial Refrigerators - Vertical Closed Transparent Door",12,1545.6837499999999,1140.2481375,0,0,6920.0095043703677,5104.878633058418]
[null,null,null,null,"Commercial Refrigerators - Horizontal Closed Solid and Transparent",12,534.82537500000001,376.04125000000005,0,0,2394.4074447172302,1683.5326269266361]
[null,null,null,null,"Commercial Freezers - Vertical Closed Solid Door",12,3063.0617499999998,2546.7897812499996,0,0,13713.294470795419,11401.950426070875]
[null,null,null,null,"Commercial Freezers - Vertical Closed Transparent Door",12,4517.4042499999996,3613.9234000000001,0,0,20224.370182505372,16179.496146004301]
[null,null,null,null,"Commercial Freezers - Horizontal Closed Solid and Transparent",12,684.50274999999999,408.90402499999999,0,0,3064.5114408220011,1830.6589167255584]
[null,null,null,null,"Hot Food Holding Cabinets",12,4207.1689801285793,1208.8503877483927,0,0,18835.450219996139,5412.0101686911585]
[null,null,null,null,"Fryers (Large Vat) - Electric Fryers",12,18154.1875,16365.6875,0,0,81276.101947841351,73269.006706938162]
[null,null,null,null,"Fryers (Large Vat) - Gas Fryers",12,0,0,171.65428415000002,113.92977140000001,{"$f":"F197*(G197*$F$15+I197*$F$12)","v":109407.97770582212},{"$f":"F197*(H197*$F$15+J197*$F$12)","v":72615.874116303603}]
[null,null,null,null,"Fryers (Standard) - Electric Fryers",12,17452.474999999999,15062.82,0,0,78134.542641589011,67436.082939100612]
[null,null,null,null,"Fryers (Standard) - Gas Fryers",12,0,0,163,112,103891.962,71385.887999999992]
[null,null,null,null,"Steamers - Electric Steamers",12,19627.654395604397,8034.38,0,0,87872.797372735047,35969.832743420629]
[null,null,null,null,"Steamers - Gas Steamers",12,0,0,229,96,145958.64600000001,61187.904000000002]
[null,null,null,null,"Ice Machines - Batch Ice Machines",10,7207.550550244393,6508.2866104300301,0,0,26890.105167007307,24281.274226450601]
[null,null,null,null,"Ice Machines - Continuous Ice Machines",10,8514.6333779910983,7165.0887353341559,0,0,{"$f":"F203*(G203*$F$15+I203*$F$12)","v":31766.601620980342},{"$f":"F203*(H203*$F$15+J203*$F$12)","v":26731.687593580846}]
[null,null,null,null,"Dishwashers - Flight Type",15,88008,45180,0,0,492513.58537979331,252837.96686050203]
[null,null,null,null,"Dishwashers - Other Dishwasher",15,22162.050317805973,13314.157801447878,37.640342610984447,21.878808870784766,154012.79544580058,91940.406289377395]
[null,null,null,null,"Vending Machines",14,1336.6666043900004,1221.8096795102001,0,0,6981.6156599382948,6381.7002414191656]
[null,null,null,null,"Griddles - Electric Griddles",12,11232,9961,0,0,50285.543050503038,44595.289737006831]
[null,null,null,null,"Griddles - Gas Griddles",12,0,0,118,106,75210.131999999998,67561.644]
[null,null,null,null,"Ovens - Full-size Gas Convection Ovens",12,0,0,80.231014999999985,61.979554999999991,51137.162954609987,39504.156888569996]
[null,null,null,null,"Ovens - Half-size Electric Convection Ovens",12,7632.15,4482.2000000000007,0,0,34169.053364752202,20066.761134345154]
[null,null,null,null,"Ovens - Full-size Electric Convection Ovens",12,10114.15,9464.4500000000007,0,0,45280.940637842345,42372.240734004052]
[null,null,null,null,"Ovens - Gas Combination Ovens",12,0,0,89.06,61.685000000000002,56764.528440000002,39316.41519]
[null,null,null,null,"Ovens - Electric Combination Ovens",12,20564.099999999999,13442.949999999999,0,0,92065.254259691006,60183.942392339712]
[null,null,null,null,"Ovens - Single Gas Rack Ovens",12,0,0,244.185,226.66500000000002,{"$f":"F214*(G214*$F$15+I214*$F$12)","v":155637.17018999998},{"$f":"F214*(H214*$F$15+J214*$F$12)","v":144470.37771000003}]
[null,null,null,null,"Ovens - Double Gas Rack Ovens",12,0,0,300.02999999999997,261.34000000000003,191231.32121999998,166571.32116000002]
[null,null,null,null,"Clothes Washers",10.67,1135.6686488018136,1029.4139973913932,38.04291546968048,33.932583092461286,26080.984664680724,23328.551536898256]
[null,null,null,null,"Water Heaters - Gas-fired Storage Water Heaters",10,39,167,194,163,103187.63215003039,87199.682668078865]
[null,null,null,null,"Water Heaters - Gas-fired Instantaneous Water Heaters",10,119,105,62,53,33374.958098810683,28542.421557774127]
[null,null,null,null,"Water Heaters - Electric Water Heaters",10,15533,5178,0,0,57950.894780052797,19318.208534804184]
[null,null,null,null,"LCHVAC",21.799999999999997,22244.612917886108,21019.78969589806,0,0,{"$f":"F220*(G220*$F$15+I220*$F$12)","v":180919.82136919964},{"$f":"F220*(H220*$F$15+J220*$F$12)","v":170958.09268689252}]
[null,null,null,null,"Pool Pumps - Above-Ground",5,1357.891304347826,1130,0,0,2533.0269780792351,2107.9157632607889]
[null,null,null,null,"Pool Pumps - Below-Ground",7,5799.4166666666661,2137,0,0,15145.623480652748,5580.9401597554224]
[null,null,null,null,"Pool Pumps - Pressure Cleaner Booster",5,1036.7558139534883,930,0,0,1933.976922906927,1734.8333272854279]
[null,null,null,null,"Electric Vehicle Supply Equipment",10,38.320033389772711,26.285746657812496,0,0,142.96531403713567,98.067503945278844]
[null,null,null,null,"Commercial Boilers",25,0,0,938.8,806.5,{"$f":"F225*(G225*$F$15+I225*$F$12)","v":1246597.3149999999},{"$f":"F225*(H225*$F$15+J225*$F$12)","v":1070921.10625}]
[null,null,null,null,"Commercial Coffee Brewers",7,921.63593999189072,588.25514799297207,0,0,{"$f":"F226*(G226*$F$15+I226*$F$12)","v":2406.9232710223127},{"$f":"F226*(H226*$F$15+J226*$F$12)","v":1536.2736451178509}]

{"sheet":"EF Calcs","index":5,"n_rows":67,"n_cols":4,"rows_kept":67,"cut":false,"hidden":true,"merged":[]}
["Emission Factors"]
[]
["GWP","AR4","AR5","AR6"]
["CO2",1,1,1]
["CH4",25,28,27]
["N2O",298,265,273]
[]
["Source: Global warming potentials used are from IPCC's Fourth Assessment Report (AR4, 2007), IPCC's Fifth Assessment Report (AR5, 2014) and IPCC's Sixth Assessment Report (AR6, 2021)"]
[]
["Natural Gas"]
[]
["kg CO2/MMBtu",53.06]
["kg CH4/MMBtu",1E-3]
["kg N2O/MMBtu",1E-4]
[]
["AR 4: kg CO2e/MMBtu",{"$f":"B12*B4+B13*B5+B14*B6","v":53.114800000000002}]
["AR 5: kg CO2e/MMBtu",{"$f":"B12*C4+B13*C5+B14*C6","v":53.1145}]
["AR 6: kg CO2e/MMBtu",{"$f":"B12*D4+B13*D5+B14*D6","v":53.1143}]
[]
["Source: U.S. EPA GHG Emission Factors Hub, https://www.epa.gov/climateleadership/center-corporate-climate-leadership-ghg-emission-factors-hub. "]
[]
["Propane"]
[]
["kg CO2/MMBtu",62.87]
["kg CH4/MMBtu",3.0000000000000001E-3]
["kg N2O/MMBtu",5.9999999999999995E-4]
[]
["AR 4: kg CO2e/MMBtu",{"$f":"B24*B4+B25*B5+B26*B6","v":63.123800000000003}]
["AR 5: kg CO2e/MMBtu",{"$f":"B24*C4+B25*C5+B26*C6","v":63.113}]
["AR 6: kg CO2e/MMBtu",{"$f":"B24*D4+B25*D5+B26*D6","v":63.114800000000002}]
[]
["Source: U.S. EPA GHG Emission Factors Hub, https://www.epa.gov/climateleadership/center-corporate-climate-leadership-ghg-emission-factors-hub. "]
[]
["Distillate Fuel Oil No. 2"]
[]
["kg CO2/MMBtu",73.959999999999994]
["kg CH4/MMBtu",3.0000000000000001E-3]
["kg N2O/MMBtu",5.9999999999999995E-4]
[]
["AR 4: kg CO2e/MMBtu",{"$f":"B36*B4+B37*B5+B38*B6","v":74.213799999999992}]
["AR 5: kg CO2e/MMBtu",{"$f":"B36*C4+B37*C5+B38*C6","v":74.203000000000003}]
["AR 6: kg CO2e/MMBtu",{"$f":"B36*D4+B37*D5+B38*D6","v":74.204799999999992}]
[]
["Source: U.S. EPA GHG Emission Factors Hub, https://www.epa.gov/climateleadership/center-corporate-climate-leadership-ghg-emission-factors-hub. "]
[]
["Electricity"]
[]
[null,"U.S. annual total output emission rate (lb/MWh)"]
["CO2",818.3]
["CH4",6.5000000000000002E-2]
["N2O",8.9999999999999993E-3]
[]
["AR 4: lb CO2e/MWh",{"$f":"B49*B4+B50*B5+B51*B6","v":822.60699999999997}]
["AR 5: lb CO2e/MWh",{"$f":"B49*C4+B50*C5+B51*C6","v":822.505}]
["AR 6: lb CO2e/MWh",{"$f":"B49*D4+B50*D5+B51*D6","v":822.51199999999994}]
[]
["AR 4: kg CO2e/kWh",{"$f":"B53/2.20462/1000","v":0.37312870245212326}]
["AR 5: kg CO2e/kWh",{"$f":"B54/2.20462/1000","v":0.37308243597536084}]
["AR 6: kg CO2e/kWh",0.37308561112572686]
[]
["Source: U.S. EPA (2022). eGRID 2020 U.S. Average Data. https://www.epa.gov/energy/emissions-generation-resource-integrated-database-egrid"]
[]
[]
["GWP Selection"]
["AR4"]
["AR5"]
["AR6"]

{"sheet":"Smart Thermostat Calcs","index":6,"n_rows":23,"n_cols":23,"rows_kept":23,"cut":false,"hidden":true,"merged":[]}
["Consumption Estimates by CZ (MMBtu)",null,null,null,null,null,null,null,null,null,"Energy Savings Estimates by CZ (MMBtu)",null,null,null,null,null,"Energy Star Consumption"]
[null,"Heating",null,null,null,null,"Cooling",null,null,null,"Heating",null,null,null,"Cooling",null,null,"Heating",null,null,null,null,"Cooling"]
["Climate Zone","per household heating energy consumption (million BTU)","Electricity","Natural Gas","Propane","Fuel Oil","Electricity",null,null,"per household heating energy savings (million BTU)","Electricity","Natural Gas","Propane","Fuel Oil","Electricity",null,"Climate Zone","per household heating energy consumption (million BTU)","Electricity","Natural Gas","Propane","Fuel Oil","Electricity"]
["Very Cold/Cold",60.5,2.678385416666667,44.377170138888893,4.5952690972222223,8.8491753472222232,2.0230000000000001,null,null,3.8719999999999999,0.17141666666666669,2.8401388888888892,0.29409722222222223,0.56634722222222234,0.16184000000000004,null,"Very Cold/Cold",{"$f":"B4-J4","v":56.628},{"$f":"C4-K4","v":2.5069687500000004},{"$f":"D4-L4","v":41.537031250000005},{"$f":"E4-M4","v":4.3011718749999996},{"$f":"F4-N4","v":8.2828281250000018},{"$f":"G4-O4","v":1.8611600000000001}]
["Mixed-Humid",37.799999999999997,5.1361832061068693,24.093893129770986,3.78,4.7899236641221368,6.4980000000000002,null,null,2.4192,0.32871572519083969,1.5420091603053434,0.24192000000000002,0.30655511450381678,0.51984000000000008,null,"Mixed-Humid",{"$f":"B5-J5","v":35.380799999999994},4.8074674809160296,22.551883969465642,3.5380799999999999,4.4833685496183202,5.9781599999999999]
["Mixed-Dry/Hot-Dry",18.2,2.1031111111111112,14.964444444444442,1.1324444444444444,0,8.7089999999999996,null,null,1.1648000000000001,0.13459911111111111,0.95772444444444449,7.2476444444444441E-2,0,0.69672000000000001,null,"Mixed-Dry/Hot-Dry",17.0352,1.968512,14.006719999999998,1.059968,0,8.0122800000000005]
["Hot-Humid",11.9,4.1192307692307697,6.7509615384615396,1.0298076923076924,0,14.545999999999999,null,null,0.76160000000000005,0.26363076923076928,0.43206153846153861,6.590769230769232E-2,0,1.16368,null,"Hot-Humid",11.138400000000001,3.8556000000000004,6.3189000000000011,0.96390000000000009,0,13.38232]
["Marine",26.4,5.2450331125827798,20.280794701986753,0.87417218543046338,0,1.2350000000000001,null,null,1.6896000000000002,0.33568211920529795,1.2979708609271523,5.5947019867549658E-2,0,9.8800000000000013E-2,null,"Marine",24.7104,4.9093509933774815,18.982823841059602,0.81822516556291369,0,1.1362000000000001]
["Weighted Average by Climate Zone Weights",39.144186046511621,3.7701430291048474,27.391614766376371,3.2220857082934193,4.7603425427369839,7.2786436781609201,null,null,2.505227906976744,0.24128915386271027,1.7530633450480879,0.20621348533077885,0.30466192273516701,0.58229149425287363,null,"Weighted Average by Climate Zone Weights",36.638958139534878,3.5288538752421372,25.638551421328284,3.0158722229626407,4.4556806200018171,6.6963521839080462]
["kWh",null,{"$f":"C9/3412*1000000","v":1104.9657177915733},null,null,null,{"$f":"G9/3412*1000000","v":2133.2484402581827},null,null,null,null,null,null,null,null,null,"kWh",null,{"$f":"S9/3412*1000000","v":1034.2479118529125},null,null,null,{"$f":"W9/3412*1000000","v":1962.5885650375285}]
[]
[null,null,"kg CO2e/kWh","kg CO2e/MMBtu","kg CO2e/MMBtu","kg CO2e/MMBtu","kg CO2e/kWh",null,null,null,null,null,null,null,null,null,null,null,"kg CO2e/kWh","kg CO2e/MMBtu","kg CO2e/MMBtu","kg CO2e/MMBtu","kg CO2e/kWh"]
["Emission Factors",null,{"$f":"'Product Data and EFs'!F15","v":0.37308243597536084},{"$f":"'Product Data and EFs'!F12","v":53.1145},{"$f":"'Product Data and EFs'!F13","v":63.113},{"$f":"'Product Data and EFs'!F14","v":74.203000000000003},{"$f":"'Product Data and EFs'!F15","v":0.37308243597536084},null,null,null,null,null,null,null,null,null,"Emission Factors",null,{"$f":"C13","v":0.37308243597536084},{"$f":"D13","v":53.1145},63.113,74.203000000000003,0.37308243597536084]
[]
["Emission",null,{"$f":"C10*C13","v":412.24330166294328},{"$f":"D13*D9","v":1454.8919225086977},{"$f":"E13*E9","v":203.35549530752257},{"$f":"F13*F9","v":353.23169769871242},{"$f":"G10*G13","v":795.87752463216179},null,null,null,null,null,null,null,null,null,null,null,{"$f":"S10*S13","v":385.85973035651483},{"$f":"T13*T9","v":1361.7788394681411},{"$f":"U13*U9","v":190.34074360784115},{"$f":"V13*V9","v":330.62486904599484},{"$f":"W10*W13","v":732.20732266158905}]
[]
[]
[]
["Emissions in kg CO2e/year"]
[null,null,"Conventional","Energy Star","Savings","lb CO2","Lifetime"]
["Electricity Emissions",null,{"$f":"C15+G15","v":1208.120826295105},{"$f":"S15+W15","v":1118.0670530181039},{"$f":"C21-D21","v":90.053773277001028},{"$f":"E21*2.2","v":198.11830120940229},{"$f":"F21*10","v":1981.1830120940228}]
["Fuel Emissions",null,{"$f":"SUM(D15:F15)","v":2011.4791155149326},{"$f":"SUM(T15:V15)","v":1882.7444521219772},{"$f":"C22-D22","v":128.73466339295533},{"$f":"E22*2.2","v":283.21625946450172},{"$f":"F22*10","v":2832.1625946450172}]
[null,null,null,null,null,null,{"$f":"SUM(G21:G22)","v":4813.3456067390398}]